Workbook

Sheet Setting
C3: 2017
B6: 최근주가기준일 | C6: 2017-09-22
A16: 1 | B16: AAPL-US | C16: Apple
A17: =A16+1 -> 2 | B17: MSFT-US | C17: Microsoft
A18: =A17+1 -> 3 | B18: XOM-US | C18: Exxon Mobil
A19: 4 | B19: 4338-HK | C19: Microsoft
A20: 5 | B20: AMZN-US | C20: Amazon.com
A21: 6 | B21: JNJ-US | C21: Johnson & Johnson
A22: 7 | B22: GE-US | C22: General Electric
A23: 8 | B23: FB-US | C23: Facebook, Inc. Class A
A24: 9 | B24: T-US | C24: AT&T
A25: 10 | B25: 941-HK | C25: China Mobile
A26: 11 | B26: GOOG-US | C26: Alphabet Inc. Class C
A27: 12 | B27: NESN-CH | C27: Nestle
A28: 13 | B28: WFC-US | C28: Wells Fargo & Company
A29: 14 | B29: JPM-US | C29: JPMorgan Chase & Co.
A30: 15 | B30: WMT-US | C30: Wal-Mart Stores
A31: 16 | B31: PG-US | C31: Procter & Gamble
A32: 17 | B32: VZ-US | C32: Verizon Communications
A33: 18 | B33: 700-HK | C33: Tencent Holdings
A34: 19 | B34: PFE-US | C34: Pfizer
A35: 20 | B35: GOOGL-US | C35: Alphabet Inc. Class A
A36: 21 | B36: NOVN-CH | C36: Novartis
A37: 22 | B37: ABI-BE | C37: Anheuser-Busch InBev
A38: 23 | B38: CVX-US | C38: Chevron
A39: 24 | B39: KO-US | C39: Coca-Cola
A40: 25 | B40: A005930 | C40: 삼성전자
A41: 26 | B41: 7203-JP | C41: Toyota Motor
A42: 27 | B42: BRK.B-US | C42: Berkshire Hathaway Inc. Class B
A43: 28 | B43: ROG-CH | C43: Roche Holding Ltd Genusssch.
A44: 29 | B44: 601857-CN | C44: PetroChina Company Limited Class A
A45: 30 | B45: BRK.A-US | C45: Berkshire Hathaway Inc. Class A
A46: 31 | B46: 601398-CN | C46: Industrial and Commercial Bank of China Limited Class A
A47: 32 | B47: ORCL-US | C47: Oracle
A48: 33 | B48: HD-US | C48: Home Depot
A49: 34 | B49: 939-HK | C49: China Construction Bank Corporation Class H
A50: 35 | B50: MRK-US | C50: Merck & Co.
A51: 36 | B51: CMCSA-US | C51: Comcast Corporation Class A
A52: 37 | B52: INTC-US | C52: Intel
A53: 38 | B53: DIS-US | C53: Walt Disney
A54: 39 | B54: PEP-US | C54: PepsiCo
A55: 40 | B55: PM-US | C55: Philip Morris International
A56: 41 | B56: IBM-US | C56: International Business Machines
A57: 42 | B57: CSCO-US | C57: Cisco Systems
A58: 43 | B58: V-US | C58: Visa Inc. Class A
A59: 44 | B59: 8648-JP | C59: Bank of America
A60: 45 | B60: BAC-US | C60: Bank of America
A61: 46 | B61: 2330-TW | C61: Taiwan Semiconductor Manufacturing
A62: 47 | B62: 601288-CN | C62: Agricultural Bank of China Limited Class A
A63: 48 | B63: UNH-US | C63: UnitedHealth Group
A64: 49 | B64: MO-US | C64: Altria Group
A65: 50 | B65: HSBA-GB | C65: HSBC Holdings
A66: 51 | B66: 5-HK | C66: HSBC Holdings
A67: 52 | B67: 8710-JP | C67: Citigroup
A68: 53 | B68: C-US | C68: Citigroup
A69: 54 | B69: BMY-US | C69: Bristol-Myers Squibb
A70: 55 | B70: AMGN-US | C70: Amgen
A71: 56 | B71: MDT-US | C71: Medtronic
A72: 57 | B72: FP-FR | C72: Total
A73: 58 | B73: RDSA-NL | C73: Royal Dutch Shell Plc Class A
A74: 59 | B74: BATS-GB | C74: British American Tobacco
A75: 60 | B75: 4333-HK | C75: Cisco Systems
A76: 61 | B76: GILD-US | C76: Gilead Sciences
A77: 62 | B77: BP-GB | C77: BP
A78: 63 | B78: MCD-US | C78: McDonald's
A79: 64 | B79: SLB-US | C79: Schlumberger NV
A80: 65 | B80: NOVO.B-DK | C80: Novo Nordisk A/S Class B
A81: 66 | B81: MMM-US | C81: 3M
A82: =A81+1 -> 67 | B82: SAN-FR | C82: Sanofi
A83: 68 | B83: ABBV-US | C83: AbbVie
A84: 69 | B84: OR-FR | C84: L'Oreal
A85: 70 | B85: KHC-US | C85: Kraft Heinz
A86: 71 | B86: 9437-JP | C86: NTT DoCoMo
A87: 72 | B87: GSK-GB | C87: GlaxoSmithKline
A88: 73 | B88: ITX-ES | C88: Industria de Diseno Textil
A89: 74 | B89: CVS-US | C89: CVS Health
A90: 75 | B90: 601988-CN | C90: Bank of China Limited Class A
A91: 76 | B91: SAP-DE | C91: SAP SE
A92: 77 | B92: MA-US | C92: MasterCard Incorporated Class A
A93: 78 | B93: 9432-JP | C93: Nippon Telegraph and Telephone
A94: 79 | B94: AGN-US | C94: Allergan
A95: 80 | B95: 4332-HK | C95: Amgen
A96: 81 | B96: SAB-GB | C96: SABMiller
A97: 82 | B97: RY-US | C97: Royal Bank of Canada
A98: 83 | B98: HON-US | C98: Honeywell International
A99: 84 | B99: SIE-DE | C99: Siemens
A100: 85 | B100: LLY-US | C100: Eli Lilly and Company
A101: 86 | B101: UTX-US | C101: United Technologies
A102: 87 | B102: WBA-US | C102: Walgreens Boots Alliance
A103: 88 | B103: QCOM-US | C103: QUALCOMM
A104: 89 | B104: BA-US | C104: Boeing
A105: 90 | B105: SBUX-US | C105: Starbucks
A106: 91 | B106: BAYN-DE | C106: Bayer
A107: 92 | B107: CELG-US | C107: Celgene
A108: 93 | B108: TD-US | C108: Toronto-Dominion Bank
A109: 94 | B109: MC-FR | C109: LVMH Moet Hennessy Louis Vuitton SE
A110: 95 | B110: VOD-GB | C110: Vodafone Group
A111: 96 | B111: UNA-NL | C111: Unilever NV Cert. of shs
A112: 97 | B112: 2914-JP | C112: Japan Tobacco
A113: 98 | B113: 9433-JP | C113: KDDI
A114: 99 | B114: DTE-DE | C114: Deutsche Telekom
A115: 100 | B115: LMT-US | C115: Lockheed Martin
A116: 101 | B116: 1299-HK | C116: AIA Group
A117: 102 | B117: UNP-US | C117: Union Pacific
A118: 103 | B118: NKE-US | C118: NIKE, Inc. Class B
A119: 104 | B119: UPS-US | C119: United Parcel Service, Inc. Class B
A120: 105 | B120: AZN-GB | C120: AstraZeneca
A121: 106 | B121: RAI-US | C121: Reynolds American
A122: 107 | B122: 532540-IN | C122: Tata Consultancy Services
A123: 108 | B123: COST-US | C123: Costco Wholesale
A124: 109 | B124: BAS-DE | C124: BASF SE
A125: 110 | B125: USB-US | C125: U.S. Bancorp
A126: 111 | B126: LOW-US | C126: Lowe's Companies
A127: 112 | B127: DGE-GB | C127: Diageo
A128: 113 | B128: MDLZ-US | C128: Mondelez International, Inc. Class A
A129: 114 | B129: DAI-DE | C129: Daimler
A130: 115 | B130: ACN-US | C130: Accenture
A131: 116 | B131: SPG-US | C131: Simon Property Group
A132: 117 | B132: 8306-JP | C132: Mitsubishi UFJ Financial Group
A133: 118 | B133: 600028-CN | C133: China Petroleum & Chemical Corporation Class A
A134: 119 | B134: RB-GB | C134: Reckitt Benckiser Group
A135: 120 | B135: GS-US | C135: Goldman Sachs Group
A136: 121 | B136: 601628-CN | C136: China Life Insurance Class A
A137: 122 | B137: PCLN-US | C137: Priceline Group
A138: 123 | B138: CL-US | C138: Colgate-Palmolive
A139: 124 | B139: TXN-US | C139: Texas Instruments
A140: 125 | B140: CHTR-US | C140: Charter Communications, Inc. Class A
A141: 126 | B141: AVGO-US | C141: Broadcom
A142: 127 | B142: ABT-US | C142: Abbott Laboratories
A143: 128 | B143: ALV-DE | C143: Allianz SE
A144: 129 | B144: BIIB-US | C144: Biogen
A145: 130 | B145: TMO-US | C145: Thermo Fisher Scientific
A146: =A145+1 -> 131 | B146: SAN-ES | C146: Banco Santander
A147: 132 | B147: EPD-US | C147: Enterprise Products Partners
A148: 133 | B148: TWX-US | C148: Time Warner
A149: 134 | B149: AIG-US | C149: American International Group
A150: 135 | B150: 8685-JP | C150: American International Group
A151: 136 | B151: BNS-US | C151: Bank of Nova Scotia
A152: 137 | B152: 9984-JP | C152: SoftBank Group
A153: 138 | B153: AXP-US | C153: American Express
A154: 139 | B154: ULVR-GB | C154: Unilever
A155: 140 | B155: 4850-JP | C155: Dow Chemical
A156: 141 | B156: DD-US | C156: E. I. du Pont de Nemours and Company
A157: 142 | B157: CB-US | C157: Chubb
A158: 143 | B158: NEE-US | C158: NextEra Energy
A159: 144 | B159: BLK-US | C159: BlackRock
A160: 145 | B160: DOW-US | C160: Dow Chemical
A161: 146 | B161: BNP-FR | C161: BNP Paribas SA Class A
A162: 147 | B162: 600519-CN | C162: Kweichow Moutai Class A
A163: 148 | B163: DUK-US | C163: Duke Energy
A164: 149 | B164: SHP-GB | C164: Shire
A165: 150 | B165: OXY-US | C165: Occidental Petroleum
A166: 151 | B166: 883-HK | C166: CNOOC
A167: 152 | B167: ENI-IT | C167: Eni S.p.A.
A168: 153 | B168: STL-NO | C168: Statoil ASA
A169: 154 | B169: DHR-US | C169: Danaher
A170: 155 | B170: MS-US | C170: Morgan Stanley
A171: 156 | B171: CRM-US | C171: salesforce.com
A172: 157 | B172: EMC-US | C172: EMC
A173: 158 | B173: 6178-JP | C173: Japan Post Holdings
A174: 159 | B174: F-US | C174: Ford Motor
A175: 160 | B175: NG-GB | C175: National Grid
A176: 161 | B176: 600036-CN | C176: China Merchants Bank Class A
A177: 162 | B177: LLOY-GB | C177: Lloyds Banking Group
A178: 163 | B178: HEIA-NL | C178: Heineken NV
A179: 164 | B179: 601318-CN | C179: Ping An Insurance (Group) Company of China, Ltd. Class A
A180: 165 | B180: TJX-US | C180: TJX Companies
A181: 166 | B181: UBSG-CH | C181: UBS Group
A182: 167 | B182: 600000-CN | C182: Shanghai Pudong Development Bank Class A
A183: 168 | B183: 7182-JP | C183: Japan Post Bank
A184: 169 | B184: BT.A-GB | C184: BT Group
A185: 170 | B185: COP-US | C185: ConocoPhillips
A186: 171 | B186: UBS-US | C186: UBS Group
A187: 172 | B187: IMB-GB | C187: Imperial Brands
A188: 173 | B188: SO-US | C188: Southern
A189: 174 | B189: BMW-DE | C189: Bayerische Motoren Werke
A190: 175 | B190: GM-US | C190: General Motors
A191: 176 | B191: AMT-US | C191: American Tower
A192: 177 | B192: ESRX-US | C192: Express Scripts Holding
A193: 178 | B193: 7267-JP | C193: Honda Motor
A194: 179 | B194: 1398-HK | C194: Industrial and Commercial Bank of China Limited Class H
A195: 180 | B195: CNI-US | C195: Canadian National Railway
A196: 181 | B196: PYPL-US | C196: PayPal Holdings
A197: 182 | B197: 500325-IN | C197: Reliance Industries
A198: 183 | B198: TEF-ES | C198: Telefonica
A199: 184 | B199: KMB-US | C199: Kimberly-Clark
A200: 185 | B200: ADBE-US | C200: Adobe Systems
A201: 186 | B201: CS-FR | C201: AXA
A202: 187 | B202: D-US | C202: Dominion Resources
A203: 188 | B203: MET-US | C203: MetLife
A204: 189 | B204: BN-FR | C204: Danone
A205: 190 | B205: KMI-US | C205: Kinder Morgan Inc Class P
A206: 191 | B206: CAT-US | C206: Caterpillar
A207: 192 | B207: MON-US | C207: Monsanto
A208: 193 | B208: 500180-IN | C208: HDFC Bank
A209: 194 | B209: 2378-HK | C209: Prudential
A210: =A209+1 -> 195 | B210: ABBN-CH | C210: ABB
A211: 196 | B211: ASML-NL | C211: ASML Holding NV
A212: 197 | B212: SYK-US | C212: Stryker
A213: 198 | B213: SU-US | C213: Suncor Energy
... 8752 more rows

Sheet Summary

Sheet Global
B3: 전세계 업종별 이익동향
B5: 업종별 12MF 순이익전망치 추이 (컨센서스 기준) (USD bn)
AI19: =Data_Sector!D14 -> 4043
B59: 업종별 12MF 순이익전망치 변화율 (1W) | R59: 종목별 12MF 순이익전망치 변화율
AK60: =S62 -> 1W | AN60: FY1
R61: 업종명 | S61: 소프트웨어 | AI61: 종목명 | AJ61: 시가총액 | AK61: 12MF 순이익 변화율 | AL61: 12MF PE | AM61: 12MF PB | AN61: Sales growth | AO61: OP growth | AP61: NP growth | AQ61: OPM | AR61: NPM | AS61: ROE | AT61: Div. yield | BF61: 전세계 | BL61: =S61 -> 소프트웨어 | BM61: =S62 -> 1W | BN61: 시가총액 | BO61: P/E(Fwd.12M) | BP61: P/B(Fwd.12M) | BQ61: 매출액증가율(YoY) | BR61: 영업이익증가율(YoY) | BS61: 순이익증가율(YoY, 지배) | BT61: 영업이익률 | BU61: 순이익률 | BV61: ROE(지배) | BW61: 현금배당수익률
R62: 기간 | S62: 1W | AH62: 1 | AI62: =IFERROR(BL62,"") -> Microsoft | AJ62: =IF(BN62="","",BN62) -> 573123.98 | AK62: =IF(BM62="","",BM62) -> -0.2437319319 | AL62: =IF(BO62="","",BO62) -> 22.64 | AM62: =IF(BP62="","",BP62) -> 6.12 | AN62: =IF(BQ62="","",BQ62) -> 13.65 | AO62: =IF(BR62="","",BR62) -> 41.25 | AP62: =IF(BS62="","",BS62) -> 41.29 | AQ62: =IF(BT62="","",BT62) -> 30.33 | AR62: =IF(BU62="","",BU62) -> 24.66 | AS62: =IF(BV62="","",BV62) -> 33.26 | AT62: =IF(BW62="","",BW62) -> 2.07 | BA62: Chg. | BK62: 1 | BL62: =OFFSET(Data_Comp!$A$4,$BK62,MATCH($BF$61,Data_Comp!$B$3:$GR$3,0)+MATCH(BL$61,Data_Comp!$B$4:$Y$4,0)-1) -> Microsoft | BM62: =IFERROR(OFFSET(Data_Comp!$A$4,$BK62+MATCH(BM$61,Data_Comp!$A$5:$A$300,0),MATCH($BF$61,Data_Comp!$B$3:$GR$3,0)+MATCH(BL$61,Data_Comp!$B$4:$Y$4,0)-1),"") -> -0.2437319319 | BN62: =IFERROR(OFFSET(Data_Comp!$A$4,$BK62+MATCH(BN$61,Data_Comp!$A$5:$A$300,0),MATCH($BF$61,Data_Comp!$B$3:$GR$3,0)+MATCH(BL$61,Data_Comp!$B$4:$Y$4,0)-1),"") -> 573123.98 | BO62: =IFERROR(OFFSET(Data_Comp!$A$4,$BK62+MATCH(BO$61,Data_Comp!$A$5:$A$300,0),MATCH($BF$61,Data_Comp!$B$3:$GR$3,0)+MATCH(BL$61,Data_Comp!$B$4:$Y$4,0)-1),"") -> 22.64 | BP62: =IFERROR(OFFSET(Data_Comp!$A$4,$BK62+MATCH(BP$61,Data_Comp!$A$5:$A$300,0),MATCH($BF$61,Data_Comp!$B$3:$GR$3,0)+MATCH(BL$61,Data_Comp!$B$4:$Y$4,0)-1),"") -> 6.12 | BQ62: =IFERROR(OFFSET(Data_Comp!$A$4,$BK62+MATCH(BQ$61,Data_Comp!$A$5:$A$300,0),MATCH($BF$61,Data_Comp!$B$3:$GR$3,0)+MATCH(BL$61,Data_Comp!$B$4:$Y$4,0)-1),"") -> 13.65 | BR62: =IFERROR(OFFSET(Data_Comp!$A$4,$BK62+MATCH(BR$61,Data_Comp!$A$5:$A$300,0),MATCH($BF$61,Data_Comp!$B$3:$GR$3,0)+MATCH(BL$61,Data_Comp!$B$4:$Y$4,0)-1),"") -> 41.25 | BS62: =IFERROR(OFFSET(Data_Comp!$A$4,$BK62+MATCH(BS$61,Data_Comp!$A$5:$A$300,0),MATCH($BF$61,Data_Comp!$B$3:$GR$3,0)+MATCH(BL$61,Data_Comp!$B$4:$Y$4,0)-1),"") -> 41.29 | BT62: =IFERROR(OFFSET(Data_Comp!$A$4,$BK62+MATCH(BT$61,Data_Comp!$A$5:$A$300,0),MATCH($BF$61,Data_Comp!$B$3:$GR$3,0)+MATCH(BL$61,Data_Comp!$B$4:$Y$4,0)-1),"") -> 30.33 | BU62: =IFERROR(OFFSET(Data_Comp!$A$4,$BK62+MATCH(BU$61,Data_Comp!$A$5:$A$300,0),MATCH($BF$61,Data_Comp!$B$3:$GR$3,0)+MATCH(BL$61,Data_Comp!$B$4:$Y$4,0)-1),"") -> 24.66 | BV62: =IFERROR(OFFSET(Data_Comp!$A$4,$BK62+MATCH(BV$61,Data_Comp!$A$5:$A$300,0),MATCH($BF$61,Data_Comp!$B$3:$GR$3,0)+MATCH(BL$61,Data_Comp!$B$4:$Y$4,0)-1),"") -> 33.26 | BW62: =IFERROR(OFFSET(Data_Comp!$A$4,$BK62+MATCH(BW$61,Data_Comp!$A$5:$A$300,0),MATCH($BF$61,Data_Comp!$B$3:$GR$3,0)+MATCH(BL$61,Data_Comp!$B$4:$Y$4,0)-1),"") -> 2.07
AH63: =AH62+1 -> 2 | AI63: Facebook, Inc. Class A | AJ63: 404236.59 | AK63: 0 | AL63: 26.83 | AM63: 5.37 | AN63: 41.43 | AO63: 42.02 | AP63: 54.33 | AQ63: 45.39 | AR63: 40.23 | AS63: 23.26 | AT63: 0 | AY63: 변화율(1W) | BA63: 변화율(1M) | BC63: 변화율(3M) | BG63: 1W | BH63: -1 | BK63: =BK62+1 -> 2 | BL63: =OFFSET(Data_Comp!$A$4,$BK63,MATCH($BF$61,Data_Comp!$B$3:$GR$3,0)+MATCH(BL$61,Data_Comp!$B$4:$Y$4,0)-1) -> Facebook, Inc. Class A | BM63: =IFERROR(OFFSET(Data_Comp!$A$4,$BK63+MATCH(BM$61,Data_Comp!$A$5:$A$300,0),MATCH($BF$61,Data_Comp!$B$3:$GR$3,0)+MATCH(BL$61,Data_Comp!$B$4:$Y$4,0)-1),"") -> 0 | BN63: =IFERROR(OFFSET(Data_Comp!$A$4,$BK63+MATCH(BN$61,Data_Comp!$A$5:$A$300,0),MATCH($BF$61,Data_Comp!$B$3:$GR$3,0)+MATCH(BL$61,Data_Comp!$B$4:$Y$4,0)-1),"") -> 404236.59 | BO63: =IFERROR(OFFSET(Data_Comp!$A$4,$BK63+MATCH(BO$61,Data_Comp!$A$5:$A$300,0),MATCH($BF$61,Data_Comp!$B$3:$GR$3,0)+MATCH(BL$61,Data_Comp!$B$4:$Y$4,0)-1),"") -> 26.83 | BP63: =IFERROR(OFFSET(Data_Comp!$A$4,$BK63+MATCH(BP$61,Data_Comp!$A$5:$A$300,0),MATCH($BF$61,Data_Comp!$B$3:$GR$3,0)+MATCH(BL$61,Data_Comp!$B$4:$Y$4,0)-1),"") -> 5.37 | BQ63: =IFERROR(OFFSET(Data_Comp!$A$4,$BK63+MATCH(BQ$61,Data_Comp!$A$5:$A$300,0),MATCH($BF$61,Data_Comp!$B$3:$GR$3,0)+MATCH(BL$61,Data_Comp!$B$4:$Y$4,0)-1),"") -> 41.43 | BR63: =IFERROR(OFFSET(Data_Comp!$A$4,$BK63+MATCH(BR$61,Data_Comp!$A$5:$A$300,0),MATCH($BF$61,Data_Comp!$B$3:$GR$3,0)+MATCH(BL$61,Data_Comp!$B$4:$Y$4,0)-1),"") -> 42.02 | BS63: =IFERROR(OFFSET(Data_Comp!$A$4,$BK63+MATCH(BS$61,Data_Comp!$A$5:$A$300,0),MATCH($BF$61,Data_Comp!$B$3:$GR$3,0)+MATCH(BL$61,Data_Comp!$B$4:$Y$4,0)-1),"") -> 54.33 | BT63: =IFERROR(OFFSET(Data_Comp!$A$4,$BK63+MATCH(BT$61,Data_Comp!$A$5:$A$300,0),MATCH($BF$61,Data_Comp!$B$3:$GR$3,0)+MATCH(BL$61,Data_Comp!$B$4:$Y$4,0)-1),"") -> 45.39 | BU63: =IFERROR(OFFSET(Data_Comp!$A$4,$BK63+MATCH(BU$61,Data_Comp!$A$5:$A$300,0),MATCH($BF$61,Data_Comp!$B$3:$GR$3,0)+MATCH(BL$61,Data_Comp!$B$4:$Y$4,0)-1),"") -> 40.23 | BV63: =IFERROR(OFFSET(Data_Comp!$A$4,$BK63+MATCH(BV$61,Data_Comp!$A$5:$A$300,0),MATCH($BF$61,Data_Comp!$B$3:$GR$3,0)+MATCH(BL$61,Data_Comp!$B$4:$Y$4,0)-1),"") -> 23.26 | BW63: =IFERROR(OFFSET(Data_Comp!$A$4,$BK63+MATCH(BW$61,Data_Comp!$A$5:$A$300,0),MATCH($BF$61,Data_Comp!$B$3:$GR$3,0)+MATCH(BL$61,Data_Comp!$B$4:$Y$4,0)-1),"") -> 0
AH64: =AH63+1 -> 3 | AI64: Alphabet Inc. Class C | AJ64: 322169.27 | AK64: 0 | AL64: 23.84 | AM64: 3.4 | AN64: -1.83 | AO64: 12.26 | AP64: 12.48 | AQ64: 29.54 | AR64: 24.87 | AS64: 14.52 | AT64: 0 | AY64: 전체 | AZ64: =Data_Sector!$D$7 -> -0.03239822417 | BA64: 전체 | BB64: =Data_Sector!$D$8 -> 1.172953978 | BC64: 전체 | BD64: =Data_Sector!$D$9 -> 3.145695571 | BG64: 1M | BH64: -4 | BK64: =BK63+1 -> 3 | BL64: =OFFSET(Data_Comp!$A$4,$BK64,MATCH($BF$61,Data_Comp!$B$3:$GR$3,0)+MATCH(BL$61,Data_Comp!$B$4:$Y$4,0)-1) -> Alphabet Inc. Class C | BM64: =IFERROR(OFFSET(Data_Comp!$A$4,$BK64+MATCH(BM$61,Data_Comp!$A$5:$A$300,0),MATCH($BF$61,Data_Comp!$B$3:$GR$3,0)+MATCH(BL$61,Data_Comp!$B$4:$Y$4,0)-1),"") -> 0 | BN64: =IFERROR(OFFSET(Data_Comp!$A$4,$BK64+MATCH(BN$61,Data_Comp!$A$5:$A$300,0),MATCH($BF$61,Data_Comp!$B$3:$GR$3,0)+MATCH(BL$61,Data_Comp!$B$4:$Y$4,0)-1),"") -> 322169.27 | BO64: =IFERROR(OFFSET(Data_Comp!$A$4,$BK64+MATCH(BO$61,Data_Comp!$A$5:$A$300,0),MATCH($BF$61,Data_Comp!$B$3:$GR$3,0)+MATCH(BL$61,Data_Comp!$B$4:$Y$4,0)-1),"") -> 23.84 | BP64: =IFERROR(OFFSET(Data_Comp!$A$4,$BK64+MATCH(BP$61,Data_Comp!$A$5:$A$300,0),MATCH($BF$61,Data_Comp!$B$3:$GR$3,0)+MATCH(BL$61,Data_Comp!$B$4:$Y$4,0)-1),"") -> 3.4 | BQ64: =IFERROR(OFFSET(Data_Comp!$A$4,$BK64+MATCH(BQ$61,Data_Comp!$A$5:$A$300,0),MATCH($BF$61,Data_Comp!$B$3:$GR$3,0)+MATCH(BL$61,Data_Comp!$B$4:$Y$4,0)-1),"") -> -1.83 | BR64: =IFERROR(OFFSET(Data_Comp!$A$4,$BK64+MATCH(BR$61,Data_Comp!$A$5:$A$300,0),MATCH($BF$61,Data_Comp!$B$3:$GR$3,0)+MATCH(BL$61,Data_Comp!$B$4:$Y$4,0)-1),"") -> 12.26 | BS64: =IFERROR(OFFSET(Data_Comp!$A$4,$BK64+MATCH(BS$61,Data_Comp!$A$5:$A$300,0),MATCH($BF$61,Data_Comp!$B$3:$GR$3,0)+MATCH(BL$61,Data_Comp!$B$4:$Y$4,0)-1),"") -> 12.48 | BT64: =IFERROR(OFFSET(Data_Comp!$A$4,$BK64+MATCH(BT$61,Data_Comp!$A$5:$A$300,0),MATCH($BF$61,Data_Comp!$B$3:$GR$3,0)+MATCH(BL$61,Data_Comp!$B$4:$Y$4,0)-1),"") -> 29.54 | BU64: =IFERROR(OFFSET(Data_Comp!$A$4,$BK64+MATCH(BU$61,Data_Comp!$A$5:$A$300,0),MATCH($BF$61,Data_Comp!$B$3:$GR$3,0)+MATCH(BL$61,Data_Comp!$B$4:$Y$4,0)-1),"") -> 24.87 | BV64: =IFERROR(OFFSET(Data_Comp!$A$4,$BK64+MATCH(BV$61,Data_Comp!$A$5:$A$300,0),MATCH($BF$61,Data_Comp!$B$3:$GR$3,0)+MATCH(BL$61,Data_Comp!$B$4:$Y$4,0)-1),"") -> 14.52 | BW64: =IFERROR(OFFSET(Data_Comp!$A$4,$BK64+MATCH(BW$61,Data_Comp!$A$5:$A$300,0),MATCH($BF$61,Data_Comp!$B$3:$GR$3,0)+MATCH(BL$61,Data_Comp!$B$4:$Y$4,0)-1),"") -> 0
AH65: 4 | AI65: Tencent Holdings | AJ65: 421341.8 | AK65: -1.021445429 | AL65: 36.15 | AM65: 9.36 | AN65: 54.77 | AO65: 54.4 | AP65: 55.36 | AQ65: 32.77 | AR65: 27.15 | AS65: 31.26 | AT65: 0.24 | AX65: 1 | AY65: =OFFSET(Data_Sector!$C$13,,MATCH($AX65,Data_Sector!$D$10:$AB$10,0)) -> 반도체 | AZ65: =OFFSET(Data_Sector!$C$7,,MATCH($AX65,Data_Sector!$D$10:$AB$10,0)) -> 0.7424621828 | BA65: =OFFSET(Data_Sector!$C$13,,MATCH($AX65,Data_Sector!$D$11:$AB$11,0)) -> 철강 | BB65: =OFFSET(Data_Sector!$C$8,,MATCH($AX65,Data_Sector!$D$11:$AB$11,0)) -> 4.188402507 | BC65: =OFFSET(Data_Sector!$C$13,,MATCH($AX65,Data_Sector!$D$12:$AB$12,0)) -> 철강 | BD65: =OFFSET(Data_Sector!$C$9,,MATCH($AX65,Data_Sector!$D$12:$AB$12,0)) -> 13.75395687 | BG65: 3M | BH65: -12 | BK65: 4 | BL65: =OFFSET(Data_Comp!$A$4,$BK65,MATCH($BF$61,Data_Comp!$B$3:$GR$3,0)+MATCH(BL$61,Data_Comp!$B$4:$Y$4,0)-1) -> Tencent Holdings | BM65: =IFERROR(OFFSET(Data_Comp!$A$4,$BK65+MATCH(BM$61,Data_Comp!$A$5:$A$300,0),MATCH($BF$61,Data_Comp!$B$3:$GR$3,0)+MATCH(BL$61,Data_Comp!$B$4:$Y$4,0)-1),"") -> -1.021445429 | BN65: =IFERROR(OFFSET(Data_Comp!$A$4,$BK65+MATCH(BN$61,Data_Comp!$A$5:$A$300,0),MATCH($BF$61,Data_Comp!$B$3:$GR$3,0)+MATCH(BL$61,Data_Comp!$B$4:$Y$4,0)-1),"") -> 421341.8 | BO65: =IFERROR(OFFSET(Data_Comp!$A$4,$BK65+MATCH(BO$61,Data_Comp!$A$5:$A$300,0),MATCH($BF$61,Data_Comp!$B$3:$GR$3,0)+MATCH(BL$61,Data_Comp!$B$4:$Y$4,0)-1),"") -> 36.15 | BP65: =IFERROR(OFFSET(Data_Comp!$A$4,$BK65+MATCH(BP$61,Data_Comp!$A$5:$A$300,0),MATCH($BF$61,Data_Comp!$B$3:$GR$3,0)+MATCH(BL$61,Data_Comp!$B$4:$Y$4,0)-1),"") -> 9.36 | BQ65: =IFERROR(OFFSET(Data_Comp!$A$4,$BK65+MATCH(BQ$61,Data_Comp!$A$5:$A$300,0),MATCH($BF$61,Data_Comp!$B$3:$GR$3,0)+MATCH(BL$61,Data_Comp!$B$4:$Y$4,0)-1),"") -> 54.77 | BR65: =IFERROR(OFFSET(Data_Comp!$A$4,$BK65+MATCH(BR$61,Data_Comp!$A$5:$A$300,0),MATCH($BF$61,Data_Comp!$B$3:$GR$3,0)+MATCH(BL$61,Data_Comp!$B$4:$Y$4,0)-1),"") -> 54.4 | BS65: =IFERROR(OFFSET(Data_Comp!$A$4,$BK65+MATCH(BS$61,Data_Comp!$A$5:$A$300,0),MATCH($BF$61,Data_Comp!$B$3:$GR$3,0)+MATCH(BL$61,Data_Comp!$B$4:$Y$4,0)-1),"") -> 55.36 | BT65: =IFERROR(OFFSET(Data_Comp!$A$4,$BK65+MATCH(BT$61,Data_Comp!$A$5:$A$300,0),MATCH($BF$61,Data_Comp!$B$3:$GR$3,0)+MATCH(BL$61,Data_Comp!$B$4:$Y$4,0)-1),"") -> 32.77 | BU65: =IFERROR(OFFSET(Data_Comp!$A$4,$BK65+MATCH(BU$61,Data_Comp!$A$5:$A$300,0),MATCH($BF$61,Data_Comp!$B$3:$GR$3,0)+MATCH(BL$61,Data_Comp!$B$4:$Y$4,0)-1),"") -> 27.15 | BV65: =IFERROR(OFFSET(Data_Comp!$A$4,$BK65+MATCH(BV$61,Data_Comp!$A$5:$A$300,0),MATCH($BF$61,Data_Comp!$B$3:$GR$3,0)+MATCH(BL$61,Data_Comp!$B$4:$Y$4,0)-1),"") -> 31.26 | BW65: =IFERROR(OFFSET(Data_Comp!$A$4,$BK65+MATCH(BW$61,Data_Comp!$A$5:$A$300,0),MATCH($BF$61,Data_Comp!$B$3:$GR$3,0)+MATCH(BL$61,Data_Comp!$B$4:$Y$4,0)-1),"") -> 0.24
AH66: 5 | AI66: Alphabet Inc. Class A | AJ66: 281133.93 | AK66: 0 | AL66: 24.22 | AM66: 3.45 | AN66: -1.83 | AO66: 12.26 | AP66: 12.48 | AQ66: 29.54 | AR66: 24.87 | AS66: 14.52 | AT66: 0 | AX66: 2 | AY66: =OFFSET(Data_Sector!$C$13,,MATCH($AX66,Data_Sector!$D$10:$AB$10,0)) -> 기계 | AZ66: =OFFSET(Data_Sector!$C$7,,MATCH($AX66,Data_Sector!$D$10:$AB$10,0)) -> 0.236169482 | BA66: =OFFSET(Data_Sector!$C$13,,MATCH($AX66,Data_Sector!$D$11:$AB$11,0)) -> 반도체 | BB66: =OFFSET(Data_Sector!$C$8,,MATCH($AX66,Data_Sector!$D$11:$AB$11,0)) -> 2.772179247 | BC66: =OFFSET(Data_Sector!$C$13,,MATCH($AX66,Data_Sector!$D$12:$AB$12,0)) -> 반도체 | BD66: =OFFSET(Data_Sector!$C$9,,MATCH($AX66,Data_Sector!$D$12:$AB$12,0)) -> 9.030546377 | BK66: 5 | BL66: =OFFSET(Data_Comp!$A$4,$BK66,MATCH($BF$61,Data_Comp!$B$3:$GR$3,0)+MATCH(BL$61,Data_Comp!$B$4:$Y$4,0)-1) -> Alphabet Inc. Class A | BM66: =IFERROR(OFFSET(Data_Comp!$A$4,$BK66+MATCH(BM$61,Data_Comp!$A$5:$A$300,0),MATCH($BF$61,Data_Comp!$B$3:$GR$3,0)+MATCH(BL$61,Data_Comp!$B$4:$Y$4,0)-1),"") -> 0 | BN66: =IFERROR(OFFSET(Data_Comp!$A$4,$BK66+MATCH(BN$61,Data_Comp!$A$5:$A$300,0),MATCH($BF$61,Data_Comp!$B$3:$GR$3,0)+MATCH(BL$61,Data_Comp!$B$4:$Y$4,0)-1),"") -> 281133.93 | BO66: =IFERROR(OFFSET(Data_Comp!$A$4,$BK66+MATCH(BO$61,Data_Comp!$A$5:$A$300,0),MATCH($BF$61,Data_Comp!$B$3:$GR$3,0)+MATCH(BL$61,Data_Comp!$B$4:$Y$4,0)-1),"") -> 24.22 | BP66: =IFERROR(OFFSET(Data_Comp!$A$4,$BK66+MATCH(BP$61,Data_Comp!$A$5:$A$300,0),MATCH($BF$61,Data_Comp!$B$3:$GR$3,0)+MATCH(BL$61,Data_Comp!$B$4:$Y$4,0)-1),"") -> 3.45 | BQ66: =IFERROR(OFFSET(Data_Comp!$A$4,$BK66+MATCH(BQ$61,Data_Comp!$A$5:$A$300,0),MATCH($BF$61,Data_Comp!$B$3:$GR$3,0)+MATCH(BL$61,Data_Comp!$B$4:$Y$4,0)-1),"") -> -1.83 | BR66: =IFERROR(OFFSET(Data_Comp!$A$4,$BK66+MATCH(BR$61,Data_Comp!$A$5:$A$300,0),MATCH($BF$61,Data_Comp!$B$3:$GR$3,0)+MATCH(BL$61,Data_Comp!$B$4:$Y$4,0)-1),"") -> 12.26 | BS66: =IFERROR(OFFSET(Data_Comp!$A$4,$BK66+MATCH(BS$61,Data_Comp!$A$5:$A$300,0),MATCH($BF$61,Data_Comp!$B$3:$GR$3,0)+MATCH(BL$61,Data_Comp!$B$4:$Y$4,0)-1),"") -> 12.48 | BT66: =IFERROR(OFFSET(Data_Comp!$A$4,$BK66+MATCH(BT$61,Data_Comp!$A$5:$A$300,0),MATCH($BF$61,Data_Comp!$B$3:$GR$3,0)+MATCH(BL$61,Data_Comp!$B$4:$Y$4,0)-1),"") -> 29.54 | BU66: =IFERROR(OFFSET(Data_Comp!$A$4,$BK66+MATCH(BU$61,Data_Comp!$A$5:$A$300,0),MATCH($BF$61,Data_Comp!$B$3:$GR$3,0)+MATCH(BL$61,Data_Comp!$B$4:$Y$4,0)-1),"") -> 24.87 | BV66: =IFERROR(OFFSET(Data_Comp!$A$4,$BK66+MATCH(BV$61,Data_Comp!$A$5:$A$300,0),MATCH($BF$61,Data_Comp!$B$3:$GR$3,0)+MATCH(BL$61,Data_Comp!$B$4:$Y$4,0)-1),"") -> 14.52 | BW66: =IFERROR(OFFSET(Data_Comp!$A$4,$BK66+MATCH(BW$61,Data_Comp!$A$5:$A$300,0),MATCH($BF$61,Data_Comp!$B$3:$GR$3,0)+MATCH(BL$61,Data_Comp!$B$4:$Y$4,0)-1),"") -> 0
AH67: 6 | AI67: Oracle | AJ67: 200974.23 | AK67: 0.01815827028 | AL67: 15.46 | AM67: 3.17 | AN67: 5.01 | AO67: 32.43 | AP67: 34.98 | AQ67: 44.38 | AR67: 31.81 | AS67: 21.92 | AT67: 1.42 | AX67: 3 | AY67: =OFFSET(Data_Sector!$C$13,,MATCH($AX67,Data_Sector!$D$10:$AB$10,0)) -> 화학 | AZ67: =OFFSET(Data_Sector!$C$7,,MATCH($AX67,Data_Sector!$D$10:$AB$10,0)) -> 0.2140388296 | BA67: =OFFSET(Data_Sector!$C$13,,MATCH($AX67,Data_Sector!$D$11:$AB$11,0)) -> 기계 | BB67: =OFFSET(Data_Sector!$C$8,,MATCH($AX67,Data_Sector!$D$11:$AB$11,0)) -> 2.100197441 | BC67: =OFFSET(Data_Sector!$C$13,,MATCH($AX67,Data_Sector!$D$12:$AB$12,0)) -> 기계 | BD67: =OFFSET(Data_Sector!$C$9,,MATCH($AX67,Data_Sector!$D$12:$AB$12,0)) -> 6.768015301 | BK67: 6 | BL67: =OFFSET(Data_Comp!$A$4,$BK67,MATCH($BF$61,Data_Comp!$B$3:$GR$3,0)+MATCH(BL$61,Data_Comp!$B$4:$Y$4,0)-1) -> Oracle | BM67: =IFERROR(OFFSET(Data_Comp!$A$4,$BK67+MATCH(BM$61,Data_Comp!$A$5:$A$300,0),MATCH($BF$61,Data_Comp!$B$3:$GR$3,0)+MATCH(BL$61,Data_Comp!$B$4:$Y$4,0)-1),"") -> 0.01815827028 | BN67: =IFERROR(OFFSET(Data_Comp!$A$4,$BK67+MATCH(BN$61,Data_Comp!$A$5:$A$300,0),MATCH($BF$61,Data_Comp!$B$3:$GR$3,0)+MATCH(BL$61,Data_Comp!$B$4:$Y$4,0)-1),"") -> 200974.23 | BO67: =IFERROR(OFFSET(Data_Comp!$A$4,$BK67+MATCH(BO$61,Data_Comp!$A$5:$A$300,0),MATCH($BF$61,Data_Comp!$B$3:$GR$3,0)+MATCH(BL$61,Data_Comp!$B$4:$Y$4,0)-1),"") -> 15.46 | BP67: =IFERROR(OFFSET(Data_Comp!$A$4,$BK67+MATCH(BP$61,Data_Comp!$A$5:$A$300,0),MATCH($BF$61,Data_Comp!$B$3:$GR$3,0)+MATCH(BL$61,Data_Comp!$B$4:$Y$4,0)-1),"") -> 3.17 | BQ67: =IFERROR(OFFSET(Data_Comp!$A$4,$BK67+MATCH(BQ$61,Data_Comp!$A$5:$A$300,0),MATCH($BF$61,Data_Comp!$B$3:$GR$3,0)+MATCH(BL$61,Data_Comp!$B$4:$Y$4,0)-1),"") -> 5.01 | BR67: =IFERROR(OFFSET(Data_Comp!$A$4,$BK67+MATCH(BR$61,Data_Comp!$A$5:$A$300,0),MATCH($BF$61,Data_Comp!$B$3:$GR$3,0)+MATCH(BL$61,Data_Comp!$B$4:$Y$4,0)-1),"") -> 32.43 | BS67: =IFERROR(OFFSET(Data_Comp!$A$4,$BK67+MATCH(BS$61,Data_Comp!$A$5:$A$300,0),MATCH($BF$61,Data_Comp!$B$3:$GR$3,0)+MATCH(BL$61,Data_Comp!$B$4:$Y$4,0)-1),"") -> 34.98 | BT67: =IFERROR(OFFSET(Data_Comp!$A$4,$BK67+MATCH(BT$61,Data_Comp!$A$5:$A$300,0),MATCH($BF$61,Data_Comp!$B$3:$GR$3,0)+MATCH(BL$61,Data_Comp!$B$4:$Y$4,0)-1),"") -> 44.38 | BU67: =IFERROR(OFFSET(Data_Comp!$A$4,$BK67+MATCH(BU$61,Data_Comp!$A$5:$A$300,0),MATCH($BF$61,Data_Comp!$B$3:$GR$3,0)+MATCH(BL$61,Data_Comp!$B$4:$Y$4,0)-1),"") -> 31.81 | BV67: =IFERROR(OFFSET(Data_Comp!$A$4,$BK67+MATCH(BV$61,Data_Comp!$A$5:$A$300,0),MATCH($BF$61,Data_Comp!$B$3:$GR$3,0)+MATCH(BL$61,Data_Comp!$B$4:$Y$4,0)-1),"") -> 21.92 | BW67: =IFERROR(OFFSET(Data_Comp!$A$4,$BK67+MATCH(BW$61,Data_Comp!$A$5:$A$300,0),MATCH($BF$61,Data_Comp!$B$3:$GR$3,0)+MATCH(BL$61,Data_Comp!$B$4:$Y$4,0)-1),"") -> 1.42
AH68: 7 | AI68: International Business Machines | AJ68: 135252.45 | AK68: 0 | AL68: 10.6 | AM68: 6.23 | AN68: -2.47 | AO68: 18.62 | AP68: 8.86 | AQ68: 18.75 | AR68: 16.59 | AS68: 66.51 | AT68: 4.04 | AX68: 4 | AY68: =OFFSET(Data_Sector!$C$13,,MATCH($AX68,Data_Sector!$D$10:$AB$10,0)) -> 비철,목재등 | AZ68: =OFFSET(Data_Sector!$C$7,,MATCH($AX68,Data_Sector!$D$10:$AB$10,0)) -> 0.09140751558 | BA68: =OFFSET(Data_Sector!$C$13,,MATCH($AX68,Data_Sector!$D$11:$AB$11,0)) -> 비철,목재등 | BB68: =OFFSET(Data_Sector!$C$8,,MATCH($AX68,Data_Sector!$D$11:$AB$11,0)) -> 1.994590787 | BC68: =OFFSET(Data_Sector!$C$13,,MATCH($AX68,Data_Sector!$D$12:$AB$12,0)) -> IT하드웨어 | BD68: =OFFSET(Data_Sector!$C$9,,MATCH($AX68,Data_Sector!$D$12:$AB$12,0)) -> 6.121781505 | BK68: 7 | BL68: =OFFSET(Data_Comp!$A$4,$BK68,MATCH($BF$61,Data_Comp!$B$3:$GR$3,0)+MATCH(BL$61,Data_Comp!$B$4:$Y$4,0)-1) -> International Business Machines | BM68: =IFERROR(OFFSET(Data_Comp!$A$4,$BK68+MATCH(BM$61,Data_Comp!$A$5:$A$300,0),MATCH($BF$61,Data_Comp!$B$3:$GR$3,0)+MATCH(BL$61,Data_Comp!$B$4:$Y$4,0)-1),"") -> 0 | BN68: =IFERROR(OFFSET(Data_Comp!$A$4,$BK68+MATCH(BN$61,Data_Comp!$A$5:$A$300,0),MATCH($BF$61,Data_Comp!$B$3:$GR$3,0)+MATCH(BL$61,Data_Comp!$B$4:$Y$4,0)-1),"") -> 135252.45 | BO68: =IFERROR(OFFSET(Data_Comp!$A$4,$BK68+MATCH(BO$61,Data_Comp!$A$5:$A$300,0),MATCH($BF$61,Data_Comp!$B$3:$GR$3,0)+MATCH(BL$61,Data_Comp!$B$4:$Y$4,0)-1),"") -> 10.6 | BP68: =IFERROR(OFFSET(Data_Comp!$A$4,$BK68+MATCH(BP$61,Data_Comp!$A$5:$A$300,0),MATCH($BF$61,Data_Comp!$B$3:$GR$3,0)+MATCH(BL$61,Data_Comp!$B$4:$Y$4,0)-1),"") -> 6.23 | BQ68: =IFERROR(OFFSET(Data_Comp!$A$4,$BK68+MATCH(BQ$61,Data_Comp!$A$5:$A$300,0),MATCH($BF$61,Data_Comp!$B$3:$GR$3,0)+MATCH(BL$61,Data_Comp!$B$4:$Y$4,0)-1),"") -> -2.47 | BR68: =IFERROR(OFFSET(Data_Comp!$A$4,$BK68+MATCH(BR$61,Data_Comp!$A$5:$A$300,0),MATCH($BF$61,Data_Comp!$B$3:$GR$3,0)+MATCH(BL$61,Data_Comp!$B$4:$Y$4,0)-1),"") -> 18.62 | BS68: =IFERROR(OFFSET(Data_Comp!$A$4,$BK68+MATCH(BS$61,Data_Comp!$A$5:$A$300,0),MATCH($BF$61,Data_Comp!$B$3:$GR$3,0)+MATCH(BL$61,Data_Comp!$B$4:$Y$4,0)-1),"") -> 8.86 | BT68: =IFERROR(OFFSET(Data_Comp!$A$4,$BK68+MATCH(BT$61,Data_Comp!$A$5:$A$300,0),MATCH($BF$61,Data_Comp!$B$3:$GR$3,0)+MATCH(BL$61,Data_Comp!$B$4:$Y$4,0)-1),"") -> 18.75 | BU68: =IFERROR(OFFSET(Data_Comp!$A$4,$BK68+MATCH(BU$61,Data_Comp!$A$5:$A$300,0),MATCH($BF$61,Data_Comp!$B$3:$GR$3,0)+MATCH(BL$61,Data_Comp!$B$4:$Y$4,0)-1),"") -> 16.59 | BV68: =IFERROR(OFFSET(Data_Comp!$A$4,$BK68+MATCH(BV$61,Data_Comp!$A$5:$A$300,0),MATCH($BF$61,Data_Comp!$B$3:$GR$3,0)+MATCH(BL$61,Data_Comp!$B$4:$Y$4,0)-1),"") -> 66.51 | BW68: =IFERROR(OFFSET(Data_Comp!$A$4,$BK68+MATCH(BW$61,Data_Comp!$A$5:$A$300,0),MATCH($BF$61,Data_Comp!$B$3:$GR$3,0)+MATCH(BL$61,Data_Comp!$B$4:$Y$4,0)-1),"") -> 4.04
AH69: 8 | AI69: SAP SE | AJ69: 135092.07 | AK69: -0.01701163346 | AL69: 21.09 | AM69: 3.77 | AN69: 7.54 | AO69: 34.79 | AP69: 37.68 | AQ69: 29.34 | AR69: 21.16 | AS69: 18.47 | AT69: 1.42 | AX69: 5 | AY69: =OFFSET(Data_Sector!$C$13,,MATCH($AX69,Data_Sector!$D$10:$AB$10,0)) -> 에너지 | AZ69: =OFFSET(Data_Sector!$C$7,,MATCH($AX69,Data_Sector!$D$10:$AB$10,0)) -> 0.08633452766 | BA69: =OFFSET(Data_Sector!$C$13,,MATCH($AX69,Data_Sector!$D$11:$AB$11,0)) -> 건설,건축관련 | BB69: =OFFSET(Data_Sector!$C$8,,MATCH($AX69,Data_Sector!$D$11:$AB$11,0)) -> 1.85773894 | BC69: =OFFSET(Data_Sector!$C$13,,MATCH($AX69,Data_Sector!$D$12:$AB$12,0)) -> 은행 | BD69: =OFFSET(Data_Sector!$C$9,,MATCH($AX69,Data_Sector!$D$12:$AB$12,0)) -> 5.755707005 | BK69: 8 | BL69: =OFFSET(Data_Comp!$A$4,$BK69,MATCH($BF$61,Data_Comp!$B$3:$GR$3,0)+MATCH(BL$61,Data_Comp!$B$4:$Y$4,0)-1) -> SAP SE | BM69: =IFERROR(OFFSET(Data_Comp!$A$4,$BK69+MATCH(BM$61,Data_Comp!$A$5:$A$300,0),MATCH($BF$61,Data_Comp!$B$3:$GR$3,0)+MATCH(BL$61,Data_Comp!$B$4:$Y$4,0)-1),"") -> -0.01701163346 | BN69: =IFERROR(OFFSET(Data_Comp!$A$4,$BK69+MATCH(BN$61,Data_Comp!$A$5:$A$300,0),MATCH($BF$61,Data_Comp!$B$3:$GR$3,0)+MATCH(BL$61,Data_Comp!$B$4:$Y$4,0)-1),"") -> 135092.07 | BO69: =IFERROR(OFFSET(Data_Comp!$A$4,$BK69+MATCH(BO$61,Data_Comp!$A$5:$A$300,0),MATCH($BF$61,Data_Comp!$B$3:$GR$3,0)+MATCH(BL$61,Data_Comp!$B$4:$Y$4,0)-1),"") -> 21.09 | BP69: =IFERROR(OFFSET(Data_Comp!$A$4,$BK69+MATCH(BP$61,Data_Comp!$A$5:$A$300,0),MATCH($BF$61,Data_Comp!$B$3:$GR$3,0)+MATCH(BL$61,Data_Comp!$B$4:$Y$4,0)-1),"") -> 3.77 | BQ69: =IFERROR(OFFSET(Data_Comp!$A$4,$BK69+MATCH(BQ$61,Data_Comp!$A$5:$A$300,0),MATCH($BF$61,Data_Comp!$B$3:$GR$3,0)+MATCH(BL$61,Data_Comp!$B$4:$Y$4,0)-1),"") -> 7.54 | BR69: =IFERROR(OFFSET(Data_Comp!$A$4,$BK69+MATCH(BR$61,Data_Comp!$A$5:$A$300,0),MATCH($BF$61,Data_Comp!$B$3:$GR$3,0)+MATCH(BL$61,Data_Comp!$B$4:$Y$4,0)-1),"") -> 34.79 | BS69: =IFERROR(OFFSET(Data_Comp!$A$4,$BK69+MATCH(BS$61,Data_Comp!$A$5:$A$300,0),MATCH($BF$61,Data_Comp!$B$3:$GR$3,0)+MATCH(BL$61,Data_Comp!$B$4:$Y$4,0)-1),"") -> 37.68 | BT69: =IFERROR(OFFSET(Data_Comp!$A$4,$BK69+MATCH(BT$61,Data_Comp!$A$5:$A$300,0),MATCH($BF$61,Data_Comp!$B$3:$GR$3,0)+MATCH(BL$61,Data_Comp!$B$4:$Y$4,0)-1),"") -> 29.34 | BU69: =IFERROR(OFFSET(Data_Comp!$A$4,$BK69+MATCH(BU$61,Data_Comp!$A$5:$A$300,0),MATCH($BF$61,Data_Comp!$B$3:$GR$3,0)+MATCH(BL$61,Data_Comp!$B$4:$Y$4,0)-1),"") -> 21.16 | BV69: =IFERROR(OFFSET(Data_Comp!$A$4,$BK69+MATCH(BV$61,Data_Comp!$A$5:$A$300,0),MATCH($BF$61,Data_Comp!$B$3:$GR$3,0)+MATCH(BL$61,Data_Comp!$B$4:$Y$4,0)-1),"") -> 18.47 | BW69: =IFERROR(OFFSET(Data_Comp!$A$4,$BK69+MATCH(BW$61,Data_Comp!$A$5:$A$300,0),MATCH($BF$61,Data_Comp!$B$3:$GR$3,0)+MATCH(BL$61,Data_Comp!$B$4:$Y$4,0)-1),"") -> 1.42
AH70: 9 | AI70: Tata Consultancy Services | AJ70: 73769.35 | AK70: 0 | AL70: 17.59 | AM70: 5.08 | AN70: 4.86 | AO70: 1.55 | AP70: -1.16 | AQ70: 24.9 | AR70: 21.01 | AS70: 29.96 | AT70: 2.23 | AX70: 6 | AY70: =OFFSET(Data_Sector!$C$13,,MATCH($AX70,Data_Sector!$D$10:$AB$10,0)) -> IT하드웨어 | AZ70: =OFFSET(Data_Sector!$C$7,,MATCH($AX70,Data_Sector!$D$10:$AB$10,0)) -> 0.06974188746 | BA70: =OFFSET(Data_Sector!$C$13,,MATCH($AX70,Data_Sector!$D$11:$AB$11,0)) -> 은행 | BB70: =OFFSET(Data_Sector!$C$8,,MATCH($AX70,Data_Sector!$D$11:$AB$11,0)) -> 1.704170692 | BC70: =OFFSET(Data_Sector!$C$13,,MATCH($AX70,Data_Sector!$D$12:$AB$12,0)) -> 비철,목재등 | BD70: =OFFSET(Data_Sector!$C$9,,MATCH($AX70,Data_Sector!$D$12:$AB$12,0)) -> 4.576886553 | BK70: 9 | BL70: =OFFSET(Data_Comp!$A$4,$BK70,MATCH($BF$61,Data_Comp!$B$3:$GR$3,0)+MATCH(BL$61,Data_Comp!$B$4:$Y$4,0)-1) -> Tata Consultancy Services | BM70: =IFERROR(OFFSET(Data_Comp!$A$4,$BK70+MATCH(BM$61,Data_Comp!$A$5:$A$300,0),MATCH($BF$61,Data_Comp!$B$3:$GR$3,0)+MATCH(BL$61,Data_Comp!$B$4:$Y$4,0)-1),"") -> 0 | BN70: =IFERROR(OFFSET(Data_Comp!$A$4,$BK70+MATCH(BN$61,Data_Comp!$A$5:$A$300,0),MATCH($BF$61,Data_Comp!$B$3:$GR$3,0)+MATCH(BL$61,Data_Comp!$B$4:$Y$4,0)-1),"") -> 73769.35 | BO70: =IFERROR(OFFSET(Data_Comp!$A$4,$BK70+MATCH(BO$61,Data_Comp!$A$5:$A$300,0),MATCH($BF$61,Data_Comp!$B$3:$GR$3,0)+MATCH(BL$61,Data_Comp!$B$4:$Y$4,0)-1),"") -> 17.59 | BP70: =IFERROR(OFFSET(Data_Comp!$A$4,$BK70+MATCH(BP$61,Data_Comp!$A$5:$A$300,0),MATCH($BF$61,Data_Comp!$B$3:$GR$3,0)+MATCH(BL$61,Data_Comp!$B$4:$Y$4,0)-1),"") -> 5.08 | BQ70: =IFERROR(OFFSET(Data_Comp!$A$4,$BK70+MATCH(BQ$61,Data_Comp!$A$5:$A$300,0),MATCH($BF$61,Data_Comp!$B$3:$GR$3,0)+MATCH(BL$61,Data_Comp!$B$4:$Y$4,0)-1),"") -> 4.86 | BR70: =IFERROR(OFFSET(Data_Comp!$A$4,$BK70+MATCH(BR$61,Data_Comp!$A$5:$A$300,0),MATCH($BF$61,Data_Comp!$B$3:$GR$3,0)+MATCH(BL$61,Data_Comp!$B$4:$Y$4,0)-1),"") -> 1.55 | BS70: =IFERROR(OFFSET(Data_Comp!$A$4,$BK70+MATCH(BS$61,Data_Comp!$A$5:$A$300,0),MATCH($BF$61,Data_Comp!$B$3:$GR$3,0)+MATCH(BL$61,Data_Comp!$B$4:$Y$4,0)-1),"") -> -1.16 | BT70: =IFERROR(OFFSET(Data_Comp!$A$4,$BK70+MATCH(BT$61,Data_Comp!$A$5:$A$300,0),MATCH($BF$61,Data_Comp!$B$3:$GR$3,0)+MATCH(BL$61,Data_Comp!$B$4:$Y$4,0)-1),"") -> 24.9 | BU70: =IFERROR(OFFSET(Data_Comp!$A$4,$BK70+MATCH(BU$61,Data_Comp!$A$5:$A$300,0),MATCH($BF$61,Data_Comp!$B$3:$GR$3,0)+MATCH(BL$61,Data_Comp!$B$4:$Y$4,0)-1),"") -> 21.01 | BV70: =IFERROR(OFFSET(Data_Comp!$A$4,$BK70+MATCH(BV$61,Data_Comp!$A$5:$A$300,0),MATCH($BF$61,Data_Comp!$B$3:$GR$3,0)+MATCH(BL$61,Data_Comp!$B$4:$Y$4,0)-1),"") -> 29.96 | BW70: =IFERROR(OFFSET(Data_Comp!$A$4,$BK70+MATCH(BW$61,Data_Comp!$A$5:$A$300,0),MATCH($BF$61,Data_Comp!$B$3:$GR$3,0)+MATCH(BL$61,Data_Comp!$B$4:$Y$4,0)-1),"") -> 2.23
AH71: 10 | AI71: Accenture Plc Class A | AJ71: 91307.98 | AK71: -0.1244372526 | AL71: 21.63 | AM71: 9.23 | AN71: -0.3 | AO71: 7.27 | AP71: -5.48 | AQ71: 14.8 | AR71: 11.2 | AS71: 48.06 | AT71: 1.75 | AX71: 7 | AY71: =OFFSET(Data_Sector!$C$13,,MATCH($AX71,Data_Sector!$D$10:$AB$10,0)) -> 건설,건축관련 | AZ71: =OFFSET(Data_Sector!$C$7,,MATCH($AX71,Data_Sector!$D$10:$AB$10,0)) -> 0.01030184198 | BA71: =OFFSET(Data_Sector!$C$13,,MATCH($AX71,Data_Sector!$D$11:$AB$11,0)) -> 화학 | BB71: =OFFSET(Data_Sector!$C$8,,MATCH($AX71,Data_Sector!$D$11:$AB$11,0)) -> 1.616872844 | BC71: =OFFSET(Data_Sector!$C$13,,MATCH($AX71,Data_Sector!$D$12:$AB$12,0)) -> 건설,건축관련 | BD71: =OFFSET(Data_Sector!$C$9,,MATCH($AX71,Data_Sector!$D$12:$AB$12,0)) -> 4.340686753 | BK71: 10 | BL71: =OFFSET(Data_Comp!$A$4,$BK71,MATCH($BF$61,Data_Comp!$B$3:$GR$3,0)+MATCH(BL$61,Data_Comp!$B$4:$Y$4,0)-1) -> Accenture Plc Class A | BM71: =IFERROR(OFFSET(Data_Comp!$A$4,$BK71+MATCH(BM$61,Data_Comp!$A$5:$A$300,0),MATCH($BF$61,Data_Comp!$B$3:$GR$3,0)+MATCH(BL$61,Data_Comp!$B$4:$Y$4,0)-1),"") -> -0.1244372526 | BN71: =IFERROR(OFFSET(Data_Comp!$A$4,$BK71+MATCH(BN$61,Data_Comp!$A$5:$A$300,0),MATCH($BF$61,Data_Comp!$B$3:$GR$3,0)+MATCH(BL$61,Data_Comp!$B$4:$Y$4,0)-1),"") -> 91307.98 | BO71: =IFERROR(OFFSET(Data_Comp!$A$4,$BK71+MATCH(BO$61,Data_Comp!$A$5:$A$300,0),MATCH($BF$61,Data_Comp!$B$3:$GR$3,0)+MATCH(BL$61,Data_Comp!$B$4:$Y$4,0)-1),"") -> 21.63 | BP71: =IFERROR(OFFSET(Data_Comp!$A$4,$BK71+MATCH(BP$61,Data_Comp!$A$5:$A$300,0),MATCH($BF$61,Data_Comp!$B$3:$GR$3,0)+MATCH(BL$61,Data_Comp!$B$4:$Y$4,0)-1),"") -> 9.23 | BQ71: =IFERROR(OFFSET(Data_Comp!$A$4,$BK71+MATCH(BQ$61,Data_Comp!$A$5:$A$300,0),MATCH($BF$61,Data_Comp!$B$3:$GR$3,0)+MATCH(BL$61,Data_Comp!$B$4:$Y$4,0)-1),"") -> -0.3 | BR71: =IFERROR(OFFSET(Data_Comp!$A$4,$BK71+MATCH(BR$61,Data_Comp!$A$5:$A$300,0),MATCH($BF$61,Data_Comp!$B$3:$GR$3,0)+MATCH(BL$61,Data_Comp!$B$4:$Y$4,0)-1),"") -> 7.27 | BS71: =IFERROR(OFFSET(Data_Comp!$A$4,$BK71+MATCH(BS$61,Data_Comp!$A$5:$A$300,0),MATCH($BF$61,Data_Comp!$B$3:$GR$3,0)+MATCH(BL$61,Data_Comp!$B$4:$Y$4,0)-1),"") -> -5.48 | BT71: =IFERROR(OFFSET(Data_Comp!$A$4,$BK71+MATCH(BT$61,Data_Comp!$A$5:$A$300,0),MATCH($BF$61,Data_Comp!$B$3:$GR$3,0)+MATCH(BL$61,Data_Comp!$B$4:$Y$4,0)-1),"") -> 14.8 | BU71: =IFERROR(OFFSET(Data_Comp!$A$4,$BK71+MATCH(BU$61,Data_Comp!$A$5:$A$300,0),MATCH($BF$61,Data_Comp!$B$3:$GR$3,0)+MATCH(BL$61,Data_Comp!$B$4:$Y$4,0)-1),"") -> 11.2 | BV71: =IFERROR(OFFSET(Data_Comp!$A$4,$BK71+MATCH(BV$61,Data_Comp!$A$5:$A$300,0),MATCH($BF$61,Data_Comp!$B$3:$GR$3,0)+MATCH(BL$61,Data_Comp!$B$4:$Y$4,0)-1),"") -> 48.06 | BW71: =IFERROR(OFFSET(Data_Comp!$A$4,$BK71+MATCH(BW$61,Data_Comp!$A$5:$A$300,0),MATCH($BF$61,Data_Comp!$B$3:$GR$3,0)+MATCH(BL$61,Data_Comp!$B$4:$Y$4,0)-1),"") -> 1.75
AX72: 8 | AY72: =OFFSET(Data_Sector!$C$13,,MATCH($AX72,Data_Sector!$D$10:$AB$10,0)) -> 유틸리티 | AZ72: =OFFSET(Data_Sector!$C$7,,MATCH($AX72,Data_Sector!$D$10:$AB$10,0)) -> -0.02803571103 | BA72: =OFFSET(Data_Sector!$C$13,,MATCH($AX72,Data_Sector!$D$11:$AB$11,0)) -> 에너지 | BB72: =OFFSET(Data_Sector!$C$8,,MATCH($AX72,Data_Sector!$D$11:$AB$11,0)) -> 1.304945373 | BC72: =OFFSET(Data_Sector!$C$13,,MATCH($AX72,Data_Sector!$D$12:$AB$12,0)) -> 화학 | BD72: =OFFSET(Data_Sector!$C$9,,MATCH($AX72,Data_Sector!$D$12:$AB$12,0)) -> 4.25186588
AX73: 9 | AY73: =OFFSET(Data_Sector!$C$13,,MATCH($AX73,Data_Sector!$D$10:$AB$10,0)) -> 자동차 | AZ73: =OFFSET(Data_Sector!$C$7,,MATCH($AX73,Data_Sector!$D$10:$AB$10,0)) -> -0.02949836813 | BA73: =OFFSET(Data_Sector!$C$13,,MATCH($AX73,Data_Sector!$D$11:$AB$11,0)) -> 소매(유통) | BB73: =OFFSET(Data_Sector!$C$8,,MATCH($AX73,Data_Sector!$D$11:$AB$11,0)) -> 1.161797759 | BC73: =OFFSET(Data_Sector!$C$13,,MATCH($AX73,Data_Sector!$D$12:$AB$12,0)) -> 운송 | BD73: =OFFSET(Data_Sector!$C$9,,MATCH($AX73,Data_Sector!$D$12:$AB$12,0)) -> 4.251334054
AX74: 10 | AY74: =OFFSET(Data_Sector!$C$13,,MATCH($AX74,Data_Sector!$D$10:$AB$10,0)) -> 은행 | AZ74: =OFFSET(Data_Sector!$C$7,,MATCH($AX74,Data_Sector!$D$10:$AB$10,0)) -> -0.05566912142 | BA74: =OFFSET(Data_Sector!$C$13,,MATCH($AX74,Data_Sector!$D$11:$AB$11,0)) -> 소프트웨어 | BB74: =OFFSET(Data_Sector!$C$8,,MATCH($AX74,Data_Sector!$D$11:$AB$11,0)) -> 1.099050576 | BC74: =OFFSET(Data_Sector!$C$13,,MATCH($AX74,Data_Sector!$D$12:$AB$12,0)) -> 보험 | BD74: =OFFSET(Data_Sector!$C$9,,MATCH($AX74,Data_Sector!$D$12:$AB$12,0)) -> 3.50045071
AX75: 11 | AY75: =OFFSET(Data_Sector!$C$13,,MATCH($AX75,Data_Sector!$D$10:$AB$10,0)) -> 미디어,교육 | AZ75: =OFFSET(Data_Sector!$C$7,,MATCH($AX75,Data_Sector!$D$10:$AB$10,0)) -> -0.08408904426 | BA75: =OFFSET(Data_Sector!$C$13,,MATCH($AX75,Data_Sector!$D$11:$AB$11,0)) -> 통신서비스 | BB75: =OFFSET(Data_Sector!$C$8,,MATCH($AX75,Data_Sector!$D$11:$AB$11,0)) -> 1.013506895 | BC75: =OFFSET(Data_Sector!$C$13,,MATCH($AX75,Data_Sector!$D$12:$AB$12,0)) -> 호텔,레저서비스 | BD75: =OFFSET(Data_Sector!$C$9,,MATCH($AX75,Data_Sector!$D$12:$AB$12,0)) -> 2.63229947
AX76: 12 | AY76: =OFFSET(Data_Sector!$C$13,,MATCH($AX76,Data_Sector!$D$10:$AB$10,0)) -> 증권 | AZ76: =OFFSET(Data_Sector!$C$7,,MATCH($AX76,Data_Sector!$D$10:$AB$10,0)) -> -0.08743639927 | BA76: =OFFSET(Data_Sector!$C$13,,MATCH($AX76,Data_Sector!$D$11:$AB$11,0)) -> 자동차 | BB76: =OFFSET(Data_Sector!$C$8,,MATCH($AX76,Data_Sector!$D$11:$AB$11,0)) -> 0.9475081496 | BC76: =OFFSET(Data_Sector!$C$13,,MATCH($AX76,Data_Sector!$D$12:$AB$12,0)) -> 미디어,교육 | BD76: =OFFSET(Data_Sector!$C$9,,MATCH($AX76,Data_Sector!$D$12:$AB$12,0)) -> 2.483812096
AX77: 13 | AY77: =OFFSET(Data_Sector!$C$13,,MATCH($AX77,Data_Sector!$D$10:$AB$10,0)) -> 필수소비재 | AZ77: =OFFSET(Data_Sector!$C$7,,MATCH($AX77,Data_Sector!$D$10:$AB$10,0)) -> -0.0882006867 | BA77: =OFFSET(Data_Sector!$C$13,,MATCH($AX77,Data_Sector!$D$11:$AB$11,0)) -> 보험 | BB77: =OFFSET(Data_Sector!$C$8,,MATCH($AX77,Data_Sector!$D$11:$AB$11,0)) -> 0.8537429342 | BC77: =OFFSET(Data_Sector!$C$13,,MATCH($AX77,Data_Sector!$D$12:$AB$12,0)) -> 자동차 | BD77: =OFFSET(Data_Sector!$C$9,,MATCH($AX77,Data_Sector!$D$12:$AB$12,0)) -> 2.342363864
AX78: 14 | AY78: =OFFSET(Data_Sector!$C$13,,MATCH($AX78,Data_Sector!$D$10:$AB$10,0)) -> 상사,자본재 | AZ78: =OFFSET(Data_Sector!$C$7,,MATCH($AX78,Data_Sector!$D$10:$AB$10,0)) -> -0.0948461884 | BA78: =OFFSET(Data_Sector!$C$13,,MATCH($AX78,Data_Sector!$D$11:$AB$11,0)) -> 미디어,교육 | BB78: =OFFSET(Data_Sector!$C$8,,MATCH($AX78,Data_Sector!$D$11:$AB$11,0)) -> 0.7666342218 | BC78: =OFFSET(Data_Sector!$C$13,,MATCH($AX78,Data_Sector!$D$12:$AB$12,0)) -> 건강관리 | BD78: =OFFSET(Data_Sector!$C$9,,MATCH($AX78,Data_Sector!$D$12:$AB$12,0)) -> 2.228755136
AX79: 15 | AY79: =OFFSET(Data_Sector!$C$13,,MATCH($AX79,Data_Sector!$D$10:$AB$10,0)) -> 건강관리 | AZ79: =OFFSET(Data_Sector!$C$7,,MATCH($AX79,Data_Sector!$D$10:$AB$10,0)) -> -0.1021639088 | BA79: =OFFSET(Data_Sector!$C$13,,MATCH($AX79,Data_Sector!$D$11:$AB$11,0)) -> 상사,자본재 | BB79: =OFFSET(Data_Sector!$C$8,,MATCH($AX79,Data_Sector!$D$11:$AB$11,0)) -> 0.717918823 | BC79: =OFFSET(Data_Sector!$C$13,,MATCH($AX79,Data_Sector!$D$12:$AB$12,0)) -> 통신서비스 | BD79: =OFFSET(Data_Sector!$C$9,,MATCH($AX79,Data_Sector!$D$12:$AB$12,0)) -> 2.181946833
AX80: 16 | AY80: =OFFSET(Data_Sector!$C$13,,MATCH($AX80,Data_Sector!$D$10:$AB$10,0)) -> 보험 | AZ80: =OFFSET(Data_Sector!$C$7,,MATCH($AX80,Data_Sector!$D$10:$AB$10,0)) -> -0.1076007606 | BA80: =OFFSET(Data_Sector!$C$13,,MATCH($AX80,Data_Sector!$D$11:$AB$11,0)) -> 호텔,레저서비스 | BB80: =OFFSET(Data_Sector!$C$8,,MATCH($AX80,Data_Sector!$D$11:$AB$11,0)) -> 0.6763447917 | BC80: =OFFSET(Data_Sector!$C$13,,MATCH($AX80,Data_Sector!$D$12:$AB$12,0)) -> 화장품,의류,완구 | BD80: =OFFSET(Data_Sector!$C$9,,MATCH($AX80,Data_Sector!$D$12:$AB$12,0)) -> 1.561972317
B81: 업종별 12MF 순이익전망치 변화율 (1M) | AX81: 17 | AY81: =OFFSET(Data_Sector!$C$13,,MATCH($AX81,Data_Sector!$D$10:$AB$10,0)) -> 철강 | AZ81: =OFFSET(Data_Sector!$C$7,,MATCH($AX81,Data_Sector!$D$10:$AB$10,0)) -> -0.1104850977 | BA81: =OFFSET(Data_Sector!$C$13,,MATCH($AX81,Data_Sector!$D$11:$AB$11,0)) -> IT하드웨어 | BB81: =OFFSET(Data_Sector!$C$8,,MATCH($AX81,Data_Sector!$D$11:$AB$11,0)) -> 0.6223913655 | BC81: =OFFSET(Data_Sector!$C$13,,MATCH($AX81,Data_Sector!$D$12:$AB$12,0)) -> 상사,자본재 | BD81: =OFFSET(Data_Sector!$C$9,,MATCH($AX81,Data_Sector!$D$12:$AB$12,0)) -> 1.348680928
AK82: =S84 -> 1W | AN82: FY1 | AX82: 18 | AY82: =OFFSET(Data_Sector!$C$13,,MATCH($AX82,Data_Sector!$D$10:$AB$10,0)) -> 호텔,레저서비스 | AZ82: =OFFSET(Data_Sector!$C$7,,MATCH($AX82,Data_Sector!$D$10:$AB$10,0)) -> -0.1192642446 | BA82: =OFFSET(Data_Sector!$C$13,,MATCH($AX82,Data_Sector!$D$11:$AB$11,0)) -> 유틸리티 | BB82: =OFFSET(Data_Sector!$C$8,,MATCH($AX82,Data_Sector!$D$11:$AB$11,0)) -> 0.5034727095 | BC82: =OFFSET(Data_Sector!$C$13,,MATCH($AX82,Data_Sector!$D$12:$AB$12,0)) -> 필수소비재 | BD82: =OFFSET(Data_Sector!$C$9,,MATCH($AX82,Data_Sector!$D$12:$AB$12,0)) -> 1.341712876
R83: 업종명 | S83: 자동차 | AI83: 종목명 | AJ83: 시가총액 | AK83: 12MF 순이익 변화율 | AL83: 12MF PE | AM83: 12MF PB | AN83: Sales growth | AO83: OP growth | AP83: NP growth | AQ83: OPM | AR83: NPM | AS83: ROE | AT83: Div. yield | AX83: 19 | AY83: =OFFSET(Data_Sector!$C$13,,MATCH($AX83,Data_Sector!$D$10:$AB$10,0)) -> 소매(유통) | AZ83: =OFFSET(Data_Sector!$C$7,,MATCH($AX83,Data_Sector!$D$10:$AB$10,0)) -> -0.1224519499 | BA83: =OFFSET(Data_Sector!$C$13,,MATCH($AX83,Data_Sector!$D$11:$AB$11,0)) -> 건강관리 | BB83: =OFFSET(Data_Sector!$C$8,,MATCH($AX83,Data_Sector!$D$11:$AB$11,0)) -> 0.4711223076 | BC83: =OFFSET(Data_Sector!$C$13,,MATCH($AX83,Data_Sector!$D$12:$AB$12,0)) -> 유틸리티 | BD83: =OFFSET(Data_Sector!$C$9,,MATCH($AX83,Data_Sector!$D$12:$AB$12,0)) -> 1.293018026 | BL83: =S83 -> 자동차 | BM83: =S84 -> 1W
R84: 기간 | S84: 1W | AH84: 1 | AI84: =IFERROR(BL84,"") -> Toyota Motor | AJ84: =IF(BN84="","",BN84) -> 195347.66 | AK84: =IF(BM84="","",BM84) -> 0 | AL84: =IF(BO84="","",BO84) -> 11.65 | AM84: =IF(BP84="","",BP84) -> 1.14 | AN84: =IF(BQ84="","",BQ84) -> 2.77 | AO84: =IF(BR84="","",BR84) -> 2.14 | AP84: =IF(BS84="","",BS84) -> 1.06 | AQ84: =IF(BT84="","",BT84) -> 7.18 | AR84: =IF(BU84="","",BU84) -> 6.53 | AS84: =IF(BV84="","",BV84) -> 10.1 | AT84: =IF(BW84="","",BW84) -> 3.15 | AX84: 20 | AY84: =OFFSET(Data_Sector!$C$13,,MATCH($AX84,Data_Sector!$D$10:$AB$10,0)) -> 소프트웨어 | AZ84: =OFFSET(Data_Sector!$C$7,,MATCH($AX84,Data_Sector!$D$10:$AB$10,0)) -> -0.1297978621 | BA84: =OFFSET(Data_Sector!$C$13,,MATCH($AX84,Data_Sector!$D$11:$AB$11,0)) -> 화장품,의류,완구 | BB84: =OFFSET(Data_Sector!$C$8,,MATCH($AX84,Data_Sector!$D$11:$AB$11,0)) -> 0.3701347993 | BC84: =OFFSET(Data_Sector!$C$13,,MATCH($AX84,Data_Sector!$D$12:$AB$12,0)) -> 소매(유통) | BD84: =OFFSET(Data_Sector!$C$9,,MATCH($AX84,Data_Sector!$D$12:$AB$12,0)) -> 0.8779122713 | BK84: 1 | BL84: =OFFSET(Data_Comp!$A$4,$BK84,MATCH($BF$61,Data_Comp!$B$3:$GR$3,0)+MATCH(BL$83,Data_Comp!$B$4:$Y$4,0)-1) -> Toyota Motor | BM84: =IFERROR(OFFSET(Data_Comp!$A$4,$BK84+MATCH(BM$83,Data_Comp!$A$5:$A$300,0),MATCH($BF$61,Data_Comp!$B$3:$GR$3,0)+MATCH(BL$83,Data_Comp!$B$4:$Y$4,0)-1),"") -> 0 | BN84: =IFERROR(OFFSET(Data_Comp!$A$4,$BK84+MATCH(BN$61,Data_Comp!$A$5:$A$300,0),MATCH($BF$61,Data_Comp!$B$3:$GR$3,0)+MATCH(BL$83,Data_Comp!$B$4:$Y$4,0)-1),"") -> 195347.66 | BO84: =IFERROR(OFFSET(Data_Comp!$A$4,$BK84+MATCH(BO$61,Data_Comp!$A$5:$A$300,0),MATCH($BF$61,Data_Comp!$B$3:$GR$3,0)+MATCH(BL$83,Data_Comp!$B$4:$Y$4,0)-1),"") -> 11.65 | BP84: =IFERROR(OFFSET(Data_Comp!$A$4,$BK84+MATCH(BP$61,Data_Comp!$A$5:$A$300,0),MATCH($BF$61,Data_Comp!$B$3:$GR$3,0)+MATCH(BL$83,Data_Comp!$B$4:$Y$4,0)-1),"") -> 1.14 | BQ84: =IFERROR(OFFSET(Data_Comp!$A$4,$BK84+MATCH(BQ$61,Data_Comp!$A$5:$A$300,0),MATCH($BF$61,Data_Comp!$B$3:$GR$3,0)+MATCH(BL$83,Data_Comp!$B$4:$Y$4,0)-1),"") -> 2.77 | BR84: =IFERROR(OFFSET(Data_Comp!$A$4,$BK84+MATCH(BR$61,Data_Comp!$A$5:$A$300,0),MATCH($BF$61,Data_Comp!$B$3:$GR$3,0)+MATCH(BL$83,Data_Comp!$B$4:$Y$4,0)-1),"") -> 2.14 | BS84: =IFERROR(OFFSET(Data_Comp!$A$4,$BK84+MATCH(BS$61,Data_Comp!$A$5:$A$300,0),MATCH($BF$61,Data_Comp!$B$3:$GR$3,0)+MATCH(BL$83,Data_Comp!$B$4:$Y$4,0)-1),"") -> 1.06 | BT84: =IFERROR(OFFSET(Data_Comp!$A$4,$BK84+MATCH(BT$61,Data_Comp!$A$5:$A$300,0),MATCH($BF$61,Data_Comp!$B$3:$GR$3,0)+MATCH(BL$83,Data_Comp!$B$4:$Y$4,0)-1),"") -> 7.18 | BU84: =IFERROR(OFFSET(Data_Comp!$A$4,$BK84+MATCH(BU$61,Data_Comp!$A$5:$A$300,0),MATCH($BF$61,Data_Comp!$B$3:$GR$3,0)+MATCH(BL$83,Data_Comp!$B$4:$Y$4,0)-1),"") -> 6.53 | BV84: =IFERROR(OFFSET(Data_Comp!$A$4,$BK84+MATCH(BV$61,Data_Comp!$A$5:$A$300,0),MATCH($BF$61,Data_Comp!$B$3:$GR$3,0)+MATCH(BL$83,Data_Comp!$B$4:$Y$4,0)-1),"") -> 10.1 | BW84: =IFERROR(OFFSET(Data_Comp!$A$4,$BK84+MATCH(BW$61,Data_Comp!$A$5:$A$300,0),MATCH($BF$61,Data_Comp!$B$3:$GR$3,0)+MATCH(BL$83,Data_Comp!$B$4:$Y$4,0)-1),"") -> 3.15
AH85: =AH84+1 -> 2 | AI85: Daimler | AJ85: 85081.03 | AK85: 0 | AL85: 7.45 | AM85: 1.06 | AN85: 6.1 | AO85: 25.93 | AP85: 13.85 | AQ85: 8.92 | AR85: 5.97 | AS85: 16.02 | AT85: 5.19 | AX85: 21 | AY85: =OFFSET(Data_Sector!$C$13,,MATCH($AX85,Data_Sector!$D$10:$AB$10,0)) -> 통신서비스 | AZ85: =OFFSET(Data_Sector!$C$7,,MATCH($AX85,Data_Sector!$D$10:$AB$10,0)) -> -0.1716351432 | BA85: =OFFSET(Data_Sector!$C$13,,MATCH($AX85,Data_Sector!$D$11:$AB$11,0)) -> 필수소비재 | BB85: =OFFSET(Data_Sector!$C$8,,MATCH($AX85,Data_Sector!$D$11:$AB$11,0)) -> 0.32165609 | BC85: =OFFSET(Data_Sector!$C$13,,MATCH($AX85,Data_Sector!$D$12:$AB$12,0)) -> 증권 | BD85: =OFFSET(Data_Sector!$C$9,,MATCH($AX85,Data_Sector!$D$12:$AB$12,0)) -> 0.05274057557 | BK85: =BK84+1 -> 2 | BL85: =OFFSET(Data_Comp!$A$4,$BK85,MATCH($BF$61,Data_Comp!$B$3:$GR$3,0)+MATCH(BL$83,Data_Comp!$B$4:$Y$4,0)-1) -> Daimler | BM85: =IFERROR(OFFSET(Data_Comp!$A$4,$BK85+MATCH(BM$83,Data_Comp!$A$5:$A$300,0),MATCH($BF$61,Data_Comp!$B$3:$GR$3,0)+MATCH(BL$83,Data_Comp!$B$4:$Y$4,0)-1),"") -> 0 | BN85: =IFERROR(OFFSET(Data_Comp!$A$4,$BK85+MATCH(BN$61,Data_Comp!$A$5:$A$300,0),MATCH($BF$61,Data_Comp!$B$3:$GR$3,0)+MATCH(BL$83,Data_Comp!$B$4:$Y$4,0)-1),"") -> 85081.03 | BO85: =IFERROR(OFFSET(Data_Comp!$A$4,$BK85+MATCH(BO$61,Data_Comp!$A$5:$A$300,0),MATCH($BF$61,Data_Comp!$B$3:$GR$3,0)+MATCH(BL$83,Data_Comp!$B$4:$Y$4,0)-1),"") -> 7.45 | BP85: =IFERROR(OFFSET(Data_Comp!$A$4,$BK85+MATCH(BP$61,Data_Comp!$A$5:$A$300,0),MATCH($BF$61,Data_Comp!$B$3:$GR$3,0)+MATCH(BL$83,Data_Comp!$B$4:$Y$4,0)-1),"") -> 1.06 | BQ85: =IFERROR(OFFSET(Data_Comp!$A$4,$BK85+MATCH(BQ$61,Data_Comp!$A$5:$A$300,0),MATCH($BF$61,Data_Comp!$B$3:$GR$3,0)+MATCH(BL$83,Data_Comp!$B$4:$Y$4,0)-1),"") -> 6.1 | BR85: =IFERROR(OFFSET(Data_Comp!$A$4,$BK85+MATCH(BR$61,Data_Comp!$A$5:$A$300,0),MATCH($BF$61,Data_Comp!$B$3:$GR$3,0)+MATCH(BL$83,Data_Comp!$B$4:$Y$4,0)-1),"") -> 25.93 | BS85: =IFERROR(OFFSET(Data_Comp!$A$4,$BK85+MATCH(BS$61,Data_Comp!$A$5:$A$300,0),MATCH($BF$61,Data_Comp!$B$3:$GR$3,0)+MATCH(BL$83,Data_Comp!$B$4:$Y$4,0)-1),"") -> 13.85 | BT85: =IFERROR(OFFSET(Data_Comp!$A$4,$BK85+MATCH(BT$61,Data_Comp!$A$5:$A$300,0),MATCH($BF$61,Data_Comp!$B$3:$GR$3,0)+MATCH(BL$83,Data_Comp!$B$4:$Y$4,0)-1),"") -> 8.92 | BU85: =IFERROR(OFFSET(Data_Comp!$A$4,$BK85+MATCH(BU$61,Data_Comp!$A$5:$A$300,0),MATCH($BF$61,Data_Comp!$B$3:$GR$3,0)+MATCH(BL$83,Data_Comp!$B$4:$Y$4,0)-1),"") -> 5.97 | BV85: =IFERROR(OFFSET(Data_Comp!$A$4,$BK85+MATCH(BV$61,Data_Comp!$A$5:$A$300,0),MATCH($BF$61,Data_Comp!$B$3:$GR$3,0)+MATCH(BL$83,Data_Comp!$B$4:$Y$4,0)-1),"") -> 16.02 | BW85: =IFERROR(OFFSET(Data_Comp!$A$4,$BK85+MATCH(BW$61,Data_Comp!$A$5:$A$300,0),MATCH($BF$61,Data_Comp!$B$3:$GR$3,0)+MATCH(BL$83,Data_Comp!$B$4:$Y$4,0)-1),"") -> 5.19
AH86: =AH85+1 -> 3 | AI86: Ford Motor | AJ86: 46306.78 | AK86: 0 | AL86: 7.44 | AM86: 1.41 | AN86: -5.44 | AO86: 51.32 | AP86: 50.48 | AQ86: 3.77 | AR86: 4.82 | AS86: 23.21 | AT86: 5.34 | AX86: 22 | AY86: =OFFSET(Data_Sector!$C$13,,MATCH($AX86,Data_Sector!$D$10:$AB$10,0)) -> 운송 | AZ86: =OFFSET(Data_Sector!$C$7,,MATCH($AX86,Data_Sector!$D$10:$AB$10,0)) -> -0.3107246826 | BA86: =OFFSET(Data_Sector!$C$13,,MATCH($AX86,Data_Sector!$D$11:$AB$11,0)) -> 운송 | BB86: =OFFSET(Data_Sector!$C$8,,MATCH($AX86,Data_Sector!$D$11:$AB$11,0)) -> 0.141762329 | BC86: =OFFSET(Data_Sector!$C$13,,MATCH($AX86,Data_Sector!$D$12:$AB$12,0)) -> 소프트웨어 | BD86: =OFFSET(Data_Sector!$C$9,,MATCH($AX86,Data_Sector!$D$12:$AB$12,0)) -> -2.031525272 | BK86: =BK85+1 -> 3 | BL86: =OFFSET(Data_Comp!$A$4,$BK86,MATCH($BF$61,Data_Comp!$B$3:$GR$3,0)+MATCH(BL$83,Data_Comp!$B$4:$Y$4,0)-1) -> Ford Motor | BM86: =IFERROR(OFFSET(Data_Comp!$A$4,$BK86+MATCH(BM$83,Data_Comp!$A$5:$A$300,0),MATCH($BF$61,Data_Comp!$B$3:$GR$3,0)+MATCH(BL$83,Data_Comp!$B$4:$Y$4,0)-1),"") -> 0 | BN86: =IFERROR(OFFSET(Data_Comp!$A$4,$BK86+MATCH(BN$61,Data_Comp!$A$5:$A$300,0),MATCH($BF$61,Data_Comp!$B$3:$GR$3,0)+MATCH(BL$83,Data_Comp!$B$4:$Y$4,0)-1),"") -> 46306.78 | BO86: =IFERROR(OFFSET(Data_Comp!$A$4,$BK86+MATCH(BO$61,Data_Comp!$A$5:$A$300,0),MATCH($BF$61,Data_Comp!$B$3:$GR$3,0)+MATCH(BL$83,Data_Comp!$B$4:$Y$4,0)-1),"") -> 7.44 | BP86: =IFERROR(OFFSET(Data_Comp!$A$4,$BK86+MATCH(BP$61,Data_Comp!$A$5:$A$300,0),MATCH($BF$61,Data_Comp!$B$3:$GR$3,0)+MATCH(BL$83,Data_Comp!$B$4:$Y$4,0)-1),"") -> 1.41 | BQ86: =IFERROR(OFFSET(Data_Comp!$A$4,$BK86+MATCH(BQ$61,Data_Comp!$A$5:$A$300,0),MATCH($BF$61,Data_Comp!$B$3:$GR$3,0)+MATCH(BL$83,Data_Comp!$B$4:$Y$4,0)-1),"") -> -5.44 | BR86: =IFERROR(OFFSET(Data_Comp!$A$4,$BK86+MATCH(BR$61,Data_Comp!$A$5:$A$300,0),MATCH($BF$61,Data_Comp!$B$3:$GR$3,0)+MATCH(BL$83,Data_Comp!$B$4:$Y$4,0)-1),"") -> 51.32 | BS86: =IFERROR(OFFSET(Data_Comp!$A$4,$BK86+MATCH(BS$61,Data_Comp!$A$5:$A$300,0),MATCH($BF$61,Data_Comp!$B$3:$GR$3,0)+MATCH(BL$83,Data_Comp!$B$4:$Y$4,0)-1),"") -> 50.48 | BT86: =IFERROR(OFFSET(Data_Comp!$A$4,$BK86+MATCH(BT$61,Data_Comp!$A$5:$A$300,0),MATCH($BF$61,Data_Comp!$B$3:$GR$3,0)+MATCH(BL$83,Data_Comp!$B$4:$Y$4,0)-1),"") -> 3.77 | BU86: =IFERROR(OFFSET(Data_Comp!$A$4,$BK86+MATCH(BU$61,Data_Comp!$A$5:$A$300,0),MATCH($BF$61,Data_Comp!$B$3:$GR$3,0)+MATCH(BL$83,Data_Comp!$B$4:$Y$4,0)-1),"") -> 4.82 | BV86: =IFERROR(OFFSET(Data_Comp!$A$4,$BK86+MATCH(BV$61,Data_Comp!$A$5:$A$300,0),MATCH($BF$61,Data_Comp!$B$3:$GR$3,0)+MATCH(BL$83,Data_Comp!$B$4:$Y$4,0)-1),"") -> 23.21 | BW86: =IFERROR(OFFSET(Data_Comp!$A$4,$BK86+MATCH(BW$61,Data_Comp!$A$5:$A$300,0),MATCH($BF$61,Data_Comp!$B$3:$GR$3,0)+MATCH(BL$83,Data_Comp!$B$4:$Y$4,0)-1),"") -> 5.34
AH87: 4 | AI87: Bayerische Motoren Werke | AJ87: 61166.31 | AK87: 0 | AL87: 7.07 | AM87: 0.92 | AN87: 4.77 | AO87: 5.09 | AP87: 5.62 | AQ87: 10.01 | AR87: 7.35 | AS87: 14.6 | AT87: 4.31 | AX87: 23 | AY87: =OFFSET(Data_Sector!$C$13,,MATCH($AX87,Data_Sector!$D$10:$AB$10,0)) -> 화장품,의류,완구 | AZ87: =OFFSET(Data_Sector!$C$7,,MATCH($AX87,Data_Sector!$D$10:$AB$10,0)) -> -0.4111179541 | BA87: =OFFSET(Data_Sector!$C$13,,MATCH($AX87,Data_Sector!$D$11:$AB$11,0)) -> 증권 | BB87: =OFFSET(Data_Sector!$C$8,,MATCH($AX87,Data_Sector!$D$11:$AB$11,0)) -> 0.05691757245 | BC87: =OFFSET(Data_Sector!$C$13,,MATCH($AX87,Data_Sector!$D$12:$AB$12,0)) -> 에너지 | BD87: =OFFSET(Data_Sector!$C$9,,MATCH($AX87,Data_Sector!$D$12:$AB$12,0)) -> -3.976844298 | BK87: 4 | BL87: =OFFSET(Data_Comp!$A$4,$BK87,MATCH($BF$61,Data_Comp!$B$3:$GR$3,0)+MATCH(BL$83,Data_Comp!$B$4:$Y$4,0)-1) -> Bayerische Motoren Werke | BM87: =IFERROR(OFFSET(Data_Comp!$A$4,$BK87+MATCH(BM$83,Data_Comp!$A$5:$A$300,0),MATCH($BF$61,Data_Comp!$B$3:$GR$3,0)+MATCH(BL$83,Data_Comp!$B$4:$Y$4,0)-1),"") -> 0 | BN87: =IFERROR(OFFSET(Data_Comp!$A$4,$BK87+MATCH(BN$61,Data_Comp!$A$5:$A$300,0),MATCH($BF$61,Data_Comp!$B$3:$GR$3,0)+MATCH(BL$83,Data_Comp!$B$4:$Y$4,0)-1),"") -> 61166.31 | BO87: =IFERROR(OFFSET(Data_Comp!$A$4,$BK87+MATCH(BO$61,Data_Comp!$A$5:$A$300,0),MATCH($BF$61,Data_Comp!$B$3:$GR$3,0)+MATCH(BL$83,Data_Comp!$B$4:$Y$4,0)-1),"") -> 7.07 | BP87: =IFERROR(OFFSET(Data_Comp!$A$4,$BK87+MATCH(BP$61,Data_Comp!$A$5:$A$300,0),MATCH($BF$61,Data_Comp!$B$3:$GR$3,0)+MATCH(BL$83,Data_Comp!$B$4:$Y$4,0)-1),"") -> 0.92 | BQ87: =IFERROR(OFFSET(Data_Comp!$A$4,$BK87+MATCH(BQ$61,Data_Comp!$A$5:$A$300,0),MATCH($BF$61,Data_Comp!$B$3:$GR$3,0)+MATCH(BL$83,Data_Comp!$B$4:$Y$4,0)-1),"") -> 4.77 | BR87: =IFERROR(OFFSET(Data_Comp!$A$4,$BK87+MATCH(BR$61,Data_Comp!$A$5:$A$300,0),MATCH($BF$61,Data_Comp!$B$3:$GR$3,0)+MATCH(BL$83,Data_Comp!$B$4:$Y$4,0)-1),"") -> 5.09 | BS87: =IFERROR(OFFSET(Data_Comp!$A$4,$BK87+MATCH(BS$61,Data_Comp!$A$5:$A$300,0),MATCH($BF$61,Data_Comp!$B$3:$GR$3,0)+MATCH(BL$83,Data_Comp!$B$4:$Y$4,0)-1),"") -> 5.62 | BT87: =IFERROR(OFFSET(Data_Comp!$A$4,$BK87+MATCH(BT$61,Data_Comp!$A$5:$A$300,0),MATCH($BF$61,Data_Comp!$B$3:$GR$3,0)+MATCH(BL$83,Data_Comp!$B$4:$Y$4,0)-1),"") -> 10.01 | BU87: =IFERROR(OFFSET(Data_Comp!$A$4,$BK87+MATCH(BU$61,Data_Comp!$A$5:$A$300,0),MATCH($BF$61,Data_Comp!$B$3:$GR$3,0)+MATCH(BL$83,Data_Comp!$B$4:$Y$4,0)-1),"") -> 7.35 | BV87: =IFERROR(OFFSET(Data_Comp!$A$4,$BK87+MATCH(BV$61,Data_Comp!$A$5:$A$300,0),MATCH($BF$61,Data_Comp!$B$3:$GR$3,0)+MATCH(BL$83,Data_Comp!$B$4:$Y$4,0)-1),"") -> 14.6 | BW87: =IFERROR(OFFSET(Data_Comp!$A$4,$BK87+MATCH(BW$61,Data_Comp!$A$5:$A$300,0),MATCH($BF$61,Data_Comp!$B$3:$GR$3,0)+MATCH(BL$83,Data_Comp!$B$4:$Y$4,0)-1),"") -> 4.31
AH88: 5 | AI88: General Motors | AJ88: 57443.14 | AK88: 0 | AL88: 6.72 | AM88: 1.28 | AN88: -11.05 | AO88: 15.8 | AP88: -2.32 | AQ88: 8.23 | AR88: 6.22 | AS88: 21.24 | AT88: 3.88 | AX88: 24 | AY88: =OFFSET(Data_Sector!$C$13,,MATCH($AX88,Data_Sector!$D$10:$AB$10,0)) ->  | AZ88: =OFFSET(Data_Sector!$C$7,,MATCH($AX88,Data_Sector!$D$10:$AB$10,0)) ->  | BA88: =OFFSET(Data_Sector!$C$13,,MATCH($AX88,Data_Sector!$D$11:$AB$11,0)) ->  | BB88: =OFFSET(Data_Sector!$C$8,,MATCH($AX88,Data_Sector!$D$11:$AB$11,0)) ->  | BC88: =OFFSET(Data_Sector!$C$13,,MATCH($AX88,Data_Sector!$D$12:$AB$12,0)) ->  | BD88: =OFFSET(Data_Sector!$C$9,,MATCH($AX88,Data_Sector!$D$12:$AB$12,0)) ->  | BK88: 5 | BL88: =OFFSET(Data_Comp!$A$4,$BK88,MATCH($BF$61,Data_Comp!$B$3:$GR$3,0)+MATCH(BL$83,Data_Comp!$B$4:$Y$4,0)-1) -> General Motors | BM88: =IFERROR(OFFSET(Data_Comp!$A$4,$BK88+MATCH(BM$83,Data_Comp!$A$5:$A$300,0),MATCH($BF$61,Data_Comp!$B$3:$GR$3,0)+MATCH(BL$83,Data_Comp!$B$4:$Y$4,0)-1),"") -> 0 | BN88: =IFERROR(OFFSET(Data_Comp!$A$4,$BK88+MATCH(BN$61,Data_Comp!$A$5:$A$300,0),MATCH($BF$61,Data_Comp!$B$3:$GR$3,0)+MATCH(BL$83,Data_Comp!$B$4:$Y$4,0)-1),"") -> 57443.14 | BO88: =IFERROR(OFFSET(Data_Comp!$A$4,$BK88+MATCH(BO$61,Data_Comp!$A$5:$A$300,0),MATCH($BF$61,Data_Comp!$B$3:$GR$3,0)+MATCH(BL$83,Data_Comp!$B$4:$Y$4,0)-1),"") -> 6.72 | BP88: =IFERROR(OFFSET(Data_Comp!$A$4,$BK88+MATCH(BP$61,Data_Comp!$A$5:$A$300,0),MATCH($BF$61,Data_Comp!$B$3:$GR$3,0)+MATCH(BL$83,Data_Comp!$B$4:$Y$4,0)-1),"") -> 1.28 | BQ88: =IFERROR(OFFSET(Data_Comp!$A$4,$BK88+MATCH(BQ$61,Data_Comp!$A$5:$A$300,0),MATCH($BF$61,Data_Comp!$B$3:$GR$3,0)+MATCH(BL$83,Data_Comp!$B$4:$Y$4,0)-1),"") -> -11.05 | BR88: =IFERROR(OFFSET(Data_Comp!$A$4,$BK88+MATCH(BR$61,Data_Comp!$A$5:$A$300,0),MATCH($BF$61,Data_Comp!$B$3:$GR$3,0)+MATCH(BL$83,Data_Comp!$B$4:$Y$4,0)-1),"") -> 15.8 | BS88: =IFERROR(OFFSET(Data_Comp!$A$4,$BK88+MATCH(BS$61,Data_Comp!$A$5:$A$300,0),MATCH($BF$61,Data_Comp!$B$3:$GR$3,0)+MATCH(BL$83,Data_Comp!$B$4:$Y$4,0)-1),"") -> -2.32 | BT88: =IFERROR(OFFSET(Data_Comp!$A$4,$BK88+MATCH(BT$61,Data_Comp!$A$5:$A$300,0),MATCH($BF$61,Data_Comp!$B$3:$GR$3,0)+MATCH(BL$83,Data_Comp!$B$4:$Y$4,0)-1),"") -> 8.23 | BU88: =IFERROR(OFFSET(Data_Comp!$A$4,$BK88+MATCH(BU$61,Data_Comp!$A$5:$A$300,0),MATCH($BF$61,Data_Comp!$B$3:$GR$3,0)+MATCH(BL$83,Data_Comp!$B$4:$Y$4,0)-1),"") -> 6.22 | BV88: =IFERROR(OFFSET(Data_Comp!$A$4,$BK88+MATCH(BV$61,Data_Comp!$A$5:$A$300,0),MATCH($BF$61,Data_Comp!$B$3:$GR$3,0)+MATCH(BL$83,Data_Comp!$B$4:$Y$4,0)-1),"") -> 21.24 | BW88: =IFERROR(OFFSET(Data_Comp!$A$4,$BK88+MATCH(BW$61,Data_Comp!$A$5:$A$300,0),MATCH($BF$61,Data_Comp!$B$3:$GR$3,0)+MATCH(BL$83,Data_Comp!$B$4:$Y$4,0)-1),"") -> 3.88
AH89: 6 | AI89: Honda Motor | AJ89: 53989.34 | AK89: -0.103591221 | AL89: 9.51 | AM89: 0.77 | AN89: 4.52 | AO89: -3.01 | AP89: -0.47 | AQ89: 5.57 | AR89: 4.19 | AS89: 8.18 | AT89: 2.95 | BK89: 6 | BL89: =OFFSET(Data_Comp!$A$4,$BK89,MATCH($BF$61,Data_Comp!$B$3:$GR$3,0)+MATCH(BL$83,Data_Comp!$B$4:$Y$4,0)-1) -> Honda Motor | BM89: =IFERROR(OFFSET(Data_Comp!$A$4,$BK89+MATCH(BM$83,Data_Comp!$A$5:$A$300,0),MATCH($BF$61,Data_Comp!$B$3:$GR$3,0)+MATCH(BL$83,Data_Comp!$B$4:$Y$4,0)-1),"") -> -0.103591221 | BN89: =IFERROR(OFFSET(Data_Comp!$A$4,$BK89+MATCH(BN$61,Data_Comp!$A$5:$A$300,0),MATCH($BF$61,Data_Comp!$B$3:$GR$3,0)+MATCH(BL$83,Data_Comp!$B$4:$Y$4,0)-1),"") -> 53989.34 | BO89: =IFERROR(OFFSET(Data_Comp!$A$4,$BK89+MATCH(BO$61,Data_Comp!$A$5:$A$300,0),MATCH($BF$61,Data_Comp!$B$3:$GR$3,0)+MATCH(BL$83,Data_Comp!$B$4:$Y$4,0)-1),"") -> 9.51 | BP89: =IFERROR(OFFSET(Data_Comp!$A$4,$BK89+MATCH(BP$61,Data_Comp!$A$5:$A$300,0),MATCH($BF$61,Data_Comp!$B$3:$GR$3,0)+MATCH(BL$83,Data_Comp!$B$4:$Y$4,0)-1),"") -> 0.77 | BQ89: =IFERROR(OFFSET(Data_Comp!$A$4,$BK89+MATCH(BQ$61,Data_Comp!$A$5:$A$300,0),MATCH($BF$61,Data_Comp!$B$3:$GR$3,0)+MATCH(BL$83,Data_Comp!$B$4:$Y$4,0)-1),"") -> 4.52 | BR89: =IFERROR(OFFSET(Data_Comp!$A$4,$BK89+MATCH(BR$61,Data_Comp!$A$5:$A$300,0),MATCH($BF$61,Data_Comp!$B$3:$GR$3,0)+MATCH(BL$83,Data_Comp!$B$4:$Y$4,0)-1),"") -> -3.01 | BS89: =IFERROR(OFFSET(Data_Comp!$A$4,$BK89+MATCH(BS$61,Data_Comp!$A$5:$A$300,0),MATCH($BF$61,Data_Comp!$B$3:$GR$3,0)+MATCH(BL$83,Data_Comp!$B$4:$Y$4,0)-1),"") -> -0.47 | BT89: =IFERROR(OFFSET(Data_Comp!$A$4,$BK89+MATCH(BT$61,Data_Comp!$A$5:$A$300,0),MATCH($BF$61,Data_Comp!$B$3:$GR$3,0)+MATCH(BL$83,Data_Comp!$B$4:$Y$4,0)-1),"") -> 5.57 | BU89: =IFERROR(OFFSET(Data_Comp!$A$4,$BK89+MATCH(BU$61,Data_Comp!$A$5:$A$300,0),MATCH($BF$61,Data_Comp!$B$3:$GR$3,0)+MATCH(BL$83,Data_Comp!$B$4:$Y$4,0)-1),"") -> 4.19 | BV89: =IFERROR(OFFSET(Data_Comp!$A$4,$BK89+MATCH(BV$61,Data_Comp!$A$5:$A$300,0),MATCH($BF$61,Data_Comp!$B$3:$GR$3,0)+MATCH(BL$83,Data_Comp!$B$4:$Y$4,0)-1),"") -> 8.18 | BW89: =IFERROR(OFFSET(Data_Comp!$A$4,$BK89+MATCH(BW$61,Data_Comp!$A$5:$A$300,0),MATCH($BF$61,Data_Comp!$B$3:$GR$3,0)+MATCH(BL$83,Data_Comp!$B$4:$Y$4,0)-1),"") -> 2.95
AH90: 7 | AI90: Nissan Motor | AJ90: 43233.6 | AK90: 0.08771430826 | AL90: 7.93 | AM90: 0.88 | AN90: 2.88 | AO90: -2.67 | AP90: -10.3 | AQ90: 5.99 | AR90: 4.94 | AS90: 11.7 | AT90: 4.62 | BK90: 7 | BL90: =OFFSET(Data_Comp!$A$4,$BK90,MATCH($BF$61,Data_Comp!$B$3:$GR$3,0)+MATCH(BL$83,Data_Comp!$B$4:$Y$4,0)-1) -> Nissan Motor | BM90: =IFERROR(OFFSET(Data_Comp!$A$4,$BK90+MATCH(BM$83,Data_Comp!$A$5:$A$300,0),MATCH($BF$61,Data_Comp!$B$3:$GR$3,0)+MATCH(BL$83,Data_Comp!$B$4:$Y$4,0)-1),"") -> 0.08771430826 | BN90: =IFERROR(OFFSET(Data_Comp!$A$4,$BK90+MATCH(BN$61,Data_Comp!$A$5:$A$300,0),MATCH($BF$61,Data_Comp!$B$3:$GR$3,0)+MATCH(BL$83,Data_Comp!$B$4:$Y$4,0)-1),"") -> 43233.6 | BO90: =IFERROR(OFFSET(Data_Comp!$A$4,$BK90+MATCH(BO$61,Data_Comp!$A$5:$A$300,0),MATCH($BF$61,Data_Comp!$B$3:$GR$3,0)+MATCH(BL$83,Data_Comp!$B$4:$Y$4,0)-1),"") -> 7.93 | BP90: =IFERROR(OFFSET(Data_Comp!$A$4,$BK90+MATCH(BP$61,Data_Comp!$A$5:$A$300,0),MATCH($BF$61,Data_Comp!$B$3:$GR$3,0)+MATCH(BL$83,Data_Comp!$B$4:$Y$4,0)-1),"") -> 0.88 | BQ90: =IFERROR(OFFSET(Data_Comp!$A$4,$BK90+MATCH(BQ$61,Data_Comp!$A$5:$A$300,0),MATCH($BF$61,Data_Comp!$B$3:$GR$3,0)+MATCH(BL$83,Data_Comp!$B$4:$Y$4,0)-1),"") -> 2.88 | BR90: =IFERROR(OFFSET(Data_Comp!$A$4,$BK90+MATCH(BR$61,Data_Comp!$A$5:$A$300,0),MATCH($BF$61,Data_Comp!$B$3:$GR$3,0)+MATCH(BL$83,Data_Comp!$B$4:$Y$4,0)-1),"") -> -2.67 | BS90: =IFERROR(OFFSET(Data_Comp!$A$4,$BK90+MATCH(BS$61,Data_Comp!$A$5:$A$300,0),MATCH($BF$61,Data_Comp!$B$3:$GR$3,0)+MATCH(BL$83,Data_Comp!$B$4:$Y$4,0)-1),"") -> -10.3 | BT90: =IFERROR(OFFSET(Data_Comp!$A$4,$BK90+MATCH(BT$61,Data_Comp!$A$5:$A$300,0),MATCH($BF$61,Data_Comp!$B$3:$GR$3,0)+MATCH(BL$83,Data_Comp!$B$4:$Y$4,0)-1),"") -> 5.99 | BU90: =IFERROR(OFFSET(Data_Comp!$A$4,$BK90+MATCH(BU$61,Data_Comp!$A$5:$A$300,0),MATCH($BF$61,Data_Comp!$B$3:$GR$3,0)+MATCH(BL$83,Data_Comp!$B$4:$Y$4,0)-1),"") -> 4.94 | BV90: =IFERROR(OFFSET(Data_Comp!$A$4,$BK90+MATCH(BV$61,Data_Comp!$A$5:$A$300,0),MATCH($BF$61,Data_Comp!$B$3:$GR$3,0)+MATCH(BL$83,Data_Comp!$B$4:$Y$4,0)-1),"") -> 11.7 | BW90: =IFERROR(OFFSET(Data_Comp!$A$4,$BK90+MATCH(BW$61,Data_Comp!$A$5:$A$300,0),MATCH($BF$61,Data_Comp!$B$3:$GR$3,0)+MATCH(BL$83,Data_Comp!$B$4:$Y$4,0)-1),"") -> 4.62
AH91: 8 | AI91: Continental | AJ91: 50750.77 | AK91: 0 | AL91: 12.43 | AM91: 2.28 | AN91: 7.97 | AO91: 15.64 | AP91: 12.57 | AQ91: 10.98 | AR91: 7.21 | AS91: 20.34 | AT91: 2.22 | BK91: 8 | BL91: =OFFSET(Data_Comp!$A$4,$BK91,MATCH($BF$61,Data_Comp!$B$3:$GR$3,0)+MATCH(BL$83,Data_Comp!$B$4:$Y$4,0)-1) -> Continental | BM91: =IFERROR(OFFSET(Data_Comp!$A$4,$BK91+MATCH(BM$83,Data_Comp!$A$5:$A$300,0),MATCH($BF$61,Data_Comp!$B$3:$GR$3,0)+MATCH(BL$83,Data_Comp!$B$4:$Y$4,0)-1),"") -> 0 | BN91: =IFERROR(OFFSET(Data_Comp!$A$4,$BK91+MATCH(BN$61,Data_Comp!$A$5:$A$300,0),MATCH($BF$61,Data_Comp!$B$3:$GR$3,0)+MATCH(BL$83,Data_Comp!$B$4:$Y$4,0)-1),"") -> 50750.77 | BO91: =IFERROR(OFFSET(Data_Comp!$A$4,$BK91+MATCH(BO$61,Data_Comp!$A$5:$A$300,0),MATCH($BF$61,Data_Comp!$B$3:$GR$3,0)+MATCH(BL$83,Data_Comp!$B$4:$Y$4,0)-1),"") -> 12.43 | BP91: =IFERROR(OFFSET(Data_Comp!$A$4,$BK91+MATCH(BP$61,Data_Comp!$A$5:$A$300,0),MATCH($BF$61,Data_Comp!$B$3:$GR$3,0)+MATCH(BL$83,Data_Comp!$B$4:$Y$4,0)-1),"") -> 2.28 | BQ91: =IFERROR(OFFSET(Data_Comp!$A$4,$BK91+MATCH(BQ$61,Data_Comp!$A$5:$A$300,0),MATCH($BF$61,Data_Comp!$B$3:$GR$3,0)+MATCH(BL$83,Data_Comp!$B$4:$Y$4,0)-1),"") -> 7.97 | BR91: =IFERROR(OFFSET(Data_Comp!$A$4,$BK91+MATCH(BR$61,Data_Comp!$A$5:$A$300,0),MATCH($BF$61,Data_Comp!$B$3:$GR$3,0)+MATCH(BL$83,Data_Comp!$B$4:$Y$4,0)-1),"") -> 15.64 | BS91: =IFERROR(OFFSET(Data_Comp!$A$4,$BK91+MATCH(BS$61,Data_Comp!$A$5:$A$300,0),MATCH($BF$61,Data_Comp!$B$3:$GR$3,0)+MATCH(BL$83,Data_Comp!$B$4:$Y$4,0)-1),"") -> 12.57 | BT91: =IFERROR(OFFSET(Data_Comp!$A$4,$BK91+MATCH(BT$61,Data_Comp!$A$5:$A$300,0),MATCH($BF$61,Data_Comp!$B$3:$GR$3,0)+MATCH(BL$83,Data_Comp!$B$4:$Y$4,0)-1),"") -> 10.98 | BU91: =IFERROR(OFFSET(Data_Comp!$A$4,$BK91+MATCH(BU$61,Data_Comp!$A$5:$A$300,0),MATCH($BF$61,Data_Comp!$B$3:$GR$3,0)+MATCH(BL$83,Data_Comp!$B$4:$Y$4,0)-1),"") -> 7.21 | BV91: =IFERROR(OFFSET(Data_Comp!$A$4,$BK91+MATCH(BV$61,Data_Comp!$A$5:$A$300,0),MATCH($BF$61,Data_Comp!$B$3:$GR$3,0)+MATCH(BL$83,Data_Comp!$B$4:$Y$4,0)-1),"") -> 20.34 | BW91: =IFERROR(OFFSET(Data_Comp!$A$4,$BK91+MATCH(BW$61,Data_Comp!$A$5:$A$300,0),MATCH($BF$61,Data_Comp!$B$3:$GR$3,0)+MATCH(BL$83,Data_Comp!$B$4:$Y$4,0)-1),"") -> 2.22
AH92: 9 | AI92: SAIC Motor Corporation Limited Class A | AJ92: 53720.87 | AK92: -0.2984364378 | AL92: 9.16 | AM92: 1.35 | AN92: 12.42 | AO92: 3.5 | AP92: 12.17 | AQ92: 2.65 | AR92: 4.26 | AS92: 16.5 | AT92: 5.95 | BK92: 9 | BL92: =OFFSET(Data_Comp!$A$4,$BK92,MATCH($BF$61,Data_Comp!$B$3:$GR$3,0)+MATCH(BL$83,Data_Comp!$B$4:$Y$4,0)-1) -> SAIC Motor Corporation Limited Class A | BM92: =IFERROR(OFFSET(Data_Comp!$A$4,$BK92+MATCH(BM$83,Data_Comp!$A$5:$A$300,0),MATCH($BF$61,Data_Comp!$B$3:$GR$3,0)+MATCH(BL$83,Data_Comp!$B$4:$Y$4,0)-1),"") -> -0.2984364378 | BN92: =IFERROR(OFFSET(Data_Comp!$A$4,$BK92+MATCH(BN$61,Data_Comp!$A$5:$A$300,0),MATCH($BF$61,Data_Comp!$B$3:$GR$3,0)+MATCH(BL$83,Data_Comp!$B$4:$Y$4,0)-1),"") -> 53720.87 | BO92: =IFERROR(OFFSET(Data_Comp!$A$4,$BK92+MATCH(BO$61,Data_Comp!$A$5:$A$300,0),MATCH($BF$61,Data_Comp!$B$3:$GR$3,0)+MATCH(BL$83,Data_Comp!$B$4:$Y$4,0)-1),"") -> 9.16 | BP92: =IFERROR(OFFSET(Data_Comp!$A$4,$BK92+MATCH(BP$61,Data_Comp!$A$5:$A$300,0),MATCH($BF$61,Data_Comp!$B$3:$GR$3,0)+MATCH(BL$83,Data_Comp!$B$4:$Y$4,0)-1),"") -> 1.35 | BQ92: =IFERROR(OFFSET(Data_Comp!$A$4,$BK92+MATCH(BQ$61,Data_Comp!$A$5:$A$300,0),MATCH($BF$61,Data_Comp!$B$3:$GR$3,0)+MATCH(BL$83,Data_Comp!$B$4:$Y$4,0)-1),"") -> 12.42 | BR92: =IFERROR(OFFSET(Data_Comp!$A$4,$BK92+MATCH(BR$61,Data_Comp!$A$5:$A$300,0),MATCH($BF$61,Data_Comp!$B$3:$GR$3,0)+MATCH(BL$83,Data_Comp!$B$4:$Y$4,0)-1),"") -> 3.5 | BS92: =IFERROR(OFFSET(Data_Comp!$A$4,$BK92+MATCH(BS$61,Data_Comp!$A$5:$A$300,0),MATCH($BF$61,Data_Comp!$B$3:$GR$3,0)+MATCH(BL$83,Data_Comp!$B$4:$Y$4,0)-1),"") -> 12.17 | BT92: =IFERROR(OFFSET(Data_Comp!$A$4,$BK92+MATCH(BT$61,Data_Comp!$A$5:$A$300,0),MATCH($BF$61,Data_Comp!$B$3:$GR$3,0)+MATCH(BL$83,Data_Comp!$B$4:$Y$4,0)-1),"") -> 2.65 | BU92: =IFERROR(OFFSET(Data_Comp!$A$4,$BK92+MATCH(BU$61,Data_Comp!$A$5:$A$300,0),MATCH($BF$61,Data_Comp!$B$3:$GR$3,0)+MATCH(BL$83,Data_Comp!$B$4:$Y$4,0)-1),"") -> 4.26 | BV92: =IFERROR(OFFSET(Data_Comp!$A$4,$BK92+MATCH(BV$61,Data_Comp!$A$5:$A$300,0),MATCH($BF$61,Data_Comp!$B$3:$GR$3,0)+MATCH(BL$83,Data_Comp!$B$4:$Y$4,0)-1),"") -> 16.5 | BW92: =IFERROR(OFFSET(Data_Comp!$A$4,$BK92+MATCH(BW$61,Data_Comp!$A$5:$A$300,0),MATCH($BF$61,Data_Comp!$B$3:$GR$3,0)+MATCH(BL$83,Data_Comp!$B$4:$Y$4,0)-1),"") -> 5.95
AH93: 10 | AI93: DENSO | AJ93: 40033.54 | AK93: 0.2523043039 | AL93: 15.06 | AM93: 1.25 | AN93: 6.24 | AO93: 13.85 | AP93: 12.26 | AQ93: 7.73 | AR93: 6.01 | AS93: 8.47 | AT93: 2.19 | BK93: 10 | BL93: =OFFSET(Data_Comp!$A$4,$BK93,MATCH($BF$61,Data_Comp!$B$3:$GR$3,0)+MATCH(BL$83,Data_Comp!$B$4:$Y$4,0)-1) -> DENSO | BM93: =IFERROR(OFFSET(Data_Comp!$A$4,$BK93+MATCH(BM$83,Data_Comp!$A$5:$A$300,0),MATCH($BF$61,Data_Comp!$B$3:$GR$3,0)+MATCH(BL$83,Data_Comp!$B$4:$Y$4,0)-1),"") -> 0.2523043039 | BN93: =IFERROR(OFFSET(Data_Comp!$A$4,$BK93+MATCH(BN$61,Data_Comp!$A$5:$A$300,0),MATCH($BF$61,Data_Comp!$B$3:$GR$3,0)+MATCH(BL$83,Data_Comp!$B$4:$Y$4,0)-1),"") -> 40033.54 | BO93: =IFERROR(OFFSET(Data_Comp!$A$4,$BK93+MATCH(BO$61,Data_Comp!$A$5:$A$300,0),MATCH($BF$61,Data_Comp!$B$3:$GR$3,0)+MATCH(BL$83,Data_Comp!$B$4:$Y$4,0)-1),"") -> 15.06 | BP93: =IFERROR(OFFSET(Data_Comp!$A$4,$BK93+MATCH(BP$61,Data_Comp!$A$5:$A$300,0),MATCH($BF$61,Data_Comp!$B$3:$GR$3,0)+MATCH(BL$83,Data_Comp!$B$4:$Y$4,0)-1),"") -> 1.25 | BQ93: =IFERROR(OFFSET(Data_Comp!$A$4,$BK93+MATCH(BQ$61,Data_Comp!$A$5:$A$300,0),MATCH($BF$61,Data_Comp!$B$3:$GR$3,0)+MATCH(BL$83,Data_Comp!$B$4:$Y$4,0)-1),"") -> 6.24 | BR93: =IFERROR(OFFSET(Data_Comp!$A$4,$BK93+MATCH(BR$61,Data_Comp!$A$5:$A$300,0),MATCH($BF$61,Data_Comp!$B$3:$GR$3,0)+MATCH(BL$83,Data_Comp!$B$4:$Y$4,0)-1),"") -> 13.85 | BS93: =IFERROR(OFFSET(Data_Comp!$A$4,$BK93+MATCH(BS$61,Data_Comp!$A$5:$A$300,0),MATCH($BF$61,Data_Comp!$B$3:$GR$3,0)+MATCH(BL$83,Data_Comp!$B$4:$Y$4,0)-1),"") -> 12.26 | BT93: =IFERROR(OFFSET(Data_Comp!$A$4,$BK93+MATCH(BT$61,Data_Comp!$A$5:$A$300,0),MATCH($BF$61,Data_Comp!$B$3:$GR$3,0)+MATCH(BL$83,Data_Comp!$B$4:$Y$4,0)-1),"") -> 7.73 | BU93: =IFERROR(OFFSET(Data_Comp!$A$4,$BK93+MATCH(BU$61,Data_Comp!$A$5:$A$300,0),MATCH($BF$61,Data_Comp!$B$3:$GR$3,0)+MATCH(BL$83,Data_Comp!$B$4:$Y$4,0)-1),"") -> 6.01 | BV93: =IFERROR(OFFSET(Data_Comp!$A$4,$BK93+MATCH(BV$61,Data_Comp!$A$5:$A$300,0),MATCH($BF$61,Data_Comp!$B$3:$GR$3,0)+MATCH(BL$83,Data_Comp!$B$4:$Y$4,0)-1),"") -> 8.47 | BW93: =IFERROR(OFFSET(Data_Comp!$A$4,$BK93+MATCH(BW$61,Data_Comp!$A$5:$A$300,0),MATCH($BF$61,Data_Comp!$B$3:$GR$3,0)+MATCH(BL$83,Data_Comp!$B$4:$Y$4,0)-1),"") -> 2.19
B103: 업종별 12MF 순이익전망치 변화율 (3M) | AK103: =S105 -> 1W | AN103: FY1
R104: 업종명 | S104: 건설,건축관련 | AI104: 종목명 | AJ104: 시가총액 | AK104: 12MF 순이익 변화율 | AL104: 12MF PE | AM104: 12MF PB | AN104: Sales growth | AO104: OP growth | AP104: NP growth | AQ104: OPM | AR104: NPM | AS104: ROE | AT104: Div. yield | BL104: =S104 -> 건설,건축관련 | BM104: =S105 -> 1W
R105: 기간 | S105: 1W | AH105: 1 | AI105: =IFERROR(BL105,"") -> VINCI | AJ105: =IF(BN105="","",BN105) -> 56838.83 | AK105: =IF(BM105="","",BM105) -> 0.0514998973 | AL105: =IF(BO105="","",BO105) -> 16.91 | AM105: =IF(BP105="","",BP105) -> 2.48 | AN105: =IF(BQ105="","",BQ105) -> 2.4 | AO105: =IF(BR105="","",BR105) -> 15.87 | AP105: =IF(BS105="","",BS105) -> 6.11 | AQ105: =IF(BT105="","",BT105) -> 11.35 | AR105: =IF(BU105="","",BU105) -> 6.73 | AS105: =IF(BV105="","",BV105) -> 15.4 | AT105: =IF(BW105="","",BW105) -> 2.91 | BK105: 1 | BL105: =OFFSET(Data_Comp!$A$4,$BK105,MATCH($BF$61,Data_Comp!$B$3:$GR$3,0)+MATCH(BL$104,Data_Comp!$B$4:$Y$4,0)-1) -> VINCI | BM105: =IFERROR(OFFSET(Data_Comp!$A$4,$BK105+MATCH(BM$104,Data_Comp!$A$5:$A$300,0),MATCH($BF$61,Data_Comp!$B$3:$GR$3,0)+MATCH(BL$104,Data_Comp!$B$4:$Y$4,0)-1),"") -> 0.0514998973 | BN105: =IFERROR(OFFSET(Data_Comp!$A$4,$BK105+MATCH(BN$61,Data_Comp!$A$5:$A$300,0),MATCH($BF$61,Data_Comp!$B$3:$GR$3,0)+MATCH(BL$104,Data_Comp!$B$4:$Y$4,0)-1),"") -> 56838.83 | BO105: =IFERROR(OFFSET(Data_Comp!$A$4,$BK105+MATCH(BO$61,Data_Comp!$A$5:$A$300,0),MATCH($BF$61,Data_Comp!$B$3:$GR$3,0)+MATCH(BL$104,Data_Comp!$B$4:$Y$4,0)-1),"") -> 16.91 | BP105: =IFERROR(OFFSET(Data_Comp!$A$4,$BK105+MATCH(BP$61,Data_Comp!$A$5:$A$300,0),MATCH($BF$61,Data_Comp!$B$3:$GR$3,0)+MATCH(BL$104,Data_Comp!$B$4:$Y$4,0)-1),"") -> 2.48 | BQ105: =IFERROR(OFFSET(Data_Comp!$A$4,$BK105+MATCH(BQ$61,Data_Comp!$A$5:$A$300,0),MATCH($BF$61,Data_Comp!$B$3:$GR$3,0)+MATCH(BL$104,Data_Comp!$B$4:$Y$4,0)-1),"") -> 2.4 | BR105: =IFERROR(OFFSET(Data_Comp!$A$4,$BK105+MATCH(BR$61,Data_Comp!$A$5:$A$300,0),MATCH($BF$61,Data_Comp!$B$3:$GR$3,0)+MATCH(BL$104,Data_Comp!$B$4:$Y$4,0)-1),"") -> 15.87 | BS105: =IFERROR(OFFSET(Data_Comp!$A$4,$BK105+MATCH(BS$61,Data_Comp!$A$5:$A$300,0),MATCH($BF$61,Data_Comp!$B$3:$GR$3,0)+MATCH(BL$104,Data_Comp!$B$4:$Y$4,0)-1),"") -> 6.11 | BT105: =IFERROR(OFFSET(Data_Comp!$A$4,$BK105+MATCH(BT$61,Data_Comp!$A$5:$A$300,0),MATCH($BF$61,Data_Comp!$B$3:$GR$3,0)+MATCH(BL$104,Data_Comp!$B$4:$Y$4,0)-1),"") -> 11.35 | BU105: =IFERROR(OFFSET(Data_Comp!$A$4,$BK105+MATCH(BU$61,Data_Comp!$A$5:$A$300,0),MATCH($BF$61,Data_Comp!$B$3:$GR$3,0)+MATCH(BL$104,Data_Comp!$B$4:$Y$4,0)-1),"") -> 6.73 | BV105: =IFERROR(OFFSET(Data_Comp!$A$4,$BK105+MATCH(BV$61,Data_Comp!$A$5:$A$300,0),MATCH($BF$61,Data_Comp!$B$3:$GR$3,0)+MATCH(BL$104,Data_Comp!$B$4:$Y$4,0)-1),"") -> 15.4 | BW105: =IFERROR(OFFSET(Data_Comp!$A$4,$BK105+MATCH(BW$61,Data_Comp!$A$5:$A$300,0),MATCH($BF$61,Data_Comp!$B$3:$GR$3,0)+MATCH(BL$104,Data_Comp!$B$4:$Y$4,0)-1),"") -> 2.91
AH106: =AH105+1 -> 2 | AI106: LafargeHolcim | AJ106: 37017.67 | AK106: -0.02044870297 | AL106: 15.45 | AM106: 1.06 | AN106: -3.03 | AO106: 29.26 | AP106: 17.54 | AQ106: 14.06 | AR106: 7.88 | AS106: 6.4 | AT106: 3.52 | BK106: =BK105+1 -> 2 | BL106: =OFFSET(Data_Comp!$A$4,$BK106,MATCH($BF$61,Data_Comp!$B$3:$GR$3,0)+MATCH(BL$104,Data_Comp!$B$4:$Y$4,0)-1) -> LafargeHolcim | BM106: =IFERROR(OFFSET(Data_Comp!$A$4,$BK106+MATCH(BM$104,Data_Comp!$A$5:$A$300,0),MATCH($BF$61,Data_Comp!$B$3:$GR$3,0)+MATCH(BL$104,Data_Comp!$B$4:$Y$4,0)-1),"") -> -0.02044870297 | BN106: =IFERROR(OFFSET(Data_Comp!$A$4,$BK106+MATCH(BN$61,Data_Comp!$A$5:$A$300,0),MATCH($BF$61,Data_Comp!$B$3:$GR$3,0)+MATCH(BL$104,Data_Comp!$B$4:$Y$4,0)-1),"") -> 37017.67 | BO106: =IFERROR(OFFSET(Data_Comp!$A$4,$BK106+MATCH(BO$61,Data_Comp!$A$5:$A$300,0),MATCH($BF$61,Data_Comp!$B$3:$GR$3,0)+MATCH(BL$104,Data_Comp!$B$4:$Y$4,0)-1),"") -> 15.45 | BP106: =IFERROR(OFFSET(Data_Comp!$A$4,$BK106+MATCH(BP$61,Data_Comp!$A$5:$A$300,0),MATCH($BF$61,Data_Comp!$B$3:$GR$3,0)+MATCH(BL$104,Data_Comp!$B$4:$Y$4,0)-1),"") -> 1.06 | BQ106: =IFERROR(OFFSET(Data_Comp!$A$4,$BK106+MATCH(BQ$61,Data_Comp!$A$5:$A$300,0),MATCH($BF$61,Data_Comp!$B$3:$GR$3,0)+MATCH(BL$104,Data_Comp!$B$4:$Y$4,0)-1),"") -> -3.03 | BR106: =IFERROR(OFFSET(Data_Comp!$A$4,$BK106+MATCH(BR$61,Data_Comp!$A$5:$A$300,0),MATCH($BF$61,Data_Comp!$B$3:$GR$3,0)+MATCH(BL$104,Data_Comp!$B$4:$Y$4,0)-1),"") -> 29.26 | BS106: =IFERROR(OFFSET(Data_Comp!$A$4,$BK106+MATCH(BS$61,Data_Comp!$A$5:$A$300,0),MATCH($BF$61,Data_Comp!$B$3:$GR$3,0)+MATCH(BL$104,Data_Comp!$B$4:$Y$4,0)-1),"") -> 17.54 | BT106: =IFERROR(OFFSET(Data_Comp!$A$4,$BK106+MATCH(BT$61,Data_Comp!$A$5:$A$300,0),MATCH($BF$61,Data_Comp!$B$3:$GR$3,0)+MATCH(BL$104,Data_Comp!$B$4:$Y$4,0)-1),"") -> 14.06 | BU106: =IFERROR(OFFSET(Data_Comp!$A$4,$BK106+MATCH(BU$61,Data_Comp!$A$5:$A$300,0),MATCH($BF$61,Data_Comp!$B$3:$GR$3,0)+MATCH(BL$104,Data_Comp!$B$4:$Y$4,0)-1),"") -> 7.88 | BV106: =IFERROR(OFFSET(Data_Comp!$A$4,$BK106+MATCH(BV$61,Data_Comp!$A$5:$A$300,0),MATCH($BF$61,Data_Comp!$B$3:$GR$3,0)+MATCH(BL$104,Data_Comp!$B$4:$Y$4,0)-1),"") -> 6.4 | BW106: =IFERROR(OFFSET(Data_Comp!$A$4,$BK106+MATCH(BW$61,Data_Comp!$A$5:$A$300,0),MATCH($BF$61,Data_Comp!$B$3:$GR$3,0)+MATCH(BL$104,Data_Comp!$B$4:$Y$4,0)-1),"") -> 3.52
AH107: =AH106+1 -> 3 | AI107: China State Construction Engineering Corp., Ltd. Class A | AJ107: 43780.62 | AK107: -0.004487067753 | AL107: 7.56 | AM107: 0.92 | AN107: 12.71 | AO107: 11.23 | AP107: 17 | AQ107: 5.63 | AR107: 3.26 | AS107: 14.66 | AT107: 2.73 | BK107: =BK106+1 -> 3 | BL107: =OFFSET(Data_Comp!$A$4,$BK107,MATCH($BF$61,Data_Comp!$B$3:$GR$3,0)+MATCH(BL$104,Data_Comp!$B$4:$Y$4,0)-1) -> China State Construction Engineering Corp., Ltd. Class A | BM107: =IFERROR(OFFSET(Data_Comp!$A$4,$BK107+MATCH(BM$104,Data_Comp!$A$5:$A$300,0),MATCH($BF$61,Data_Comp!$B$3:$GR$3,0)+MATCH(BL$104,Data_Comp!$B$4:$Y$4,0)-1),"") -> -0.004487067753 | BN107: =IFERROR(OFFSET(Data_Comp!$A$4,$BK107+MATCH(BN$61,Data_Comp!$A$5:$A$300,0),MATCH($BF$61,Data_Comp!$B$3:$GR$3,0)+MATCH(BL$104,Data_Comp!$B$4:$Y$4,0)-1),"") -> 43780.62 | BO107: =IFERROR(OFFSET(Data_Comp!$A$4,$BK107+MATCH(BO$61,Data_Comp!$A$5:$A$300,0),MATCH($BF$61,Data_Comp!$B$3:$GR$3,0)+MATCH(BL$104,Data_Comp!$B$4:$Y$4,0)-1),"") -> 7.56 | BP107: =IFERROR(OFFSET(Data_Comp!$A$4,$BK107+MATCH(BP$61,Data_Comp!$A$5:$A$300,0),MATCH($BF$61,Data_Comp!$B$3:$GR$3,0)+MATCH(BL$104,Data_Comp!$B$4:$Y$4,0)-1),"") -> 0.92 | BQ107: =IFERROR(OFFSET(Data_Comp!$A$4,$BK107+MATCH(BQ$61,Data_Comp!$A$5:$A$300,0),MATCH($BF$61,Data_Comp!$B$3:$GR$3,0)+MATCH(BL$104,Data_Comp!$B$4:$Y$4,0)-1),"") -> 12.71 | BR107: =IFERROR(OFFSET(Data_Comp!$A$4,$BK107+MATCH(BR$61,Data_Comp!$A$5:$A$300,0),MATCH($BF$61,Data_Comp!$B$3:$GR$3,0)+MATCH(BL$104,Data_Comp!$B$4:$Y$4,0)-1),"") -> 11.23 | BS107: =IFERROR(OFFSET(Data_Comp!$A$4,$BK107+MATCH(BS$61,Data_Comp!$A$5:$A$300,0),MATCH($BF$61,Data_Comp!$B$3:$GR$3,0)+MATCH(BL$104,Data_Comp!$B$4:$Y$4,0)-1),"") -> 17 | BT107: =IFERROR(OFFSET(Data_Comp!$A$4,$BK107+MATCH(BT$61,Data_Comp!$A$5:$A$300,0),MATCH($BF$61,Data_Comp!$B$3:$GR$3,0)+MATCH(BL$104,Data_Comp!$B$4:$Y$4,0)-1),"") -> 5.63 | BU107: =IFERROR(OFFSET(Data_Comp!$A$4,$BK107+MATCH(BU$61,Data_Comp!$A$5:$A$300,0),MATCH($BF$61,Data_Comp!$B$3:$GR$3,0)+MATCH(BL$104,Data_Comp!$B$4:$Y$4,0)-1),"") -> 3.26 | BV107: =IFERROR(OFFSET(Data_Comp!$A$4,$BK107+MATCH(BV$61,Data_Comp!$A$5:$A$300,0),MATCH($BF$61,Data_Comp!$B$3:$GR$3,0)+MATCH(BL$104,Data_Comp!$B$4:$Y$4,0)-1),"") -> 14.66 | BW107: =IFERROR(OFFSET(Data_Comp!$A$4,$BK107+MATCH(BW$61,Data_Comp!$A$5:$A$300,0),MATCH($BF$61,Data_Comp!$B$3:$GR$3,0)+MATCH(BL$104,Data_Comp!$B$4:$Y$4,0)-1),"") -> 2.73
AH108: 4 | AI108: CRH | AJ108: 30706.29 | AK108: -0.0871915154 | AL108: 15.67 | AM108: 1.63 | AN108: 2.83 | AO108: 12.79 | AP108: 15.98 | AQ108: 8.28 | AR108: 5.17 | AS108: 10.03 | AT108: 2.2 | BK108: 4 | BL108: =OFFSET(Data_Comp!$A$4,$BK108,MATCH($BF$61,Data_Comp!$B$3:$GR$3,0)+MATCH(BL$104,Data_Comp!$B$4:$Y$4,0)-1) -> CRH | BM108: =IFERROR(OFFSET(Data_Comp!$A$4,$BK108+MATCH(BM$104,Data_Comp!$A$5:$A$300,0),MATCH($BF$61,Data_Comp!$B$3:$GR$3,0)+MATCH(BL$104,Data_Comp!$B$4:$Y$4,0)-1),"") -> -0.0871915154 | BN108: =IFERROR(OFFSET(Data_Comp!$A$4,$BK108+MATCH(BN$61,Data_Comp!$A$5:$A$300,0),MATCH($BF$61,Data_Comp!$B$3:$GR$3,0)+MATCH(BL$104,Data_Comp!$B$4:$Y$4,0)-1),"") -> 30706.29 | BO108: =IFERROR(OFFSET(Data_Comp!$A$4,$BK108+MATCH(BO$61,Data_Comp!$A$5:$A$300,0),MATCH($BF$61,Data_Comp!$B$3:$GR$3,0)+MATCH(BL$104,Data_Comp!$B$4:$Y$4,0)-1),"") -> 15.67 | BP108: =IFERROR(OFFSET(Data_Comp!$A$4,$BK108+MATCH(BP$61,Data_Comp!$A$5:$A$300,0),MATCH($BF$61,Data_Comp!$B$3:$GR$3,0)+MATCH(BL$104,Data_Comp!$B$4:$Y$4,0)-1),"") -> 1.63 | BQ108: =IFERROR(OFFSET(Data_Comp!$A$4,$BK108+MATCH(BQ$61,Data_Comp!$A$5:$A$300,0),MATCH($BF$61,Data_Comp!$B$3:$GR$3,0)+MATCH(BL$104,Data_Comp!$B$4:$Y$4,0)-1),"") -> 2.83 | BR108: =IFERROR(OFFSET(Data_Comp!$A$4,$BK108+MATCH(BR$61,Data_Comp!$A$5:$A$300,0),MATCH($BF$61,Data_Comp!$B$3:$GR$3,0)+MATCH(BL$104,Data_Comp!$B$4:$Y$4,0)-1),"") -> 12.79 | BS108: =IFERROR(OFFSET(Data_Comp!$A$4,$BK108+MATCH(BS$61,Data_Comp!$A$5:$A$300,0),MATCH($BF$61,Data_Comp!$B$3:$GR$3,0)+MATCH(BL$104,Data_Comp!$B$4:$Y$4,0)-1),"") -> 15.98 | BT108: =IFERROR(OFFSET(Data_Comp!$A$4,$BK108+MATCH(BT$61,Data_Comp!$A$5:$A$300,0),MATCH($BF$61,Data_Comp!$B$3:$GR$3,0)+MATCH(BL$104,Data_Comp!$B$4:$Y$4,0)-1),"") -> 8.28 | BU108: =IFERROR(OFFSET(Data_Comp!$A$4,$BK108+MATCH(BU$61,Data_Comp!$A$5:$A$300,0),MATCH($BF$61,Data_Comp!$B$3:$GR$3,0)+MATCH(BL$104,Data_Comp!$B$4:$Y$4,0)-1),"") -> 5.17 | BV108: =IFERROR(OFFSET(Data_Comp!$A$4,$BK108+MATCH(BV$61,Data_Comp!$A$5:$A$300,0),MATCH($BF$61,Data_Comp!$B$3:$GR$3,0)+MATCH(BL$104,Data_Comp!$B$4:$Y$4,0)-1),"") -> 10.03 | BW108: =IFERROR(OFFSET(Data_Comp!$A$4,$BK108+MATCH(BW$61,Data_Comp!$A$5:$A$300,0),MATCH($BF$61,Data_Comp!$B$3:$GR$3,0)+MATCH(BL$104,Data_Comp!$B$4:$Y$4,0)-1),"") -> 2.2
AH109: 5 | AI109: CK Infrastructure Holdings | AJ109: 23043.74 | AK109: 0 | AL109: 16.07 | AM109: 1.66 | AN109: 3.32 | AO109: 44.81 | AP109: 10.28 | AQ109: 38.8 | AR109: 193.29 | AS109: 10.49 | AT109: 3.53 | BK109: 5 | BL109: =OFFSET(Data_Comp!$A$4,$BK109,MATCH($BF$61,Data_Comp!$B$3:$GR$3,0)+MATCH(BL$104,Data_Comp!$B$4:$Y$4,0)-1) -> CK Infrastructure Holdings | BM109: =IFERROR(OFFSET(Data_Comp!$A$4,$BK109+MATCH(BM$104,Data_Comp!$A$5:$A$300,0),MATCH($BF$61,Data_Comp!$B$3:$GR$3,0)+MATCH(BL$104,Data_Comp!$B$4:$Y$4,0)-1),"") -> 0 | BN109: =IFERROR(OFFSET(Data_Comp!$A$4,$BK109+MATCH(BN$61,Data_Comp!$A$5:$A$300,0),MATCH($BF$61,Data_Comp!$B$3:$GR$3,0)+MATCH(BL$104,Data_Comp!$B$4:$Y$4,0)-1),"") -> 23043.74 | BO109: =IFERROR(OFFSET(Data_Comp!$A$4,$BK109+MATCH(BO$61,Data_Comp!$A$5:$A$300,0),MATCH($BF$61,Data_Comp!$B$3:$GR$3,0)+MATCH(BL$104,Data_Comp!$B$4:$Y$4,0)-1),"") -> 16.07 | BP109: =IFERROR(OFFSET(Data_Comp!$A$4,$BK109+MATCH(BP$61,Data_Comp!$A$5:$A$300,0),MATCH($BF$61,Data_Comp!$B$3:$GR$3,0)+MATCH(BL$104,Data_Comp!$B$4:$Y$4,0)-1),"") -> 1.66 | BQ109: =IFERROR(OFFSET(Data_Comp!$A$4,$BK109+MATCH(BQ$61,Data_Comp!$A$5:$A$300,0),MATCH($BF$61,Data_Comp!$B$3:$GR$3,0)+MATCH(BL$104,Data_Comp!$B$4:$Y$4,0)-1),"") -> 3.32 | BR109: =IFERROR(OFFSET(Data_Comp!$A$4,$BK109+MATCH(BR$61,Data_Comp!$A$5:$A$300,0),MATCH($BF$61,Data_Comp!$B$3:$GR$3,0)+MATCH(BL$104,Data_Comp!$B$4:$Y$4,0)-1),"") -> 44.81 | BS109: =IFERROR(OFFSET(Data_Comp!$A$4,$BK109+MATCH(BS$61,Data_Comp!$A$5:$A$300,0),MATCH($BF$61,Data_Comp!$B$3:$GR$3,0)+MATCH(BL$104,Data_Comp!$B$4:$Y$4,0)-1),"") -> 10.28 | BT109: =IFERROR(OFFSET(Data_Comp!$A$4,$BK109+MATCH(BT$61,Data_Comp!$A$5:$A$300,0),MATCH($BF$61,Data_Comp!$B$3:$GR$3,0)+MATCH(BL$104,Data_Comp!$B$4:$Y$4,0)-1),"") -> 38.8 | BU109: =IFERROR(OFFSET(Data_Comp!$A$4,$BK109+MATCH(BU$61,Data_Comp!$A$5:$A$300,0),MATCH($BF$61,Data_Comp!$B$3:$GR$3,0)+MATCH(BL$104,Data_Comp!$B$4:$Y$4,0)-1),"") -> 193.29 | BV109: =IFERROR(OFFSET(Data_Comp!$A$4,$BK109+MATCH(BV$61,Data_Comp!$A$5:$A$300,0),MATCH($BF$61,Data_Comp!$B$3:$GR$3,0)+MATCH(BL$104,Data_Comp!$B$4:$Y$4,0)-1),"") -> 10.49 | BW109: =IFERROR(OFFSET(Data_Comp!$A$4,$BK109+MATCH(BW$61,Data_Comp!$A$5:$A$300,0),MATCH($BF$61,Data_Comp!$B$3:$GR$3,0)+MATCH(BL$104,Data_Comp!$B$4:$Y$4,0)-1),"") -> 3.53
AH110: 6 | AI110: Kone Oyj Class B | AJ110: 25130.63 | AK110: 0.3054812779 | AL110: 20.74 | AM110: 6.88 | AN110: 0.92 | AO110: -2.07 | AP110: -3.92 | AQ110: 14.03 | AR110: 11.1 | AS110: 34.34 | AT110: 3.48 | BK110: 6 | BL110: =OFFSET(Data_Comp!$A$4,$BK110,MATCH($BF$61,Data_Comp!$B$3:$GR$3,0)+MATCH(BL$104,Data_Comp!$B$4:$Y$4,0)-1) -> Kone Oyj Class B | BM110: =IFERROR(OFFSET(Data_Comp!$A$4,$BK110+MATCH(BM$104,Data_Comp!$A$5:$A$300,0),MATCH($BF$61,Data_Comp!$B$3:$GR$3,0)+MATCH(BL$104,Data_Comp!$B$4:$Y$4,0)-1),"") -> 0.3054812779 | BN110: =IFERROR(OFFSET(Data_Comp!$A$4,$BK110+MATCH(BN$61,Data_Comp!$A$5:$A$300,0),MATCH($BF$61,Data_Comp!$B$3:$GR$3,0)+MATCH(BL$104,Data_Comp!$B$4:$Y$4,0)-1),"") -> 25130.63 | BO110: =IFERROR(OFFSET(Data_Comp!$A$4,$BK110+MATCH(BO$61,Data_Comp!$A$5:$A$300,0),MATCH($BF$61,Data_Comp!$B$3:$GR$3,0)+MATCH(BL$104,Data_Comp!$B$4:$Y$4,0)-1),"") -> 20.74 | BP110: =IFERROR(OFFSET(Data_Comp!$A$4,$BK110+MATCH(BP$61,Data_Comp!$A$5:$A$300,0),MATCH($BF$61,Data_Comp!$B$3:$GR$3,0)+MATCH(BL$104,Data_Comp!$B$4:$Y$4,0)-1),"") -> 6.88 | BQ110: =IFERROR(OFFSET(Data_Comp!$A$4,$BK110+MATCH(BQ$61,Data_Comp!$A$5:$A$300,0),MATCH($BF$61,Data_Comp!$B$3:$GR$3,0)+MATCH(BL$104,Data_Comp!$B$4:$Y$4,0)-1),"") -> 0.92 | BR110: =IFERROR(OFFSET(Data_Comp!$A$4,$BK110+MATCH(BR$61,Data_Comp!$A$5:$A$300,0),MATCH($BF$61,Data_Comp!$B$3:$GR$3,0)+MATCH(BL$104,Data_Comp!$B$4:$Y$4,0)-1),"") -> -2.07 | BS110: =IFERROR(OFFSET(Data_Comp!$A$4,$BK110+MATCH(BS$61,Data_Comp!$A$5:$A$300,0),MATCH($BF$61,Data_Comp!$B$3:$GR$3,0)+MATCH(BL$104,Data_Comp!$B$4:$Y$4,0)-1),"") -> -3.92 | BT110: =IFERROR(OFFSET(Data_Comp!$A$4,$BK110+MATCH(BT$61,Data_Comp!$A$5:$A$300,0),MATCH($BF$61,Data_Comp!$B$3:$GR$3,0)+MATCH(BL$104,Data_Comp!$B$4:$Y$4,0)-1),"") -> 14.03 | BU110: =IFERROR(OFFSET(Data_Comp!$A$4,$BK110+MATCH(BU$61,Data_Comp!$A$5:$A$300,0),MATCH($BF$61,Data_Comp!$B$3:$GR$3,0)+MATCH(BL$104,Data_Comp!$B$4:$Y$4,0)-1),"") -> 11.1 | BV110: =IFERROR(OFFSET(Data_Comp!$A$4,$BK110+MATCH(BV$61,Data_Comp!$A$5:$A$300,0),MATCH($BF$61,Data_Comp!$B$3:$GR$3,0)+MATCH(BL$104,Data_Comp!$B$4:$Y$4,0)-1),"") -> 34.34 | BW110: =IFERROR(OFFSET(Data_Comp!$A$4,$BK110+MATCH(BW$61,Data_Comp!$A$5:$A$300,0),MATCH($BF$61,Data_Comp!$B$3:$GR$3,0)+MATCH(BL$104,Data_Comp!$B$4:$Y$4,0)-1),"") -> 3.48
AH111: 7 | AI111: Compagnie de Saint-Gobain | AJ111: 33288.83 | AK111: 0 | AL111: 15.81 | AM111: 1.37 | AN111: 4.21 | AO111: 12.27 | AP111: 18.99 | AQ111: 7.59 | AR111: 3.83 | AS111: 8.13 | AT111: 2.6 | BK111: 7 | BL111: =OFFSET(Data_Comp!$A$4,$BK111,MATCH($BF$61,Data_Comp!$B$3:$GR$3,0)+MATCH(BL$104,Data_Comp!$B$4:$Y$4,0)-1) -> Compagnie de Saint-Gobain | BM111: =IFERROR(OFFSET(Data_Comp!$A$4,$BK111+MATCH(BM$104,Data_Comp!$A$5:$A$300,0),MATCH($BF$61,Data_Comp!$B$3:$GR$3,0)+MATCH(BL$104,Data_Comp!$B$4:$Y$4,0)-1),"") -> 0 | BN111: =IFERROR(OFFSET(Data_Comp!$A$4,$BK111+MATCH(BN$61,Data_Comp!$A$5:$A$300,0),MATCH($BF$61,Data_Comp!$B$3:$GR$3,0)+MATCH(BL$104,Data_Comp!$B$4:$Y$4,0)-1),"") -> 33288.83 | BO111: =IFERROR(OFFSET(Data_Comp!$A$4,$BK111+MATCH(BO$61,Data_Comp!$A$5:$A$300,0),MATCH($BF$61,Data_Comp!$B$3:$GR$3,0)+MATCH(BL$104,Data_Comp!$B$4:$Y$4,0)-1),"") -> 15.81 | BP111: =IFERROR(OFFSET(Data_Comp!$A$4,$BK111+MATCH(BP$61,Data_Comp!$A$5:$A$300,0),MATCH($BF$61,Data_Comp!$B$3:$GR$3,0)+MATCH(BL$104,Data_Comp!$B$4:$Y$4,0)-1),"") -> 1.37 | BQ111: =IFERROR(OFFSET(Data_Comp!$A$4,$BK111+MATCH(BQ$61,Data_Comp!$A$5:$A$300,0),MATCH($BF$61,Data_Comp!$B$3:$GR$3,0)+MATCH(BL$104,Data_Comp!$B$4:$Y$4,0)-1),"") -> 4.21 | BR111: =IFERROR(OFFSET(Data_Comp!$A$4,$BK111+MATCH(BR$61,Data_Comp!$A$5:$A$300,0),MATCH($BF$61,Data_Comp!$B$3:$GR$3,0)+MATCH(BL$104,Data_Comp!$B$4:$Y$4,0)-1),"") -> 12.27 | BS111: =IFERROR(OFFSET(Data_Comp!$A$4,$BK111+MATCH(BS$61,Data_Comp!$A$5:$A$300,0),MATCH($BF$61,Data_Comp!$B$3:$GR$3,0)+MATCH(BL$104,Data_Comp!$B$4:$Y$4,0)-1),"") -> 18.99 | BT111: =IFERROR(OFFSET(Data_Comp!$A$4,$BK111+MATCH(BT$61,Data_Comp!$A$5:$A$300,0),MATCH($BF$61,Data_Comp!$B$3:$GR$3,0)+MATCH(BL$104,Data_Comp!$B$4:$Y$4,0)-1),"") -> 7.59 | BU111: =IFERROR(OFFSET(Data_Comp!$A$4,$BK111+MATCH(BU$61,Data_Comp!$A$5:$A$300,0),MATCH($BF$61,Data_Comp!$B$3:$GR$3,0)+MATCH(BL$104,Data_Comp!$B$4:$Y$4,0)-1),"") -> 3.83 | BV111: =IFERROR(OFFSET(Data_Comp!$A$4,$BK111+MATCH(BV$61,Data_Comp!$A$5:$A$300,0),MATCH($BF$61,Data_Comp!$B$3:$GR$3,0)+MATCH(BL$104,Data_Comp!$B$4:$Y$4,0)-1),"") -> 8.13 | BW111: =IFERROR(OFFSET(Data_Comp!$A$4,$BK111+MATCH(BW$61,Data_Comp!$A$5:$A$300,0),MATCH($BF$61,Data_Comp!$B$3:$GR$3,0)+MATCH(BL$104,Data_Comp!$B$4:$Y$4,0)-1),"") -> 2.6
AH112: 8 | AI112: Larsen & Toubro | AJ112: 25556.4 | AK112: 0.01617919356 | AL112: 22.96 | AM112: 2.78 | AN112: 11.63 | AO112: 23.39 | AP112: 9.52 | AQ112: 8.95 | AR112: 5.43 | AS112: 12.41 | AT112: 1.15 | BK112: 8 | BL112: =OFFSET(Data_Comp!$A$4,$BK112,MATCH($BF$61,Data_Comp!$B$3:$GR$3,0)+MATCH(BL$104,Data_Comp!$B$4:$Y$4,0)-1) -> Larsen & Toubro | BM112: =IFERROR(OFFSET(Data_Comp!$A$4,$BK112+MATCH(BM$104,Data_Comp!$A$5:$A$300,0),MATCH($BF$61,Data_Comp!$B$3:$GR$3,0)+MATCH(BL$104,Data_Comp!$B$4:$Y$4,0)-1),"") -> 0.01617919356 | BN112: =IFERROR(OFFSET(Data_Comp!$A$4,$BK112+MATCH(BN$61,Data_Comp!$A$5:$A$300,0),MATCH($BF$61,Data_Comp!$B$3:$GR$3,0)+MATCH(BL$104,Data_Comp!$B$4:$Y$4,0)-1),"") -> 25556.4 | BO112: =IFERROR(OFFSET(Data_Comp!$A$4,$BK112+MATCH(BO$61,Data_Comp!$A$5:$A$300,0),MATCH($BF$61,Data_Comp!$B$3:$GR$3,0)+MATCH(BL$104,Data_Comp!$B$4:$Y$4,0)-1),"") -> 22.96 | BP112: =IFERROR(OFFSET(Data_Comp!$A$4,$BK112+MATCH(BP$61,Data_Comp!$A$5:$A$300,0),MATCH($BF$61,Data_Comp!$B$3:$GR$3,0)+MATCH(BL$104,Data_Comp!$B$4:$Y$4,0)-1),"") -> 2.78 | BQ112: =IFERROR(OFFSET(Data_Comp!$A$4,$BK112+MATCH(BQ$61,Data_Comp!$A$5:$A$300,0),MATCH($BF$61,Data_Comp!$B$3:$GR$3,0)+MATCH(BL$104,Data_Comp!$B$4:$Y$4,0)-1),"") -> 11.63 | BR112: =IFERROR(OFFSET(Data_Comp!$A$4,$BK112+MATCH(BR$61,Data_Comp!$A$5:$A$300,0),MATCH($BF$61,Data_Comp!$B$3:$GR$3,0)+MATCH(BL$104,Data_Comp!$B$4:$Y$4,0)-1),"") -> 23.39 | BS112: =IFERROR(OFFSET(Data_Comp!$A$4,$BK112+MATCH(BS$61,Data_Comp!$A$5:$A$300,0),MATCH($BF$61,Data_Comp!$B$3:$GR$3,0)+MATCH(BL$104,Data_Comp!$B$4:$Y$4,0)-1),"") -> 9.52 | BT112: =IFERROR(OFFSET(Data_Comp!$A$4,$BK112+MATCH(BT$61,Data_Comp!$A$5:$A$300,0),MATCH($BF$61,Data_Comp!$B$3:$GR$3,0)+MATCH(BL$104,Data_Comp!$B$4:$Y$4,0)-1),"") -> 8.95 | BU112: =IFERROR(OFFSET(Data_Comp!$A$4,$BK112+MATCH(BU$61,Data_Comp!$A$5:$A$300,0),MATCH($BF$61,Data_Comp!$B$3:$GR$3,0)+MATCH(BL$104,Data_Comp!$B$4:$Y$4,0)-1),"") -> 5.43 | BV112: =IFERROR(OFFSET(Data_Comp!$A$4,$BK112+MATCH(BV$61,Data_Comp!$A$5:$A$300,0),MATCH($BF$61,Data_Comp!$B$3:$GR$3,0)+MATCH(BL$104,Data_Comp!$B$4:$Y$4,0)-1),"") -> 12.41 | BW112: =IFERROR(OFFSET(Data_Comp!$A$4,$BK112+MATCH(BW$61,Data_Comp!$A$5:$A$300,0),MATCH($BF$61,Data_Comp!$B$3:$GR$3,0)+MATCH(BL$104,Data_Comp!$B$4:$Y$4,0)-1),"") -> 1.15
AH113: 9 | AI113: China Railway Group Limited Class A | AJ113: 24625.08 | AK113: 0 | AL113: 24.83 | AM113: 2.52 | AN113: 9.32 | AO113: 24.36 | AP113: 24.66 | AQ113: 3.32 | AR113: 2.12 | AS113: 10.64 | AT113: 1.2 | BK113: 9 | BL113: =OFFSET(Data_Comp!$A$4,$BK113,MATCH($BF$61,Data_Comp!$B$3:$GR$3,0)+MATCH(BL$104,Data_Comp!$B$4:$Y$4,0)-1) -> China Railway Group Limited Class A | BM113: =IFERROR(OFFSET(Data_Comp!$A$4,$BK113+MATCH(BM$104,Data_Comp!$A$5:$A$300,0),MATCH($BF$61,Data_Comp!$B$3:$GR$3,0)+MATCH(BL$104,Data_Comp!$B$4:$Y$4,0)-1),"") -> 0 | BN113: =IFERROR(OFFSET(Data_Comp!$A$4,$BK113+MATCH(BN$61,Data_Comp!$A$5:$A$300,0),MATCH($BF$61,Data_Comp!$B$3:$GR$3,0)+MATCH(BL$104,Data_Comp!$B$4:$Y$4,0)-1),"") -> 24625.08 | BO113: =IFERROR(OFFSET(Data_Comp!$A$4,$BK113+MATCH(BO$61,Data_Comp!$A$5:$A$300,0),MATCH($BF$61,Data_Comp!$B$3:$GR$3,0)+MATCH(BL$104,Data_Comp!$B$4:$Y$4,0)-1),"") -> 24.83 | BP113: =IFERROR(OFFSET(Data_Comp!$A$4,$BK113+MATCH(BP$61,Data_Comp!$A$5:$A$300,0),MATCH($BF$61,Data_Comp!$B$3:$GR$3,0)+MATCH(BL$104,Data_Comp!$B$4:$Y$4,0)-1),"") -> 2.52 | BQ113: =IFERROR(OFFSET(Data_Comp!$A$4,$BK113+MATCH(BQ$61,Data_Comp!$A$5:$A$300,0),MATCH($BF$61,Data_Comp!$B$3:$GR$3,0)+MATCH(BL$104,Data_Comp!$B$4:$Y$4,0)-1),"") -> 9.32 | BR113: =IFERROR(OFFSET(Data_Comp!$A$4,$BK113+MATCH(BR$61,Data_Comp!$A$5:$A$300,0),MATCH($BF$61,Data_Comp!$B$3:$GR$3,0)+MATCH(BL$104,Data_Comp!$B$4:$Y$4,0)-1),"") -> 24.36 | BS113: =IFERROR(OFFSET(Data_Comp!$A$4,$BK113+MATCH(BS$61,Data_Comp!$A$5:$A$300,0),MATCH($BF$61,Data_Comp!$B$3:$GR$3,0)+MATCH(BL$104,Data_Comp!$B$4:$Y$4,0)-1),"") -> 24.66 | BT113: =IFERROR(OFFSET(Data_Comp!$A$4,$BK113+MATCH(BT$61,Data_Comp!$A$5:$A$300,0),MATCH($BF$61,Data_Comp!$B$3:$GR$3,0)+MATCH(BL$104,Data_Comp!$B$4:$Y$4,0)-1),"") -> 3.32 | BU113: =IFERROR(OFFSET(Data_Comp!$A$4,$BK113+MATCH(BU$61,Data_Comp!$A$5:$A$300,0),MATCH($BF$61,Data_Comp!$B$3:$GR$3,0)+MATCH(BL$104,Data_Comp!$B$4:$Y$4,0)-1),"") -> 2.12 | BV113: =IFERROR(OFFSET(Data_Comp!$A$4,$BK113+MATCH(BV$61,Data_Comp!$A$5:$A$300,0),MATCH($BF$61,Data_Comp!$B$3:$GR$3,0)+MATCH(BL$104,Data_Comp!$B$4:$Y$4,0)-1),"") -> 10.64 | BW113: =IFERROR(OFFSET(Data_Comp!$A$4,$BK113+MATCH(BW$61,Data_Comp!$A$5:$A$300,0),MATCH($BF$61,Data_Comp!$B$3:$GR$3,0)+MATCH(BL$104,Data_Comp!$B$4:$Y$4,0)-1),"") -> 1.2
AH114: 10 | AI114: China Communications Construction Class A | AJ114: 27675.33 | AK114: 0.2028056367 | AL114: 24.14 | AM114: 2.65 | AN114: 7.08 | AO114: 19.34 | AP114: 21.57 | AQ114: 7.05 | AR114: 4.18 | AS114: 12.04 | AT114: 1.48 | BK114: 10 | BL114: =OFFSET(Data_Comp!$A$4,$BK114,MATCH($BF$61,Data_Comp!$B$3:$GR$3,0)+MATCH(BL$104,Data_Comp!$B$4:$Y$4,0)-1) -> China Communications Construction Class A | BM114: =IFERROR(OFFSET(Data_Comp!$A$4,$BK114+MATCH(BM$104,Data_Comp!$A$5:$A$300,0),MATCH($BF$61,Data_Comp!$B$3:$GR$3,0)+MATCH(BL$104,Data_Comp!$B$4:$Y$4,0)-1),"") -> 0.2028056367 | BN114: =IFERROR(OFFSET(Data_Comp!$A$4,$BK114+MATCH(BN$61,Data_Comp!$A$5:$A$300,0),MATCH($BF$61,Data_Comp!$B$3:$GR$3,0)+MATCH(BL$104,Data_Comp!$B$4:$Y$4,0)-1),"") -> 27675.33 | BO114: =IFERROR(OFFSET(Data_Comp!$A$4,$BK114+MATCH(BO$61,Data_Comp!$A$5:$A$300,0),MATCH($BF$61,Data_Comp!$B$3:$GR$3,0)+MATCH(BL$104,Data_Comp!$B$4:$Y$4,0)-1),"") -> 24.14 | BP114: =IFERROR(OFFSET(Data_Comp!$A$4,$BK114+MATCH(BP$61,Data_Comp!$A$5:$A$300,0),MATCH($BF$61,Data_Comp!$B$3:$GR$3,0)+MATCH(BL$104,Data_Comp!$B$4:$Y$4,0)-1),"") -> 2.65 | BQ114: =IFERROR(OFFSET(Data_Comp!$A$4,$BK114+MATCH(BQ$61,Data_Comp!$A$5:$A$300,0),MATCH($BF$61,Data_Comp!$B$3:$GR$3,0)+MATCH(BL$104,Data_Comp!$B$4:$Y$4,0)-1),"") -> 7.08 | BR114: =IFERROR(OFFSET(Data_Comp!$A$4,$BK114+MATCH(BR$61,Data_Comp!$A$5:$A$300,0),MATCH($BF$61,Data_Comp!$B$3:$GR$3,0)+MATCH(BL$104,Data_Comp!$B$4:$Y$4,0)-1),"") -> 19.34 | BS114: =IFERROR(OFFSET(Data_Comp!$A$4,$BK114+MATCH(BS$61,Data_Comp!$A$5:$A$300,0),MATCH($BF$61,Data_Comp!$B$3:$GR$3,0)+MATCH(BL$104,Data_Comp!$B$4:$Y$4,0)-1),"") -> 21.57 | BT114: =IFERROR(OFFSET(Data_Comp!$A$4,$BK114+MATCH(BT$61,Data_Comp!$A$5:$A$300,0),MATCH($BF$61,Data_Comp!$B$3:$GR$3,0)+MATCH(BL$104,Data_Comp!$B$4:$Y$4,0)-1),"") -> 7.05 | BU114: =IFERROR(OFFSET(Data_Comp!$A$4,$BK114+MATCH(BU$61,Data_Comp!$A$5:$A$300,0),MATCH($BF$61,Data_Comp!$B$3:$GR$3,0)+MATCH(BL$104,Data_Comp!$B$4:$Y$4,0)-1),"") -> 4.18 | BV114: =IFERROR(OFFSET(Data_Comp!$A$4,$BK114+MATCH(BV$61,Data_Comp!$A$5:$A$300,0),MATCH($BF$61,Data_Comp!$B$3:$GR$3,0)+MATCH(BL$104,Data_Comp!$B$4:$Y$4,0)-1),"") -> 12.04 | BW114: =IFERROR(OFFSET(Data_Comp!$A$4,$BK114+MATCH(BW$61,Data_Comp!$A$5:$A$300,0),MATCH($BF$61,Data_Comp!$B$3:$GR$3,0)+MATCH(BL$104,Data_Comp!$B$4:$Y$4,0)-1),"") -> 1.48

Sheet US
B3: 미국 업종별 이익동향
B5: 업종별 12MF 순이익전망치 추이 (컨센서스 기준) (USD bn)
AI20: =Data_Sector_US!D14 -> 1770
B59: 업종별 12MF 순이익전망치 변화율 (1W) | R59: 종목별 12MF 순이익전망치 변화율
AK60: =S62 -> 1W | AN60: FY1
R61: 업종명 | S61: 상사,자본재 | AI61: 종목명 | AJ61: 시가총액 | AK61: 12MF 순이익 변화율 | AL61: 12MF PE | AM61: 12MF PB | AN61: Sales growth | AO61: OP growth | AP61: NP growth | AQ61: OPM | AR61: NPM | AS61: ROE | AT61: Div. yield | AY61: FY1 순이익 | BF61: United States | BL61: =S61 -> 상사,자본재 | BM61: =S62 -> 1W | BN61: 시가총액 | BO61: P/E(Fwd.12M) | BP61: P/B(Fwd.12M) | BQ61: 매출액증가율(YoY) | BR61: 영업이익증가율(YoY) | BS61: 순이익증가율(YoY, 지배) | BT61: 영업이익률 | BU61: 순이익률 | BV61: ROE(지배) | BW61: 현금배당수익률
R62: 기간 | S62: 1W | AH62: 1 | AI62: =IFERROR(BL62,"") -> General Electric | AJ62: =IF(BN62="","",BN62) -> 215323.12 | AK62: =IF(BM62="","",BM62) -> -0.007517005452 | AL62: =IF(BO62="","",BO62) -> 15.27 | AM62: =IF(BP62="","",BP62) -> 2.9 | AN62: =IF(BQ62="","",BQ62) -> 4.92 | AO62: =IF(BR62="","",BR62) -> 13.83 | AP62: =IF(BS62="","",BS62) -> 38.14 | AQ62: =IF(BT62="","",BT62) -> 12.62 | AR62: =IF(BU62="","",BU62) -> 10.73 | AS62: =IF(BV62="","",BV62) -> 18.09 | AT62: =IF(BW62="","",BW62) -> 3.86 | BA62: Chg. | BK62: 1 | BL62: =OFFSET(Data_Comp!$A$4,$BK62,MATCH($BF$61,Data_Comp!$B$3:$GR$3,0)+MATCH(BL$61,Data_Comp!$B$4:$Y$4,0)-1) -> General Electric | BM62: =IFERROR(OFFSET(Data_Comp!$A$4,$BK62+MATCH(BM$61,Data_Comp!$A$5:$A$300,0),MATCH($BF$61,Data_Comp!$B$3:$GR$3,0)+MATCH(BL$61,Data_Comp!$B$4:$Y$4,0)-1),"") -> -0.007517005452 | BN62: =IFERROR(OFFSET(Data_Comp!$A$4,$BK62+MATCH(BN$61,Data_Comp!$A$5:$A$300,0),MATCH($BF$61,Data_Comp!$B$3:$GR$3,0)+MATCH(BL$61,Data_Comp!$B$4:$Y$4,0)-1),"") -> 215323.12 | BO62: =IFERROR(OFFSET(Data_Comp!$A$4,$BK62+MATCH(BO$61,Data_Comp!$A$5:$A$300,0),MATCH($BF$61,Data_Comp!$B$3:$GR$3,0)+MATCH(BL$61,Data_Comp!$B$4:$Y$4,0)-1),"") -> 15.27 | BP62: =IFERROR(OFFSET(Data_Comp!$A$4,$BK62+MATCH(BP$61,Data_Comp!$A$5:$A$300,0),MATCH($BF$61,Data_Comp!$B$3:$GR$3,0)+MATCH(BL$61,Data_Comp!$B$4:$Y$4,0)-1),"") -> 2.9 | BQ62: =IFERROR(OFFSET(Data_Comp!$A$4,$BK62+MATCH(BQ$61,Data_Comp!$A$5:$A$300,0),MATCH($BF$61,Data_Comp!$B$3:$GR$3,0)+MATCH(BL$61,Data_Comp!$B$4:$Y$4,0)-1),"") -> 4.92 | BR62: =IFERROR(OFFSET(Data_Comp!$A$4,$BK62+MATCH(BR$61,Data_Comp!$A$5:$A$300,0),MATCH($BF$61,Data_Comp!$B$3:$GR$3,0)+MATCH(BL$61,Data_Comp!$B$4:$Y$4,0)-1),"") -> 13.83 | BS62: =IFERROR(OFFSET(Data_Comp!$A$4,$BK62+MATCH(BS$61,Data_Comp!$A$5:$A$300,0),MATCH($BF$61,Data_Comp!$B$3:$GR$3,0)+MATCH(BL$61,Data_Comp!$B$4:$Y$4,0)-1),"") -> 38.14 | BT62: =IFERROR(OFFSET(Data_Comp!$A$4,$BK62+MATCH(BT$61,Data_Comp!$A$5:$A$300,0),MATCH($BF$61,Data_Comp!$B$3:$GR$3,0)+MATCH(BL$61,Data_Comp!$B$4:$Y$4,0)-1),"") -> 12.62 | BU62: =IFERROR(OFFSET(Data_Comp!$A$4,$BK62+MATCH(BU$61,Data_Comp!$A$5:$A$300,0),MATCH($BF$61,Data_Comp!$B$3:$GR$3,0)+MATCH(BL$61,Data_Comp!$B$4:$Y$4,0)-1),"") -> 10.73 | BV62: =IFERROR(OFFSET(Data_Comp!$A$4,$BK62+MATCH(BV$61,Data_Comp!$A$5:$A$300,0),MATCH($BF$61,Data_Comp!$B$3:$GR$3,0)+MATCH(BL$61,Data_Comp!$B$4:$Y$4,0)-1),"") -> 18.09 | BW62: =IFERROR(OFFSET(Data_Comp!$A$4,$BK62+MATCH(BW$61,Data_Comp!$A$5:$A$300,0),MATCH($BF$61,Data_Comp!$B$3:$GR$3,0)+MATCH(BL$61,Data_Comp!$B$4:$Y$4,0)-1),"") -> 3.86
AH63: =AH62+1 -> 2 | AI63: 3M | AJ63: 125774.61 | AK63: -0.01113333788 | AL63: 22.59 | AM63: 12.4 | AN63: 2.74 | AO63: 7.74 | AP63: 7.14 | AQ63: 24.45 | AR63: 17.49 | AS63: 51.76 | AT63: 2.24 | AY63: 변화율(1W) | BA63: 변화율(1M) | BC63: 변화율(3M) | BG63: 1W | BH63: -1 | BK63: =BK62+1 -> 2 | BL63: =OFFSET(Data_Comp!$A$4,$BK63,MATCH($BF$61,Data_Comp!$B$3:$GR$3,0)+MATCH(BL$61,Data_Comp!$B$4:$Y$4,0)-1) -> 3M | BM63: =IFERROR(OFFSET(Data_Comp!$A$4,$BK63+MATCH(BM$61,Data_Comp!$A$5:$A$300,0),MATCH($BF$61,Data_Comp!$B$3:$GR$3,0)+MATCH(BL$61,Data_Comp!$B$4:$Y$4,0)-1),"") -> -0.01113333788 | BN63: =IFERROR(OFFSET(Data_Comp!$A$4,$BK63+MATCH(BN$61,Data_Comp!$A$5:$A$300,0),MATCH($BF$61,Data_Comp!$B$3:$GR$3,0)+MATCH(BL$61,Data_Comp!$B$4:$Y$4,0)-1),"") -> 125774.61 | BO63: =IFERROR(OFFSET(Data_Comp!$A$4,$BK63+MATCH(BO$61,Data_Comp!$A$5:$A$300,0),MATCH($BF$61,Data_Comp!$B$3:$GR$3,0)+MATCH(BL$61,Data_Comp!$B$4:$Y$4,0)-1),"") -> 22.59 | BP63: =IFERROR(OFFSET(Data_Comp!$A$4,$BK63+MATCH(BP$61,Data_Comp!$A$5:$A$300,0),MATCH($BF$61,Data_Comp!$B$3:$GR$3,0)+MATCH(BL$61,Data_Comp!$B$4:$Y$4,0)-1),"") -> 12.4 | BQ63: =IFERROR(OFFSET(Data_Comp!$A$4,$BK63+MATCH(BQ$61,Data_Comp!$A$5:$A$300,0),MATCH($BF$61,Data_Comp!$B$3:$GR$3,0)+MATCH(BL$61,Data_Comp!$B$4:$Y$4,0)-1),"") -> 2.74 | BR63: =IFERROR(OFFSET(Data_Comp!$A$4,$BK63+MATCH(BR$61,Data_Comp!$A$5:$A$300,0),MATCH($BF$61,Data_Comp!$B$3:$GR$3,0)+MATCH(BL$61,Data_Comp!$B$4:$Y$4,0)-1),"") -> 7.74 | BS63: =IFERROR(OFFSET(Data_Comp!$A$4,$BK63+MATCH(BS$61,Data_Comp!$A$5:$A$300,0),MATCH($BF$61,Data_Comp!$B$3:$GR$3,0)+MATCH(BL$61,Data_Comp!$B$4:$Y$4,0)-1),"") -> 7.14 | BT63: =IFERROR(OFFSET(Data_Comp!$A$4,$BK63+MATCH(BT$61,Data_Comp!$A$5:$A$300,0),MATCH($BF$61,Data_Comp!$B$3:$GR$3,0)+MATCH(BL$61,Data_Comp!$B$4:$Y$4,0)-1),"") -> 24.45 | BU63: =IFERROR(OFFSET(Data_Comp!$A$4,$BK63+MATCH(BU$61,Data_Comp!$A$5:$A$300,0),MATCH($BF$61,Data_Comp!$B$3:$GR$3,0)+MATCH(BL$61,Data_Comp!$B$4:$Y$4,0)-1),"") -> 17.49 | BV63: =IFERROR(OFFSET(Data_Comp!$A$4,$BK63+MATCH(BV$61,Data_Comp!$A$5:$A$300,0),MATCH($BF$61,Data_Comp!$B$3:$GR$3,0)+MATCH(BL$61,Data_Comp!$B$4:$Y$4,0)-1),"") -> 51.76 | BW63: =IFERROR(OFFSET(Data_Comp!$A$4,$BK63+MATCH(BW$61,Data_Comp!$A$5:$A$300,0),MATCH($BF$61,Data_Comp!$B$3:$GR$3,0)+MATCH(BL$61,Data_Comp!$B$4:$Y$4,0)-1),"") -> 2.24
AH64: =AH63+1 -> 3 | AI64: Honeywell International | AJ64: 108061.43 | AK64: 0.03696463602 | AL64: 18.57 | AM64: 4.62 | AN64: 1.16 | AO64: 3.72 | AP64: 13.44 | AQ64: 19.17 | AR64: 13.72 | AS64: 26.52 | AT64: 1.89 | AY64: 전체 | AZ64: =Data_Sector_US!$D$7 -> -0.0229400171 | BA64: 전체 | BB64: =Data_Sector_US!$D$8 -> 0.8134616013 | BC64: 전체 | BD64: =Data_Sector_US!$D$9 -> 1.408652195 | BG64: 1M | BH64: -4 | BK64: =BK63+1 -> 3 | BL64: =OFFSET(Data_Comp!$A$4,$BK64,MATCH($BF$61,Data_Comp!$B$3:$GR$3,0)+MATCH(BL$61,Data_Comp!$B$4:$Y$4,0)-1) -> Honeywell International | BM64: =IFERROR(OFFSET(Data_Comp!$A$4,$BK64+MATCH(BM$61,Data_Comp!$A$5:$A$300,0),MATCH($BF$61,Data_Comp!$B$3:$GR$3,0)+MATCH(BL$61,Data_Comp!$B$4:$Y$4,0)-1),"") -> 0.03696463602 | BN64: =IFERROR(OFFSET(Data_Comp!$A$4,$BK64+MATCH(BN$61,Data_Comp!$A$5:$A$300,0),MATCH($BF$61,Data_Comp!$B$3:$GR$3,0)+MATCH(BL$61,Data_Comp!$B$4:$Y$4,0)-1),"") -> 108061.43 | BO64: =IFERROR(OFFSET(Data_Comp!$A$4,$BK64+MATCH(BO$61,Data_Comp!$A$5:$A$300,0),MATCH($BF$61,Data_Comp!$B$3:$GR$3,0)+MATCH(BL$61,Data_Comp!$B$4:$Y$4,0)-1),"") -> 18.57 | BP64: =IFERROR(OFFSET(Data_Comp!$A$4,$BK64+MATCH(BP$61,Data_Comp!$A$5:$A$300,0),MATCH($BF$61,Data_Comp!$B$3:$GR$3,0)+MATCH(BL$61,Data_Comp!$B$4:$Y$4,0)-1),"") -> 4.62 | BQ64: =IFERROR(OFFSET(Data_Comp!$A$4,$BK64+MATCH(BQ$61,Data_Comp!$A$5:$A$300,0),MATCH($BF$61,Data_Comp!$B$3:$GR$3,0)+MATCH(BL$61,Data_Comp!$B$4:$Y$4,0)-1),"") -> 1.16 | BR64: =IFERROR(OFFSET(Data_Comp!$A$4,$BK64+MATCH(BR$61,Data_Comp!$A$5:$A$300,0),MATCH($BF$61,Data_Comp!$B$3:$GR$3,0)+MATCH(BL$61,Data_Comp!$B$4:$Y$4,0)-1),"") -> 3.72 | BS64: =IFERROR(OFFSET(Data_Comp!$A$4,$BK64+MATCH(BS$61,Data_Comp!$A$5:$A$300,0),MATCH($BF$61,Data_Comp!$B$3:$GR$3,0)+MATCH(BL$61,Data_Comp!$B$4:$Y$4,0)-1),"") -> 13.44 | BT64: =IFERROR(OFFSET(Data_Comp!$A$4,$BK64+MATCH(BT$61,Data_Comp!$A$5:$A$300,0),MATCH($BF$61,Data_Comp!$B$3:$GR$3,0)+MATCH(BL$61,Data_Comp!$B$4:$Y$4,0)-1),"") -> 19.17 | BU64: =IFERROR(OFFSET(Data_Comp!$A$4,$BK64+MATCH(BU$61,Data_Comp!$A$5:$A$300,0),MATCH($BF$61,Data_Comp!$B$3:$GR$3,0)+MATCH(BL$61,Data_Comp!$B$4:$Y$4,0)-1),"") -> 13.72 | BV64: =IFERROR(OFFSET(Data_Comp!$A$4,$BK64+MATCH(BV$61,Data_Comp!$A$5:$A$300,0),MATCH($BF$61,Data_Comp!$B$3:$GR$3,0)+MATCH(BL$61,Data_Comp!$B$4:$Y$4,0)-1),"") -> 26.52 | BW64: =IFERROR(OFFSET(Data_Comp!$A$4,$BK64+MATCH(BW$61,Data_Comp!$A$5:$A$300,0),MATCH($BF$61,Data_Comp!$B$3:$GR$3,0)+MATCH(BL$61,Data_Comp!$B$4:$Y$4,0)-1),"") -> 1.89
AH65: 4 | AI65: United Technologies | AJ65: 91866.88 | AK65: -0.04462678783 | AL65: 16.88 | AM65: 2.76 | AN65: 3.48 | AO65: 12.9 | AP65: 5.25 | AQ65: 14.87 | AR65: 8.97 | AS65: 18.63 | AT65: 2.38 | AX65: 1 | AY65: =OFFSET(Data_Sector_US!$C$13,,MATCH($AX65,Data_Sector_US!$D$10:$AB$10,0)) -> 반도체 | AZ65: =OFFSET(Data_Sector_US!$C$7,,MATCH($AX65,Data_Sector_US!$D$10:$AB$10,0)) -> 0.5341630042 | BA65: =OFFSET(Data_Sector_US!$C$13,,MATCH($AX65,Data_Sector_US!$D$11:$AB$11,0)) -> 비철,목재등 | BB65: =OFFSET(Data_Sector_US!$C$8,,MATCH($AX65,Data_Sector_US!$D$11:$AB$11,0)) -> 2.374566351 | BC65: =OFFSET(Data_Sector_US!$C$13,,MATCH($AX65,Data_Sector_US!$D$12:$AB$12,0)) -> 기계 | BD65: =OFFSET(Data_Sector_US!$C$9,,MATCH($AX65,Data_Sector_US!$D$12:$AB$12,0)) -> 8.374272177 | BG65: 3M | BH65: -12 | BK65: 4 | BL65: =OFFSET(Data_Comp!$A$4,$BK65,MATCH($BF$61,Data_Comp!$B$3:$GR$3,0)+MATCH(BL$61,Data_Comp!$B$4:$Y$4,0)-1) -> United Technologies | BM65: =IFERROR(OFFSET(Data_Comp!$A$4,$BK65+MATCH(BM$61,Data_Comp!$A$5:$A$300,0),MATCH($BF$61,Data_Comp!$B$3:$GR$3,0)+MATCH(BL$61,Data_Comp!$B$4:$Y$4,0)-1),"") -> -0.04462678783 | BN65: =IFERROR(OFFSET(Data_Comp!$A$4,$BK65+MATCH(BN$61,Data_Comp!$A$5:$A$300,0),MATCH($BF$61,Data_Comp!$B$3:$GR$3,0)+MATCH(BL$61,Data_Comp!$B$4:$Y$4,0)-1),"") -> 91866.88 | BO65: =IFERROR(OFFSET(Data_Comp!$A$4,$BK65+MATCH(BO$61,Data_Comp!$A$5:$A$300,0),MATCH($BF$61,Data_Comp!$B$3:$GR$3,0)+MATCH(BL$61,Data_Comp!$B$4:$Y$4,0)-1),"") -> 16.88 | BP65: =IFERROR(OFFSET(Data_Comp!$A$4,$BK65+MATCH(BP$61,Data_Comp!$A$5:$A$300,0),MATCH($BF$61,Data_Comp!$B$3:$GR$3,0)+MATCH(BL$61,Data_Comp!$B$4:$Y$4,0)-1),"") -> 2.76 | BQ65: =IFERROR(OFFSET(Data_Comp!$A$4,$BK65+MATCH(BQ$61,Data_Comp!$A$5:$A$300,0),MATCH($BF$61,Data_Comp!$B$3:$GR$3,0)+MATCH(BL$61,Data_Comp!$B$4:$Y$4,0)-1),"") -> 3.48 | BR65: =IFERROR(OFFSET(Data_Comp!$A$4,$BK65+MATCH(BR$61,Data_Comp!$A$5:$A$300,0),MATCH($BF$61,Data_Comp!$B$3:$GR$3,0)+MATCH(BL$61,Data_Comp!$B$4:$Y$4,0)-1),"") -> 12.9 | BS65: =IFERROR(OFFSET(Data_Comp!$A$4,$BK65+MATCH(BS$61,Data_Comp!$A$5:$A$300,0),MATCH($BF$61,Data_Comp!$B$3:$GR$3,0)+MATCH(BL$61,Data_Comp!$B$4:$Y$4,0)-1),"") -> 5.25 | BT65: =IFERROR(OFFSET(Data_Comp!$A$4,$BK65+MATCH(BT$61,Data_Comp!$A$5:$A$300,0),MATCH($BF$61,Data_Comp!$B$3:$GR$3,0)+MATCH(BL$61,Data_Comp!$B$4:$Y$4,0)-1),"") -> 14.87 | BU65: =IFERROR(OFFSET(Data_Comp!$A$4,$BK65+MATCH(BU$61,Data_Comp!$A$5:$A$300,0),MATCH($BF$61,Data_Comp!$B$3:$GR$3,0)+MATCH(BL$61,Data_Comp!$B$4:$Y$4,0)-1),"") -> 8.97 | BV65: =IFERROR(OFFSET(Data_Comp!$A$4,$BK65+MATCH(BV$61,Data_Comp!$A$5:$A$300,0),MATCH($BF$61,Data_Comp!$B$3:$GR$3,0)+MATCH(BL$61,Data_Comp!$B$4:$Y$4,0)-1),"") -> 18.63 | BW65: =IFERROR(OFFSET(Data_Comp!$A$4,$BK65+MATCH(BW$61,Data_Comp!$A$5:$A$300,0),MATCH($BF$61,Data_Comp!$B$3:$GR$3,0)+MATCH(BL$61,Data_Comp!$B$4:$Y$4,0)-1),"") -> 2.38
AH66: 5 | AI66: Boeing | AJ66: 151583.24 | AK66: 0.8123861141 | AL66: 21.95 | AM66: -61.46 | AN66: -2.78 | AO66: 79.4 | AP66: 40.67 | AQ66: 10.81 | AR66: 7.49 | AS66: -4008.15 | AT66: 2.22 | AX66: 2 | AY66: =OFFSET(Data_Sector_US!$C$13,,MATCH($AX66,Data_Sector_US!$D$10:$AB$10,0)) -> IT하드웨어 | AZ66: =OFFSET(Data_Sector_US!$C$7,,MATCH($AX66,Data_Sector_US!$D$10:$AB$10,0)) -> 0.2175652128 | BA66: =OFFSET(Data_Sector_US!$C$13,,MATCH($AX66,Data_Sector_US!$D$11:$AB$11,0)) -> 에너지 | BB66: =OFFSET(Data_Sector_US!$C$8,,MATCH($AX66,Data_Sector_US!$D$11:$AB$11,0)) -> 2.129583068 | BC66: =OFFSET(Data_Sector_US!$C$13,,MATCH($AX66,Data_Sector_US!$D$12:$AB$12,0)) -> 반도체 | BD66: =OFFSET(Data_Sector_US!$C$9,,MATCH($AX66,Data_Sector_US!$D$12:$AB$12,0)) -> 7.040917185 | BK66: 5 | BL66: =OFFSET(Data_Comp!$A$4,$BK66,MATCH($BF$61,Data_Comp!$B$3:$GR$3,0)+MATCH(BL$61,Data_Comp!$B$4:$Y$4,0)-1) -> Boeing | BM66: =IFERROR(OFFSET(Data_Comp!$A$4,$BK66+MATCH(BM$61,Data_Comp!$A$5:$A$300,0),MATCH($BF$61,Data_Comp!$B$3:$GR$3,0)+MATCH(BL$61,Data_Comp!$B$4:$Y$4,0)-1),"") -> 0.8123861141 | BN66: =IFERROR(OFFSET(Data_Comp!$A$4,$BK66+MATCH(BN$61,Data_Comp!$A$5:$A$300,0),MATCH($BF$61,Data_Comp!$B$3:$GR$3,0)+MATCH(BL$61,Data_Comp!$B$4:$Y$4,0)-1),"") -> 151583.24 | BO66: =IFERROR(OFFSET(Data_Comp!$A$4,$BK66+MATCH(BO$61,Data_Comp!$A$5:$A$300,0),MATCH($BF$61,Data_Comp!$B$3:$GR$3,0)+MATCH(BL$61,Data_Comp!$B$4:$Y$4,0)-1),"") -> 21.95 | BP66: =IFERROR(OFFSET(Data_Comp!$A$4,$BK66+MATCH(BP$61,Data_Comp!$A$5:$A$300,0),MATCH($BF$61,Data_Comp!$B$3:$GR$3,0)+MATCH(BL$61,Data_Comp!$B$4:$Y$4,0)-1),"") -> -61.46 | BQ66: =IFERROR(OFFSET(Data_Comp!$A$4,$BK66+MATCH(BQ$61,Data_Comp!$A$5:$A$300,0),MATCH($BF$61,Data_Comp!$B$3:$GR$3,0)+MATCH(BL$61,Data_Comp!$B$4:$Y$4,0)-1),"") -> -2.78 | BR66: =IFERROR(OFFSET(Data_Comp!$A$4,$BK66+MATCH(BR$61,Data_Comp!$A$5:$A$300,0),MATCH($BF$61,Data_Comp!$B$3:$GR$3,0)+MATCH(BL$61,Data_Comp!$B$4:$Y$4,0)-1),"") -> 79.4 | BS66: =IFERROR(OFFSET(Data_Comp!$A$4,$BK66+MATCH(BS$61,Data_Comp!$A$5:$A$300,0),MATCH($BF$61,Data_Comp!$B$3:$GR$3,0)+MATCH(BL$61,Data_Comp!$B$4:$Y$4,0)-1),"") -> 40.67 | BT66: =IFERROR(OFFSET(Data_Comp!$A$4,$BK66+MATCH(BT$61,Data_Comp!$A$5:$A$300,0),MATCH($BF$61,Data_Comp!$B$3:$GR$3,0)+MATCH(BL$61,Data_Comp!$B$4:$Y$4,0)-1),"") -> 10.81 | BU66: =IFERROR(OFFSET(Data_Comp!$A$4,$BK66+MATCH(BU$61,Data_Comp!$A$5:$A$300,0),MATCH($BF$61,Data_Comp!$B$3:$GR$3,0)+MATCH(BL$61,Data_Comp!$B$4:$Y$4,0)-1),"") -> 7.49 | BV66: =IFERROR(OFFSET(Data_Comp!$A$4,$BK66+MATCH(BV$61,Data_Comp!$A$5:$A$300,0),MATCH($BF$61,Data_Comp!$B$3:$GR$3,0)+MATCH(BL$61,Data_Comp!$B$4:$Y$4,0)-1),"") -> -4008.15 | BW66: =IFERROR(OFFSET(Data_Comp!$A$4,$BK66+MATCH(BW$61,Data_Comp!$A$5:$A$300,0),MATCH($BF$61,Data_Comp!$B$3:$GR$3,0)+MATCH(BL$61,Data_Comp!$B$4:$Y$4,0)-1),"") -> 2.22
AH67: 6 | AI67: Lockheed Martin | AJ67: 88856.74 | AK67: 0 | AL67: 22.55 | AM67: 58.59 | AN67: 7.06 | AO67: 1.98 | AP67: -2.23 | AQ67: 10.23 | AR67: 7.26 | AS67: 273.71 | AT67: 2.41 | AX67: 3 | AY67: =OFFSET(Data_Sector_US!$C$13,,MATCH($AX67,Data_Sector_US!$D$10:$AB$10,0)) -> 비철,목재등 | AZ67: =OFFSET(Data_Sector_US!$C$7,,MATCH($AX67,Data_Sector_US!$D$10:$AB$10,0)) -> 0.1161590088 | BA67: =OFFSET(Data_Sector_US!$C$13,,MATCH($AX67,Data_Sector_US!$D$11:$AB$11,0)) -> 반도체 | BB67: =OFFSET(Data_Sector_US!$C$8,,MATCH($AX67,Data_Sector_US!$D$11:$AB$11,0)) -> 1.853120623 | BC67: =OFFSET(Data_Sector_US!$C$13,,MATCH($AX67,Data_Sector_US!$D$12:$AB$12,0)) -> 비철,목재등 | BD67: =OFFSET(Data_Sector_US!$C$9,,MATCH($AX67,Data_Sector_US!$D$12:$AB$12,0)) -> 5.63364153 | BK67: 6 | BL67: =OFFSET(Data_Comp!$A$4,$BK67,MATCH($BF$61,Data_Comp!$B$3:$GR$3,0)+MATCH(BL$61,Data_Comp!$B$4:$Y$4,0)-1) -> Lockheed Martin | BM67: =IFERROR(OFFSET(Data_Comp!$A$4,$BK67+MATCH(BM$61,Data_Comp!$A$5:$A$300,0),MATCH($BF$61,Data_Comp!$B$3:$GR$3,0)+MATCH(BL$61,Data_Comp!$B$4:$Y$4,0)-1),"") -> 0 | BN67: =IFERROR(OFFSET(Data_Comp!$A$4,$BK67+MATCH(BN$61,Data_Comp!$A$5:$A$300,0),MATCH($BF$61,Data_Comp!$B$3:$GR$3,0)+MATCH(BL$61,Data_Comp!$B$4:$Y$4,0)-1),"") -> 88856.74 | BO67: =IFERROR(OFFSET(Data_Comp!$A$4,$BK67+MATCH(BO$61,Data_Comp!$A$5:$A$300,0),MATCH($BF$61,Data_Comp!$B$3:$GR$3,0)+MATCH(BL$61,Data_Comp!$B$4:$Y$4,0)-1),"") -> 22.55 | BP67: =IFERROR(OFFSET(Data_Comp!$A$4,$BK67+MATCH(BP$61,Data_Comp!$A$5:$A$300,0),MATCH($BF$61,Data_Comp!$B$3:$GR$3,0)+MATCH(BL$61,Data_Comp!$B$4:$Y$4,0)-1),"") -> 58.59 | BQ67: =IFERROR(OFFSET(Data_Comp!$A$4,$BK67+MATCH(BQ$61,Data_Comp!$A$5:$A$300,0),MATCH($BF$61,Data_Comp!$B$3:$GR$3,0)+MATCH(BL$61,Data_Comp!$B$4:$Y$4,0)-1),"") -> 7.06 | BR67: =IFERROR(OFFSET(Data_Comp!$A$4,$BK67+MATCH(BR$61,Data_Comp!$A$5:$A$300,0),MATCH($BF$61,Data_Comp!$B$3:$GR$3,0)+MATCH(BL$61,Data_Comp!$B$4:$Y$4,0)-1),"") -> 1.98 | BS67: =IFERROR(OFFSET(Data_Comp!$A$4,$BK67+MATCH(BS$61,Data_Comp!$A$5:$A$300,0),MATCH($BF$61,Data_Comp!$B$3:$GR$3,0)+MATCH(BL$61,Data_Comp!$B$4:$Y$4,0)-1),"") -> -2.23 | BT67: =IFERROR(OFFSET(Data_Comp!$A$4,$BK67+MATCH(BT$61,Data_Comp!$A$5:$A$300,0),MATCH($BF$61,Data_Comp!$B$3:$GR$3,0)+MATCH(BL$61,Data_Comp!$B$4:$Y$4,0)-1),"") -> 10.23 | BU67: =IFERROR(OFFSET(Data_Comp!$A$4,$BK67+MATCH(BU$61,Data_Comp!$A$5:$A$300,0),MATCH($BF$61,Data_Comp!$B$3:$GR$3,0)+MATCH(BL$61,Data_Comp!$B$4:$Y$4,0)-1),"") -> 7.26 | BV67: =IFERROR(OFFSET(Data_Comp!$A$4,$BK67+MATCH(BV$61,Data_Comp!$A$5:$A$300,0),MATCH($BF$61,Data_Comp!$B$3:$GR$3,0)+MATCH(BL$61,Data_Comp!$B$4:$Y$4,0)-1),"") -> 273.71 | BW67: =IFERROR(OFFSET(Data_Comp!$A$4,$BK67+MATCH(BW$61,Data_Comp!$A$5:$A$300,0),MATCH($BF$61,Data_Comp!$B$3:$GR$3,0)+MATCH(BL$61,Data_Comp!$B$4:$Y$4,0)-1),"") -> 2.41
AH68: 7 | AI68: Priceline Group | AJ68: 91354.24 | AK68: 0 | AL68: 22.89 | AM68: 5.53 | AN68: 16.55 | AO68: 14.81 | AP68: 66.9 | AQ68: 35.28 | AR68: 28.46 | AS68: 30.33 | AT68: 0 | AX68: 4 | AY68: =OFFSET(Data_Sector_US!$C$13,,MATCH($AX68,Data_Sector_US!$D$10:$AB$10,0)) -> 미디어,교육 | AZ68: =OFFSET(Data_Sector_US!$C$7,,MATCH($AX68,Data_Sector_US!$D$10:$AB$10,0)) -> 0.09201397431 | BA68: =OFFSET(Data_Sector_US!$C$13,,MATCH($AX68,Data_Sector_US!$D$11:$AB$11,0)) -> 기계 | BB68: =OFFSET(Data_Sector_US!$C$8,,MATCH($AX68,Data_Sector_US!$D$11:$AB$11,0)) -> 1.663161249 | BC68: =OFFSET(Data_Sector_US!$C$13,,MATCH($AX68,Data_Sector_US!$D$12:$AB$12,0)) -> 철강 | BD68: =OFFSET(Data_Sector_US!$C$9,,MATCH($AX68,Data_Sector_US!$D$12:$AB$12,0)) -> 4.839211798 | BK68: 7 | BL68: =OFFSET(Data_Comp!$A$4,$BK68,MATCH($BF$61,Data_Comp!$B$3:$GR$3,0)+MATCH(BL$61,Data_Comp!$B$4:$Y$4,0)-1) -> Priceline Group | BM68: =IFERROR(OFFSET(Data_Comp!$A$4,$BK68+MATCH(BM$61,Data_Comp!$A$5:$A$300,0),MATCH($BF$61,Data_Comp!$B$3:$GR$3,0)+MATCH(BL$61,Data_Comp!$B$4:$Y$4,0)-1),"") -> 0 | BN68: =IFERROR(OFFSET(Data_Comp!$A$4,$BK68+MATCH(BN$61,Data_Comp!$A$5:$A$300,0),MATCH($BF$61,Data_Comp!$B$3:$GR$3,0)+MATCH(BL$61,Data_Comp!$B$4:$Y$4,0)-1),"") -> 91354.24 | BO68: =IFERROR(OFFSET(Data_Comp!$A$4,$BK68+MATCH(BO$61,Data_Comp!$A$5:$A$300,0),MATCH($BF$61,Data_Comp!$B$3:$GR$3,0)+MATCH(BL$61,Data_Comp!$B$4:$Y$4,0)-1),"") -> 22.89 | BP68: =IFERROR(OFFSET(Data_Comp!$A$4,$BK68+MATCH(BP$61,Data_Comp!$A$5:$A$300,0),MATCH($BF$61,Data_Comp!$B$3:$GR$3,0)+MATCH(BL$61,Data_Comp!$B$4:$Y$4,0)-1),"") -> 5.53 | BQ68: =IFERROR(OFFSET(Data_Comp!$A$4,$BK68+MATCH(BQ$61,Data_Comp!$A$5:$A$300,0),MATCH($BF$61,Data_Comp!$B$3:$GR$3,0)+MATCH(BL$61,Data_Comp!$B$4:$Y$4,0)-1),"") -> 16.55 | BR68: =IFERROR(OFFSET(Data_Comp!$A$4,$BK68+MATCH(BR$61,Data_Comp!$A$5:$A$300,0),MATCH($BF$61,Data_Comp!$B$3:$GR$3,0)+MATCH(BL$61,Data_Comp!$B$4:$Y$4,0)-1),"") -> 14.81 | BS68: =IFERROR(OFFSET(Data_Comp!$A$4,$BK68+MATCH(BS$61,Data_Comp!$A$5:$A$300,0),MATCH($BF$61,Data_Comp!$B$3:$GR$3,0)+MATCH(BL$61,Data_Comp!$B$4:$Y$4,0)-1),"") -> 66.9 | BT68: =IFERROR(OFFSET(Data_Comp!$A$4,$BK68+MATCH(BT$61,Data_Comp!$A$5:$A$300,0),MATCH($BF$61,Data_Comp!$B$3:$GR$3,0)+MATCH(BL$61,Data_Comp!$B$4:$Y$4,0)-1),"") -> 35.28 | BU68: =IFERROR(OFFSET(Data_Comp!$A$4,$BK68+MATCH(BU$61,Data_Comp!$A$5:$A$300,0),MATCH($BF$61,Data_Comp!$B$3:$GR$3,0)+MATCH(BL$61,Data_Comp!$B$4:$Y$4,0)-1),"") -> 28.46 | BV68: =IFERROR(OFFSET(Data_Comp!$A$4,$BK68+MATCH(BV$61,Data_Comp!$A$5:$A$300,0),MATCH($BF$61,Data_Comp!$B$3:$GR$3,0)+MATCH(BL$61,Data_Comp!$B$4:$Y$4,0)-1),"") -> 30.33 | BW68: =IFERROR(OFFSET(Data_Comp!$A$4,$BK68+MATCH(BW$61,Data_Comp!$A$5:$A$300,0),MATCH($BF$61,Data_Comp!$B$3:$GR$3,0)+MATCH(BL$61,Data_Comp!$B$4:$Y$4,0)-1),"") -> 0
AH69: 8 | AI69: General Dynamics | AJ69: 61512.49 | AK69: 0 | AL69: 19.93 | AM69: 5.49 | AN69: -0.51 | AO69: -2.45 | AP69: -2.83 | AQ69: 13.48 | AR69: 9.54 | AS69: 27.25 | AT69: 1.59 | AX69: 5 | AY69: =OFFSET(Data_Sector_US!$C$13,,MATCH($AX69,Data_Sector_US!$D$10:$AB$10,0)) -> 기계 | AZ69: =OFFSET(Data_Sector_US!$C$7,,MATCH($AX69,Data_Sector_US!$D$10:$AB$10,0)) -> 0.08828043103 | BA69: =OFFSET(Data_Sector_US!$C$13,,MATCH($AX69,Data_Sector_US!$D$11:$AB$11,0)) -> 소프트웨어 | BB69: =OFFSET(Data_Sector_US!$C$8,,MATCH($AX69,Data_Sector_US!$D$11:$AB$11,0)) -> 1.371470551 | BC69: =OFFSET(Data_Sector_US!$C$13,,MATCH($AX69,Data_Sector_US!$D$12:$AB$12,0)) -> IT하드웨어 | BD69: =OFFSET(Data_Sector_US!$C$9,,MATCH($AX69,Data_Sector_US!$D$12:$AB$12,0)) -> 3.56094401 | BK69: 8 | BL69: =OFFSET(Data_Comp!$A$4,$BK69,MATCH($BF$61,Data_Comp!$B$3:$GR$3,0)+MATCH(BL$61,Data_Comp!$B$4:$Y$4,0)-1) -> General Dynamics | BM69: =IFERROR(OFFSET(Data_Comp!$A$4,$BK69+MATCH(BM$61,Data_Comp!$A$5:$A$300,0),MATCH($BF$61,Data_Comp!$B$3:$GR$3,0)+MATCH(BL$61,Data_Comp!$B$4:$Y$4,0)-1),"") -> 0 | BN69: =IFERROR(OFFSET(Data_Comp!$A$4,$BK69+MATCH(BN$61,Data_Comp!$A$5:$A$300,0),MATCH($BF$61,Data_Comp!$B$3:$GR$3,0)+MATCH(BL$61,Data_Comp!$B$4:$Y$4,0)-1),"") -> 61512.49 | BO69: =IFERROR(OFFSET(Data_Comp!$A$4,$BK69+MATCH(BO$61,Data_Comp!$A$5:$A$300,0),MATCH($BF$61,Data_Comp!$B$3:$GR$3,0)+MATCH(BL$61,Data_Comp!$B$4:$Y$4,0)-1),"") -> 19.93 | BP69: =IFERROR(OFFSET(Data_Comp!$A$4,$BK69+MATCH(BP$61,Data_Comp!$A$5:$A$300,0),MATCH($BF$61,Data_Comp!$B$3:$GR$3,0)+MATCH(BL$61,Data_Comp!$B$4:$Y$4,0)-1),"") -> 5.49 | BQ69: =IFERROR(OFFSET(Data_Comp!$A$4,$BK69+MATCH(BQ$61,Data_Comp!$A$5:$A$300,0),MATCH($BF$61,Data_Comp!$B$3:$GR$3,0)+MATCH(BL$61,Data_Comp!$B$4:$Y$4,0)-1),"") -> -0.51 | BR69: =IFERROR(OFFSET(Data_Comp!$A$4,$BK69+MATCH(BR$61,Data_Comp!$A$5:$A$300,0),MATCH($BF$61,Data_Comp!$B$3:$GR$3,0)+MATCH(BL$61,Data_Comp!$B$4:$Y$4,0)-1),"") -> -2.45 | BS69: =IFERROR(OFFSET(Data_Comp!$A$4,$BK69+MATCH(BS$61,Data_Comp!$A$5:$A$300,0),MATCH($BF$61,Data_Comp!$B$3:$GR$3,0)+MATCH(BL$61,Data_Comp!$B$4:$Y$4,0)-1),"") -> -2.83 | BT69: =IFERROR(OFFSET(Data_Comp!$A$4,$BK69+MATCH(BT$61,Data_Comp!$A$5:$A$300,0),MATCH($BF$61,Data_Comp!$B$3:$GR$3,0)+MATCH(BL$61,Data_Comp!$B$4:$Y$4,0)-1),"") -> 13.48 | BU69: =IFERROR(OFFSET(Data_Comp!$A$4,$BK69+MATCH(BU$61,Data_Comp!$A$5:$A$300,0),MATCH($BF$61,Data_Comp!$B$3:$GR$3,0)+MATCH(BL$61,Data_Comp!$B$4:$Y$4,0)-1),"") -> 9.54 | BV69: =IFERROR(OFFSET(Data_Comp!$A$4,$BK69+MATCH(BV$61,Data_Comp!$A$5:$A$300,0),MATCH($BF$61,Data_Comp!$B$3:$GR$3,0)+MATCH(BL$61,Data_Comp!$B$4:$Y$4,0)-1),"") -> 27.25 | BW69: =IFERROR(OFFSET(Data_Comp!$A$4,$BK69+MATCH(BW$61,Data_Comp!$A$5:$A$300,0),MATCH($BF$61,Data_Comp!$B$3:$GR$3,0)+MATCH(BL$61,Data_Comp!$B$4:$Y$4,0)-1),"") -> 1.59
AH70: 9 | AI70: Raytheon | AJ70: 53606.09 | AK70: 0 | AL70: 22.45 | AM70: 4.72 | AN70: 5.19 | AO70: 8.39 | AP70: -0.11 | AQ70: 13.2 | AR70: 8.72 | AS70: 21.04 | AT70: 1.69 | AX70: 6 | AY70: =OFFSET(Data_Sector_US!$C$13,,MATCH($AX70,Data_Sector_US!$D$10:$AB$10,0)) -> 통신서비스 | AZ70: =OFFSET(Data_Sector_US!$C$7,,MATCH($AX70,Data_Sector_US!$D$10:$AB$10,0)) -> 0.08145336795 | BA70: =OFFSET(Data_Sector_US!$C$13,,MATCH($AX70,Data_Sector_US!$D$11:$AB$11,0)) -> 건설,건축관련 | BB70: =OFFSET(Data_Sector_US!$C$8,,MATCH($AX70,Data_Sector_US!$D$11:$AB$11,0)) -> 1.044295151 | BC70: =OFFSET(Data_Sector_US!$C$13,,MATCH($AX70,Data_Sector_US!$D$12:$AB$12,0)) -> 은행 | BD70: =OFFSET(Data_Sector_US!$C$9,,MATCH($AX70,Data_Sector_US!$D$12:$AB$12,0)) -> 3.262524779 | BK70: 9 | BL70: =OFFSET(Data_Comp!$A$4,$BK70,MATCH($BF$61,Data_Comp!$B$3:$GR$3,0)+MATCH(BL$61,Data_Comp!$B$4:$Y$4,0)-1) -> Raytheon | BM70: =IFERROR(OFFSET(Data_Comp!$A$4,$BK70+MATCH(BM$61,Data_Comp!$A$5:$A$300,0),MATCH($BF$61,Data_Comp!$B$3:$GR$3,0)+MATCH(BL$61,Data_Comp!$B$4:$Y$4,0)-1),"") -> 0 | BN70: =IFERROR(OFFSET(Data_Comp!$A$4,$BK70+MATCH(BN$61,Data_Comp!$A$5:$A$300,0),MATCH($BF$61,Data_Comp!$B$3:$GR$3,0)+MATCH(BL$61,Data_Comp!$B$4:$Y$4,0)-1),"") -> 53606.09 | BO70: =IFERROR(OFFSET(Data_Comp!$A$4,$BK70+MATCH(BO$61,Data_Comp!$A$5:$A$300,0),MATCH($BF$61,Data_Comp!$B$3:$GR$3,0)+MATCH(BL$61,Data_Comp!$B$4:$Y$4,0)-1),"") -> 22.45 | BP70: =IFERROR(OFFSET(Data_Comp!$A$4,$BK70+MATCH(BP$61,Data_Comp!$A$5:$A$300,0),MATCH($BF$61,Data_Comp!$B$3:$GR$3,0)+MATCH(BL$61,Data_Comp!$B$4:$Y$4,0)-1),"") -> 4.72 | BQ70: =IFERROR(OFFSET(Data_Comp!$A$4,$BK70+MATCH(BQ$61,Data_Comp!$A$5:$A$300,0),MATCH($BF$61,Data_Comp!$B$3:$GR$3,0)+MATCH(BL$61,Data_Comp!$B$4:$Y$4,0)-1),"") -> 5.19 | BR70: =IFERROR(OFFSET(Data_Comp!$A$4,$BK70+MATCH(BR$61,Data_Comp!$A$5:$A$300,0),MATCH($BF$61,Data_Comp!$B$3:$GR$3,0)+MATCH(BL$61,Data_Comp!$B$4:$Y$4,0)-1),"") -> 8.39 | BS70: =IFERROR(OFFSET(Data_Comp!$A$4,$BK70+MATCH(BS$61,Data_Comp!$A$5:$A$300,0),MATCH($BF$61,Data_Comp!$B$3:$GR$3,0)+MATCH(BL$61,Data_Comp!$B$4:$Y$4,0)-1),"") -> -0.11 | BT70: =IFERROR(OFFSET(Data_Comp!$A$4,$BK70+MATCH(BT$61,Data_Comp!$A$5:$A$300,0),MATCH($BF$61,Data_Comp!$B$3:$GR$3,0)+MATCH(BL$61,Data_Comp!$B$4:$Y$4,0)-1),"") -> 13.2 | BU70: =IFERROR(OFFSET(Data_Comp!$A$4,$BK70+MATCH(BU$61,Data_Comp!$A$5:$A$300,0),MATCH($BF$61,Data_Comp!$B$3:$GR$3,0)+MATCH(BL$61,Data_Comp!$B$4:$Y$4,0)-1),"") -> 8.72 | BV70: =IFERROR(OFFSET(Data_Comp!$A$4,$BK70+MATCH(BV$61,Data_Comp!$A$5:$A$300,0),MATCH($BF$61,Data_Comp!$B$3:$GR$3,0)+MATCH(BL$61,Data_Comp!$B$4:$Y$4,0)-1),"") -> 21.04 | BW70: =IFERROR(OFFSET(Data_Comp!$A$4,$BK70+MATCH(BW$61,Data_Comp!$A$5:$A$300,0),MATCH($BF$61,Data_Comp!$B$3:$GR$3,0)+MATCH(BL$61,Data_Comp!$B$4:$Y$4,0)-1),"") -> 1.69
AH71: 10 | AI71: Northrop Grumman | AJ71: 49032.21 | AK71: -0.1996355996 | AL71: 21.42 | AM71: 7.61 | AN71: 3.56 | AO71: 2.91 | AP71: -0.18 | AQ71: 12.95 | AR71: 8.65 | AS71: 39.48 | AT71: 1.24 | AX71: 7 | AY71: =OFFSET(Data_Sector_US!$C$13,,MATCH($AX71,Data_Sector_US!$D$10:$AB$10,0)) -> 유틸리티 | AZ71: =OFFSET(Data_Sector_US!$C$7,,MATCH($AX71,Data_Sector_US!$D$10:$AB$10,0)) -> 0.0363847724 | BA71: =OFFSET(Data_Sector_US!$C$13,,MATCH($AX71,Data_Sector_US!$D$11:$AB$11,0)) -> 미디어,교육 | BB71: =OFFSET(Data_Sector_US!$C$8,,MATCH($AX71,Data_Sector_US!$D$11:$AB$11,0)) -> 0.9694218622 | BC71: =OFFSET(Data_Sector_US!$C$13,,MATCH($AX71,Data_Sector_US!$D$12:$AB$12,0)) -> 건강관리 | BD71: =OFFSET(Data_Sector_US!$C$9,,MATCH($AX71,Data_Sector_US!$D$12:$AB$12,0)) -> 3.143508495 | BK71: 10 | BL71: =OFFSET(Data_Comp!$A$4,$BK71,MATCH($BF$61,Data_Comp!$B$3:$GR$3,0)+MATCH(BL$61,Data_Comp!$B$4:$Y$4,0)-1) -> Northrop Grumman | BM71: =IFERROR(OFFSET(Data_Comp!$A$4,$BK71+MATCH(BM$61,Data_Comp!$A$5:$A$300,0),MATCH($BF$61,Data_Comp!$B$3:$GR$3,0)+MATCH(BL$61,Data_Comp!$B$4:$Y$4,0)-1),"") -> -0.1996355996 | BN71: =IFERROR(OFFSET(Data_Comp!$A$4,$BK71+MATCH(BN$61,Data_Comp!$A$5:$A$300,0),MATCH($BF$61,Data_Comp!$B$3:$GR$3,0)+MATCH(BL$61,Data_Comp!$B$4:$Y$4,0)-1),"") -> 49032.21 | BO71: =IFERROR(OFFSET(Data_Comp!$A$4,$BK71+MATCH(BO$61,Data_Comp!$A$5:$A$300,0),MATCH($BF$61,Data_Comp!$B$3:$GR$3,0)+MATCH(BL$61,Data_Comp!$B$4:$Y$4,0)-1),"") -> 21.42 | BP71: =IFERROR(OFFSET(Data_Comp!$A$4,$BK71+MATCH(BP$61,Data_Comp!$A$5:$A$300,0),MATCH($BF$61,Data_Comp!$B$3:$GR$3,0)+MATCH(BL$61,Data_Comp!$B$4:$Y$4,0)-1),"") -> 7.61 | BQ71: =IFERROR(OFFSET(Data_Comp!$A$4,$BK71+MATCH(BQ$61,Data_Comp!$A$5:$A$300,0),MATCH($BF$61,Data_Comp!$B$3:$GR$3,0)+MATCH(BL$61,Data_Comp!$B$4:$Y$4,0)-1),"") -> 3.56 | BR71: =IFERROR(OFFSET(Data_Comp!$A$4,$BK71+MATCH(BR$61,Data_Comp!$A$5:$A$300,0),MATCH($BF$61,Data_Comp!$B$3:$GR$3,0)+MATCH(BL$61,Data_Comp!$B$4:$Y$4,0)-1),"") -> 2.91 | BS71: =IFERROR(OFFSET(Data_Comp!$A$4,$BK71+MATCH(BS$61,Data_Comp!$A$5:$A$300,0),MATCH($BF$61,Data_Comp!$B$3:$GR$3,0)+MATCH(BL$61,Data_Comp!$B$4:$Y$4,0)-1),"") -> -0.18 | BT71: =IFERROR(OFFSET(Data_Comp!$A$4,$BK71+MATCH(BT$61,Data_Comp!$A$5:$A$300,0),MATCH($BF$61,Data_Comp!$B$3:$GR$3,0)+MATCH(BL$61,Data_Comp!$B$4:$Y$4,0)-1),"") -> 12.95 | BU71: =IFERROR(OFFSET(Data_Comp!$A$4,$BK71+MATCH(BU$61,Data_Comp!$A$5:$A$300,0),MATCH($BF$61,Data_Comp!$B$3:$GR$3,0)+MATCH(BL$61,Data_Comp!$B$4:$Y$4,0)-1),"") -> 8.65 | BV71: =IFERROR(OFFSET(Data_Comp!$A$4,$BK71+MATCH(BV$61,Data_Comp!$A$5:$A$300,0),MATCH($BF$61,Data_Comp!$B$3:$GR$3,0)+MATCH(BL$61,Data_Comp!$B$4:$Y$4,0)-1),"") -> 39.48 | BW71: =IFERROR(OFFSET(Data_Comp!$A$4,$BK71+MATCH(BW$61,Data_Comp!$A$5:$A$300,0),MATCH($BF$61,Data_Comp!$B$3:$GR$3,0)+MATCH(BL$61,Data_Comp!$B$4:$Y$4,0)-1),"") -> 1.24
AX72: 8 | AY72: =OFFSET(Data_Sector_US!$C$13,,MATCH($AX72,Data_Sector_US!$D$10:$AB$10,0)) -> 상사,자본재 | AZ72: =OFFSET(Data_Sector_US!$C$7,,MATCH($AX72,Data_Sector_US!$D$10:$AB$10,0)) -> 0.03347923217 | BA72: =OFFSET(Data_Sector_US!$C$13,,MATCH($AX72,Data_Sector_US!$D$11:$AB$11,0)) -> 화학 | BB72: =OFFSET(Data_Sector_US!$C$8,,MATCH($AX72,Data_Sector_US!$D$11:$AB$11,0)) -> 0.9524715091 | BC72: =OFFSET(Data_Sector_US!$C$13,,MATCH($AX72,Data_Sector_US!$D$12:$AB$12,0)) -> 호텔,레저서비스 | BD72: =OFFSET(Data_Sector_US!$C$9,,MATCH($AX72,Data_Sector_US!$D$12:$AB$12,0)) -> 3.102584481
AX73: 9 | AY73: =OFFSET(Data_Sector_US!$C$13,,MATCH($AX73,Data_Sector_US!$D$10:$AB$10,0)) -> 화학 | AZ73: =OFFSET(Data_Sector_US!$C$7,,MATCH($AX73,Data_Sector_US!$D$10:$AB$10,0)) -> 0.02363998302 | BA73: =OFFSET(Data_Sector_US!$C$13,,MATCH($AX73,Data_Sector_US!$D$11:$AB$11,0)) -> 소매(유통) | BB73: =OFFSET(Data_Sector_US!$C$8,,MATCH($AX73,Data_Sector_US!$D$11:$AB$11,0)) -> 0.8642278574 | BC73: =OFFSET(Data_Sector_US!$C$13,,MATCH($AX73,Data_Sector_US!$D$12:$AB$12,0)) -> 자동차 | BD73: =OFFSET(Data_Sector_US!$C$9,,MATCH($AX73,Data_Sector_US!$D$12:$AB$12,0)) -> 2.865479764
AX74: 10 | AY74: =OFFSET(Data_Sector_US!$C$13,,MATCH($AX74,Data_Sector_US!$D$10:$AB$10,0)) -> 소프트웨어 | AZ74: =OFFSET(Data_Sector_US!$C$7,,MATCH($AX74,Data_Sector_US!$D$10:$AB$10,0)) -> 0.01006886133 | BA74: =OFFSET(Data_Sector_US!$C$13,,MATCH($AX74,Data_Sector_US!$D$11:$AB$11,0)) -> 통신서비스 | BB74: =OFFSET(Data_Sector_US!$C$8,,MATCH($AX74,Data_Sector_US!$D$11:$AB$11,0)) -> 0.8589078165 | BC74: =OFFSET(Data_Sector_US!$C$13,,MATCH($AX74,Data_Sector_US!$D$12:$AB$12,0)) -> 미디어,교육 | BD74: =OFFSET(Data_Sector_US!$C$9,,MATCH($AX74,Data_Sector_US!$D$12:$AB$12,0)) -> 2.700124722
AX75: 11 | AY75: =OFFSET(Data_Sector_US!$C$13,,MATCH($AX75,Data_Sector_US!$D$10:$AB$10,0)) -> 건설,건축관련 | AZ75: =OFFSET(Data_Sector_US!$C$7,,MATCH($AX75,Data_Sector_US!$D$10:$AB$10,0)) -> 0.006897790079 | BA75: =OFFSET(Data_Sector_US!$C$13,,MATCH($AX75,Data_Sector_US!$D$11:$AB$11,0)) -> 건강관리 | BB75: =OFFSET(Data_Sector_US!$C$8,,MATCH($AX75,Data_Sector_US!$D$11:$AB$11,0)) -> 0.8326527891 | BC75: =OFFSET(Data_Sector_US!$C$13,,MATCH($AX75,Data_Sector_US!$D$12:$AB$12,0)) -> 통신서비스 | BD75: =OFFSET(Data_Sector_US!$C$9,,MATCH($AX75,Data_Sector_US!$D$12:$AB$12,0)) -> 2.536593882
AX76: 12 | AY76: =OFFSET(Data_Sector_US!$C$13,,MATCH($AX76,Data_Sector_US!$D$10:$AB$10,0)) -> 증권 | AZ76: =OFFSET(Data_Sector_US!$C$7,,MATCH($AX76,Data_Sector_US!$D$10:$AB$10,0)) -> -0.00920242674 | BA76: =OFFSET(Data_Sector_US!$C$13,,MATCH($AX76,Data_Sector_US!$D$11:$AB$11,0)) -> 자동차 | BB76: =OFFSET(Data_Sector_US!$C$8,,MATCH($AX76,Data_Sector_US!$D$11:$AB$11,0)) -> 0.8299699973 | BC76: =OFFSET(Data_Sector_US!$C$13,,MATCH($AX76,Data_Sector_US!$D$12:$AB$12,0)) -> 화학 | BD76: =OFFSET(Data_Sector_US!$C$9,,MATCH($AX76,Data_Sector_US!$D$12:$AB$12,0)) -> 2.237477461
AX77: 13 | AY77: =OFFSET(Data_Sector_US!$C$13,,MATCH($AX77,Data_Sector_US!$D$10:$AB$10,0)) -> 호텔,레저서비스 | AZ77: =OFFSET(Data_Sector_US!$C$7,,MATCH($AX77,Data_Sector_US!$D$10:$AB$10,0)) -> -0.0213185173 | BA77: =OFFSET(Data_Sector_US!$C$13,,MATCH($AX77,Data_Sector_US!$D$11:$AB$11,0)) -> 호텔,레저서비스 | BB77: =OFFSET(Data_Sector_US!$C$8,,MATCH($AX77,Data_Sector_US!$D$11:$AB$11,0)) -> 0.8196375054 | BC77: =OFFSET(Data_Sector_US!$C$13,,MATCH($AX77,Data_Sector_US!$D$12:$AB$12,0)) -> 증권 | BD77: =OFFSET(Data_Sector_US!$C$9,,MATCH($AX77,Data_Sector_US!$D$12:$AB$12,0)) -> 1.934136912
AX78: 14 | AY78: =OFFSET(Data_Sector_US!$C$13,,MATCH($AX78,Data_Sector_US!$D$10:$AB$10,0)) -> 은행 | AZ78: =OFFSET(Data_Sector_US!$C$7,,MATCH($AX78,Data_Sector_US!$D$10:$AB$10,0)) -> -0.02271690932 | BA78: =OFFSET(Data_Sector_US!$C$13,,MATCH($AX78,Data_Sector_US!$D$11:$AB$11,0)) -> IT하드웨어 | BB78: =OFFSET(Data_Sector_US!$C$8,,MATCH($AX78,Data_Sector_US!$D$11:$AB$11,0)) -> 0.7258001172 | BC78: =OFFSET(Data_Sector_US!$C$13,,MATCH($AX78,Data_Sector_US!$D$12:$AB$12,0)) -> 유틸리티 | BD78: =OFFSET(Data_Sector_US!$C$9,,MATCH($AX78,Data_Sector_US!$D$12:$AB$12,0)) -> 1.724893797
AX79: 15 | AY79: =OFFSET(Data_Sector_US!$C$13,,MATCH($AX79,Data_Sector_US!$D$10:$AB$10,0)) -> 건강관리 | AZ79: =OFFSET(Data_Sector_US!$C$7,,MATCH($AX79,Data_Sector_US!$D$10:$AB$10,0)) -> -0.02897876215 | BA79: =OFFSET(Data_Sector_US!$C$13,,MATCH($AX79,Data_Sector_US!$D$11:$AB$11,0)) -> 상사,자본재 | BB79: =OFFSET(Data_Sector_US!$C$8,,MATCH($AX79,Data_Sector_US!$D$11:$AB$11,0)) -> 0.6922618976 | BC79: =OFFSET(Data_Sector_US!$C$13,,MATCH($AX79,Data_Sector_US!$D$12:$AB$12,0)) -> 상사,자본재 | BD79: =OFFSET(Data_Sector_US!$C$9,,MATCH($AX79,Data_Sector_US!$D$12:$AB$12,0)) -> 1.572677963
AX80: 16 | AY80: =OFFSET(Data_Sector_US!$C$13,,MATCH($AX80,Data_Sector_US!$D$10:$AB$10,0)) -> 자동차 | AZ80: =OFFSET(Data_Sector_US!$C$7,,MATCH($AX80,Data_Sector_US!$D$10:$AB$10,0)) -> -0.04418609626 | BA80: =OFFSET(Data_Sector_US!$C$13,,MATCH($AX80,Data_Sector_US!$D$11:$AB$11,0)) -> 화장품,의류,완구 | BB80: =OFFSET(Data_Sector_US!$C$8,,MATCH($AX80,Data_Sector_US!$D$11:$AB$11,0)) -> 0.6721252372 | BC80: =OFFSET(Data_Sector_US!$C$13,,MATCH($AX80,Data_Sector_US!$D$12:$AB$12,0)) -> 화장품,의류,완구 | BD80: =OFFSET(Data_Sector_US!$C$9,,MATCH($AX80,Data_Sector_US!$D$12:$AB$12,0)) -> 1.449265038
B81: 업종별 12MF 순이익전망치 변화율 (1M) | AX81: 17 | AY81: =OFFSET(Data_Sector_US!$C$13,,MATCH($AX81,Data_Sector_US!$D$10:$AB$10,0)) -> 보험 | AZ81: =OFFSET(Data_Sector_US!$C$7,,MATCH($AX81,Data_Sector_US!$D$10:$AB$10,0)) -> -0.04430482799 | BA81: =OFFSET(Data_Sector_US!$C$13,,MATCH($AX81,Data_Sector_US!$D$11:$AB$11,0)) -> 증권 | BB81: =OFFSET(Data_Sector_US!$C$8,,MATCH($AX81,Data_Sector_US!$D$11:$AB$11,0)) -> 0.6481544069 | BC81: =OFFSET(Data_Sector_US!$C$13,,MATCH($AX81,Data_Sector_US!$D$12:$AB$12,0)) -> 필수소비재 | BD81: =OFFSET(Data_Sector_US!$C$9,,MATCH($AX81,Data_Sector_US!$D$12:$AB$12,0)) -> 1.284953563
AK82: =S84 -> 1M | AN82: FY1 | AX82: 18 | AY82: =OFFSET(Data_Sector_US!$C$13,,MATCH($AX82,Data_Sector_US!$D$10:$AB$10,0)) -> 필수소비재 | AZ82: =OFFSET(Data_Sector_US!$C$7,,MATCH($AX82,Data_Sector_US!$D$10:$AB$10,0)) -> -0.05060253084 | BA82: =OFFSET(Data_Sector_US!$C$13,,MATCH($AX82,Data_Sector_US!$D$11:$AB$11,0)) -> 유틸리티 | BB82: =OFFSET(Data_Sector_US!$C$8,,MATCH($AX82,Data_Sector_US!$D$11:$AB$11,0)) -> 0.5441026263 | BC82: =OFFSET(Data_Sector_US!$C$13,,MATCH($AX82,Data_Sector_US!$D$12:$AB$12,0)) -> 건설,건축관련 | BD82: =OFFSET(Data_Sector_US!$C$9,,MATCH($AX82,Data_Sector_US!$D$12:$AB$12,0)) -> 0.8880455156
R83: 업종명 | S83: 기계 | AI83: 종목명 | AJ83: 시가총액 | AK83: 12MF 순이익 변화율 | AL83: 12MF PE | AM83: 12MF PB | AN83: Sales growth | AO83: OP growth | AP83: NP growth | AQ83: OPM | AR83: NPM | AS83: ROE | AT83: Div. yield | AX83: 19 | AY83: =OFFSET(Data_Sector_US!$C$13,,MATCH($AX83,Data_Sector_US!$D$10:$AB$10,0)) -> 소매(유통) | AZ83: =OFFSET(Data_Sector_US!$C$7,,MATCH($AX83,Data_Sector_US!$D$10:$AB$10,0)) -> -0.1762406037 | BA83: =OFFSET(Data_Sector_US!$C$13,,MATCH($AX83,Data_Sector_US!$D$11:$AB$11,0)) -> 은행 | BB83: =OFFSET(Data_Sector_US!$C$8,,MATCH($AX83,Data_Sector_US!$D$11:$AB$11,0)) -> 0.535957615 | BC83: =OFFSET(Data_Sector_US!$C$13,,MATCH($AX83,Data_Sector_US!$D$12:$AB$12,0)) -> 보험 | BD83: =OFFSET(Data_Sector_US!$C$9,,MATCH($AX83,Data_Sector_US!$D$12:$AB$12,0)) -> 0.6438195321 | BL83: =S83 -> 기계 | BM83: =S84 -> 1M
R84: 기간 | S84: 1M | AH84: 1 | AI84: =IFERROR(BL84,"") -> Caterpillar | AJ84: =IF(BN84="","",BN84) -> 73534.77 | AK84: =IF(BM84="","",BM84) -> 3.766189455 | AL84: =IF(BO84="","",BO84) -> 19.66 | AM84: =IF(BP84="","",BP84) -> 4.55 | AN84: =IF(BQ84="","",BQ84) -> 11.46 | AO84: =IF(BR84="","",BR84) -> 94.92 | AP84: =IF(BS84="","",BS84) -> 흑전(4670.35000) | AQ84: =IF(BT84="","",BT84) -> 9.6 | AR84: =IF(BU84="","",BU84) -> 7.13 | AS84: =IF(BV84="","",BV84) -> 21.69 | AT84: =IF(BW84="","",BW84) -> 2.5 | AX84: 20 | AY84: =OFFSET(Data_Sector_US!$C$13,,MATCH($AX84,Data_Sector_US!$D$10:$AB$10,0)) -> 철강 | AZ84: =OFFSET(Data_Sector_US!$C$7,,MATCH($AX84,Data_Sector_US!$D$10:$AB$10,0)) -> -0.1926422726 | BA84: =OFFSET(Data_Sector_US!$C$13,,MATCH($AX84,Data_Sector_US!$D$11:$AB$11,0)) -> 필수소비재 | BB84: =OFFSET(Data_Sector_US!$C$8,,MATCH($AX84,Data_Sector_US!$D$11:$AB$11,0)) -> 0.5327309534 | BC84: =OFFSET(Data_Sector_US!$C$13,,MATCH($AX84,Data_Sector_US!$D$12:$AB$12,0)) -> 운송 | BD84: =OFFSET(Data_Sector_US!$C$9,,MATCH($AX84,Data_Sector_US!$D$12:$AB$12,0)) -> -0.1590930611 | BK84: 1 | BL84: =OFFSET(Data_Comp!$A$4,$BK84,MATCH($BF$61,Data_Comp!$B$3:$GR$3,0)+MATCH(BL$83,Data_Comp!$B$4:$Y$4,0)-1) -> Caterpillar | BM84: =IFERROR(OFFSET(Data_Comp!$A$4,$BK84+MATCH(BM$83,Data_Comp!$A$5:$A$300,0),MATCH($BF$61,Data_Comp!$B$3:$GR$3,0)+MATCH(BL$83,Data_Comp!$B$4:$Y$4,0)-1),"") -> 3.766189455 | BN84: =IFERROR(OFFSET(Data_Comp!$A$4,$BK84+MATCH(BN$61,Data_Comp!$A$5:$A$300,0),MATCH($BF$61,Data_Comp!$B$3:$GR$3,0)+MATCH(BL$83,Data_Comp!$B$4:$Y$4,0)-1),"") -> 73534.77 | BO84: =IFERROR(OFFSET(Data_Comp!$A$4,$BK84+MATCH(BO$61,Data_Comp!$A$5:$A$300,0),MATCH($BF$61,Data_Comp!$B$3:$GR$3,0)+MATCH(BL$83,Data_Comp!$B$4:$Y$4,0)-1),"") -> 19.66 | BP84: =IFERROR(OFFSET(Data_Comp!$A$4,$BK84+MATCH(BP$61,Data_Comp!$A$5:$A$300,0),MATCH($BF$61,Data_Comp!$B$3:$GR$3,0)+MATCH(BL$83,Data_Comp!$B$4:$Y$4,0)-1),"") -> 4.55 | BQ84: =IFERROR(OFFSET(Data_Comp!$A$4,$BK84+MATCH(BQ$61,Data_Comp!$A$5:$A$300,0),MATCH($BF$61,Data_Comp!$B$3:$GR$3,0)+MATCH(BL$83,Data_Comp!$B$4:$Y$4,0)-1),"") -> 11.46 | BR84: =IFERROR(OFFSET(Data_Comp!$A$4,$BK84+MATCH(BR$61,Data_Comp!$A$5:$A$300,0),MATCH($BF$61,Data_Comp!$B$3:$GR$3,0)+MATCH(BL$83,Data_Comp!$B$4:$Y$4,0)-1),"") -> 94.92 | BS84: =IFERROR(OFFSET(Data_Comp!$A$4,$BK84+MATCH(BS$61,Data_Comp!$A$5:$A$300,0),MATCH($BF$61,Data_Comp!$B$3:$GR$3,0)+MATCH(BL$83,Data_Comp!$B$4:$Y$4,0)-1),"") -> 흑전(4670.35000) | BT84: =IFERROR(OFFSET(Data_Comp!$A$4,$BK84+MATCH(BT$61,Data_Comp!$A$5:$A$300,0),MATCH($BF$61,Data_Comp!$B$3:$GR$3,0)+MATCH(BL$83,Data_Comp!$B$4:$Y$4,0)-1),"") -> 9.6 | BU84: =IFERROR(OFFSET(Data_Comp!$A$4,$BK84+MATCH(BU$61,Data_Comp!$A$5:$A$300,0),MATCH($BF$61,Data_Comp!$B$3:$GR$3,0)+MATCH(BL$83,Data_Comp!$B$4:$Y$4,0)-1),"") -> 7.13 | BV84: =IFERROR(OFFSET(Data_Comp!$A$4,$BK84+MATCH(BV$61,Data_Comp!$A$5:$A$300,0),MATCH($BF$61,Data_Comp!$B$3:$GR$3,0)+MATCH(BL$83,Data_Comp!$B$4:$Y$4,0)-1),"") -> 21.69 | BW84: =IFERROR(OFFSET(Data_Comp!$A$4,$BK84+MATCH(BW$61,Data_Comp!$A$5:$A$300,0),MATCH($BF$61,Data_Comp!$B$3:$GR$3,0)+MATCH(BL$83,Data_Comp!$B$4:$Y$4,0)-1),"") -> 2.5
AH85: =AH84+1 -> 2 | AI85: Illinois Tool Works | AJ85: 50727.56 | AK85: 0.5847229395 | AL85: 21.52 | AM85: 9.79 | AN85: 3.81 | AO85: 9.17 | AP85: 9.68 | AQ85: 23.69 | AR85: 15.81 | AS85: 49.36 | AT85: 1.77 | AX85: 21 | AY85: =OFFSET(Data_Sector_US!$C$13,,MATCH($AX85,Data_Sector_US!$D$10:$AB$10,0)) -> 화장품,의류,완구 | AZ85: =OFFSET(Data_Sector_US!$C$7,,MATCH($AX85,Data_Sector_US!$D$10:$AB$10,0)) -> -0.2473740418 | BA85: =OFFSET(Data_Sector_US!$C$13,,MATCH($AX85,Data_Sector_US!$D$11:$AB$11,0)) -> 보험 | BB85: =OFFSET(Data_Sector_US!$C$8,,MATCH($AX85,Data_Sector_US!$D$11:$AB$11,0)) -> -0.01341876937 | BC85: =OFFSET(Data_Sector_US!$C$13,,MATCH($AX85,Data_Sector_US!$D$12:$AB$12,0)) -> 소매(유통) | BD85: =OFFSET(Data_Sector_US!$C$9,,MATCH($AX85,Data_Sector_US!$D$12:$AB$12,0)) -> -0.6210856809 | BK85: =BK84+1 -> 2 | BL85: =OFFSET(Data_Comp!$A$4,$BK85,MATCH($BF$61,Data_Comp!$B$3:$GR$3,0)+MATCH(BL$83,Data_Comp!$B$4:$Y$4,0)-1) -> Illinois Tool Works | BM85: =IFERROR(OFFSET(Data_Comp!$A$4,$BK85+MATCH(BM$83,Data_Comp!$A$5:$A$300,0),MATCH($BF$61,Data_Comp!$B$3:$GR$3,0)+MATCH(BL$83,Data_Comp!$B$4:$Y$4,0)-1),"") -> 0.5847229395 | BN85: =IFERROR(OFFSET(Data_Comp!$A$4,$BK85+MATCH(BN$61,Data_Comp!$A$5:$A$300,0),MATCH($BF$61,Data_Comp!$B$3:$GR$3,0)+MATCH(BL$83,Data_Comp!$B$4:$Y$4,0)-1),"") -> 50727.56 | BO85: =IFERROR(OFFSET(Data_Comp!$A$4,$BK85+MATCH(BO$61,Data_Comp!$A$5:$A$300,0),MATCH($BF$61,Data_Comp!$B$3:$GR$3,0)+MATCH(BL$83,Data_Comp!$B$4:$Y$4,0)-1),"") -> 21.52 | BP85: =IFERROR(OFFSET(Data_Comp!$A$4,$BK85+MATCH(BP$61,Data_Comp!$A$5:$A$300,0),MATCH($BF$61,Data_Comp!$B$3:$GR$3,0)+MATCH(BL$83,Data_Comp!$B$4:$Y$4,0)-1),"") -> 9.79 | BQ85: =IFERROR(OFFSET(Data_Comp!$A$4,$BK85+MATCH(BQ$61,Data_Comp!$A$5:$A$300,0),MATCH($BF$61,Data_Comp!$B$3:$GR$3,0)+MATCH(BL$83,Data_Comp!$B$4:$Y$4,0)-1),"") -> 3.81 | BR85: =IFERROR(OFFSET(Data_Comp!$A$4,$BK85+MATCH(BR$61,Data_Comp!$A$5:$A$300,0),MATCH($BF$61,Data_Comp!$B$3:$GR$3,0)+MATCH(BL$83,Data_Comp!$B$4:$Y$4,0)-1),"") -> 9.17 | BS85: =IFERROR(OFFSET(Data_Comp!$A$4,$BK85+MATCH(BS$61,Data_Comp!$A$5:$A$300,0),MATCH($BF$61,Data_Comp!$B$3:$GR$3,0)+MATCH(BL$83,Data_Comp!$B$4:$Y$4,0)-1),"") -> 9.68 | BT85: =IFERROR(OFFSET(Data_Comp!$A$4,$BK85+MATCH(BT$61,Data_Comp!$A$5:$A$300,0),MATCH($BF$61,Data_Comp!$B$3:$GR$3,0)+MATCH(BL$83,Data_Comp!$B$4:$Y$4,0)-1),"") -> 23.69 | BU85: =IFERROR(OFFSET(Data_Comp!$A$4,$BK85+MATCH(BU$61,Data_Comp!$A$5:$A$300,0),MATCH($BF$61,Data_Comp!$B$3:$GR$3,0)+MATCH(BL$83,Data_Comp!$B$4:$Y$4,0)-1),"") -> 15.81 | BV85: =IFERROR(OFFSET(Data_Comp!$A$4,$BK85+MATCH(BV$61,Data_Comp!$A$5:$A$300,0),MATCH($BF$61,Data_Comp!$B$3:$GR$3,0)+MATCH(BL$83,Data_Comp!$B$4:$Y$4,0)-1),"") -> 49.36 | BW85: =IFERROR(OFFSET(Data_Comp!$A$4,$BK85+MATCH(BW$61,Data_Comp!$A$5:$A$300,0),MATCH($BF$61,Data_Comp!$B$3:$GR$3,0)+MATCH(BL$83,Data_Comp!$B$4:$Y$4,0)-1),"") -> 1.77
AH86: =AH85+1 -> 3 | AI86: Emerson Electric | AJ86: 40602.87 | AK86: 0.4891470498 | AL86: 21.67 | AM86: 5.19 | AN86: 5.15 | AO86: 3.51 | AP86: 4.32 | AQ86: 18.91 | AR86: 10.86 | AS86: 21.77 | AT86: 3.03 | AX86: 22 | AY86: =OFFSET(Data_Sector_US!$C$13,,MATCH($AX86,Data_Sector_US!$D$10:$AB$10,0)) -> 에너지 | AZ86: =OFFSET(Data_Sector_US!$C$7,,MATCH($AX86,Data_Sector_US!$D$10:$AB$10,0)) -> -0.2941407602 | BA86: =OFFSET(Data_Sector_US!$C$13,,MATCH($AX86,Data_Sector_US!$D$11:$AB$11,0)) -> 철강 | BB86: =OFFSET(Data_Sector_US!$C$8,,MATCH($AX86,Data_Sector_US!$D$11:$AB$11,0)) -> -0.9088927637 | BC86: =OFFSET(Data_Sector_US!$C$13,,MATCH($AX86,Data_Sector_US!$D$12:$AB$12,0)) -> 소프트웨어 | BD86: =OFFSET(Data_Sector_US!$C$9,,MATCH($AX86,Data_Sector_US!$D$12:$AB$12,0)) -> -3.592568227 | BK86: =BK85+1 -> 3 | BL86: =OFFSET(Data_Comp!$A$4,$BK86,MATCH($BF$61,Data_Comp!$B$3:$GR$3,0)+MATCH(BL$83,Data_Comp!$B$4:$Y$4,0)-1) -> Emerson Electric | BM86: =IFERROR(OFFSET(Data_Comp!$A$4,$BK86+MATCH(BM$83,Data_Comp!$A$5:$A$300,0),MATCH($BF$61,Data_Comp!$B$3:$GR$3,0)+MATCH(BL$83,Data_Comp!$B$4:$Y$4,0)-1),"") -> 0.4891470498 | BN86: =IFERROR(OFFSET(Data_Comp!$A$4,$BK86+MATCH(BN$61,Data_Comp!$A$5:$A$300,0),MATCH($BF$61,Data_Comp!$B$3:$GR$3,0)+MATCH(BL$83,Data_Comp!$B$4:$Y$4,0)-1),"") -> 40602.87 | BO86: =IFERROR(OFFSET(Data_Comp!$A$4,$BK86+MATCH(BO$61,Data_Comp!$A$5:$A$300,0),MATCH($BF$61,Data_Comp!$B$3:$GR$3,0)+MATCH(BL$83,Data_Comp!$B$4:$Y$4,0)-1),"") -> 21.67 | BP86: =IFERROR(OFFSET(Data_Comp!$A$4,$BK86+MATCH(BP$61,Data_Comp!$A$5:$A$300,0),MATCH($BF$61,Data_Comp!$B$3:$GR$3,0)+MATCH(BL$83,Data_Comp!$B$4:$Y$4,0)-1),"") -> 5.19 | BQ86: =IFERROR(OFFSET(Data_Comp!$A$4,$BK86+MATCH(BQ$61,Data_Comp!$A$5:$A$300,0),MATCH($BF$61,Data_Comp!$B$3:$GR$3,0)+MATCH(BL$83,Data_Comp!$B$4:$Y$4,0)-1),"") -> 5.15 | BR86: =IFERROR(OFFSET(Data_Comp!$A$4,$BK86+MATCH(BR$61,Data_Comp!$A$5:$A$300,0),MATCH($BF$61,Data_Comp!$B$3:$GR$3,0)+MATCH(BL$83,Data_Comp!$B$4:$Y$4,0)-1),"") -> 3.51 | BS86: =IFERROR(OFFSET(Data_Comp!$A$4,$BK86+MATCH(BS$61,Data_Comp!$A$5:$A$300,0),MATCH($BF$61,Data_Comp!$B$3:$GR$3,0)+MATCH(BL$83,Data_Comp!$B$4:$Y$4,0)-1),"") -> 4.32 | BT86: =IFERROR(OFFSET(Data_Comp!$A$4,$BK86+MATCH(BT$61,Data_Comp!$A$5:$A$300,0),MATCH($BF$61,Data_Comp!$B$3:$GR$3,0)+MATCH(BL$83,Data_Comp!$B$4:$Y$4,0)-1),"") -> 18.91 | BU86: =IFERROR(OFFSET(Data_Comp!$A$4,$BK86+MATCH(BU$61,Data_Comp!$A$5:$A$300,0),MATCH($BF$61,Data_Comp!$B$3:$GR$3,0)+MATCH(BL$83,Data_Comp!$B$4:$Y$4,0)-1),"") -> 10.86 | BV86: =IFERROR(OFFSET(Data_Comp!$A$4,$BK86+MATCH(BV$61,Data_Comp!$A$5:$A$300,0),MATCH($BF$61,Data_Comp!$B$3:$GR$3,0)+MATCH(BL$83,Data_Comp!$B$4:$Y$4,0)-1),"") -> 21.77 | BW86: =IFERROR(OFFSET(Data_Comp!$A$4,$BK86+MATCH(BW$61,Data_Comp!$A$5:$A$300,0),MATCH($BF$61,Data_Comp!$B$3:$GR$3,0)+MATCH(BL$83,Data_Comp!$B$4:$Y$4,0)-1),"") -> 3.03
AH87: 4 | AI87: Eaton | AJ87: 34738.88 | AK87: 0.6646386431 | AL87: 15.91 | AM87: 2.18 | AN87: 2.16 | AO87: 0.76 | AP87: 6.93 | AQ87: 12.37 | AR87: 10.19 | AS87: 13.34 | AT87: 3.07 | AX87: 23 | AY87: =OFFSET(Data_Sector_US!$C$13,,MATCH($AX87,Data_Sector_US!$D$10:$AB$10,0)) -> 운송 | AZ87: =OFFSET(Data_Sector_US!$C$7,,MATCH($AX87,Data_Sector_US!$D$10:$AB$10,0)) -> -1.060570644 | BA87: =OFFSET(Data_Sector_US!$C$13,,MATCH($AX87,Data_Sector_US!$D$11:$AB$11,0)) -> 운송 | BB87: =OFFSET(Data_Sector_US!$C$8,,MATCH($AX87,Data_Sector_US!$D$11:$AB$11,0)) -> -2.186211691 | BC87: =OFFSET(Data_Sector_US!$C$13,,MATCH($AX87,Data_Sector_US!$D$12:$AB$12,0)) -> 에너지 | BD87: =OFFSET(Data_Sector_US!$C$9,,MATCH($AX87,Data_Sector_US!$D$12:$AB$12,0)) -> -7.177399034 | BK87: 4 | BL87: =OFFSET(Data_Comp!$A$4,$BK87,MATCH($BF$61,Data_Comp!$B$3:$GR$3,0)+MATCH(BL$83,Data_Comp!$B$4:$Y$4,0)-1) -> Eaton | BM87: =IFERROR(OFFSET(Data_Comp!$A$4,$BK87+MATCH(BM$83,Data_Comp!$A$5:$A$300,0),MATCH($BF$61,Data_Comp!$B$3:$GR$3,0)+MATCH(BL$83,Data_Comp!$B$4:$Y$4,0)-1),"") -> 0.6646386431 | BN87: =IFERROR(OFFSET(Data_Comp!$A$4,$BK87+MATCH(BN$61,Data_Comp!$A$5:$A$300,0),MATCH($BF$61,Data_Comp!$B$3:$GR$3,0)+MATCH(BL$83,Data_Comp!$B$4:$Y$4,0)-1),"") -> 34738.88 | BO87: =IFERROR(OFFSET(Data_Comp!$A$4,$BK87+MATCH(BO$61,Data_Comp!$A$5:$A$300,0),MATCH($BF$61,Data_Comp!$B$3:$GR$3,0)+MATCH(BL$83,Data_Comp!$B$4:$Y$4,0)-1),"") -> 15.91 | BP87: =IFERROR(OFFSET(Data_Comp!$A$4,$BK87+MATCH(BP$61,Data_Comp!$A$5:$A$300,0),MATCH($BF$61,Data_Comp!$B$3:$GR$3,0)+MATCH(BL$83,Data_Comp!$B$4:$Y$4,0)-1),"") -> 2.18 | BQ87: =IFERROR(OFFSET(Data_Comp!$A$4,$BK87+MATCH(BQ$61,Data_Comp!$A$5:$A$300,0),MATCH($BF$61,Data_Comp!$B$3:$GR$3,0)+MATCH(BL$83,Data_Comp!$B$4:$Y$4,0)-1),"") -> 2.16 | BR87: =IFERROR(OFFSET(Data_Comp!$A$4,$BK87+MATCH(BR$61,Data_Comp!$A$5:$A$300,0),MATCH($BF$61,Data_Comp!$B$3:$GR$3,0)+MATCH(BL$83,Data_Comp!$B$4:$Y$4,0)-1),"") -> 0.76 | BS87: =IFERROR(OFFSET(Data_Comp!$A$4,$BK87+MATCH(BS$61,Data_Comp!$A$5:$A$300,0),MATCH($BF$61,Data_Comp!$B$3:$GR$3,0)+MATCH(BL$83,Data_Comp!$B$4:$Y$4,0)-1),"") -> 6.93 | BT87: =IFERROR(OFFSET(Data_Comp!$A$4,$BK87+MATCH(BT$61,Data_Comp!$A$5:$A$300,0),MATCH($BF$61,Data_Comp!$B$3:$GR$3,0)+MATCH(BL$83,Data_Comp!$B$4:$Y$4,0)-1),"") -> 12.37 | BU87: =IFERROR(OFFSET(Data_Comp!$A$4,$BK87+MATCH(BU$61,Data_Comp!$A$5:$A$300,0),MATCH($BF$61,Data_Comp!$B$3:$GR$3,0)+MATCH(BL$83,Data_Comp!$B$4:$Y$4,0)-1),"") -> 10.19 | BV87: =IFERROR(OFFSET(Data_Comp!$A$4,$BK87+MATCH(BV$61,Data_Comp!$A$5:$A$300,0),MATCH($BF$61,Data_Comp!$B$3:$GR$3,0)+MATCH(BL$83,Data_Comp!$B$4:$Y$4,0)-1),"") -> 13.34 | BW87: =IFERROR(OFFSET(Data_Comp!$A$4,$BK87+MATCH(BW$61,Data_Comp!$A$5:$A$300,0),MATCH($BF$61,Data_Comp!$B$3:$GR$3,0)+MATCH(BL$83,Data_Comp!$B$4:$Y$4,0)-1),"") -> 3.07
AH88: 5 | AI88: Deere & Company | AJ88: 39582.93 | AK88: 0.6128961904 | AL88: 17.51 | AM88: 4.2 | AN88: -3.28 | AO88: -16.98 | AP88: 37.59 | AQ88: 9.26 | AR88: 8.16 | AS88: 28.01 | AT88: 1.94 | AX88: 24 | AY88: =OFFSET(Data_Sector_US!$C$13,,MATCH($AX88,Data_Sector_US!$D$10:$AB$10,0)) ->  | AZ88: =OFFSET(Data_Sector_US!$C$7,,MATCH($AX88,Data_Sector_US!$D$10:$AB$10,0)) ->  | BA88: =OFFSET(Data_Sector_US!$C$13,,MATCH($AX88,Data_Sector_US!$D$11:$AB$11,0)) ->  | BB88: =OFFSET(Data_Sector_US!$C$8,,MATCH($AX88,Data_Sector_US!$D$11:$AB$11,0)) ->  | BC88: =OFFSET(Data_Sector_US!$C$13,,MATCH($AX88,Data_Sector_US!$D$12:$AB$12,0)) ->  | BD88: =OFFSET(Data_Sector_US!$C$9,,MATCH($AX88,Data_Sector_US!$D$12:$AB$12,0)) ->  | BK88: 5 | BL88: =OFFSET(Data_Comp!$A$4,$BK88,MATCH($BF$61,Data_Comp!$B$3:$GR$3,0)+MATCH(BL$83,Data_Comp!$B$4:$Y$4,0)-1) -> Deere & Company | BM88: =IFERROR(OFFSET(Data_Comp!$A$4,$BK88+MATCH(BM$83,Data_Comp!$A$5:$A$300,0),MATCH($BF$61,Data_Comp!$B$3:$GR$3,0)+MATCH(BL$83,Data_Comp!$B$4:$Y$4,0)-1),"") -> 0.6128961904 | BN88: =IFERROR(OFFSET(Data_Comp!$A$4,$BK88+MATCH(BN$61,Data_Comp!$A$5:$A$300,0),MATCH($BF$61,Data_Comp!$B$3:$GR$3,0)+MATCH(BL$83,Data_Comp!$B$4:$Y$4,0)-1),"") -> 39582.93 | BO88: =IFERROR(OFFSET(Data_Comp!$A$4,$BK88+MATCH(BO$61,Data_Comp!$A$5:$A$300,0),MATCH($BF$61,Data_Comp!$B$3:$GR$3,0)+MATCH(BL$83,Data_Comp!$B$4:$Y$4,0)-1),"") -> 17.51 | BP88: =IFERROR(OFFSET(Data_Comp!$A$4,$BK88+MATCH(BP$61,Data_Comp!$A$5:$A$300,0),MATCH($BF$61,Data_Comp!$B$3:$GR$3,0)+MATCH(BL$83,Data_Comp!$B$4:$Y$4,0)-1),"") -> 4.2 | BQ88: =IFERROR(OFFSET(Data_Comp!$A$4,$BK88+MATCH(BQ$61,Data_Comp!$A$5:$A$300,0),MATCH($BF$61,Data_Comp!$B$3:$GR$3,0)+MATCH(BL$83,Data_Comp!$B$4:$Y$4,0)-1),"") -> -3.28 | BR88: =IFERROR(OFFSET(Data_Comp!$A$4,$BK88+MATCH(BR$61,Data_Comp!$A$5:$A$300,0),MATCH($BF$61,Data_Comp!$B$3:$GR$3,0)+MATCH(BL$83,Data_Comp!$B$4:$Y$4,0)-1),"") -> -16.98 | BS88: =IFERROR(OFFSET(Data_Comp!$A$4,$BK88+MATCH(BS$61,Data_Comp!$A$5:$A$300,0),MATCH($BF$61,Data_Comp!$B$3:$GR$3,0)+MATCH(BL$83,Data_Comp!$B$4:$Y$4,0)-1),"") -> 37.59 | BT88: =IFERROR(OFFSET(Data_Comp!$A$4,$BK88+MATCH(BT$61,Data_Comp!$A$5:$A$300,0),MATCH($BF$61,Data_Comp!$B$3:$GR$3,0)+MATCH(BL$83,Data_Comp!$B$4:$Y$4,0)-1),"") -> 9.26 | BU88: =IFERROR(OFFSET(Data_Comp!$A$4,$BK88+MATCH(BU$61,Data_Comp!$A$5:$A$300,0),MATCH($BF$61,Data_Comp!$B$3:$GR$3,0)+MATCH(BL$83,Data_Comp!$B$4:$Y$4,0)-1),"") -> 8.16 | BV88: =IFERROR(OFFSET(Data_Comp!$A$4,$BK88+MATCH(BV$61,Data_Comp!$A$5:$A$300,0),MATCH($BF$61,Data_Comp!$B$3:$GR$3,0)+MATCH(BL$83,Data_Comp!$B$4:$Y$4,0)-1),"") -> 28.01 | BW88: =IFERROR(OFFSET(Data_Comp!$A$4,$BK88+MATCH(BW$61,Data_Comp!$A$5:$A$300,0),MATCH($BF$61,Data_Comp!$B$3:$GR$3,0)+MATCH(BL$83,Data_Comp!$B$4:$Y$4,0)-1),"") -> 1.94
AH89: 6 | AI89: Cummins | AJ89: 28156.98 | AK89: 0.7559201183 | AL89: 16.2 | AM89: 3.55 | AN89: 10.46 | AO89: 31.75 | AP89: 17.88 | AQ89: 12.16 | AR89: 8.48 | AS89: 22.59 | AT89: 2.47 | BK89: 6 | BL89: =OFFSET(Data_Comp!$A$4,$BK89,MATCH($BF$61,Data_Comp!$B$3:$GR$3,0)+MATCH(BL$83,Data_Comp!$B$4:$Y$4,0)-1) -> Cummins | BM89: =IFERROR(OFFSET(Data_Comp!$A$4,$BK89+MATCH(BM$83,Data_Comp!$A$5:$A$300,0),MATCH($BF$61,Data_Comp!$B$3:$GR$3,0)+MATCH(BL$83,Data_Comp!$B$4:$Y$4,0)-1),"") -> 0.7559201183 | BN89: =IFERROR(OFFSET(Data_Comp!$A$4,$BK89+MATCH(BN$61,Data_Comp!$A$5:$A$300,0),MATCH($BF$61,Data_Comp!$B$3:$GR$3,0)+MATCH(BL$83,Data_Comp!$B$4:$Y$4,0)-1),"") -> 28156.98 | BO89: =IFERROR(OFFSET(Data_Comp!$A$4,$BK89+MATCH(BO$61,Data_Comp!$A$5:$A$300,0),MATCH($BF$61,Data_Comp!$B$3:$GR$3,0)+MATCH(BL$83,Data_Comp!$B$4:$Y$4,0)-1),"") -> 16.2 | BP89: =IFERROR(OFFSET(Data_Comp!$A$4,$BK89+MATCH(BP$61,Data_Comp!$A$5:$A$300,0),MATCH($BF$61,Data_Comp!$B$3:$GR$3,0)+MATCH(BL$83,Data_Comp!$B$4:$Y$4,0)-1),"") -> 3.55 | BQ89: =IFERROR(OFFSET(Data_Comp!$A$4,$BK89+MATCH(BQ$61,Data_Comp!$A$5:$A$300,0),MATCH($BF$61,Data_Comp!$B$3:$GR$3,0)+MATCH(BL$83,Data_Comp!$B$4:$Y$4,0)-1),"") -> 10.46 | BR89: =IFERROR(OFFSET(Data_Comp!$A$4,$BK89+MATCH(BR$61,Data_Comp!$A$5:$A$300,0),MATCH($BF$61,Data_Comp!$B$3:$GR$3,0)+MATCH(BL$83,Data_Comp!$B$4:$Y$4,0)-1),"") -> 31.75 | BS89: =IFERROR(OFFSET(Data_Comp!$A$4,$BK89+MATCH(BS$61,Data_Comp!$A$5:$A$300,0),MATCH($BF$61,Data_Comp!$B$3:$GR$3,0)+MATCH(BL$83,Data_Comp!$B$4:$Y$4,0)-1),"") -> 17.88 | BT89: =IFERROR(OFFSET(Data_Comp!$A$4,$BK89+MATCH(BT$61,Data_Comp!$A$5:$A$300,0),MATCH($BF$61,Data_Comp!$B$3:$GR$3,0)+MATCH(BL$83,Data_Comp!$B$4:$Y$4,0)-1),"") -> 12.16 | BU89: =IFERROR(OFFSET(Data_Comp!$A$4,$BK89+MATCH(BU$61,Data_Comp!$A$5:$A$300,0),MATCH($BF$61,Data_Comp!$B$3:$GR$3,0)+MATCH(BL$83,Data_Comp!$B$4:$Y$4,0)-1),"") -> 8.48 | BV89: =IFERROR(OFFSET(Data_Comp!$A$4,$BK89+MATCH(BV$61,Data_Comp!$A$5:$A$300,0),MATCH($BF$61,Data_Comp!$B$3:$GR$3,0)+MATCH(BL$83,Data_Comp!$B$4:$Y$4,0)-1),"") -> 22.59 | BW89: =IFERROR(OFFSET(Data_Comp!$A$4,$BK89+MATCH(BW$61,Data_Comp!$A$5:$A$300,0),MATCH($BF$61,Data_Comp!$B$3:$GR$3,0)+MATCH(BL$83,Data_Comp!$B$4:$Y$4,0)-1),"") -> 2.47
AH90: 7 | AI90: PACCAR | AJ90: 25095.27 | AK90: 0.9039885756 | AL90: 16.52 | AM90: 2.96 | AN90: 0.86 | AO90: -11.33 | AP90: 169.49 | AQ90: 10.06 | AR90: 8.2 | AS90: 19.04 | AT90: 2.34 | BK90: 7 | BL90: =OFFSET(Data_Comp!$A$4,$BK90,MATCH($BF$61,Data_Comp!$B$3:$GR$3,0)+MATCH(BL$83,Data_Comp!$B$4:$Y$4,0)-1) -> PACCAR | BM90: =IFERROR(OFFSET(Data_Comp!$A$4,$BK90+MATCH(BM$83,Data_Comp!$A$5:$A$300,0),MATCH($BF$61,Data_Comp!$B$3:$GR$3,0)+MATCH(BL$83,Data_Comp!$B$4:$Y$4,0)-1),"") -> 0.9039885756 | BN90: =IFERROR(OFFSET(Data_Comp!$A$4,$BK90+MATCH(BN$61,Data_Comp!$A$5:$A$300,0),MATCH($BF$61,Data_Comp!$B$3:$GR$3,0)+MATCH(BL$83,Data_Comp!$B$4:$Y$4,0)-1),"") -> 25095.27 | BO90: =IFERROR(OFFSET(Data_Comp!$A$4,$BK90+MATCH(BO$61,Data_Comp!$A$5:$A$300,0),MATCH($BF$61,Data_Comp!$B$3:$GR$3,0)+MATCH(BL$83,Data_Comp!$B$4:$Y$4,0)-1),"") -> 16.52 | BP90: =IFERROR(OFFSET(Data_Comp!$A$4,$BK90+MATCH(BP$61,Data_Comp!$A$5:$A$300,0),MATCH($BF$61,Data_Comp!$B$3:$GR$3,0)+MATCH(BL$83,Data_Comp!$B$4:$Y$4,0)-1),"") -> 2.96 | BQ90: =IFERROR(OFFSET(Data_Comp!$A$4,$BK90+MATCH(BQ$61,Data_Comp!$A$5:$A$300,0),MATCH($BF$61,Data_Comp!$B$3:$GR$3,0)+MATCH(BL$83,Data_Comp!$B$4:$Y$4,0)-1),"") -> 0.86 | BR90: =IFERROR(OFFSET(Data_Comp!$A$4,$BK90+MATCH(BR$61,Data_Comp!$A$5:$A$300,0),MATCH($BF$61,Data_Comp!$B$3:$GR$3,0)+MATCH(BL$83,Data_Comp!$B$4:$Y$4,0)-1),"") -> -11.33 | BS90: =IFERROR(OFFSET(Data_Comp!$A$4,$BK90+MATCH(BS$61,Data_Comp!$A$5:$A$300,0),MATCH($BF$61,Data_Comp!$B$3:$GR$3,0)+MATCH(BL$83,Data_Comp!$B$4:$Y$4,0)-1),"") -> 169.49 | BT90: =IFERROR(OFFSET(Data_Comp!$A$4,$BK90+MATCH(BT$61,Data_Comp!$A$5:$A$300,0),MATCH($BF$61,Data_Comp!$B$3:$GR$3,0)+MATCH(BL$83,Data_Comp!$B$4:$Y$4,0)-1),"") -> 10.06 | BU90: =IFERROR(OFFSET(Data_Comp!$A$4,$BK90+MATCH(BU$61,Data_Comp!$A$5:$A$300,0),MATCH($BF$61,Data_Comp!$B$3:$GR$3,0)+MATCH(BL$83,Data_Comp!$B$4:$Y$4,0)-1),"") -> 8.2 | BV90: =IFERROR(OFFSET(Data_Comp!$A$4,$BK90+MATCH(BV$61,Data_Comp!$A$5:$A$300,0),MATCH($BF$61,Data_Comp!$B$3:$GR$3,0)+MATCH(BL$83,Data_Comp!$B$4:$Y$4,0)-1),"") -> 19.04 | BW90: =IFERROR(OFFSET(Data_Comp!$A$4,$BK90+MATCH(BW$61,Data_Comp!$A$5:$A$300,0),MATCH($BF$61,Data_Comp!$B$3:$GR$3,0)+MATCH(BL$83,Data_Comp!$B$4:$Y$4,0)-1),"") -> 2.34
AH91: 8 | AI91: Rockwell Automation | AJ91: 22790.14 | AK91: 0.7114926306 | AL91: 26.18 | AM91: 9.6 | AN91: 6.76 | AO91: 19.42 | AP91: 11.9 | AQ91: 18.78 | AR91: 12.98 | AS91: 38.67 | AT91: 1.71 | BK91: 8 | BL91: =OFFSET(Data_Comp!$A$4,$BK91,MATCH($BF$61,Data_Comp!$B$3:$GR$3,0)+MATCH(BL$83,Data_Comp!$B$4:$Y$4,0)-1) -> Rockwell Automation | BM91: =IFERROR(OFFSET(Data_Comp!$A$4,$BK91+MATCH(BM$83,Data_Comp!$A$5:$A$300,0),MATCH($BF$61,Data_Comp!$B$3:$GR$3,0)+MATCH(BL$83,Data_Comp!$B$4:$Y$4,0)-1),"") -> 0.7114926306 | BN91: =IFERROR(OFFSET(Data_Comp!$A$4,$BK91+MATCH(BN$61,Data_Comp!$A$5:$A$300,0),MATCH($BF$61,Data_Comp!$B$3:$GR$3,0)+MATCH(BL$83,Data_Comp!$B$4:$Y$4,0)-1),"") -> 22790.14 | BO91: =IFERROR(OFFSET(Data_Comp!$A$4,$BK91+MATCH(BO$61,Data_Comp!$A$5:$A$300,0),MATCH($BF$61,Data_Comp!$B$3:$GR$3,0)+MATCH(BL$83,Data_Comp!$B$4:$Y$4,0)-1),"") -> 26.18 | BP91: =IFERROR(OFFSET(Data_Comp!$A$4,$BK91+MATCH(BP$61,Data_Comp!$A$5:$A$300,0),MATCH($BF$61,Data_Comp!$B$3:$GR$3,0)+MATCH(BL$83,Data_Comp!$B$4:$Y$4,0)-1),"") -> 9.6 | BQ91: =IFERROR(OFFSET(Data_Comp!$A$4,$BK91+MATCH(BQ$61,Data_Comp!$A$5:$A$300,0),MATCH($BF$61,Data_Comp!$B$3:$GR$3,0)+MATCH(BL$83,Data_Comp!$B$4:$Y$4,0)-1),"") -> 6.76 | BR91: =IFERROR(OFFSET(Data_Comp!$A$4,$BK91+MATCH(BR$61,Data_Comp!$A$5:$A$300,0),MATCH($BF$61,Data_Comp!$B$3:$GR$3,0)+MATCH(BL$83,Data_Comp!$B$4:$Y$4,0)-1),"") -> 19.42 | BS91: =IFERROR(OFFSET(Data_Comp!$A$4,$BK91+MATCH(BS$61,Data_Comp!$A$5:$A$300,0),MATCH($BF$61,Data_Comp!$B$3:$GR$3,0)+MATCH(BL$83,Data_Comp!$B$4:$Y$4,0)-1),"") -> 11.9 | BT91: =IFERROR(OFFSET(Data_Comp!$A$4,$BK91+MATCH(BT$61,Data_Comp!$A$5:$A$300,0),MATCH($BF$61,Data_Comp!$B$3:$GR$3,0)+MATCH(BL$83,Data_Comp!$B$4:$Y$4,0)-1),"") -> 18.78 | BU91: =IFERROR(OFFSET(Data_Comp!$A$4,$BK91+MATCH(BU$61,Data_Comp!$A$5:$A$300,0),MATCH($BF$61,Data_Comp!$B$3:$GR$3,0)+MATCH(BL$83,Data_Comp!$B$4:$Y$4,0)-1),"") -> 12.98 | BV91: =IFERROR(OFFSET(Data_Comp!$A$4,$BK91+MATCH(BV$61,Data_Comp!$A$5:$A$300,0),MATCH($BF$61,Data_Comp!$B$3:$GR$3,0)+MATCH(BL$83,Data_Comp!$B$4:$Y$4,0)-1),"") -> 38.67 | BW91: =IFERROR(OFFSET(Data_Comp!$A$4,$BK91+MATCH(BW$61,Data_Comp!$A$5:$A$300,0),MATCH($BF$61,Data_Comp!$B$3:$GR$3,0)+MATCH(BL$83,Data_Comp!$B$4:$Y$4,0)-1),"") -> 1.71
AH92: 9 | AI92: Parker-Hannifin | AJ92: 23578.65 | AK92: 1.124760689 | AL92: 18.6 | AM92: 3.87 | AN92: 6.03 | AO92: 26.49 | AP92: 33.31 | AQ92: 13.39 | AR92: 8.93 | AS92: 22.8 | AT92: 1.46 | BK92: 9 | BL92: =OFFSET(Data_Comp!$A$4,$BK92,MATCH($BF$61,Data_Comp!$B$3:$GR$3,0)+MATCH(BL$83,Data_Comp!$B$4:$Y$4,0)-1) -> Parker-Hannifin | BM92: =IFERROR(OFFSET(Data_Comp!$A$4,$BK92+MATCH(BM$83,Data_Comp!$A$5:$A$300,0),MATCH($BF$61,Data_Comp!$B$3:$GR$3,0)+MATCH(BL$83,Data_Comp!$B$4:$Y$4,0)-1),"") -> 1.124760689 | BN92: =IFERROR(OFFSET(Data_Comp!$A$4,$BK92+MATCH(BN$61,Data_Comp!$A$5:$A$300,0),MATCH($BF$61,Data_Comp!$B$3:$GR$3,0)+MATCH(BL$83,Data_Comp!$B$4:$Y$4,0)-1),"") -> 23578.65 | BO92: =IFERROR(OFFSET(Data_Comp!$A$4,$BK92+MATCH(BO$61,Data_Comp!$A$5:$A$300,0),MATCH($BF$61,Data_Comp!$B$3:$GR$3,0)+MATCH(BL$83,Data_Comp!$B$4:$Y$4,0)-1),"") -> 18.6 | BP92: =IFERROR(OFFSET(Data_Comp!$A$4,$BK92+MATCH(BP$61,Data_Comp!$A$5:$A$300,0),MATCH($BF$61,Data_Comp!$B$3:$GR$3,0)+MATCH(BL$83,Data_Comp!$B$4:$Y$4,0)-1),"") -> 3.87 | BQ92: =IFERROR(OFFSET(Data_Comp!$A$4,$BK92+MATCH(BQ$61,Data_Comp!$A$5:$A$300,0),MATCH($BF$61,Data_Comp!$B$3:$GR$3,0)+MATCH(BL$83,Data_Comp!$B$4:$Y$4,0)-1),"") -> 6.03 | BR92: =IFERROR(OFFSET(Data_Comp!$A$4,$BK92+MATCH(BR$61,Data_Comp!$A$5:$A$300,0),MATCH($BF$61,Data_Comp!$B$3:$GR$3,0)+MATCH(BL$83,Data_Comp!$B$4:$Y$4,0)-1),"") -> 26.49 | BS92: =IFERROR(OFFSET(Data_Comp!$A$4,$BK92+MATCH(BS$61,Data_Comp!$A$5:$A$300,0),MATCH($BF$61,Data_Comp!$B$3:$GR$3,0)+MATCH(BL$83,Data_Comp!$B$4:$Y$4,0)-1),"") -> 33.31 | BT92: =IFERROR(OFFSET(Data_Comp!$A$4,$BK92+MATCH(BT$61,Data_Comp!$A$5:$A$300,0),MATCH($BF$61,Data_Comp!$B$3:$GR$3,0)+MATCH(BL$83,Data_Comp!$B$4:$Y$4,0)-1),"") -> 13.39 | BU92: =IFERROR(OFFSET(Data_Comp!$A$4,$BK92+MATCH(BU$61,Data_Comp!$A$5:$A$300,0),MATCH($BF$61,Data_Comp!$B$3:$GR$3,0)+MATCH(BL$83,Data_Comp!$B$4:$Y$4,0)-1),"") -> 8.93 | BV92: =IFERROR(OFFSET(Data_Comp!$A$4,$BK92+MATCH(BV$61,Data_Comp!$A$5:$A$300,0),MATCH($BF$61,Data_Comp!$B$3:$GR$3,0)+MATCH(BL$83,Data_Comp!$B$4:$Y$4,0)-1),"") -> 22.8 | BW92: =IFERROR(OFFSET(Data_Comp!$A$4,$BK92+MATCH(BW$61,Data_Comp!$A$5:$A$300,0),MATCH($BF$61,Data_Comp!$B$3:$GR$3,0)+MATCH(BL$83,Data_Comp!$B$4:$Y$4,0)-1),"") -> 1.46
AH93: 10 | AI93: Acuity Brands | AJ93: 6902.83 | AK93: 0.5011979181 | AL93: 18.91 | AM93: 3.38 | AN93: 7.05 | AO93: 16.85 | AP93: 10.96 | AQ93: 16.43 | AR93: 9.15 | AS93: 19.48 | AT93: 0.32 | BK93: 10 | BL93: =OFFSET(Data_Comp!$A$4,$BK93,MATCH($BF$61,Data_Comp!$B$3:$GR$3,0)+MATCH(BL$83,Data_Comp!$B$4:$Y$4,0)-1) -> Acuity Brands | BM93: =IFERROR(OFFSET(Data_Comp!$A$4,$BK93+MATCH(BM$83,Data_Comp!$A$5:$A$300,0),MATCH($BF$61,Data_Comp!$B$3:$GR$3,0)+MATCH(BL$83,Data_Comp!$B$4:$Y$4,0)-1),"") -> 0.5011979181 | BN93: =IFERROR(OFFSET(Data_Comp!$A$4,$BK93+MATCH(BN$61,Data_Comp!$A$5:$A$300,0),MATCH($BF$61,Data_Comp!$B$3:$GR$3,0)+MATCH(BL$83,Data_Comp!$B$4:$Y$4,0)-1),"") -> 6902.83 | BO93: =IFERROR(OFFSET(Data_Comp!$A$4,$BK93+MATCH(BO$61,Data_Comp!$A$5:$A$300,0),MATCH($BF$61,Data_Comp!$B$3:$GR$3,0)+MATCH(BL$83,Data_Comp!$B$4:$Y$4,0)-1),"") -> 18.91 | BP93: =IFERROR(OFFSET(Data_Comp!$A$4,$BK93+MATCH(BP$61,Data_Comp!$A$5:$A$300,0),MATCH($BF$61,Data_Comp!$B$3:$GR$3,0)+MATCH(BL$83,Data_Comp!$B$4:$Y$4,0)-1),"") -> 3.38 | BQ93: =IFERROR(OFFSET(Data_Comp!$A$4,$BK93+MATCH(BQ$61,Data_Comp!$A$5:$A$300,0),MATCH($BF$61,Data_Comp!$B$3:$GR$3,0)+MATCH(BL$83,Data_Comp!$B$4:$Y$4,0)-1),"") -> 7.05 | BR93: =IFERROR(OFFSET(Data_Comp!$A$4,$BK93+MATCH(BR$61,Data_Comp!$A$5:$A$300,0),MATCH($BF$61,Data_Comp!$B$3:$GR$3,0)+MATCH(BL$83,Data_Comp!$B$4:$Y$4,0)-1),"") -> 16.85 | BS93: =IFERROR(OFFSET(Data_Comp!$A$4,$BK93+MATCH(BS$61,Data_Comp!$A$5:$A$300,0),MATCH($BF$61,Data_Comp!$B$3:$GR$3,0)+MATCH(BL$83,Data_Comp!$B$4:$Y$4,0)-1),"") -> 10.96 | BT93: =IFERROR(OFFSET(Data_Comp!$A$4,$BK93+MATCH(BT$61,Data_Comp!$A$5:$A$300,0),MATCH($BF$61,Data_Comp!$B$3:$GR$3,0)+MATCH(BL$83,Data_Comp!$B$4:$Y$4,0)-1),"") -> 16.43 | BU93: =IFERROR(OFFSET(Data_Comp!$A$4,$BK93+MATCH(BU$61,Data_Comp!$A$5:$A$300,0),MATCH($BF$61,Data_Comp!$B$3:$GR$3,0)+MATCH(BL$83,Data_Comp!$B$4:$Y$4,0)-1),"") -> 9.15 | BV93: =IFERROR(OFFSET(Data_Comp!$A$4,$BK93+MATCH(BV$61,Data_Comp!$A$5:$A$300,0),MATCH($BF$61,Data_Comp!$B$3:$GR$3,0)+MATCH(BL$83,Data_Comp!$B$4:$Y$4,0)-1),"") -> 19.48 | BW93: =IFERROR(OFFSET(Data_Comp!$A$4,$BK93+MATCH(BW$61,Data_Comp!$A$5:$A$300,0),MATCH($BF$61,Data_Comp!$B$3:$GR$3,0)+MATCH(BL$83,Data_Comp!$B$4:$Y$4,0)-1),"") -> 0.32
B103: 업종별 12MF 순이익전망치 변화율 (3M) | AK103: =S105 -> 3M | AN103: FY1
R104: 업종명 | S104: 운송 | AI104: 종목명 | AJ104: 시가총액 | AK104: 12MF 순이익 변화율 | AL104: 12MF PE | AM104: 12MF PB | AN104: Sales growth | AO104: OP growth | AP104: NP growth | AQ104: OPM | AR104: NPM | AS104: ROE | AT104: Div. yield | BL104: =S104 -> 운송 | BM104: =S105 -> 3M
R105: 기간 | S105: 3M | AH105: 1 | AI105: =IFERROR(BL105,"") -> Union Pacific | AJ105: =IF(BN105="","",BN105) -> 92316.41 | AK105: =IF(BM105="","",BM105) -> 2.510681097 | AL105: =IF(BO105="","",BO105) -> 18.71 | AM105: =IF(BP105="","",BP105) -> 4.76 | AN105: =IF(BQ105="","",BQ105) -> 5.87 | AO105: =IF(BR105="","",BR105) -> 9.39 | AP105: =IF(BS105="","",BS105) -> 9.86 | AQ105: =IF(BT105="","",BT105) -> 37.68 | AR105: =IF(BU105="","",BU105) -> 22.03 | AS105: =IF(BV105="","",BV105) -> 23.59 | AT105: =IF(BW105="","",BW105) -> 2.11 | BK105: 1 | BL105: =OFFSET(Data_Comp!$A$4,$BK105,MATCH($BF$61,Data_Comp!$B$3:$GR$3,0)+MATCH(BL$104,Data_Comp!$B$4:$Y$4,0)-1) -> Union Pacific | BM105: =IFERROR(OFFSET(Data_Comp!$A$4,$BK105+MATCH(BM$104,Data_Comp!$A$5:$A$300,0),MATCH($BF$61,Data_Comp!$B$3:$GR$3,0)+MATCH(BL$104,Data_Comp!$B$4:$Y$4,0)-1),"") -> 2.510681097 | BN105: =IFERROR(OFFSET(Data_Comp!$A$4,$BK105+MATCH(BN$61,Data_Comp!$A$5:$A$300,0),MATCH($BF$61,Data_Comp!$B$3:$GR$3,0)+MATCH(BL$104,Data_Comp!$B$4:$Y$4,0)-1),"") -> 92316.41 | BO105: =IFERROR(OFFSET(Data_Comp!$A$4,$BK105+MATCH(BO$61,Data_Comp!$A$5:$A$300,0),MATCH($BF$61,Data_Comp!$B$3:$GR$3,0)+MATCH(BL$104,Data_Comp!$B$4:$Y$4,0)-1),"") -> 18.71 | BP105: =IFERROR(OFFSET(Data_Comp!$A$4,$BK105+MATCH(BP$61,Data_Comp!$A$5:$A$300,0),MATCH($BF$61,Data_Comp!$B$3:$GR$3,0)+MATCH(BL$104,Data_Comp!$B$4:$Y$4,0)-1),"") -> 4.76 | BQ105: =IFERROR(OFFSET(Data_Comp!$A$4,$BK105+MATCH(BQ$61,Data_Comp!$A$5:$A$300,0),MATCH($BF$61,Data_Comp!$B$3:$GR$3,0)+MATCH(BL$104,Data_Comp!$B$4:$Y$4,0)-1),"") -> 5.87 | BR105: =IFERROR(OFFSET(Data_Comp!$A$4,$BK105+MATCH(BR$61,Data_Comp!$A$5:$A$300,0),MATCH($BF$61,Data_Comp!$B$3:$GR$3,0)+MATCH(BL$104,Data_Comp!$B$4:$Y$4,0)-1),"") -> 9.39 | BS105: =IFERROR(OFFSET(Data_Comp!$A$4,$BK105+MATCH(BS$61,Data_Comp!$A$5:$A$300,0),MATCH($BF$61,Data_Comp!$B$3:$GR$3,0)+MATCH(BL$104,Data_Comp!$B$4:$Y$4,0)-1),"") -> 9.86 | BT105: =IFERROR(OFFSET(Data_Comp!$A$4,$BK105+MATCH(BT$61,Data_Comp!$A$5:$A$300,0),MATCH($BF$61,Data_Comp!$B$3:$GR$3,0)+MATCH(BL$104,Data_Comp!$B$4:$Y$4,0)-1),"") -> 37.68 | BU105: =IFERROR(OFFSET(Data_Comp!$A$4,$BK105+MATCH(BU$61,Data_Comp!$A$5:$A$300,0),MATCH($BF$61,Data_Comp!$B$3:$GR$3,0)+MATCH(BL$104,Data_Comp!$B$4:$Y$4,0)-1),"") -> 22.03 | BV105: =IFERROR(OFFSET(Data_Comp!$A$4,$BK105+MATCH(BV$61,Data_Comp!$A$5:$A$300,0),MATCH($BF$61,Data_Comp!$B$3:$GR$3,0)+MATCH(BL$104,Data_Comp!$B$4:$Y$4,0)-1),"") -> 23.59 | BW105: =IFERROR(OFFSET(Data_Comp!$A$4,$BK105+MATCH(BW$61,Data_Comp!$A$5:$A$300,0),MATCH($BF$61,Data_Comp!$B$3:$GR$3,0)+MATCH(BL$104,Data_Comp!$B$4:$Y$4,0)-1),"") -> 2.11
AH106: =AH105+1 -> 2 | AI106: United Parcel Service, Inc. Class B | AJ106: 81048.04 | AK106: 2.12610528 | AL106: 18.52 | AM106: 49.96 | AN106: 6.71 | AO106: 65.24 | AP106: 53.2 | AQ106: 12.98 | AR106: 8.14 | AS106: 543.91 | AT106: 2.8 | BK106: =BK105+1 -> 2 | BL106: =OFFSET(Data_Comp!$A$4,$BK106,MATCH($BF$61,Data_Comp!$B$3:$GR$3,0)+MATCH(BL$104,Data_Comp!$B$4:$Y$4,0)-1) -> United Parcel Service, Inc. Class B | BM106: =IFERROR(OFFSET(Data_Comp!$A$4,$BK106+MATCH(BM$104,Data_Comp!$A$5:$A$300,0),MATCH($BF$61,Data_Comp!$B$3:$GR$3,0)+MATCH(BL$104,Data_Comp!$B$4:$Y$4,0)-1),"") -> 2.12610528 | BN106: =IFERROR(OFFSET(Data_Comp!$A$4,$BK106+MATCH(BN$61,Data_Comp!$A$5:$A$300,0),MATCH($BF$61,Data_Comp!$B$3:$GR$3,0)+MATCH(BL$104,Data_Comp!$B$4:$Y$4,0)-1),"") -> 81048.04 | BO106: =IFERROR(OFFSET(Data_Comp!$A$4,$BK106+MATCH(BO$61,Data_Comp!$A$5:$A$300,0),MATCH($BF$61,Data_Comp!$B$3:$GR$3,0)+MATCH(BL$104,Data_Comp!$B$4:$Y$4,0)-1),"") -> 18.52 | BP106: =IFERROR(OFFSET(Data_Comp!$A$4,$BK106+MATCH(BP$61,Data_Comp!$A$5:$A$300,0),MATCH($BF$61,Data_Comp!$B$3:$GR$3,0)+MATCH(BL$104,Data_Comp!$B$4:$Y$4,0)-1),"") -> 49.96 | BQ106: =IFERROR(OFFSET(Data_Comp!$A$4,$BK106+MATCH(BQ$61,Data_Comp!$A$5:$A$300,0),MATCH($BF$61,Data_Comp!$B$3:$GR$3,0)+MATCH(BL$104,Data_Comp!$B$4:$Y$4,0)-1),"") -> 6.71 | BR106: =IFERROR(OFFSET(Data_Comp!$A$4,$BK106+MATCH(BR$61,Data_Comp!$A$5:$A$300,0),MATCH($BF$61,Data_Comp!$B$3:$GR$3,0)+MATCH(BL$104,Data_Comp!$B$4:$Y$4,0)-1),"") -> 65.24 | BS106: =IFERROR(OFFSET(Data_Comp!$A$4,$BK106+MATCH(BS$61,Data_Comp!$A$5:$A$300,0),MATCH($BF$61,Data_Comp!$B$3:$GR$3,0)+MATCH(BL$104,Data_Comp!$B$4:$Y$4,0)-1),"") -> 53.2 | BT106: =IFERROR(OFFSET(Data_Comp!$A$4,$BK106+MATCH(BT$61,Data_Comp!$A$5:$A$300,0),MATCH($BF$61,Data_Comp!$B$3:$GR$3,0)+MATCH(BL$104,Data_Comp!$B$4:$Y$4,0)-1),"") -> 12.98 | BU106: =IFERROR(OFFSET(Data_Comp!$A$4,$BK106+MATCH(BU$61,Data_Comp!$A$5:$A$300,0),MATCH($BF$61,Data_Comp!$B$3:$GR$3,0)+MATCH(BL$104,Data_Comp!$B$4:$Y$4,0)-1),"") -> 8.14 | BV106: =IFERROR(OFFSET(Data_Comp!$A$4,$BK106+MATCH(BV$61,Data_Comp!$A$5:$A$300,0),MATCH($BF$61,Data_Comp!$B$3:$GR$3,0)+MATCH(BL$104,Data_Comp!$B$4:$Y$4,0)-1),"") -> 543.91 | BW106: =IFERROR(OFFSET(Data_Comp!$A$4,$BK106+MATCH(BW$61,Data_Comp!$A$5:$A$300,0),MATCH($BF$61,Data_Comp!$B$3:$GR$3,0)+MATCH(BL$104,Data_Comp!$B$4:$Y$4,0)-1),"") -> 2.8
AH107: =AH106+1 -> 3 | AI107: Canadian National Railway | AJ107: 61514.41 | AK107: 8.276047015 | AL107: 18.58 | AM107: 4.75 | AN107: 17.61 | AO107: 16.7 | AP107: 15.26 | AQ107: 43.79 | AR107: 29.63 | AS107: 26.75 | AT107: 1.61 | BK107: =BK106+1 -> 3 | BL107: =OFFSET(Data_Comp!$A$4,$BK107,MATCH($BF$61,Data_Comp!$B$3:$GR$3,0)+MATCH(BL$104,Data_Comp!$B$4:$Y$4,0)-1) -> Canadian National Railway | BM107: =IFERROR(OFFSET(Data_Comp!$A$4,$BK107+MATCH(BM$104,Data_Comp!$A$5:$A$300,0),MATCH($BF$61,Data_Comp!$B$3:$GR$3,0)+MATCH(BL$104,Data_Comp!$B$4:$Y$4,0)-1),"") -> 8.276047015 | BN107: =IFERROR(OFFSET(Data_Comp!$A$4,$BK107+MATCH(BN$61,Data_Comp!$A$5:$A$300,0),MATCH($BF$61,Data_Comp!$B$3:$GR$3,0)+MATCH(BL$104,Data_Comp!$B$4:$Y$4,0)-1),"") -> 61514.41 | BO107: =IFERROR(OFFSET(Data_Comp!$A$4,$BK107+MATCH(BO$61,Data_Comp!$A$5:$A$300,0),MATCH($BF$61,Data_Comp!$B$3:$GR$3,0)+MATCH(BL$104,Data_Comp!$B$4:$Y$4,0)-1),"") -> 18.58 | BP107: =IFERROR(OFFSET(Data_Comp!$A$4,$BK107+MATCH(BP$61,Data_Comp!$A$5:$A$300,0),MATCH($BF$61,Data_Comp!$B$3:$GR$3,0)+MATCH(BL$104,Data_Comp!$B$4:$Y$4,0)-1),"") -> 4.75 | BQ107: =IFERROR(OFFSET(Data_Comp!$A$4,$BK107+MATCH(BQ$61,Data_Comp!$A$5:$A$300,0),MATCH($BF$61,Data_Comp!$B$3:$GR$3,0)+MATCH(BL$104,Data_Comp!$B$4:$Y$4,0)-1),"") -> 17.61 | BR107: =IFERROR(OFFSET(Data_Comp!$A$4,$BK107+MATCH(BR$61,Data_Comp!$A$5:$A$300,0),MATCH($BF$61,Data_Comp!$B$3:$GR$3,0)+MATCH(BL$104,Data_Comp!$B$4:$Y$4,0)-1),"") -> 16.7 | BS107: =IFERROR(OFFSET(Data_Comp!$A$4,$BK107+MATCH(BS$61,Data_Comp!$A$5:$A$300,0),MATCH($BF$61,Data_Comp!$B$3:$GR$3,0)+MATCH(BL$104,Data_Comp!$B$4:$Y$4,0)-1),"") -> 15.26 | BT107: =IFERROR(OFFSET(Data_Comp!$A$4,$BK107+MATCH(BT$61,Data_Comp!$A$5:$A$300,0),MATCH($BF$61,Data_Comp!$B$3:$GR$3,0)+MATCH(BL$104,Data_Comp!$B$4:$Y$4,0)-1),"") -> 43.79 | BU107: =IFERROR(OFFSET(Data_Comp!$A$4,$BK107+MATCH(BU$61,Data_Comp!$A$5:$A$300,0),MATCH($BF$61,Data_Comp!$B$3:$GR$3,0)+MATCH(BL$104,Data_Comp!$B$4:$Y$4,0)-1),"") -> 29.63 | BV107: =IFERROR(OFFSET(Data_Comp!$A$4,$BK107+MATCH(BV$61,Data_Comp!$A$5:$A$300,0),MATCH($BF$61,Data_Comp!$B$3:$GR$3,0)+MATCH(BL$104,Data_Comp!$B$4:$Y$4,0)-1),"") -> 26.75 | BW107: =IFERROR(OFFSET(Data_Comp!$A$4,$BK107+MATCH(BW$61,Data_Comp!$A$5:$A$300,0),MATCH($BF$61,Data_Comp!$B$3:$GR$3,0)+MATCH(BL$104,Data_Comp!$B$4:$Y$4,0)-1),"") -> 1.61
AH108: 4 | AI108: FedEx | AJ108: 58992.56 | AK108: -2.06923027 | AL108: 16.29 | AM108: 3.1 | AN108: 4.95 | AO108: 7.22 | AP108: 14.08 | AQ108: 9.19 | AR108: 5.39 | AS108: 19.94 | AT108: 0.9 | BK108: 4 | BL108: =OFFSET(Data_Comp!$A$4,$BK108,MATCH($BF$61,Data_Comp!$B$3:$GR$3,0)+MATCH(BL$104,Data_Comp!$B$4:$Y$4,0)-1) -> FedEx | BM108: =IFERROR(OFFSET(Data_Comp!$A$4,$BK108+MATCH(BM$104,Data_Comp!$A$5:$A$300,0),MATCH($BF$61,Data_Comp!$B$3:$GR$3,0)+MATCH(BL$104,Data_Comp!$B$4:$Y$4,0)-1),"") -> -2.06923027 | BN108: =IFERROR(OFFSET(Data_Comp!$A$4,$BK108+MATCH(BN$61,Data_Comp!$A$5:$A$300,0),MATCH($BF$61,Data_Comp!$B$3:$GR$3,0)+MATCH(BL$104,Data_Comp!$B$4:$Y$4,0)-1),"") -> 58992.56 | BO108: =IFERROR(OFFSET(Data_Comp!$A$4,$BK108+MATCH(BO$61,Data_Comp!$A$5:$A$300,0),MATCH($BF$61,Data_Comp!$B$3:$GR$3,0)+MATCH(BL$104,Data_Comp!$B$4:$Y$4,0)-1),"") -> 16.29 | BP108: =IFERROR(OFFSET(Data_Comp!$A$4,$BK108+MATCH(BP$61,Data_Comp!$A$5:$A$300,0),MATCH($BF$61,Data_Comp!$B$3:$GR$3,0)+MATCH(BL$104,Data_Comp!$B$4:$Y$4,0)-1),"") -> 3.1 | BQ108: =IFERROR(OFFSET(Data_Comp!$A$4,$BK108+MATCH(BQ$61,Data_Comp!$A$5:$A$300,0),MATCH($BF$61,Data_Comp!$B$3:$GR$3,0)+MATCH(BL$104,Data_Comp!$B$4:$Y$4,0)-1),"") -> 4.95 | BR108: =IFERROR(OFFSET(Data_Comp!$A$4,$BK108+MATCH(BR$61,Data_Comp!$A$5:$A$300,0),MATCH($BF$61,Data_Comp!$B$3:$GR$3,0)+MATCH(BL$104,Data_Comp!$B$4:$Y$4,0)-1),"") -> 7.22 | BS108: =IFERROR(OFFSET(Data_Comp!$A$4,$BK108+MATCH(BS$61,Data_Comp!$A$5:$A$300,0),MATCH($BF$61,Data_Comp!$B$3:$GR$3,0)+MATCH(BL$104,Data_Comp!$B$4:$Y$4,0)-1),"") -> 14.08 | BT108: =IFERROR(OFFSET(Data_Comp!$A$4,$BK108+MATCH(BT$61,Data_Comp!$A$5:$A$300,0),MATCH($BF$61,Data_Comp!$B$3:$GR$3,0)+MATCH(BL$104,Data_Comp!$B$4:$Y$4,0)-1),"") -> 9.19 | BU108: =IFERROR(OFFSET(Data_Comp!$A$4,$BK108+MATCH(BU$61,Data_Comp!$A$5:$A$300,0),MATCH($BF$61,Data_Comp!$B$3:$GR$3,0)+MATCH(BL$104,Data_Comp!$B$4:$Y$4,0)-1),"") -> 5.39 | BV108: =IFERROR(OFFSET(Data_Comp!$A$4,$BK108+MATCH(BV$61,Data_Comp!$A$5:$A$300,0),MATCH($BF$61,Data_Comp!$B$3:$GR$3,0)+MATCH(BL$104,Data_Comp!$B$4:$Y$4,0)-1),"") -> 19.94 | BW108: =IFERROR(OFFSET(Data_Comp!$A$4,$BK108+MATCH(BW$61,Data_Comp!$A$5:$A$300,0),MATCH($BF$61,Data_Comp!$B$3:$GR$3,0)+MATCH(BL$104,Data_Comp!$B$4:$Y$4,0)-1),"") -> 0.9
AH109: 5 | AI109: Delta Air Lines | AJ109: 35093.73 | AK109: -1.407290607 | AL109: 8.97 | AM109: 2.16 | AN109: 2.73 | AO109: -14.31 | AP109: -14.07 | AQ109: 15.34 | AR109: 9.24 | AS109: 27.8 | AT109: 2.02 | BK109: 5 | BL109: =OFFSET(Data_Comp!$A$4,$BK109,MATCH($BF$61,Data_Comp!$B$3:$GR$3,0)+MATCH(BL$104,Data_Comp!$B$4:$Y$4,0)-1) -> Delta Air Lines | BM109: =IFERROR(OFFSET(Data_Comp!$A$4,$BK109+MATCH(BM$104,Data_Comp!$A$5:$A$300,0),MATCH($BF$61,Data_Comp!$B$3:$GR$3,0)+MATCH(BL$104,Data_Comp!$B$4:$Y$4,0)-1),"") -> -1.407290607 | BN109: =IFERROR(OFFSET(Data_Comp!$A$4,$BK109+MATCH(BN$61,Data_Comp!$A$5:$A$300,0),MATCH($BF$61,Data_Comp!$B$3:$GR$3,0)+MATCH(BL$104,Data_Comp!$B$4:$Y$4,0)-1),"") -> 35093.73 | BO109: =IFERROR(OFFSET(Data_Comp!$A$4,$BK109+MATCH(BO$61,Data_Comp!$A$5:$A$300,0),MATCH($BF$61,Data_Comp!$B$3:$GR$3,0)+MATCH(BL$104,Data_Comp!$B$4:$Y$4,0)-1),"") -> 8.97 | BP109: =IFERROR(OFFSET(Data_Comp!$A$4,$BK109+MATCH(BP$61,Data_Comp!$A$5:$A$300,0),MATCH($BF$61,Data_Comp!$B$3:$GR$3,0)+MATCH(BL$104,Data_Comp!$B$4:$Y$4,0)-1),"") -> 2.16 | BQ109: =IFERROR(OFFSET(Data_Comp!$A$4,$BK109+MATCH(BQ$61,Data_Comp!$A$5:$A$300,0),MATCH($BF$61,Data_Comp!$B$3:$GR$3,0)+MATCH(BL$104,Data_Comp!$B$4:$Y$4,0)-1),"") -> 2.73 | BR109: =IFERROR(OFFSET(Data_Comp!$A$4,$BK109+MATCH(BR$61,Data_Comp!$A$5:$A$300,0),MATCH($BF$61,Data_Comp!$B$3:$GR$3,0)+MATCH(BL$104,Data_Comp!$B$4:$Y$4,0)-1),"") -> -14.31 | BS109: =IFERROR(OFFSET(Data_Comp!$A$4,$BK109+MATCH(BS$61,Data_Comp!$A$5:$A$300,0),MATCH($BF$61,Data_Comp!$B$3:$GR$3,0)+MATCH(BL$104,Data_Comp!$B$4:$Y$4,0)-1),"") -> -14.07 | BT109: =IFERROR(OFFSET(Data_Comp!$A$4,$BK109+MATCH(BT$61,Data_Comp!$A$5:$A$300,0),MATCH($BF$61,Data_Comp!$B$3:$GR$3,0)+MATCH(BL$104,Data_Comp!$B$4:$Y$4,0)-1),"") -> 15.34 | BU109: =IFERROR(OFFSET(Data_Comp!$A$4,$BK109+MATCH(BU$61,Data_Comp!$A$5:$A$300,0),MATCH($BF$61,Data_Comp!$B$3:$GR$3,0)+MATCH(BL$104,Data_Comp!$B$4:$Y$4,0)-1),"") -> 9.24 | BV109: =IFERROR(OFFSET(Data_Comp!$A$4,$BK109+MATCH(BV$61,Data_Comp!$A$5:$A$300,0),MATCH($BF$61,Data_Comp!$B$3:$GR$3,0)+MATCH(BL$104,Data_Comp!$B$4:$Y$4,0)-1),"") -> 27.8 | BW109: =IFERROR(OFFSET(Data_Comp!$A$4,$BK109+MATCH(BW$61,Data_Comp!$A$5:$A$300,0),MATCH($BF$61,Data_Comp!$B$3:$GR$3,0)+MATCH(BL$104,Data_Comp!$B$4:$Y$4,0)-1),"") -> 2.02
AH110: 6 | AI110: Norfolk Southern | AJ110: 37748.96 | AK110: 1.037827453 | AL110: 19.5 | AM110: 2.86 | AN110: 4.95 | AO110: 8.69 | AP110: 9.93 | AQ110: 32.16 | AR110: 17.62 | AS110: 14.49 | AT110: 1.88 | BK110: 6 | BL110: =OFFSET(Data_Comp!$A$4,$BK110,MATCH($BF$61,Data_Comp!$B$3:$GR$3,0)+MATCH(BL$104,Data_Comp!$B$4:$Y$4,0)-1) -> Norfolk Southern | BM110: =IFERROR(OFFSET(Data_Comp!$A$4,$BK110+MATCH(BM$104,Data_Comp!$A$5:$A$300,0),MATCH($BF$61,Data_Comp!$B$3:$GR$3,0)+MATCH(BL$104,Data_Comp!$B$4:$Y$4,0)-1),"") -> 1.037827453 | BN110: =IFERROR(OFFSET(Data_Comp!$A$4,$BK110+MATCH(BN$61,Data_Comp!$A$5:$A$300,0),MATCH($BF$61,Data_Comp!$B$3:$GR$3,0)+MATCH(BL$104,Data_Comp!$B$4:$Y$4,0)-1),"") -> 37748.96 | BO110: =IFERROR(OFFSET(Data_Comp!$A$4,$BK110+MATCH(BO$61,Data_Comp!$A$5:$A$300,0),MATCH($BF$61,Data_Comp!$B$3:$GR$3,0)+MATCH(BL$104,Data_Comp!$B$4:$Y$4,0)-1),"") -> 19.5 | BP110: =IFERROR(OFFSET(Data_Comp!$A$4,$BK110+MATCH(BP$61,Data_Comp!$A$5:$A$300,0),MATCH($BF$61,Data_Comp!$B$3:$GR$3,0)+MATCH(BL$104,Data_Comp!$B$4:$Y$4,0)-1),"") -> 2.86 | BQ110: =IFERROR(OFFSET(Data_Comp!$A$4,$BK110+MATCH(BQ$61,Data_Comp!$A$5:$A$300,0),MATCH($BF$61,Data_Comp!$B$3:$GR$3,0)+MATCH(BL$104,Data_Comp!$B$4:$Y$4,0)-1),"") -> 4.95 | BR110: =IFERROR(OFFSET(Data_Comp!$A$4,$BK110+MATCH(BR$61,Data_Comp!$A$5:$A$300,0),MATCH($BF$61,Data_Comp!$B$3:$GR$3,0)+MATCH(BL$104,Data_Comp!$B$4:$Y$4,0)-1),"") -> 8.69 | BS110: =IFERROR(OFFSET(Data_Comp!$A$4,$BK110+MATCH(BS$61,Data_Comp!$A$5:$A$300,0),MATCH($BF$61,Data_Comp!$B$3:$GR$3,0)+MATCH(BL$104,Data_Comp!$B$4:$Y$4,0)-1),"") -> 9.93 | BT110: =IFERROR(OFFSET(Data_Comp!$A$4,$BK110+MATCH(BT$61,Data_Comp!$A$5:$A$300,0),MATCH($BF$61,Data_Comp!$B$3:$GR$3,0)+MATCH(BL$104,Data_Comp!$B$4:$Y$4,0)-1),"") -> 32.16 | BU110: =IFERROR(OFFSET(Data_Comp!$A$4,$BK110+MATCH(BU$61,Data_Comp!$A$5:$A$300,0),MATCH($BF$61,Data_Comp!$B$3:$GR$3,0)+MATCH(BL$104,Data_Comp!$B$4:$Y$4,0)-1),"") -> 17.62 | BV110: =IFERROR(OFFSET(Data_Comp!$A$4,$BK110+MATCH(BV$61,Data_Comp!$A$5:$A$300,0),MATCH($BF$61,Data_Comp!$B$3:$GR$3,0)+MATCH(BL$104,Data_Comp!$B$4:$Y$4,0)-1),"") -> 14.49 | BW110: =IFERROR(OFFSET(Data_Comp!$A$4,$BK110+MATCH(BW$61,Data_Comp!$A$5:$A$300,0),MATCH($BF$61,Data_Comp!$B$3:$GR$3,0)+MATCH(BL$104,Data_Comp!$B$4:$Y$4,0)-1),"") -> 1.88
AH111: 7 | AI111: CSX | AJ111: 48496.92 | AK111: 2.983835697 | AL111: 21.02 | AM111: 4.22 | AN111: 4.18 | AO111: 9.95 | AP111: 15.25 | AQ111: 33.41 | AR111: 17.12 | AS111: 16.97 | AT111: 1.47 | BK111: 7 | BL111: =OFFSET(Data_Comp!$A$4,$BK111,MATCH($BF$61,Data_Comp!$B$3:$GR$3,0)+MATCH(BL$104,Data_Comp!$B$4:$Y$4,0)-1) -> CSX | BM111: =IFERROR(OFFSET(Data_Comp!$A$4,$BK111+MATCH(BM$104,Data_Comp!$A$5:$A$300,0),MATCH($BF$61,Data_Comp!$B$3:$GR$3,0)+MATCH(BL$104,Data_Comp!$B$4:$Y$4,0)-1),"") -> 2.983835697 | BN111: =IFERROR(OFFSET(Data_Comp!$A$4,$BK111+MATCH(BN$61,Data_Comp!$A$5:$A$300,0),MATCH($BF$61,Data_Comp!$B$3:$GR$3,0)+MATCH(BL$104,Data_Comp!$B$4:$Y$4,0)-1),"") -> 48496.92 | BO111: =IFERROR(OFFSET(Data_Comp!$A$4,$BK111+MATCH(BO$61,Data_Comp!$A$5:$A$300,0),MATCH($BF$61,Data_Comp!$B$3:$GR$3,0)+MATCH(BL$104,Data_Comp!$B$4:$Y$4,0)-1),"") -> 21.02 | BP111: =IFERROR(OFFSET(Data_Comp!$A$4,$BK111+MATCH(BP$61,Data_Comp!$A$5:$A$300,0),MATCH($BF$61,Data_Comp!$B$3:$GR$3,0)+MATCH(BL$104,Data_Comp!$B$4:$Y$4,0)-1),"") -> 4.22 | BQ111: =IFERROR(OFFSET(Data_Comp!$A$4,$BK111+MATCH(BQ$61,Data_Comp!$A$5:$A$300,0),MATCH($BF$61,Data_Comp!$B$3:$GR$3,0)+MATCH(BL$104,Data_Comp!$B$4:$Y$4,0)-1),"") -> 4.18 | BR111: =IFERROR(OFFSET(Data_Comp!$A$4,$BK111+MATCH(BR$61,Data_Comp!$A$5:$A$300,0),MATCH($BF$61,Data_Comp!$B$3:$GR$3,0)+MATCH(BL$104,Data_Comp!$B$4:$Y$4,0)-1),"") -> 9.95 | BS111: =IFERROR(OFFSET(Data_Comp!$A$4,$BK111+MATCH(BS$61,Data_Comp!$A$5:$A$300,0),MATCH($BF$61,Data_Comp!$B$3:$GR$3,0)+MATCH(BL$104,Data_Comp!$B$4:$Y$4,0)-1),"") -> 15.25 | BT111: =IFERROR(OFFSET(Data_Comp!$A$4,$BK111+MATCH(BT$61,Data_Comp!$A$5:$A$300,0),MATCH($BF$61,Data_Comp!$B$3:$GR$3,0)+MATCH(BL$104,Data_Comp!$B$4:$Y$4,0)-1),"") -> 33.41 | BU111: =IFERROR(OFFSET(Data_Comp!$A$4,$BK111+MATCH(BU$61,Data_Comp!$A$5:$A$300,0),MATCH($BF$61,Data_Comp!$B$3:$GR$3,0)+MATCH(BL$104,Data_Comp!$B$4:$Y$4,0)-1),"") -> 17.12 | BV111: =IFERROR(OFFSET(Data_Comp!$A$4,$BK111+MATCH(BV$61,Data_Comp!$A$5:$A$300,0),MATCH($BF$61,Data_Comp!$B$3:$GR$3,0)+MATCH(BL$104,Data_Comp!$B$4:$Y$4,0)-1),"") -> 16.97 | BW111: =IFERROR(OFFSET(Data_Comp!$A$4,$BK111+MATCH(BW$61,Data_Comp!$A$5:$A$300,0),MATCH($BF$61,Data_Comp!$B$3:$GR$3,0)+MATCH(BL$104,Data_Comp!$B$4:$Y$4,0)-1),"") -> 1.47
AH112: 8 | AI112: Southwest Airlines | AJ112: 32879.18 | AK112: -1.958849075 | AL112: 12.98 | AM112: 3.33 | AN112: 3.89 | AO112: -22.72 | AP112: -1.17 | AQ112: 17.24 | AR112: 10.46 | AS112: 25.09 | AT112: 0.79 | BK112: 8 | BL112: =OFFSET(Data_Comp!$A$4,$BK112,MATCH($BF$61,Data_Comp!$B$3:$GR$3,0)+MATCH(BL$104,Data_Comp!$B$4:$Y$4,0)-1) -> Southwest Airlines | BM112: =IFERROR(OFFSET(Data_Comp!$A$4,$BK112+MATCH(BM$104,Data_Comp!$A$5:$A$300,0),MATCH($BF$61,Data_Comp!$B$3:$GR$3,0)+MATCH(BL$104,Data_Comp!$B$4:$Y$4,0)-1),"") -> -1.958849075 | BN112: =IFERROR(OFFSET(Data_Comp!$A$4,$BK112+MATCH(BN$61,Data_Comp!$A$5:$A$300,0),MATCH($BF$61,Data_Comp!$B$3:$GR$3,0)+MATCH(BL$104,Data_Comp!$B$4:$Y$4,0)-1),"") -> 32879.18 | BO112: =IFERROR(OFFSET(Data_Comp!$A$4,$BK112+MATCH(BO$61,Data_Comp!$A$5:$A$300,0),MATCH($BF$61,Data_Comp!$B$3:$GR$3,0)+MATCH(BL$104,Data_Comp!$B$4:$Y$4,0)-1),"") -> 12.98 | BP112: =IFERROR(OFFSET(Data_Comp!$A$4,$BK112+MATCH(BP$61,Data_Comp!$A$5:$A$300,0),MATCH($BF$61,Data_Comp!$B$3:$GR$3,0)+MATCH(BL$104,Data_Comp!$B$4:$Y$4,0)-1),"") -> 3.33 | BQ112: =IFERROR(OFFSET(Data_Comp!$A$4,$BK112+MATCH(BQ$61,Data_Comp!$A$5:$A$300,0),MATCH($BF$61,Data_Comp!$B$3:$GR$3,0)+MATCH(BL$104,Data_Comp!$B$4:$Y$4,0)-1),"") -> 3.89 | BR112: =IFERROR(OFFSET(Data_Comp!$A$4,$BK112+MATCH(BR$61,Data_Comp!$A$5:$A$300,0),MATCH($BF$61,Data_Comp!$B$3:$GR$3,0)+MATCH(BL$104,Data_Comp!$B$4:$Y$4,0)-1),"") -> -22.72 | BS112: =IFERROR(OFFSET(Data_Comp!$A$4,$BK112+MATCH(BS$61,Data_Comp!$A$5:$A$300,0),MATCH($BF$61,Data_Comp!$B$3:$GR$3,0)+MATCH(BL$104,Data_Comp!$B$4:$Y$4,0)-1),"") -> -1.17 | BT112: =IFERROR(OFFSET(Data_Comp!$A$4,$BK112+MATCH(BT$61,Data_Comp!$A$5:$A$300,0),MATCH($BF$61,Data_Comp!$B$3:$GR$3,0)+MATCH(BL$104,Data_Comp!$B$4:$Y$4,0)-1),"") -> 17.24 | BU112: =IFERROR(OFFSET(Data_Comp!$A$4,$BK112+MATCH(BU$61,Data_Comp!$A$5:$A$300,0),MATCH($BF$61,Data_Comp!$B$3:$GR$3,0)+MATCH(BL$104,Data_Comp!$B$4:$Y$4,0)-1),"") -> 10.46 | BV112: =IFERROR(OFFSET(Data_Comp!$A$4,$BK112+MATCH(BV$61,Data_Comp!$A$5:$A$300,0),MATCH($BF$61,Data_Comp!$B$3:$GR$3,0)+MATCH(BL$104,Data_Comp!$B$4:$Y$4,0)-1),"") -> 25.09 | BW112: =IFERROR(OFFSET(Data_Comp!$A$4,$BK112+MATCH(BW$61,Data_Comp!$A$5:$A$300,0),MATCH($BF$61,Data_Comp!$B$3:$GR$3,0)+MATCH(BL$104,Data_Comp!$B$4:$Y$4,0)-1),"") -> 0.79
AH113: 9 | AI113: Canadian Pacific Railway | AJ113: 24842.79 | AK113: 8.488787973 | AL113: 16.81 | AM113: 5.07 | AN113: 13.73 | AO113: 17.48 | AP113: 14.2 | AQ113: 42.4 | AR113: 25.76 | AS113: 34.52 | AT113: 1.05 | BK113: 9 | BL113: =OFFSET(Data_Comp!$A$4,$BK113,MATCH($BF$61,Data_Comp!$B$3:$GR$3,0)+MATCH(BL$104,Data_Comp!$B$4:$Y$4,0)-1) -> Canadian Pacific Railway | BM113: =IFERROR(OFFSET(Data_Comp!$A$4,$BK113+MATCH(BM$104,Data_Comp!$A$5:$A$300,0),MATCH($BF$61,Data_Comp!$B$3:$GR$3,0)+MATCH(BL$104,Data_Comp!$B$4:$Y$4,0)-1),"") -> 8.488787973 | BN113: =IFERROR(OFFSET(Data_Comp!$A$4,$BK113+MATCH(BN$61,Data_Comp!$A$5:$A$300,0),MATCH($BF$61,Data_Comp!$B$3:$GR$3,0)+MATCH(BL$104,Data_Comp!$B$4:$Y$4,0)-1),"") -> 24842.79 | BO113: =IFERROR(OFFSET(Data_Comp!$A$4,$BK113+MATCH(BO$61,Data_Comp!$A$5:$A$300,0),MATCH($BF$61,Data_Comp!$B$3:$GR$3,0)+MATCH(BL$104,Data_Comp!$B$4:$Y$4,0)-1),"") -> 16.81 | BP113: =IFERROR(OFFSET(Data_Comp!$A$4,$BK113+MATCH(BP$61,Data_Comp!$A$5:$A$300,0),MATCH($BF$61,Data_Comp!$B$3:$GR$3,0)+MATCH(BL$104,Data_Comp!$B$4:$Y$4,0)-1),"") -> 5.07 | BQ113: =IFERROR(OFFSET(Data_Comp!$A$4,$BK113+MATCH(BQ$61,Data_Comp!$A$5:$A$300,0),MATCH($BF$61,Data_Comp!$B$3:$GR$3,0)+MATCH(BL$104,Data_Comp!$B$4:$Y$4,0)-1),"") -> 13.73 | BR113: =IFERROR(OFFSET(Data_Comp!$A$4,$BK113+MATCH(BR$61,Data_Comp!$A$5:$A$300,0),MATCH($BF$61,Data_Comp!$B$3:$GR$3,0)+MATCH(BL$104,Data_Comp!$B$4:$Y$4,0)-1),"") -> 17.48 | BS113: =IFERROR(OFFSET(Data_Comp!$A$4,$BK113+MATCH(BS$61,Data_Comp!$A$5:$A$300,0),MATCH($BF$61,Data_Comp!$B$3:$GR$3,0)+MATCH(BL$104,Data_Comp!$B$4:$Y$4,0)-1),"") -> 14.2 | BT113: =IFERROR(OFFSET(Data_Comp!$A$4,$BK113+MATCH(BT$61,Data_Comp!$A$5:$A$300,0),MATCH($BF$61,Data_Comp!$B$3:$GR$3,0)+MATCH(BL$104,Data_Comp!$B$4:$Y$4,0)-1),"") -> 42.4 | BU113: =IFERROR(OFFSET(Data_Comp!$A$4,$BK113+MATCH(BU$61,Data_Comp!$A$5:$A$300,0),MATCH($BF$61,Data_Comp!$B$3:$GR$3,0)+MATCH(BL$104,Data_Comp!$B$4:$Y$4,0)-1),"") -> 25.76 | BV113: =IFERROR(OFFSET(Data_Comp!$A$4,$BK113+MATCH(BV$61,Data_Comp!$A$5:$A$300,0),MATCH($BF$61,Data_Comp!$B$3:$GR$3,0)+MATCH(BL$104,Data_Comp!$B$4:$Y$4,0)-1),"") -> 34.52 | BW113: =IFERROR(OFFSET(Data_Comp!$A$4,$BK113+MATCH(BW$61,Data_Comp!$A$5:$A$300,0),MATCH($BF$61,Data_Comp!$B$3:$GR$3,0)+MATCH(BL$104,Data_Comp!$B$4:$Y$4,0)-1),"") -> 1.05
AH114: 10 | AI114: American Airlines Group | AJ114: 22918.64 | AK114: -5.301261465 | AL114: 9.64 | AM114: 4.2 | AN114: 4.17 | AO114: -22.8 | AP114: -12.51 | AQ114: 11.08 | AR114: 5.59 | AS114: 55.47 | AT114: 1 | BK114: 10 | BL114: =OFFSET(Data_Comp!$A$4,$BK114,MATCH($BF$61,Data_Comp!$B$3:$GR$3,0)+MATCH(BL$104,Data_Comp!$B$4:$Y$4,0)-1) -> American Airlines Group | BM114: =IFERROR(OFFSET(Data_Comp!$A$4,$BK114+MATCH(BM$104,Data_Comp!$A$5:$A$300,0),MATCH($BF$61,Data_Comp!$B$3:$GR$3,0)+MATCH(BL$104,Data_Comp!$B$4:$Y$4,0)-1),"") -> -5.301261465 | BN114: =IFERROR(OFFSET(Data_Comp!$A$4,$BK114+MATCH(BN$61,Data_Comp!$A$5:$A$300,0),MATCH($BF$61,Data_Comp!$B$3:$GR$3,0)+MATCH(BL$104,Data_Comp!$B$4:$Y$4,0)-1),"") -> 22918.64 | BO114: =IFERROR(OFFSET(Data_Comp!$A$4,$BK114+MATCH(BO$61,Data_Comp!$A$5:$A$300,0),MATCH($BF$61,Data_Comp!$B$3:$GR$3,0)+MATCH(BL$104,Data_Comp!$B$4:$Y$4,0)-1),"") -> 9.64 | BP114: =IFERROR(OFFSET(Data_Comp!$A$4,$BK114+MATCH(BP$61,Data_Comp!$A$5:$A$300,0),MATCH($BF$61,Data_Comp!$B$3:$GR$3,0)+MATCH(BL$104,Data_Comp!$B$4:$Y$4,0)-1),"") -> 4.2 | BQ114: =IFERROR(OFFSET(Data_Comp!$A$4,$BK114+MATCH(BQ$61,Data_Comp!$A$5:$A$300,0),MATCH($BF$61,Data_Comp!$B$3:$GR$3,0)+MATCH(BL$104,Data_Comp!$B$4:$Y$4,0)-1),"") -> 4.17 | BR114: =IFERROR(OFFSET(Data_Comp!$A$4,$BK114+MATCH(BR$61,Data_Comp!$A$5:$A$300,0),MATCH($BF$61,Data_Comp!$B$3:$GR$3,0)+MATCH(BL$104,Data_Comp!$B$4:$Y$4,0)-1),"") -> -22.8 | BS114: =IFERROR(OFFSET(Data_Comp!$A$4,$BK114+MATCH(BS$61,Data_Comp!$A$5:$A$300,0),MATCH($BF$61,Data_Comp!$B$3:$GR$3,0)+MATCH(BL$104,Data_Comp!$B$4:$Y$4,0)-1),"") -> -12.51 | BT114: =IFERROR(OFFSET(Data_Comp!$A$4,$BK114+MATCH(BT$61,Data_Comp!$A$5:$A$300,0),MATCH($BF$61,Data_Comp!$B$3:$GR$3,0)+MATCH(BL$104,Data_Comp!$B$4:$Y$4,0)-1),"") -> 11.08 | BU114: =IFERROR(OFFSET(Data_Comp!$A$4,$BK114+MATCH(BU$61,Data_Comp!$A$5:$A$300,0),MATCH($BF$61,Data_Comp!$B$3:$GR$3,0)+MATCH(BL$104,Data_Comp!$B$4:$Y$4,0)-1),"") -> 5.59 | BV114: =IFERROR(OFFSET(Data_Comp!$A$4,$BK114+MATCH(BV$61,Data_Comp!$A$5:$A$300,0),MATCH($BF$61,Data_Comp!$B$3:$GR$3,0)+MATCH(BL$104,Data_Comp!$B$4:$Y$4,0)-1),"") -> 55.47 | BW114: =IFERROR(OFFSET(Data_Comp!$A$4,$BK114+MATCH(BW$61,Data_Comp!$A$5:$A$300,0),MATCH($BF$61,Data_Comp!$B$3:$GR$3,0)+MATCH(BL$104,Data_Comp!$B$4:$Y$4,0)-1),"") -> 1

Sheet Europe
B3: 유럽 업종별 이익동향
B5: 업종별 12MF 순이익전망치 추이 (컨센서스 기준) (USD bn)
AI21: =Data_Sector_Europe!D14 -> 540
B59: 업종별 12MF 순이익전망치 변화율 (1W) | R59: 종목별 12MF 순이익전망치 변화율
AK60: =S62 -> 1W | AN60: FY1
R61: 업종명 | S61: 화학 | AI61: 종목명 | AJ61: 시가총액 | AK61: 12MF 순이익 변화율 | AL61: 12MF PE | AM61: 12MF PB | AN61: Sales growth | AO61: OP growth | AP61: NP growth | AQ61: OPM | AR61: NPM | AS61: ROE | AT61: Div. yield | AY61: FY1 순이익 | BF61: Europe | BL61: =S61 -> 화학 | BM61: =S62 -> 1W | BN61: 시가총액 | BO61: P/E(Fwd.12M) | BP61: P/B(Fwd.12M) | BQ61: 매출액증가율(YoY) | BR61: 영업이익증가율(YoY) | BS61: 순이익증가율(YoY, 지배) | BT61: 영업이익률 | BU61: 순이익률 | BV61: ROE(지배) | BW61: 현금배당수익률
R62: 기간 | S62: 1W | AH62: 1 | AI62: =IFERROR(BL62,"") -> BASF SE | AJ62: =IF(BN62="","",BN62) -> 96887.38 | AK62: =IF(BM62="","",BM62) -> 0.1969174716 | AL62: =IF(BO62="","",BO62) -> 15.84 | AM62: =IF(BP62="","",BP62) -> 2.27 | AN62: 9.75 | AO62: 17.64 | AP62: 23.52 | AQ62: 12.01 | AR62: 7.93 | AS62: 15.2 | AT62: 3.57 | BA62: Chg. | BK62: 1 | BL62: =OFFSET(Data_Comp!$A$4,$BK62,MATCH($BF$61,Data_Comp!$B$3:$GR$3,0)+MATCH(BL$61,Data_Comp!$B$4:$Y$4,0)-1) -> BASF SE | BM62: =IFERROR(OFFSET(Data_Comp!$A$4,$BK62+MATCH(BM$61,Data_Comp!$A$5:$A$300,0),MATCH($BF$61,Data_Comp!$B$3:$GR$3,0)+MATCH(BL$61,Data_Comp!$B$4:$Y$4,0)-1),"") -> 0.1969174716 | BN62: =IFERROR(OFFSET(Data_Comp!$A$4,$BK62+MATCH(BN$61,Data_Comp!$A$5:$A$300,0),MATCH($BF$61,Data_Comp!$B$3:$GR$3,0)+MATCH(BL$61,Data_Comp!$B$4:$Y$4,0)-1),"") -> 96887.38 | BO62: =IFERROR(OFFSET(Data_Comp!$A$4,$BK62+MATCH(BO$61,Data_Comp!$A$5:$A$300,0),MATCH($BF$61,Data_Comp!$B$3:$GR$3,0)+MATCH(BL$61,Data_Comp!$B$4:$Y$4,0)-1),"") -> 15.84 | BP62: =IFERROR(OFFSET(Data_Comp!$A$4,$BK62+MATCH(BP$61,Data_Comp!$A$5:$A$300,0),MATCH($BF$61,Data_Comp!$B$3:$GR$3,0)+MATCH(BL$61,Data_Comp!$B$4:$Y$4,0)-1),"") -> 2.27 | BQ62: =IFERROR(OFFSET(Data_Comp!$A$4,$BK62+MATCH(BQ$61,Data_Comp!$A$5:$A$300,0),MATCH($BF$61,Data_Comp!$B$3:$GR$3,0)+MATCH(BL$61,Data_Comp!$B$4:$Y$4,0)-1),"") -> 9.75 | BR62: =IFERROR(OFFSET(Data_Comp!$A$4,$BK62+MATCH(BR$61,Data_Comp!$A$5:$A$300,0),MATCH($BF$61,Data_Comp!$B$3:$GR$3,0)+MATCH(BL$61,Data_Comp!$B$4:$Y$4,0)-1),"") -> 17.64 | BS62: =IFERROR(OFFSET(Data_Comp!$A$4,$BK62+MATCH(BS$61,Data_Comp!$A$5:$A$300,0),MATCH($BF$61,Data_Comp!$B$3:$GR$3,0)+MATCH(BL$61,Data_Comp!$B$4:$Y$4,0)-1),"") -> 23.52 | BT62: =IFERROR(OFFSET(Data_Comp!$A$4,$BK62+MATCH(BT$61,Data_Comp!$A$5:$A$300,0),MATCH($BF$61,Data_Comp!$B$3:$GR$3,0)+MATCH(BL$61,Data_Comp!$B$4:$Y$4,0)-1),"") -> 12.01 | BU62: =IFERROR(OFFSET(Data_Comp!$A$4,$BK62+MATCH(BU$61,Data_Comp!$A$5:$A$300,0),MATCH($BF$61,Data_Comp!$B$3:$GR$3,0)+MATCH(BL$61,Data_Comp!$B$4:$Y$4,0)-1),"") -> 7.93 | BV62: =IFERROR(OFFSET(Data_Comp!$A$4,$BK62+MATCH(BV$61,Data_Comp!$A$5:$A$300,0),MATCH($BF$61,Data_Comp!$B$3:$GR$3,0)+MATCH(BL$61,Data_Comp!$B$4:$Y$4,0)-1),"") -> 15.2 | BW62: =IFERROR(OFFSET(Data_Comp!$A$4,$BK62+MATCH(BW$61,Data_Comp!$A$5:$A$300,0),MATCH($BF$61,Data_Comp!$B$3:$GR$3,0)+MATCH(BL$61,Data_Comp!$B$4:$Y$4,0)-1),"") -> 3.57
AH63: =AH62+1 -> 2 | AI63: =IFERROR(BL63,"") -> Air Liquide | AJ63: =IF(BN63="","",BN63) -> 50879 | AK63: =IF(BM63="","",BM63) -> 0.04885724068 | AL63: =IF(BO63="","",BO63) -> 19.56 | AM63: 2.28 | AN63: 14.13 | AO63: 15.05 | AP63: 10.75 | AQ63: 16.81 | AR63: 9.81 | AS63: 11.73 | AT63: 2.49 | AY63: 변화율(1W) | BA63: 변화율(1M) | BC63: 변화율(3M) | BF63: 에너지 | BG63: 1W | BH63: -1 | BK63: =BK62+1 -> 2 | BL63: =OFFSET(Data_Comp!$A$4,$BK63,MATCH($BF$61,Data_Comp!$B$3:$GR$3,0)+MATCH(BL$61,Data_Comp!$B$4:$Y$4,0)-1) -> Air Liquide | BM63: =IFERROR(OFFSET(Data_Comp!$A$4,$BK63+MATCH(BM$61,Data_Comp!$A$5:$A$300,0),MATCH($BF$61,Data_Comp!$B$3:$GR$3,0)+MATCH(BL$61,Data_Comp!$B$4:$Y$4,0)-1),"") -> 0.04885724068 | BN63: =IFERROR(OFFSET(Data_Comp!$A$4,$BK63+MATCH(BN$61,Data_Comp!$A$5:$A$300,0),MATCH($BF$61,Data_Comp!$B$3:$GR$3,0)+MATCH(BL$61,Data_Comp!$B$4:$Y$4,0)-1),"") -> 50879 | BO63: =IFERROR(OFFSET(Data_Comp!$A$4,$BK63+MATCH(BO$61,Data_Comp!$A$5:$A$300,0),MATCH($BF$61,Data_Comp!$B$3:$GR$3,0)+MATCH(BL$61,Data_Comp!$B$4:$Y$4,0)-1),"") -> 19.56 | BP63: =IFERROR(OFFSET(Data_Comp!$A$4,$BK63+MATCH(BP$61,Data_Comp!$A$5:$A$300,0),MATCH($BF$61,Data_Comp!$B$3:$GR$3,0)+MATCH(BL$61,Data_Comp!$B$4:$Y$4,0)-1),"") -> 2.28 | BQ63: =IFERROR(OFFSET(Data_Comp!$A$4,$BK63+MATCH(BQ$61,Data_Comp!$A$5:$A$300,0),MATCH($BF$61,Data_Comp!$B$3:$GR$3,0)+MATCH(BL$61,Data_Comp!$B$4:$Y$4,0)-1),"") -> 14.13 | BR63: =IFERROR(OFFSET(Data_Comp!$A$4,$BK63+MATCH(BR$61,Data_Comp!$A$5:$A$300,0),MATCH($BF$61,Data_Comp!$B$3:$GR$3,0)+MATCH(BL$61,Data_Comp!$B$4:$Y$4,0)-1),"") -> 15.05 | BS63: =IFERROR(OFFSET(Data_Comp!$A$4,$BK63+MATCH(BS$61,Data_Comp!$A$5:$A$300,0),MATCH($BF$61,Data_Comp!$B$3:$GR$3,0)+MATCH(BL$61,Data_Comp!$B$4:$Y$4,0)-1),"") -> 10.75 | BT63: =IFERROR(OFFSET(Data_Comp!$A$4,$BK63+MATCH(BT$61,Data_Comp!$A$5:$A$300,0),MATCH($BF$61,Data_Comp!$B$3:$GR$3,0)+MATCH(BL$61,Data_Comp!$B$4:$Y$4,0)-1),"") -> 16.81 | BU63: =IFERROR(OFFSET(Data_Comp!$A$4,$BK63+MATCH(BU$61,Data_Comp!$A$5:$A$300,0),MATCH($BF$61,Data_Comp!$B$3:$GR$3,0)+MATCH(BL$61,Data_Comp!$B$4:$Y$4,0)-1),"") -> 9.81 | BV63: =IFERROR(OFFSET(Data_Comp!$A$4,$BK63+MATCH(BV$61,Data_Comp!$A$5:$A$300,0),MATCH($BF$61,Data_Comp!$B$3:$GR$3,0)+MATCH(BL$61,Data_Comp!$B$4:$Y$4,0)-1),"") -> 11.73 | BW63: =IFERROR(OFFSET(Data_Comp!$A$4,$BK63+MATCH(BW$61,Data_Comp!$A$5:$A$300,0),MATCH($BF$61,Data_Comp!$B$3:$GR$3,0)+MATCH(BL$61,Data_Comp!$B$4:$Y$4,0)-1),"") -> 2.49
AH64: =AH63+1 -> 3 | AI64: Linde | AJ64: 36660.89 | AK64: -0.2477538327 | AL64: 21.13 | AM64: 1.77 | AN64: 2.06 | AO64: 7.35 | AP64: 5.59 | AQ64: 12.41 | AR64: 7.36 | AS64: 8.52 | AT64: 2.37 | AY64: 전체 | AZ64: =Data_Sector_Europe!$D$7 -> -0.1231017037 | BA64: 전체 | BB64: =Data_Sector_Europe!$D$8 -> 0.1212551383 | BC64: 전체 | BD64: =Data_Sector_Europe!$D$9 -> 1.928993228 | BF64: 화학 | BG64: 1M | BH64: -4 | BK64: =BK63+1 -> 3 | BL64: =OFFSET(Data_Comp!$A$4,$BK64,MATCH($BF$61,Data_Comp!$B$3:$GR$3,0)+MATCH(BL$61,Data_Comp!$B$4:$Y$4,0)-1) -> Linde | BM64: =IFERROR(OFFSET(Data_Comp!$A$4,$BK64+MATCH(BM$61,Data_Comp!$A$5:$A$300,0),MATCH($BF$61,Data_Comp!$B$3:$GR$3,0)+MATCH(BL$61,Data_Comp!$B$4:$Y$4,0)-1),"") -> -0.2477538327 | BN64: =IFERROR(OFFSET(Data_Comp!$A$4,$BK64+MATCH(BN$61,Data_Comp!$A$5:$A$300,0),MATCH($BF$61,Data_Comp!$B$3:$GR$3,0)+MATCH(BL$61,Data_Comp!$B$4:$Y$4,0)-1),"") -> 36660.89 | BO64: =IFERROR(OFFSET(Data_Comp!$A$4,$BK64+MATCH(BO$61,Data_Comp!$A$5:$A$300,0),MATCH($BF$61,Data_Comp!$B$3:$GR$3,0)+MATCH(BL$61,Data_Comp!$B$4:$Y$4,0)-1),"") -> 21.13 | BP64: =IFERROR(OFFSET(Data_Comp!$A$4,$BK64+MATCH(BP$61,Data_Comp!$A$5:$A$300,0),MATCH($BF$61,Data_Comp!$B$3:$GR$3,0)+MATCH(BL$61,Data_Comp!$B$4:$Y$4,0)-1),"") -> 1.77 | BQ64: =IFERROR(OFFSET(Data_Comp!$A$4,$BK64+MATCH(BQ$61,Data_Comp!$A$5:$A$300,0),MATCH($BF$61,Data_Comp!$B$3:$GR$3,0)+MATCH(BL$61,Data_Comp!$B$4:$Y$4,0)-1),"") -> 2.06 | BR64: =IFERROR(OFFSET(Data_Comp!$A$4,$BK64+MATCH(BR$61,Data_Comp!$A$5:$A$300,0),MATCH($BF$61,Data_Comp!$B$3:$GR$3,0)+MATCH(BL$61,Data_Comp!$B$4:$Y$4,0)-1),"") -> 7.35 | BS64: =IFERROR(OFFSET(Data_Comp!$A$4,$BK64+MATCH(BS$61,Data_Comp!$A$5:$A$300,0),MATCH($BF$61,Data_Comp!$B$3:$GR$3,0)+MATCH(BL$61,Data_Comp!$B$4:$Y$4,0)-1),"") -> 5.59 | BT64: =IFERROR(OFFSET(Data_Comp!$A$4,$BK64+MATCH(BT$61,Data_Comp!$A$5:$A$300,0),MATCH($BF$61,Data_Comp!$B$3:$GR$3,0)+MATCH(BL$61,Data_Comp!$B$4:$Y$4,0)-1),"") -> 12.41 | BU64: =IFERROR(OFFSET(Data_Comp!$A$4,$BK64+MATCH(BU$61,Data_Comp!$A$5:$A$300,0),MATCH($BF$61,Data_Comp!$B$3:$GR$3,0)+MATCH(BL$61,Data_Comp!$B$4:$Y$4,0)-1),"") -> 7.36 | BV64: =IFERROR(OFFSET(Data_Comp!$A$4,$BK64+MATCH(BV$61,Data_Comp!$A$5:$A$300,0),MATCH($BF$61,Data_Comp!$B$3:$GR$3,0)+MATCH(BL$61,Data_Comp!$B$4:$Y$4,0)-1),"") -> 8.52 | BW64: =IFERROR(OFFSET(Data_Comp!$A$4,$BK64+MATCH(BW$61,Data_Comp!$A$5:$A$300,0),MATCH($BF$61,Data_Comp!$B$3:$GR$3,0)+MATCH(BL$61,Data_Comp!$B$4:$Y$4,0)-1),"") -> 2.37
AH65: 4 | AI65: Akzo Nobel N.V. | AJ65: 23650.27 | AK65: -0.3042506315 | AL65: 19.14 | AM65: 3.1 | AN65: 3.95 | AO65: 4.5 | AP65: 2.02 | AQ65: 10.64 | AR65: 6.72 | AS65: 15.6 | AT65: 2.79 | AX65: 1 | AY65: =OFFSET(Data_Sector_Europe!$C$13,,MATCH($AX65,Data_Sector_Europe!$D$10:$AB$10,0)) -> 운송 | AZ65: =OFFSET(Data_Sector_Europe!$C$7,,MATCH($AX65,Data_Sector_Europe!$D$10:$AB$10,0)) -> 0.6670950209 | BA65: =OFFSET(Data_Sector_Europe!$C$13,,MATCH($AX65,Data_Sector_Europe!$D$11:$AB$11,0)) -> 철강 | BB65: =OFFSET(Data_Sector_Europe!$C$8,,MATCH($AX65,Data_Sector_Europe!$D$11:$AB$11,0)) -> 3.370323006 | BC65: =OFFSET(Data_Sector_Europe!$C$13,,MATCH($AX65,Data_Sector_Europe!$D$12:$AB$12,0)) -> 철강 | BD65: =OFFSET(Data_Sector_Europe!$C$9,,MATCH($AX65,Data_Sector_Europe!$D$12:$AB$12,0)) -> 9.278035804 | BF65: 철강 | BG65: 3M | BH65: -12 | BK65: 4 | BL65: =OFFSET(Data_Comp!$A$4,$BK65,MATCH($BF$61,Data_Comp!$B$3:$GR$3,0)+MATCH(BL$61,Data_Comp!$B$4:$Y$4,0)-1) -> Akzo Nobel N.V. | BM65: =IFERROR(OFFSET(Data_Comp!$A$4,$BK65+MATCH(BM$61,Data_Comp!$A$5:$A$300,0),MATCH($BF$61,Data_Comp!$B$3:$GR$3,0)+MATCH(BL$61,Data_Comp!$B$4:$Y$4,0)-1),"") -> -0.3042506315 | BN65: =IFERROR(OFFSET(Data_Comp!$A$4,$BK65+MATCH(BN$61,Data_Comp!$A$5:$A$300,0),MATCH($BF$61,Data_Comp!$B$3:$GR$3,0)+MATCH(BL$61,Data_Comp!$B$4:$Y$4,0)-1),"") -> 23650.27 | BO65: =IFERROR(OFFSET(Data_Comp!$A$4,$BK65+MATCH(BO$61,Data_Comp!$A$5:$A$300,0),MATCH($BF$61,Data_Comp!$B$3:$GR$3,0)+MATCH(BL$61,Data_Comp!$B$4:$Y$4,0)-1),"") -> 19.14 | BP65: =IFERROR(OFFSET(Data_Comp!$A$4,$BK65+MATCH(BP$61,Data_Comp!$A$5:$A$300,0),MATCH($BF$61,Data_Comp!$B$3:$GR$3,0)+MATCH(BL$61,Data_Comp!$B$4:$Y$4,0)-1),"") -> 3.1 | BQ65: =IFERROR(OFFSET(Data_Comp!$A$4,$BK65+MATCH(BQ$61,Data_Comp!$A$5:$A$300,0),MATCH($BF$61,Data_Comp!$B$3:$GR$3,0)+MATCH(BL$61,Data_Comp!$B$4:$Y$4,0)-1),"") -> 3.95 | BR65: =IFERROR(OFFSET(Data_Comp!$A$4,$BK65+MATCH(BR$61,Data_Comp!$A$5:$A$300,0),MATCH($BF$61,Data_Comp!$B$3:$GR$3,0)+MATCH(BL$61,Data_Comp!$B$4:$Y$4,0)-1),"") -> 4.5 | BS65: =IFERROR(OFFSET(Data_Comp!$A$4,$BK65+MATCH(BS$61,Data_Comp!$A$5:$A$300,0),MATCH($BF$61,Data_Comp!$B$3:$GR$3,0)+MATCH(BL$61,Data_Comp!$B$4:$Y$4,0)-1),"") -> 2.02 | BT65: =IFERROR(OFFSET(Data_Comp!$A$4,$BK65+MATCH(BT$61,Data_Comp!$A$5:$A$300,0),MATCH($BF$61,Data_Comp!$B$3:$GR$3,0)+MATCH(BL$61,Data_Comp!$B$4:$Y$4,0)-1),"") -> 10.64 | BU65: =IFERROR(OFFSET(Data_Comp!$A$4,$BK65+MATCH(BU$61,Data_Comp!$A$5:$A$300,0),MATCH($BF$61,Data_Comp!$B$3:$GR$3,0)+MATCH(BL$61,Data_Comp!$B$4:$Y$4,0)-1),"") -> 6.72 | BV65: =IFERROR(OFFSET(Data_Comp!$A$4,$BK65+MATCH(BV$61,Data_Comp!$A$5:$A$300,0),MATCH($BF$61,Data_Comp!$B$3:$GR$3,0)+MATCH(BL$61,Data_Comp!$B$4:$Y$4,0)-1),"") -> 15.6 | BW65: =IFERROR(OFFSET(Data_Comp!$A$4,$BK65+MATCH(BW$61,Data_Comp!$A$5:$A$300,0),MATCH($BF$61,Data_Comp!$B$3:$GR$3,0)+MATCH(BL$61,Data_Comp!$B$4:$Y$4,0)-1),"") -> 2.79
AH66: 5 | AI66: Evonik Industries | AJ66: 16454.24 | AK66: 0 | AL66: 14.21 | AM66: 1.73 | AN66: 12.9 | AO66: 21.15 | AP66: 25.89 | AQ66: 10.43 | AR66: 6.55 | AS66: 12.33 | AT66: 3.91 | AX66: 2 | AY66: =OFFSET(Data_Sector_Europe!$C$13,,MATCH($AX66,Data_Sector_Europe!$D$10:$AB$10,0)) -> 에너지 | AZ66: =OFFSET(Data_Sector_Europe!$C$7,,MATCH($AX66,Data_Sector_Europe!$D$10:$AB$10,0)) -> 0.5150355087 | BA66: =OFFSET(Data_Sector_Europe!$C$13,,MATCH($AX66,Data_Sector_Europe!$D$11:$AB$11,0)) -> 운송 | BB66: =OFFSET(Data_Sector_Europe!$C$8,,MATCH($AX66,Data_Sector_Europe!$D$11:$AB$11,0)) -> 2.157261471 | BC66: =OFFSET(Data_Sector_Europe!$C$13,,MATCH($AX66,Data_Sector_Europe!$D$12:$AB$12,0)) -> 은행 | BD66: =OFFSET(Data_Sector_Europe!$C$9,,MATCH($AX66,Data_Sector_Europe!$D$12:$AB$12,0)) -> 7.756801011 | BF66: 비철,목재등 | BK66: 5 | BL66: =OFFSET(Data_Comp!$A$4,$BK66,MATCH($BF$61,Data_Comp!$B$3:$GR$3,0)+MATCH(BL$61,Data_Comp!$B$4:$Y$4,0)-1) -> Evonik Industries | BM66: =IFERROR(OFFSET(Data_Comp!$A$4,$BK66+MATCH(BM$61,Data_Comp!$A$5:$A$300,0),MATCH($BF$61,Data_Comp!$B$3:$GR$3,0)+MATCH(BL$61,Data_Comp!$B$4:$Y$4,0)-1),"") -> 0 | BN66: =IFERROR(OFFSET(Data_Comp!$A$4,$BK66+MATCH(BN$61,Data_Comp!$A$5:$A$300,0),MATCH($BF$61,Data_Comp!$B$3:$GR$3,0)+MATCH(BL$61,Data_Comp!$B$4:$Y$4,0)-1),"") -> 16454.24 | BO66: =IFERROR(OFFSET(Data_Comp!$A$4,$BK66+MATCH(BO$61,Data_Comp!$A$5:$A$300,0),MATCH($BF$61,Data_Comp!$B$3:$GR$3,0)+MATCH(BL$61,Data_Comp!$B$4:$Y$4,0)-1),"") -> 14.21 | BP66: =IFERROR(OFFSET(Data_Comp!$A$4,$BK66+MATCH(BP$61,Data_Comp!$A$5:$A$300,0),MATCH($BF$61,Data_Comp!$B$3:$GR$3,0)+MATCH(BL$61,Data_Comp!$B$4:$Y$4,0)-1),"") -> 1.73 | BQ66: =IFERROR(OFFSET(Data_Comp!$A$4,$BK66+MATCH(BQ$61,Data_Comp!$A$5:$A$300,0),MATCH($BF$61,Data_Comp!$B$3:$GR$3,0)+MATCH(BL$61,Data_Comp!$B$4:$Y$4,0)-1),"") -> 12.9 | BR66: =IFERROR(OFFSET(Data_Comp!$A$4,$BK66+MATCH(BR$61,Data_Comp!$A$5:$A$300,0),MATCH($BF$61,Data_Comp!$B$3:$GR$3,0)+MATCH(BL$61,Data_Comp!$B$4:$Y$4,0)-1),"") -> 21.15 | BS66: =IFERROR(OFFSET(Data_Comp!$A$4,$BK66+MATCH(BS$61,Data_Comp!$A$5:$A$300,0),MATCH($BF$61,Data_Comp!$B$3:$GR$3,0)+MATCH(BL$61,Data_Comp!$B$4:$Y$4,0)-1),"") -> 25.89 | BT66: =IFERROR(OFFSET(Data_Comp!$A$4,$BK66+MATCH(BT$61,Data_Comp!$A$5:$A$300,0),MATCH($BF$61,Data_Comp!$B$3:$GR$3,0)+MATCH(BL$61,Data_Comp!$B$4:$Y$4,0)-1),"") -> 10.43 | BU66: =IFERROR(OFFSET(Data_Comp!$A$4,$BK66+MATCH(BU$61,Data_Comp!$A$5:$A$300,0),MATCH($BF$61,Data_Comp!$B$3:$GR$3,0)+MATCH(BL$61,Data_Comp!$B$4:$Y$4,0)-1),"") -> 6.55 | BV66: =IFERROR(OFFSET(Data_Comp!$A$4,$BK66+MATCH(BV$61,Data_Comp!$A$5:$A$300,0),MATCH($BF$61,Data_Comp!$B$3:$GR$3,0)+MATCH(BL$61,Data_Comp!$B$4:$Y$4,0)-1),"") -> 12.33 | BW66: =IFERROR(OFFSET(Data_Comp!$A$4,$BK66+MATCH(BW$61,Data_Comp!$A$5:$A$300,0),MATCH($BF$61,Data_Comp!$B$3:$GR$3,0)+MATCH(BL$61,Data_Comp!$B$4:$Y$4,0)-1),"") -> 3.91
AH67: 6 | AI67: EMS-CHEMIE HOLDING | AJ67: 15735.81 | AK67: 0 | AL67: 31.28 | AM67: 9.93 | AN67: 5.53 | AO67: 5.12 | AP67: 4.21 | AQ67: 27.3 | AR67: 22.35 | AS67: 32.19 | AT67: 2.83 | AX67: 3 | AY67: =OFFSET(Data_Sector_Europe!$C$13,,MATCH($AX67,Data_Sector_Europe!$D$10:$AB$10,0)) -> 반도체 | AZ67: =OFFSET(Data_Sector_Europe!$C$7,,MATCH($AX67,Data_Sector_Europe!$D$10:$AB$10,0)) -> 0.2425137442 | BA67: =OFFSET(Data_Sector_Europe!$C$13,,MATCH($AX67,Data_Sector_Europe!$D$11:$AB$11,0)) -> 건설,건축관련 | BB67: =OFFSET(Data_Sector_Europe!$C$8,,MATCH($AX67,Data_Sector_Europe!$D$11:$AB$11,0)) -> 1.424802292 | BC67: =OFFSET(Data_Sector_Europe!$C$13,,MATCH($AX67,Data_Sector_Europe!$D$12:$AB$12,0)) -> 반도체 | BD67: =OFFSET(Data_Sector_Europe!$C$9,,MATCH($AX67,Data_Sector_Europe!$D$12:$AB$12,0)) -> 6.897890031 | BF67: 건설,건축관련 | BK67: 6 | BL67: =OFFSET(Data_Comp!$A$4,$BK67,MATCH($BF$61,Data_Comp!$B$3:$GR$3,0)+MATCH(BL$61,Data_Comp!$B$4:$Y$4,0)-1) -> EMS-CHEMIE HOLDING | BM67: =IFERROR(OFFSET(Data_Comp!$A$4,$BK67+MATCH(BM$61,Data_Comp!$A$5:$A$300,0),MATCH($BF$61,Data_Comp!$B$3:$GR$3,0)+MATCH(BL$61,Data_Comp!$B$4:$Y$4,0)-1),"") -> 0 | BN67: =IFERROR(OFFSET(Data_Comp!$A$4,$BK67+MATCH(BN$61,Data_Comp!$A$5:$A$300,0),MATCH($BF$61,Data_Comp!$B$3:$GR$3,0)+MATCH(BL$61,Data_Comp!$B$4:$Y$4,0)-1),"") -> 15735.81 | BO67: =IFERROR(OFFSET(Data_Comp!$A$4,$BK67+MATCH(BO$61,Data_Comp!$A$5:$A$300,0),MATCH($BF$61,Data_Comp!$B$3:$GR$3,0)+MATCH(BL$61,Data_Comp!$B$4:$Y$4,0)-1),"") -> 31.28 | BP67: =IFERROR(OFFSET(Data_Comp!$A$4,$BK67+MATCH(BP$61,Data_Comp!$A$5:$A$300,0),MATCH($BF$61,Data_Comp!$B$3:$GR$3,0)+MATCH(BL$61,Data_Comp!$B$4:$Y$4,0)-1),"") -> 9.93 | BQ67: =IFERROR(OFFSET(Data_Comp!$A$4,$BK67+MATCH(BQ$61,Data_Comp!$A$5:$A$300,0),MATCH($BF$61,Data_Comp!$B$3:$GR$3,0)+MATCH(BL$61,Data_Comp!$B$4:$Y$4,0)-1),"") -> 5.53 | BR67: =IFERROR(OFFSET(Data_Comp!$A$4,$BK67+MATCH(BR$61,Data_Comp!$A$5:$A$300,0),MATCH($BF$61,Data_Comp!$B$3:$GR$3,0)+MATCH(BL$61,Data_Comp!$B$4:$Y$4,0)-1),"") -> 5.12 | BS67: =IFERROR(OFFSET(Data_Comp!$A$4,$BK67+MATCH(BS$61,Data_Comp!$A$5:$A$300,0),MATCH($BF$61,Data_Comp!$B$3:$GR$3,0)+MATCH(BL$61,Data_Comp!$B$4:$Y$4,0)-1),"") -> 4.21 | BT67: =IFERROR(OFFSET(Data_Comp!$A$4,$BK67+MATCH(BT$61,Data_Comp!$A$5:$A$300,0),MATCH($BF$61,Data_Comp!$B$3:$GR$3,0)+MATCH(BL$61,Data_Comp!$B$4:$Y$4,0)-1),"") -> 27.3 | BU67: =IFERROR(OFFSET(Data_Comp!$A$4,$BK67+MATCH(BU$61,Data_Comp!$A$5:$A$300,0),MATCH($BF$61,Data_Comp!$B$3:$GR$3,0)+MATCH(BL$61,Data_Comp!$B$4:$Y$4,0)-1),"") -> 22.35 | BV67: =IFERROR(OFFSET(Data_Comp!$A$4,$BK67+MATCH(BV$61,Data_Comp!$A$5:$A$300,0),MATCH($BF$61,Data_Comp!$B$3:$GR$3,0)+MATCH(BL$61,Data_Comp!$B$4:$Y$4,0)-1),"") -> 32.19 | BW67: =IFERROR(OFFSET(Data_Comp!$A$4,$BK67+MATCH(BW$61,Data_Comp!$A$5:$A$300,0),MATCH($BF$61,Data_Comp!$B$3:$GR$3,0)+MATCH(BL$61,Data_Comp!$B$4:$Y$4,0)-1),"") -> 2.83
AH68: 7 | AI68: Solvay | AJ68: 15885.56 | AK68: -2.20560531 | AL68: 15.69 | AM68: 1.28 | AN68: 2.58 | AO68: 54.47 | AP68: 32.16 | AQ68: 14.1 | AR68: 7.23 | AS68: 9.57 | AT68: 2.69 | AX68: 4 | AY68: =OFFSET(Data_Sector_Europe!$C$13,,MATCH($AX68,Data_Sector_Europe!$D$10:$AB$10,0)) -> 자동차 | AZ68: =OFFSET(Data_Sector_Europe!$C$7,,MATCH($AX68,Data_Sector_Europe!$D$10:$AB$10,0)) -> 0.2072169494 | BA68: =OFFSET(Data_Sector_Europe!$C$13,,MATCH($AX68,Data_Sector_Europe!$D$11:$AB$11,0)) -> 반도체 | BB68: =OFFSET(Data_Sector_Europe!$C$8,,MATCH($AX68,Data_Sector_Europe!$D$11:$AB$11,0)) -> 1.3684475 | BC68: =OFFSET(Data_Sector_Europe!$C$13,,MATCH($AX68,Data_Sector_Europe!$D$12:$AB$12,0)) -> IT하드웨어 | BD68: =OFFSET(Data_Sector_Europe!$C$9,,MATCH($AX68,Data_Sector_Europe!$D$12:$AB$12,0)) -> 5.847838562 | BF68: 기계 | BK68: 7 | BL68: =OFFSET(Data_Comp!$A$4,$BK68,MATCH($BF$61,Data_Comp!$B$3:$GR$3,0)+MATCH(BL$61,Data_Comp!$B$4:$Y$4,0)-1) -> Solvay | BM68: =IFERROR(OFFSET(Data_Comp!$A$4,$BK68+MATCH(BM$61,Data_Comp!$A$5:$A$300,0),MATCH($BF$61,Data_Comp!$B$3:$GR$3,0)+MATCH(BL$61,Data_Comp!$B$4:$Y$4,0)-1),"") -> -2.20560531 | BN68: =IFERROR(OFFSET(Data_Comp!$A$4,$BK68+MATCH(BN$61,Data_Comp!$A$5:$A$300,0),MATCH($BF$61,Data_Comp!$B$3:$GR$3,0)+MATCH(BL$61,Data_Comp!$B$4:$Y$4,0)-1),"") -> 15885.56 | BO68: =IFERROR(OFFSET(Data_Comp!$A$4,$BK68+MATCH(BO$61,Data_Comp!$A$5:$A$300,0),MATCH($BF$61,Data_Comp!$B$3:$GR$3,0)+MATCH(BL$61,Data_Comp!$B$4:$Y$4,0)-1),"") -> 15.69 | BP68: =IFERROR(OFFSET(Data_Comp!$A$4,$BK68+MATCH(BP$61,Data_Comp!$A$5:$A$300,0),MATCH($BF$61,Data_Comp!$B$3:$GR$3,0)+MATCH(BL$61,Data_Comp!$B$4:$Y$4,0)-1),"") -> 1.28 | BQ68: =IFERROR(OFFSET(Data_Comp!$A$4,$BK68+MATCH(BQ$61,Data_Comp!$A$5:$A$300,0),MATCH($BF$61,Data_Comp!$B$3:$GR$3,0)+MATCH(BL$61,Data_Comp!$B$4:$Y$4,0)-1),"") -> 2.58 | BR68: =IFERROR(OFFSET(Data_Comp!$A$4,$BK68+MATCH(BR$61,Data_Comp!$A$5:$A$300,0),MATCH($BF$61,Data_Comp!$B$3:$GR$3,0)+MATCH(BL$61,Data_Comp!$B$4:$Y$4,0)-1),"") -> 54.47 | BS68: =IFERROR(OFFSET(Data_Comp!$A$4,$BK68+MATCH(BS$61,Data_Comp!$A$5:$A$300,0),MATCH($BF$61,Data_Comp!$B$3:$GR$3,0)+MATCH(BL$61,Data_Comp!$B$4:$Y$4,0)-1),"") -> 32.16 | BT68: =IFERROR(OFFSET(Data_Comp!$A$4,$BK68+MATCH(BT$61,Data_Comp!$A$5:$A$300,0),MATCH($BF$61,Data_Comp!$B$3:$GR$3,0)+MATCH(BL$61,Data_Comp!$B$4:$Y$4,0)-1),"") -> 14.1 | BU68: =IFERROR(OFFSET(Data_Comp!$A$4,$BK68+MATCH(BU$61,Data_Comp!$A$5:$A$300,0),MATCH($BF$61,Data_Comp!$B$3:$GR$3,0)+MATCH(BL$61,Data_Comp!$B$4:$Y$4,0)-1),"") -> 7.23 | BV68: =IFERROR(OFFSET(Data_Comp!$A$4,$BK68+MATCH(BV$61,Data_Comp!$A$5:$A$300,0),MATCH($BF$61,Data_Comp!$B$3:$GR$3,0)+MATCH(BL$61,Data_Comp!$B$4:$Y$4,0)-1),"") -> 9.57 | BW68: =IFERROR(OFFSET(Data_Comp!$A$4,$BK68+MATCH(BW$61,Data_Comp!$A$5:$A$300,0),MATCH($BF$61,Data_Comp!$B$3:$GR$3,0)+MATCH(BL$61,Data_Comp!$B$4:$Y$4,0)-1),"") -> 2.69
AH69: 8 | AI69: Sika | AJ69: 16212.82 | AK69: 0.744635459 | AL69: 26.16 | AM69: 5.08 | AN69: 8.21 | AO69: 13.19 | AP69: 15.43 | AQ69: 14.48 | AR69: 10.45 | AS69: 20.78 | AT69: 1.52 | AX69: 5 | AY69: =OFFSET(Data_Sector_Europe!$C$13,,MATCH($AX69,Data_Sector_Europe!$D$10:$AB$10,0)) -> 화학 | AZ69: =OFFSET(Data_Sector_Europe!$C$7,,MATCH($AX69,Data_Sector_Europe!$D$10:$AB$10,0)) -> 0.06139124885 | BA69: =OFFSET(Data_Sector_Europe!$C$13,,MATCH($AX69,Data_Sector_Europe!$D$11:$AB$11,0)) -> IT하드웨어 | BB69: =OFFSET(Data_Sector_Europe!$C$8,,MATCH($AX69,Data_Sector_Europe!$D$11:$AB$11,0)) -> 1.018403368 | BC69: =OFFSET(Data_Sector_Europe!$C$13,,MATCH($AX69,Data_Sector_Europe!$D$12:$AB$12,0)) -> 운송 | BD69: =OFFSET(Data_Sector_Europe!$C$9,,MATCH($AX69,Data_Sector_Europe!$D$12:$AB$12,0)) -> 5.670403702 | BF69: 조선 | BK69: 8 | BL69: =OFFSET(Data_Comp!$A$4,$BK69,MATCH($BF$61,Data_Comp!$B$3:$GR$3,0)+MATCH(BL$61,Data_Comp!$B$4:$Y$4,0)-1) -> Sika | BM69: =IFERROR(OFFSET(Data_Comp!$A$4,$BK69+MATCH(BM$61,Data_Comp!$A$5:$A$300,0),MATCH($BF$61,Data_Comp!$B$3:$GR$3,0)+MATCH(BL$61,Data_Comp!$B$4:$Y$4,0)-1),"") -> 0.744635459 | BN69: =IFERROR(OFFSET(Data_Comp!$A$4,$BK69+MATCH(BN$61,Data_Comp!$A$5:$A$300,0),MATCH($BF$61,Data_Comp!$B$3:$GR$3,0)+MATCH(BL$61,Data_Comp!$B$4:$Y$4,0)-1),"") -> 16212.82 | BO69: =IFERROR(OFFSET(Data_Comp!$A$4,$BK69+MATCH(BO$61,Data_Comp!$A$5:$A$300,0),MATCH($BF$61,Data_Comp!$B$3:$GR$3,0)+MATCH(BL$61,Data_Comp!$B$4:$Y$4,0)-1),"") -> 26.16 | BP69: =IFERROR(OFFSET(Data_Comp!$A$4,$BK69+MATCH(BP$61,Data_Comp!$A$5:$A$300,0),MATCH($BF$61,Data_Comp!$B$3:$GR$3,0)+MATCH(BL$61,Data_Comp!$B$4:$Y$4,0)-1),"") -> 5.08 | BQ69: =IFERROR(OFFSET(Data_Comp!$A$4,$BK69+MATCH(BQ$61,Data_Comp!$A$5:$A$300,0),MATCH($BF$61,Data_Comp!$B$3:$GR$3,0)+MATCH(BL$61,Data_Comp!$B$4:$Y$4,0)-1),"") -> 8.21 | BR69: =IFERROR(OFFSET(Data_Comp!$A$4,$BK69+MATCH(BR$61,Data_Comp!$A$5:$A$300,0),MATCH($BF$61,Data_Comp!$B$3:$GR$3,0)+MATCH(BL$61,Data_Comp!$B$4:$Y$4,0)-1),"") -> 13.19 | BS69: =IFERROR(OFFSET(Data_Comp!$A$4,$BK69+MATCH(BS$61,Data_Comp!$A$5:$A$300,0),MATCH($BF$61,Data_Comp!$B$3:$GR$3,0)+MATCH(BL$61,Data_Comp!$B$4:$Y$4,0)-1),"") -> 15.43 | BT69: =IFERROR(OFFSET(Data_Comp!$A$4,$BK69+MATCH(BT$61,Data_Comp!$A$5:$A$300,0),MATCH($BF$61,Data_Comp!$B$3:$GR$3,0)+MATCH(BL$61,Data_Comp!$B$4:$Y$4,0)-1),"") -> 14.48 | BU69: =IFERROR(OFFSET(Data_Comp!$A$4,$BK69+MATCH(BU$61,Data_Comp!$A$5:$A$300,0),MATCH($BF$61,Data_Comp!$B$3:$GR$3,0)+MATCH(BL$61,Data_Comp!$B$4:$Y$4,0)-1),"") -> 10.45 | BV69: =IFERROR(OFFSET(Data_Comp!$A$4,$BK69+MATCH(BV$61,Data_Comp!$A$5:$A$300,0),MATCH($BF$61,Data_Comp!$B$3:$GR$3,0)+MATCH(BL$61,Data_Comp!$B$4:$Y$4,0)-1),"") -> 20.78 | BW69: =IFERROR(OFFSET(Data_Comp!$A$4,$BK69+MATCH(BW$61,Data_Comp!$A$5:$A$300,0),MATCH($BF$61,Data_Comp!$B$3:$GR$3,0)+MATCH(BL$61,Data_Comp!$B$4:$Y$4,0)-1),"") -> 1.52
AH70: 9 | AI70: Yara International ASA | AJ70: 12609.55 | AK70: 1.291936393 | AL70: 17.11 | AM70: 1.22 | AN70: 0.38 | AO70: -22.49 | AP70: -28.71 | AQ70: 6.33 | AR70: 4.74 | AS70: 5.96 | AT70: 2.58 | AX70: 6 | AY70: =OFFSET(Data_Sector_Europe!$C$13,,MATCH($AX70,Data_Sector_Europe!$D$10:$AB$10,0)) -> 증권 | AZ70: =OFFSET(Data_Sector_Europe!$C$7,,MATCH($AX70,Data_Sector_Europe!$D$10:$AB$10,0)) -> 0.04764712539 | BA70: =OFFSET(Data_Sector_Europe!$C$13,,MATCH($AX70,Data_Sector_Europe!$D$11:$AB$11,0)) -> 통신서비스 | BB70: =OFFSET(Data_Sector_Europe!$C$8,,MATCH($AX70,Data_Sector_Europe!$D$11:$AB$11,0)) -> 0.9723002398 | BC70: =OFFSET(Data_Sector_Europe!$C$13,,MATCH($AX70,Data_Sector_Europe!$D$12:$AB$12,0)) -> 자동차 | BD70: =OFFSET(Data_Sector_Europe!$C$9,,MATCH($AX70,Data_Sector_Europe!$D$12:$AB$12,0)) -> 2.737183707 | BF70: 상사,자본재 | BK70: 9 | BL70: =OFFSET(Data_Comp!$A$4,$BK70,MATCH($BF$61,Data_Comp!$B$3:$GR$3,0)+MATCH(BL$61,Data_Comp!$B$4:$Y$4,0)-1) -> Yara International ASA | BM70: =IFERROR(OFFSET(Data_Comp!$A$4,$BK70+MATCH(BM$61,Data_Comp!$A$5:$A$300,0),MATCH($BF$61,Data_Comp!$B$3:$GR$3,0)+MATCH(BL$61,Data_Comp!$B$4:$Y$4,0)-1),"") -> 1.291936393 | BN70: =IFERROR(OFFSET(Data_Comp!$A$4,$BK70+MATCH(BN$61,Data_Comp!$A$5:$A$300,0),MATCH($BF$61,Data_Comp!$B$3:$GR$3,0)+MATCH(BL$61,Data_Comp!$B$4:$Y$4,0)-1),"") -> 12609.55 | BO70: =IFERROR(OFFSET(Data_Comp!$A$4,$BK70+MATCH(BO$61,Data_Comp!$A$5:$A$300,0),MATCH($BF$61,Data_Comp!$B$3:$GR$3,0)+MATCH(BL$61,Data_Comp!$B$4:$Y$4,0)-1),"") -> 17.11 | BP70: =IFERROR(OFFSET(Data_Comp!$A$4,$BK70+MATCH(BP$61,Data_Comp!$A$5:$A$300,0),MATCH($BF$61,Data_Comp!$B$3:$GR$3,0)+MATCH(BL$61,Data_Comp!$B$4:$Y$4,0)-1),"") -> 1.22 | BQ70: =IFERROR(OFFSET(Data_Comp!$A$4,$BK70+MATCH(BQ$61,Data_Comp!$A$5:$A$300,0),MATCH($BF$61,Data_Comp!$B$3:$GR$3,0)+MATCH(BL$61,Data_Comp!$B$4:$Y$4,0)-1),"") -> 0.38 | BR70: =IFERROR(OFFSET(Data_Comp!$A$4,$BK70+MATCH(BR$61,Data_Comp!$A$5:$A$300,0),MATCH($BF$61,Data_Comp!$B$3:$GR$3,0)+MATCH(BL$61,Data_Comp!$B$4:$Y$4,0)-1),"") -> -22.49 | BS70: =IFERROR(OFFSET(Data_Comp!$A$4,$BK70+MATCH(BS$61,Data_Comp!$A$5:$A$300,0),MATCH($BF$61,Data_Comp!$B$3:$GR$3,0)+MATCH(BL$61,Data_Comp!$B$4:$Y$4,0)-1),"") -> -28.71 | BT70: =IFERROR(OFFSET(Data_Comp!$A$4,$BK70+MATCH(BT$61,Data_Comp!$A$5:$A$300,0),MATCH($BF$61,Data_Comp!$B$3:$GR$3,0)+MATCH(BL$61,Data_Comp!$B$4:$Y$4,0)-1),"") -> 6.33 | BU70: =IFERROR(OFFSET(Data_Comp!$A$4,$BK70+MATCH(BU$61,Data_Comp!$A$5:$A$300,0),MATCH($BF$61,Data_Comp!$B$3:$GR$3,0)+MATCH(BL$61,Data_Comp!$B$4:$Y$4,0)-1),"") -> 4.74 | BV70: =IFERROR(OFFSET(Data_Comp!$A$4,$BK70+MATCH(BV$61,Data_Comp!$A$5:$A$300,0),MATCH($BF$61,Data_Comp!$B$3:$GR$3,0)+MATCH(BL$61,Data_Comp!$B$4:$Y$4,0)-1),"") -> 5.96 | BW70: =IFERROR(OFFSET(Data_Comp!$A$4,$BK70+MATCH(BW$61,Data_Comp!$A$5:$A$300,0),MATCH($BF$61,Data_Comp!$B$3:$GR$3,0)+MATCH(BL$61,Data_Comp!$B$4:$Y$4,0)-1),"") -> 2.58
AH71: 10 | AI71: Covestro | AJ71: 17301.17 | AK71: 0.950863983 | AL71: 11.82 | AM71: 2.47 | AN71: 14.5 | AO71: 72.48 | AP71: 81.72 | AQ71: 16.01 | AR71: 10.6 | AS71: 30.5 | AT71: 2.67 | AX71: 7 | AY71: =OFFSET(Data_Sector_Europe!$C$13,,MATCH($AX71,Data_Sector_Europe!$D$10:$AB$10,0)) -> 기계 | AZ71: =OFFSET(Data_Sector_Europe!$C$7,,MATCH($AX71,Data_Sector_Europe!$D$10:$AB$10,0)) -> 0.0128916019 | BA71: =OFFSET(Data_Sector_Europe!$C$13,,MATCH($AX71,Data_Sector_Europe!$D$11:$AB$11,0)) -> 기계 | BB71: =OFFSET(Data_Sector_Europe!$C$8,,MATCH($AX71,Data_Sector_Europe!$D$11:$AB$11,0)) -> 0.9590681449 | BC71: =OFFSET(Data_Sector_Europe!$C$13,,MATCH($AX71,Data_Sector_Europe!$D$12:$AB$12,0)) -> 기계 | BD71: =OFFSET(Data_Sector_Europe!$C$9,,MATCH($AX71,Data_Sector_Europe!$D$12:$AB$12,0)) -> 2.658968235 | BF71: 운송 | BK71: 10 | BL71: =OFFSET(Data_Comp!$A$4,$BK71,MATCH($BF$61,Data_Comp!$B$3:$GR$3,0)+MATCH(BL$61,Data_Comp!$B$4:$Y$4,0)-1) -> Covestro | BM71: =IFERROR(OFFSET(Data_Comp!$A$4,$BK71+MATCH(BM$61,Data_Comp!$A$5:$A$300,0),MATCH($BF$61,Data_Comp!$B$3:$GR$3,0)+MATCH(BL$61,Data_Comp!$B$4:$Y$4,0)-1),"") -> 0.950863983 | BN71: =IFERROR(OFFSET(Data_Comp!$A$4,$BK71+MATCH(BN$61,Data_Comp!$A$5:$A$300,0),MATCH($BF$61,Data_Comp!$B$3:$GR$3,0)+MATCH(BL$61,Data_Comp!$B$4:$Y$4,0)-1),"") -> 17301.17 | BO71: =IFERROR(OFFSET(Data_Comp!$A$4,$BK71+MATCH(BO$61,Data_Comp!$A$5:$A$300,0),MATCH($BF$61,Data_Comp!$B$3:$GR$3,0)+MATCH(BL$61,Data_Comp!$B$4:$Y$4,0)-1),"") -> 11.82 | BP71: =IFERROR(OFFSET(Data_Comp!$A$4,$BK71+MATCH(BP$61,Data_Comp!$A$5:$A$300,0),MATCH($BF$61,Data_Comp!$B$3:$GR$3,0)+MATCH(BL$61,Data_Comp!$B$4:$Y$4,0)-1),"") -> 2.47 | BQ71: =IFERROR(OFFSET(Data_Comp!$A$4,$BK71+MATCH(BQ$61,Data_Comp!$A$5:$A$300,0),MATCH($BF$61,Data_Comp!$B$3:$GR$3,0)+MATCH(BL$61,Data_Comp!$B$4:$Y$4,0)-1),"") -> 14.5 | BR71: =IFERROR(OFFSET(Data_Comp!$A$4,$BK71+MATCH(BR$61,Data_Comp!$A$5:$A$300,0),MATCH($BF$61,Data_Comp!$B$3:$GR$3,0)+MATCH(BL$61,Data_Comp!$B$4:$Y$4,0)-1),"") -> 72.48 | BS71: =IFERROR(OFFSET(Data_Comp!$A$4,$BK71+MATCH(BS$61,Data_Comp!$A$5:$A$300,0),MATCH($BF$61,Data_Comp!$B$3:$GR$3,0)+MATCH(BL$61,Data_Comp!$B$4:$Y$4,0)-1),"") -> 81.72 | BT71: =IFERROR(OFFSET(Data_Comp!$A$4,$BK71+MATCH(BT$61,Data_Comp!$A$5:$A$300,0),MATCH($BF$61,Data_Comp!$B$3:$GR$3,0)+MATCH(BL$61,Data_Comp!$B$4:$Y$4,0)-1),"") -> 16.01 | BU71: =IFERROR(OFFSET(Data_Comp!$A$4,$BK71+MATCH(BU$61,Data_Comp!$A$5:$A$300,0),MATCH($BF$61,Data_Comp!$B$3:$GR$3,0)+MATCH(BL$61,Data_Comp!$B$4:$Y$4,0)-1),"") -> 10.6 | BV71: =IFERROR(OFFSET(Data_Comp!$A$4,$BK71+MATCH(BV$61,Data_Comp!$A$5:$A$300,0),MATCH($BF$61,Data_Comp!$B$3:$GR$3,0)+MATCH(BL$61,Data_Comp!$B$4:$Y$4,0)-1),"") -> 30.5 | BW71: =IFERROR(OFFSET(Data_Comp!$A$4,$BK71+MATCH(BW$61,Data_Comp!$A$5:$A$300,0),MATCH($BF$61,Data_Comp!$B$3:$GR$3,0)+MATCH(BL$61,Data_Comp!$B$4:$Y$4,0)-1),"") -> 2.67
AX72: 8 | AY72: =OFFSET(Data_Sector_Europe!$C$13,,MATCH($AX72,Data_Sector_Europe!$D$10:$AB$10,0)) -> 건설,건축관련 | AZ72: =OFFSET(Data_Sector_Europe!$C$7,,MATCH($AX72,Data_Sector_Europe!$D$10:$AB$10,0)) -> 0.01132986761 | BA72: =OFFSET(Data_Sector_Europe!$C$13,,MATCH($AX72,Data_Sector_Europe!$D$11:$AB$11,0)) -> 소프트웨어 | BB72: =OFFSET(Data_Sector_Europe!$C$8,,MATCH($AX72,Data_Sector_Europe!$D$11:$AB$11,0)) -> 0.7529836689 | BC72: =OFFSET(Data_Sector_Europe!$C$13,,MATCH($AX72,Data_Sector_Europe!$D$12:$AB$12,0)) -> 증권 | BD72: =OFFSET(Data_Sector_Europe!$C$9,,MATCH($AX72,Data_Sector_Europe!$D$12:$AB$12,0)) -> 2.187236709 | BF72: 자동차
AX73: 9 | AY73: =OFFSET(Data_Sector_Europe!$C$13,,MATCH($AX73,Data_Sector_Europe!$D$10:$AB$10,0)) -> 소프트웨어 | AZ73: =OFFSET(Data_Sector_Europe!$C$7,,MATCH($AX73,Data_Sector_Europe!$D$10:$AB$10,0)) -> -0.03252850762 | BA73: =OFFSET(Data_Sector_Europe!$C$13,,MATCH($AX73,Data_Sector_Europe!$D$11:$AB$11,0)) -> 자동차 | BB73: =OFFSET(Data_Sector_Europe!$C$8,,MATCH($AX73,Data_Sector_Europe!$D$11:$AB$11,0)) -> 0.7361161687 | BC73: =OFFSET(Data_Sector_Europe!$C$13,,MATCH($AX73,Data_Sector_Europe!$D$12:$AB$12,0)) -> 미디어,교육 | BD73: =OFFSET(Data_Sector_Europe!$C$9,,MATCH($AX73,Data_Sector_Europe!$D$12:$AB$12,0)) -> 1.816055303 | BF73: 화장품,의류,완구
AX74: 10 | AY74: =OFFSET(Data_Sector_Europe!$C$13,,MATCH($AX74,Data_Sector_Europe!$D$10:$AB$10,0)) -> 보험 | AZ74: =OFFSET(Data_Sector_Europe!$C$7,,MATCH($AX74,Data_Sector_Europe!$D$10:$AB$10,0)) -> -0.08147509472 | BA74: =OFFSET(Data_Sector_Europe!$C$13,,MATCH($AX74,Data_Sector_Europe!$D$11:$AB$11,0)) -> 미디어,교육 | BB74: =OFFSET(Data_Sector_Europe!$C$8,,MATCH($AX74,Data_Sector_Europe!$D$11:$AB$11,0)) -> 0.6569425887 | BC74: =OFFSET(Data_Sector_Europe!$C$13,,MATCH($AX74,Data_Sector_Europe!$D$12:$AB$12,0)) -> 건설,건축관련 | BD74: =OFFSET(Data_Sector_Europe!$C$9,,MATCH($AX74,Data_Sector_Europe!$D$12:$AB$12,0)) -> 1.74302275 | BF74: 호텔,레저서비스
AX75: 11 | AY75: =OFFSET(Data_Sector_Europe!$C$13,,MATCH($AX75,Data_Sector_Europe!$D$10:$AB$10,0)) -> 유틸리티 | AZ75: =OFFSET(Data_Sector_Europe!$C$7,,MATCH($AX75,Data_Sector_Europe!$D$10:$AB$10,0)) -> -0.1052841978 | BA75: =OFFSET(Data_Sector_Europe!$C$13,,MATCH($AX75,Data_Sector_Europe!$D$11:$AB$11,0)) -> 보험 | BB75: =OFFSET(Data_Sector_Europe!$C$8,,MATCH($AX75,Data_Sector_Europe!$D$11:$AB$11,0)) -> 0.4898843791 | BC75: =OFFSET(Data_Sector_Europe!$C$13,,MATCH($AX75,Data_Sector_Europe!$D$12:$AB$12,0)) -> 화장품,의류,완구 | BD75: =OFFSET(Data_Sector_Europe!$C$9,,MATCH($AX75,Data_Sector_Europe!$D$12:$AB$12,0)) -> 1.695579927 | BF75: 미디어,교육
AX76: 12 | AY76: =OFFSET(Data_Sector_Europe!$C$13,,MATCH($AX76,Data_Sector_Europe!$D$10:$AB$10,0)) -> 은행 | AZ76: =OFFSET(Data_Sector_Europe!$C$7,,MATCH($AX76,Data_Sector_Europe!$D$10:$AB$10,0)) -> -0.1110818674 | BA76: =OFFSET(Data_Sector_Europe!$C$13,,MATCH($AX76,Data_Sector_Europe!$D$11:$AB$11,0)) -> 화학 | BB76: =OFFSET(Data_Sector_Europe!$C$8,,MATCH($AX76,Data_Sector_Europe!$D$11:$AB$11,0)) -> 0.4405451371 | BC76: =OFFSET(Data_Sector_Europe!$C$13,,MATCH($AX76,Data_Sector_Europe!$D$12:$AB$12,0)) -> 보험 | BD76: =OFFSET(Data_Sector_Europe!$C$9,,MATCH($AX76,Data_Sector_Europe!$D$12:$AB$12,0)) -> 1.562994448 | BF76: 소매(유통)
AX77: 13 | AY77: =OFFSET(Data_Sector_Europe!$C$13,,MATCH($AX77,Data_Sector_Europe!$D$10:$AB$10,0)) -> 필수소비재 | AZ77: =OFFSET(Data_Sector_Europe!$C$7,,MATCH($AX77,Data_Sector_Europe!$D$10:$AB$10,0)) -> -0.1841185265 | BA77: =OFFSET(Data_Sector_Europe!$C$13,,MATCH($AX77,Data_Sector_Europe!$D$11:$AB$11,0)) -> 증권 | BB77: =OFFSET(Data_Sector_Europe!$C$8,,MATCH($AX77,Data_Sector_Europe!$D$11:$AB$11,0)) -> 0.4169568427 | BC77: =OFFSET(Data_Sector_Europe!$C$13,,MATCH($AX77,Data_Sector_Europe!$D$12:$AB$12,0)) -> 화학 | BD77: =OFFSET(Data_Sector_Europe!$C$9,,MATCH($AX77,Data_Sector_Europe!$D$12:$AB$12,0)) -> 1.483351565 | BF77: 필수소비재
AX78: 14 | AY78: =OFFSET(Data_Sector_Europe!$C$13,,MATCH($AX78,Data_Sector_Europe!$D$10:$AB$10,0)) -> 소매(유통) | AZ78: =OFFSET(Data_Sector_Europe!$C$7,,MATCH($AX78,Data_Sector_Europe!$D$10:$AB$10,0)) -> -0.21044837 | BA78: =OFFSET(Data_Sector_Europe!$C$13,,MATCH($AX78,Data_Sector_Europe!$D$11:$AB$11,0)) -> 상사,자본재 | BB78: =OFFSET(Data_Sector_Europe!$C$8,,MATCH($AX78,Data_Sector_Europe!$D$11:$AB$11,0)) -> 0.2436526138 | BC78: =OFFSET(Data_Sector_Europe!$C$13,,MATCH($AX78,Data_Sector_Europe!$D$12:$AB$12,0)) -> 유틸리티 | BD78: =OFFSET(Data_Sector_Europe!$C$9,,MATCH($AX78,Data_Sector_Europe!$D$12:$AB$12,0)) -> 1.21188079 | BF78: 건강관리
AX79: 15 | AY79: =OFFSET(Data_Sector_Europe!$C$13,,MATCH($AX79,Data_Sector_Europe!$D$10:$AB$10,0)) -> 비철,목재등 | AZ79: =OFFSET(Data_Sector_Europe!$C$7,,MATCH($AX79,Data_Sector_Europe!$D$10:$AB$10,0)) -> -0.2346341223 | BA79: =OFFSET(Data_Sector_Europe!$C$13,,MATCH($AX79,Data_Sector_Europe!$D$11:$AB$11,0)) -> 유틸리티 | BB79: =OFFSET(Data_Sector_Europe!$C$8,,MATCH($AX79,Data_Sector_Europe!$D$11:$AB$11,0)) -> 0.01589569888 | BC79: =OFFSET(Data_Sector_Europe!$C$13,,MATCH($AX79,Data_Sector_Europe!$D$12:$AB$12,0)) -> 통신서비스 | BD79: =OFFSET(Data_Sector_Europe!$C$9,,MATCH($AX79,Data_Sector_Europe!$D$12:$AB$12,0)) -> 0.9890137108 | BF79: 은행
AX80: 16 | AY80: =OFFSET(Data_Sector_Europe!$C$13,,MATCH($AX80,Data_Sector_Europe!$D$10:$AB$10,0)) -> 건강관리 | AZ80: =OFFSET(Data_Sector_Europe!$C$7,,MATCH($AX80,Data_Sector_Europe!$D$10:$AB$10,0)) -> -0.2962303957 | BA80: =OFFSET(Data_Sector_Europe!$C$13,,MATCH($AX80,Data_Sector_Europe!$D$11:$AB$11,0)) -> 은행 | BB80: =OFFSET(Data_Sector_Europe!$C$8,,MATCH($AX80,Data_Sector_Europe!$D$11:$AB$11,0)) -> -0.08473413451 | BC80: =OFFSET(Data_Sector_Europe!$C$13,,MATCH($AX80,Data_Sector_Europe!$D$12:$AB$12,0)) -> 필수소비재 | BD80: =OFFSET(Data_Sector_Europe!$C$9,,MATCH($AX80,Data_Sector_Europe!$D$12:$AB$12,0)) -> 0.889950477 | BF80: 증권
B81: 업종별 12MF 순이익전망치 변화율 (1M) | AX81: 17 | AY81: =OFFSET(Data_Sector_Europe!$C$13,,MATCH($AX81,Data_Sector_Europe!$D$10:$AB$10,0)) -> 호텔,레저서비스 | AZ81: =OFFSET(Data_Sector_Europe!$C$7,,MATCH($AX81,Data_Sector_Europe!$D$10:$AB$10,0)) -> -0.4177938014 | BA81: =OFFSET(Data_Sector_Europe!$C$13,,MATCH($AX81,Data_Sector_Europe!$D$11:$AB$11,0)) -> 화장품,의류,완구 | BB81: =OFFSET(Data_Sector_Europe!$C$8,,MATCH($AX81,Data_Sector_Europe!$D$11:$AB$11,0)) -> -0.2285769984 | BC81: =OFFSET(Data_Sector_Europe!$C$13,,MATCH($AX81,Data_Sector_Europe!$D$12:$AB$12,0)) -> 소프트웨어 | BD81: =OFFSET(Data_Sector_Europe!$C$9,,MATCH($AX81,Data_Sector_Europe!$D$12:$AB$12,0)) -> 0.8489919098 | BF81: 보험
AK82: =S84 -> 1M | AN82: FY1 | AX82: 18 | AY82: =OFFSET(Data_Sector_Europe!$C$13,,MATCH($AX82,Data_Sector_Europe!$D$10:$AB$10,0)) -> 화장품,의류,완구 | AZ82: =OFFSET(Data_Sector_Europe!$C$7,,MATCH($AX82,Data_Sector_Europe!$D$10:$AB$10,0)) -> -0.4819422292 | BA82: =OFFSET(Data_Sector_Europe!$C$13,,MATCH($AX82,Data_Sector_Europe!$D$11:$AB$11,0)) -> 호텔,레저서비스 | BB82: =OFFSET(Data_Sector_Europe!$C$8,,MATCH($AX82,Data_Sector_Europe!$D$11:$AB$11,0)) -> -0.2329210363 | BC82: =OFFSET(Data_Sector_Europe!$C$13,,MATCH($AX82,Data_Sector_Europe!$D$12:$AB$12,0)) -> 건강관리 | BD82: =OFFSET(Data_Sector_Europe!$C$9,,MATCH($AX82,Data_Sector_Europe!$D$12:$AB$12,0)) -> 0.5591688105 | BF82: 소프트웨어
R83: 업종명 | S83: 에너지 | AI83: 종목명 | AJ83: 시가총액 | AK83: 12MF 순이익 변화율 | AL83: 12MF PE | AM83: 12MF PB | AN83: Sales growth | AO83: OP growth | AP83: NP growth | AQ83: OPM | AR83: NPM | AS83: ROE | AT83: Div. yield | AX83: 19 | AY83: =OFFSET(Data_Sector_Europe!$C$13,,MATCH($AX83,Data_Sector_Europe!$D$10:$AB$10,0)) -> 상사,자본재 | AZ83: =OFFSET(Data_Sector_Europe!$C$7,,MATCH($AX83,Data_Sector_Europe!$D$10:$AB$10,0)) -> -0.4862399465 | BA83: =OFFSET(Data_Sector_Europe!$C$13,,MATCH($AX83,Data_Sector_Europe!$D$11:$AB$11,0)) -> 에너지 | BB83: =OFFSET(Data_Sector_Europe!$C$8,,MATCH($AX83,Data_Sector_Europe!$D$11:$AB$11,0)) -> -0.2817483351 | BC83: =OFFSET(Data_Sector_Europe!$C$13,,MATCH($AX83,Data_Sector_Europe!$D$12:$AB$12,0)) -> 상사,자본재 | BD83: =OFFSET(Data_Sector_Europe!$C$9,,MATCH($AX83,Data_Sector_Europe!$D$12:$AB$12,0)) -> -0.2963156659 | BF83: IT하드웨어 | BL83: =S83 -> 에너지 | BM83: =S84 -> 1M
R84: 기간 | S84: 1M | AH84: 1 | AI84: =IFERROR(BL84,"") -> Total | AJ84: =IF(BN84="","",BN84) -> 137166.23 | AK84: =IF(BM84="","",BM84) -> 0.6548142628 | AL84: =IF(BO84="","",BO84) -> 13.09 | AM84: =IF(BP84="","",BP84) -> 1.22 | AN84: 8.13 | AO84: 54.51 | AP84: 47.47 | AQ84: 8.13 | AR84: 6.59 | AS84: 8.95 | AT84: 5.12 | AX84: 20 | AY84: =OFFSET(Data_Sector_Europe!$C$13,,MATCH($AX84,Data_Sector_Europe!$D$10:$AB$10,0)) -> 통신서비스 | AZ84: =OFFSET(Data_Sector_Europe!$C$7,,MATCH($AX84,Data_Sector_Europe!$D$10:$AB$10,0)) -> -0.5087025481 | BA84: =OFFSET(Data_Sector_Europe!$C$13,,MATCH($AX84,Data_Sector_Europe!$D$11:$AB$11,0)) -> 필수소비재 | BB84: =OFFSET(Data_Sector_Europe!$C$8,,MATCH($AX84,Data_Sector_Europe!$D$11:$AB$11,0)) -> -0.5029205193 | BC84: =OFFSET(Data_Sector_Europe!$C$13,,MATCH($AX84,Data_Sector_Europe!$D$12:$AB$12,0)) -> 호텔,레저서비스 | BD84: =OFFSET(Data_Sector_Europe!$C$9,,MATCH($AX84,Data_Sector_Europe!$D$12:$AB$12,0)) -> -0.4284371739 | BF84: 반도체 | BK84: 1 | BL84: =OFFSET(Data_Comp!$A$4,$BK84,MATCH($BF$61,Data_Comp!$B$3:$GR$3,0)+MATCH(BL$83,Data_Comp!$B$4:$Y$4,0)-1) -> Total | BM84: =IFERROR(OFFSET(Data_Comp!$A$4,$BK84+MATCH(BM$83,Data_Comp!$A$5:$A$300,0),MATCH($BF$61,Data_Comp!$B$3:$GR$3,0)+MATCH(BL$83,Data_Comp!$B$4:$Y$4,0)-1),"") -> 0.6548142628 | BN84: =IFERROR(OFFSET(Data_Comp!$A$4,$BK84+MATCH(BN$61,Data_Comp!$A$5:$A$300,0),MATCH($BF$61,Data_Comp!$B$3:$GR$3,0)+MATCH(BL$83,Data_Comp!$B$4:$Y$4,0)-1),"") -> 137166.23 | BO84: =IFERROR(OFFSET(Data_Comp!$A$4,$BK84+MATCH(BO$61,Data_Comp!$A$5:$A$300,0),MATCH($BF$61,Data_Comp!$B$3:$GR$3,0)+MATCH(BL$83,Data_Comp!$B$4:$Y$4,0)-1),"") -> 13.09 | BP84: =IFERROR(OFFSET(Data_Comp!$A$4,$BK84+MATCH(BP$61,Data_Comp!$A$5:$A$300,0),MATCH($BF$61,Data_Comp!$B$3:$GR$3,0)+MATCH(BL$83,Data_Comp!$B$4:$Y$4,0)-1),"") -> 1.22 | BQ84: =IFERROR(OFFSET(Data_Comp!$A$4,$BK84+MATCH(BQ$61,Data_Comp!$A$5:$A$300,0),MATCH($BF$61,Data_Comp!$B$3:$GR$3,0)+MATCH(BL$83,Data_Comp!$B$4:$Y$4,0)-1),"") -> 8.13 | BR84: =IFERROR(OFFSET(Data_Comp!$A$4,$BK84+MATCH(BR$61,Data_Comp!$A$5:$A$300,0),MATCH($BF$61,Data_Comp!$B$3:$GR$3,0)+MATCH(BL$83,Data_Comp!$B$4:$Y$4,0)-1),"") -> 54.51 | BS84: =IFERROR(OFFSET(Data_Comp!$A$4,$BK84+MATCH(BS$61,Data_Comp!$A$5:$A$300,0),MATCH($BF$61,Data_Comp!$B$3:$GR$3,0)+MATCH(BL$83,Data_Comp!$B$4:$Y$4,0)-1),"") -> 47.47 | BT84: =IFERROR(OFFSET(Data_Comp!$A$4,$BK84+MATCH(BT$61,Data_Comp!$A$5:$A$300,0),MATCH($BF$61,Data_Comp!$B$3:$GR$3,0)+MATCH(BL$83,Data_Comp!$B$4:$Y$4,0)-1),"") -> 8.13 | BU84: =IFERROR(OFFSET(Data_Comp!$A$4,$BK84+MATCH(BU$61,Data_Comp!$A$5:$A$300,0),MATCH($BF$61,Data_Comp!$B$3:$GR$3,0)+MATCH(BL$83,Data_Comp!$B$4:$Y$4,0)-1),"") -> 6.59 | BV84: =IFERROR(OFFSET(Data_Comp!$A$4,$BK84+MATCH(BV$61,Data_Comp!$A$5:$A$300,0),MATCH($BF$61,Data_Comp!$B$3:$GR$3,0)+MATCH(BL$83,Data_Comp!$B$4:$Y$4,0)-1),"") -> 8.95 | BW84: =IFERROR(OFFSET(Data_Comp!$A$4,$BK84+MATCH(BW$61,Data_Comp!$A$5:$A$300,0),MATCH($BF$61,Data_Comp!$B$3:$GR$3,0)+MATCH(BL$83,Data_Comp!$B$4:$Y$4,0)-1),"") -> 5.12
AH85: =AH84+1 -> 2 | AI85: =IFERROR(BL85,"") -> Royal Dutch Shell Plc Class A | AJ85: =IF(BN85="","",BN85) -> 134739.63 | AK85: =IF(BM85="","",BM85) -> 0.3474216692 | AL85: =IF(BO85="","",BO85) -> 15.4 | AM85: 1.23 | AN85: 15.76 | AO85: 276.74 | AP85: 192.32 | AQ85: 7.02 | AR85: 4.95 | AS85: 7.07 | AT85: 6.43 | AX85: 21 | AY85: =OFFSET(Data_Sector_Europe!$C$13,,MATCH($AX85,Data_Sector_Europe!$D$10:$AB$10,0)) -> 미디어,교육 | AZ85: =OFFSET(Data_Sector_Europe!$C$7,,MATCH($AX85,Data_Sector_Europe!$D$10:$AB$10,0)) -> -0.9058655191 | BA85: =OFFSET(Data_Sector_Europe!$C$13,,MATCH($AX85,Data_Sector_Europe!$D$11:$AB$11,0)) -> 건강관리 | BB85: =OFFSET(Data_Sector_Europe!$C$8,,MATCH($AX85,Data_Sector_Europe!$D$11:$AB$11,0)) -> -0.55458321 | BC85: =OFFSET(Data_Sector_Europe!$C$13,,MATCH($AX85,Data_Sector_Europe!$D$12:$AB$12,0)) -> 소매(유통) | BD85: =OFFSET(Data_Sector_Europe!$C$9,,MATCH($AX85,Data_Sector_Europe!$D$12:$AB$12,0)) -> -0.9971229657 | BF85: 통신서비스 | BK85: =BK84+1 -> 2 | BL85: =OFFSET(Data_Comp!$A$4,$BK85,MATCH($BF$61,Data_Comp!$B$3:$GR$3,0)+MATCH(BL$83,Data_Comp!$B$4:$Y$4,0)-1) -> Royal Dutch Shell Plc Class A | BM85: =IFERROR(OFFSET(Data_Comp!$A$4,$BK85+MATCH(BM$83,Data_Comp!$A$5:$A$300,0),MATCH($BF$61,Data_Comp!$B$3:$GR$3,0)+MATCH(BL$83,Data_Comp!$B$4:$Y$4,0)-1),"") -> 0.3474216692 | BN85: =IFERROR(OFFSET(Data_Comp!$A$4,$BK85+MATCH(BN$61,Data_Comp!$A$5:$A$300,0),MATCH($BF$61,Data_Comp!$B$3:$GR$3,0)+MATCH(BL$83,Data_Comp!$B$4:$Y$4,0)-1),"") -> 134739.63 | BO85: =IFERROR(OFFSET(Data_Comp!$A$4,$BK85+MATCH(BO$61,Data_Comp!$A$5:$A$300,0),MATCH($BF$61,Data_Comp!$B$3:$GR$3,0)+MATCH(BL$83,Data_Comp!$B$4:$Y$4,0)-1),"") -> 15.4 | BP85: =IFERROR(OFFSET(Data_Comp!$A$4,$BK85+MATCH(BP$61,Data_Comp!$A$5:$A$300,0),MATCH($BF$61,Data_Comp!$B$3:$GR$3,0)+MATCH(BL$83,Data_Comp!$B$4:$Y$4,0)-1),"") -> 1.23 | BQ85: =IFERROR(OFFSET(Data_Comp!$A$4,$BK85+MATCH(BQ$61,Data_Comp!$A$5:$A$300,0),MATCH($BF$61,Data_Comp!$B$3:$GR$3,0)+MATCH(BL$83,Data_Comp!$B$4:$Y$4,0)-1),"") -> 15.76 | BR85: =IFERROR(OFFSET(Data_Comp!$A$4,$BK85+MATCH(BR$61,Data_Comp!$A$5:$A$300,0),MATCH($BF$61,Data_Comp!$B$3:$GR$3,0)+MATCH(BL$83,Data_Comp!$B$4:$Y$4,0)-1),"") -> 276.74 | BS85: =IFERROR(OFFSET(Data_Comp!$A$4,$BK85+MATCH(BS$61,Data_Comp!$A$5:$A$300,0),MATCH($BF$61,Data_Comp!$B$3:$GR$3,0)+MATCH(BL$83,Data_Comp!$B$4:$Y$4,0)-1),"") -> 192.32 | BT85: =IFERROR(OFFSET(Data_Comp!$A$4,$BK85+MATCH(BT$61,Data_Comp!$A$5:$A$300,0),MATCH($BF$61,Data_Comp!$B$3:$GR$3,0)+MATCH(BL$83,Data_Comp!$B$4:$Y$4,0)-1),"") -> 7.02 | BU85: =IFERROR(OFFSET(Data_Comp!$A$4,$BK85+MATCH(BU$61,Data_Comp!$A$5:$A$300,0),MATCH($BF$61,Data_Comp!$B$3:$GR$3,0)+MATCH(BL$83,Data_Comp!$B$4:$Y$4,0)-1),"") -> 4.95 | BV85: =IFERROR(OFFSET(Data_Comp!$A$4,$BK85+MATCH(BV$61,Data_Comp!$A$5:$A$300,0),MATCH($BF$61,Data_Comp!$B$3:$GR$3,0)+MATCH(BL$83,Data_Comp!$B$4:$Y$4,0)-1),"") -> 7.07 | BW85: =IFERROR(OFFSET(Data_Comp!$A$4,$BK85+MATCH(BW$61,Data_Comp!$A$5:$A$300,0),MATCH($BF$61,Data_Comp!$B$3:$GR$3,0)+MATCH(BL$83,Data_Comp!$B$4:$Y$4,0)-1),"") -> 6.43
AH86: =AH85+1 -> 3 | AI86: BP | AJ86: 125087.47 | AK86: -2.81328611 | AL86: 18.34 | AM86: 1.29 | AN86: 22.58 | AO86: 흑전(368.60000) | AP86: 4652.78 | AQ86: 4.68 | AR86: 2.44 | AS86: 5.45 | AT86: 6.35 | AX86: 22 | AY86: =OFFSET(Data_Sector_Europe!$C$13,,MATCH($AX86,Data_Sector_Europe!$D$10:$AB$10,0)) -> 철강 | AZ86: =OFFSET(Data_Sector_Europe!$C$7,,MATCH($AX86,Data_Sector_Europe!$D$10:$AB$10,0)) -> -1.059799239 | BA86: =OFFSET(Data_Sector_Europe!$C$13,,MATCH($AX86,Data_Sector_Europe!$D$11:$AB$11,0)) -> 소매(유통) | BB86: =OFFSET(Data_Sector_Europe!$C$8,,MATCH($AX86,Data_Sector_Europe!$D$11:$AB$11,0)) -> -1.05303925 | BC86: =OFFSET(Data_Sector_Europe!$C$13,,MATCH($AX86,Data_Sector_Europe!$D$12:$AB$12,0)) -> 비철,목재등 | BD86: =OFFSET(Data_Sector_Europe!$C$9,,MATCH($AX86,Data_Sector_Europe!$D$12:$AB$12,0)) -> -1.190402949 | BF86: 유틸리티 | BK86: =BK85+1 -> 3 | BL86: =OFFSET(Data_Comp!$A$4,$BK86,MATCH($BF$61,Data_Comp!$B$3:$GR$3,0)+MATCH(BL$83,Data_Comp!$B$4:$Y$4,0)-1) -> BP | BM86: =IFERROR(OFFSET(Data_Comp!$A$4,$BK86+MATCH(BM$83,Data_Comp!$A$5:$A$300,0),MATCH($BF$61,Data_Comp!$B$3:$GR$3,0)+MATCH(BL$83,Data_Comp!$B$4:$Y$4,0)-1),"") -> -2.81328611 | BN86: =IFERROR(OFFSET(Data_Comp!$A$4,$BK86+MATCH(BN$61,Data_Comp!$A$5:$A$300,0),MATCH($BF$61,Data_Comp!$B$3:$GR$3,0)+MATCH(BL$83,Data_Comp!$B$4:$Y$4,0)-1),"") -> 125087.47 | BO86: =IFERROR(OFFSET(Data_Comp!$A$4,$BK86+MATCH(BO$61,Data_Comp!$A$5:$A$300,0),MATCH($BF$61,Data_Comp!$B$3:$GR$3,0)+MATCH(BL$83,Data_Comp!$B$4:$Y$4,0)-1),"") -> 18.34 | BP86: =IFERROR(OFFSET(Data_Comp!$A$4,$BK86+MATCH(BP$61,Data_Comp!$A$5:$A$300,0),MATCH($BF$61,Data_Comp!$B$3:$GR$3,0)+MATCH(BL$83,Data_Comp!$B$4:$Y$4,0)-1),"") -> 1.29 | BQ86: =IFERROR(OFFSET(Data_Comp!$A$4,$BK86+MATCH(BQ$61,Data_Comp!$A$5:$A$300,0),MATCH($BF$61,Data_Comp!$B$3:$GR$3,0)+MATCH(BL$83,Data_Comp!$B$4:$Y$4,0)-1),"") -> 22.58 | BR86: =IFERROR(OFFSET(Data_Comp!$A$4,$BK86+MATCH(BR$61,Data_Comp!$A$5:$A$300,0),MATCH($BF$61,Data_Comp!$B$3:$GR$3,0)+MATCH(BL$83,Data_Comp!$B$4:$Y$4,0)-1),"") -> 흑전(368.60000) | BS86: =IFERROR(OFFSET(Data_Comp!$A$4,$BK86+MATCH(BS$61,Data_Comp!$A$5:$A$300,0),MATCH($BF$61,Data_Comp!$B$3:$GR$3,0)+MATCH(BL$83,Data_Comp!$B$4:$Y$4,0)-1),"") -> 4652.78 | BT86: =IFERROR(OFFSET(Data_Comp!$A$4,$BK86+MATCH(BT$61,Data_Comp!$A$5:$A$300,0),MATCH($BF$61,Data_Comp!$B$3:$GR$3,0)+MATCH(BL$83,Data_Comp!$B$4:$Y$4,0)-1),"") -> 4.68 | BU86: =IFERROR(OFFSET(Data_Comp!$A$4,$BK86+MATCH(BU$61,Data_Comp!$A$5:$A$300,0),MATCH($BF$61,Data_Comp!$B$3:$GR$3,0)+MATCH(BL$83,Data_Comp!$B$4:$Y$4,0)-1),"") -> 2.44 | BV86: =IFERROR(OFFSET(Data_Comp!$A$4,$BK86+MATCH(BV$61,Data_Comp!$A$5:$A$300,0),MATCH($BF$61,Data_Comp!$B$3:$GR$3,0)+MATCH(BL$83,Data_Comp!$B$4:$Y$4,0)-1),"") -> 5.45 | BW86: =IFERROR(OFFSET(Data_Comp!$A$4,$BK86+MATCH(BW$61,Data_Comp!$A$5:$A$300,0),MATCH($BF$61,Data_Comp!$B$3:$GR$3,0)+MATCH(BL$83,Data_Comp!$B$4:$Y$4,0)-1),"") -> 6.35
AH87: 4 | AI87: Eni S.p.A. | AJ87: 59799.42 | AK87: 1.272962696 | AL87: 20.17 | AM87: 0.97 | AN87: 17.29 | AO87: 82.06 | AP87: 흑전(295.34000) | AQ87: 9.15 | AR87: 3.14 | AS87: 3.93 | AT87: 5.81 | AX87: 23 | AY87: =OFFSET(Data_Sector_Europe!$C$13,,MATCH($AX87,Data_Sector_Europe!$D$10:$AB$10,0)) -> IT하드웨어 | AZ87: =OFFSET(Data_Sector_Europe!$C$7,,MATCH($AX87,Data_Sector_Europe!$D$10:$AB$10,0)) -> -1.180283737 | BA87: =OFFSET(Data_Sector_Europe!$C$13,,MATCH($AX87,Data_Sector_Europe!$D$11:$AB$11,0)) -> 비철,목재등 | BB87: =OFFSET(Data_Sector_Europe!$C$8,,MATCH($AX87,Data_Sector_Europe!$D$11:$AB$11,0)) -> -1.712356129 | BC87: =OFFSET(Data_Sector_Europe!$C$13,,MATCH($AX87,Data_Sector_Europe!$D$12:$AB$12,0)) -> 에너지 | BD87: =OFFSET(Data_Sector_Europe!$C$9,,MATCH($AX87,Data_Sector_Europe!$D$12:$AB$12,0)) -> -6.617541422 | BK87: 4 | BL87: =OFFSET(Data_Comp!$A$4,$BK87,MATCH($BF$61,Data_Comp!$B$3:$GR$3,0)+MATCH(BL$83,Data_Comp!$B$4:$Y$4,0)-1) -> Eni S.p.A. | BM87: =IFERROR(OFFSET(Data_Comp!$A$4,$BK87+MATCH(BM$83,Data_Comp!$A$5:$A$300,0),MATCH($BF$61,Data_Comp!$B$3:$GR$3,0)+MATCH(BL$83,Data_Comp!$B$4:$Y$4,0)-1),"") -> 1.272962696 | BN87: =IFERROR(OFFSET(Data_Comp!$A$4,$BK87+MATCH(BN$61,Data_Comp!$A$5:$A$300,0),MATCH($BF$61,Data_Comp!$B$3:$GR$3,0)+MATCH(BL$83,Data_Comp!$B$4:$Y$4,0)-1),"") -> 59799.42 | BO87: =IFERROR(OFFSET(Data_Comp!$A$4,$BK87+MATCH(BO$61,Data_Comp!$A$5:$A$300,0),MATCH($BF$61,Data_Comp!$B$3:$GR$3,0)+MATCH(BL$83,Data_Comp!$B$4:$Y$4,0)-1),"") -> 20.17 | BP87: =IFERROR(OFFSET(Data_Comp!$A$4,$BK87+MATCH(BP$61,Data_Comp!$A$5:$A$300,0),MATCH($BF$61,Data_Comp!$B$3:$GR$3,0)+MATCH(BL$83,Data_Comp!$B$4:$Y$4,0)-1),"") -> 0.97 | BQ87: =IFERROR(OFFSET(Data_Comp!$A$4,$BK87+MATCH(BQ$61,Data_Comp!$A$5:$A$300,0),MATCH($BF$61,Data_Comp!$B$3:$GR$3,0)+MATCH(BL$83,Data_Comp!$B$4:$Y$4,0)-1),"") -> 17.29 | BR87: =IFERROR(OFFSET(Data_Comp!$A$4,$BK87+MATCH(BR$61,Data_Comp!$A$5:$A$300,0),MATCH($BF$61,Data_Comp!$B$3:$GR$3,0)+MATCH(BL$83,Data_Comp!$B$4:$Y$4,0)-1),"") -> 82.06 | BS87: =IFERROR(OFFSET(Data_Comp!$A$4,$BK87+MATCH(BS$61,Data_Comp!$A$5:$A$300,0),MATCH($BF$61,Data_Comp!$B$3:$GR$3,0)+MATCH(BL$83,Data_Comp!$B$4:$Y$4,0)-1),"") -> 흑전(295.34000) | BT87: =IFERROR(OFFSET(Data_Comp!$A$4,$BK87+MATCH(BT$61,Data_Comp!$A$5:$A$300,0),MATCH($BF$61,Data_Comp!$B$3:$GR$3,0)+MATCH(BL$83,Data_Comp!$B$4:$Y$4,0)-1),"") -> 9.15 | BU87: =IFERROR(OFFSET(Data_Comp!$A$4,$BK87+MATCH(BU$61,Data_Comp!$A$5:$A$300,0),MATCH($BF$61,Data_Comp!$B$3:$GR$3,0)+MATCH(BL$83,Data_Comp!$B$4:$Y$4,0)-1),"") -> 3.14 | BV87: =IFERROR(OFFSET(Data_Comp!$A$4,$BK87+MATCH(BV$61,Data_Comp!$A$5:$A$300,0),MATCH($BF$61,Data_Comp!$B$3:$GR$3,0)+MATCH(BL$83,Data_Comp!$B$4:$Y$4,0)-1),"") -> 3.93 | BW87: =IFERROR(OFFSET(Data_Comp!$A$4,$BK87+MATCH(BW$61,Data_Comp!$A$5:$A$300,0),MATCH($BF$61,Data_Comp!$B$3:$GR$3,0)+MATCH(BL$83,Data_Comp!$B$4:$Y$4,0)-1),"") -> 5.81
AH88: 5 | AI88: Statoil ASA | AJ88: 65649.67 | AK88: -0.8545064747 | AL88: 18.36 | AM88: 1.7 | AN88: 19.85 | AO88: 505.88 | AP88: 흑전(219.22000) | AQ88: 19.56 | AR88: 6.36 | AS88: 9.8 | AT88: 4.41 | AX88: 24 | AY88: =OFFSET(Data_Sector_Europe!$C$13,,MATCH($AX88,Data_Sector_Europe!$D$10:$AB$10,0)) ->  | AZ88: =OFFSET(Data_Sector_Europe!$C$7,,MATCH($AX88,Data_Sector_Europe!$D$10:$AB$10,0)) ->  | BA88: =OFFSET(Data_Sector_Europe!$C$13,,MATCH($AX88,Data_Sector_Europe!$D$11:$AB$11,0)) ->  | BB88: =OFFSET(Data_Sector_Europe!$C$8,,MATCH($AX88,Data_Sector_Europe!$D$11:$AB$11,0)) ->  | BC88: =OFFSET(Data_Sector_Europe!$C$13,,MATCH($AX88,Data_Sector_Europe!$D$12:$AB$12,0)) ->  | BD88: =OFFSET(Data_Sector_Europe!$C$9,,MATCH($AX88,Data_Sector_Europe!$D$12:$AB$12,0)) ->  | BK88: 5 | BL88: =OFFSET(Data_Comp!$A$4,$BK88,MATCH($BF$61,Data_Comp!$B$3:$GR$3,0)+MATCH(BL$83,Data_Comp!$B$4:$Y$4,0)-1) -> Statoil ASA | BM88: =IFERROR(OFFSET(Data_Comp!$A$4,$BK88+MATCH(BM$83,Data_Comp!$A$5:$A$300,0),MATCH($BF$61,Data_Comp!$B$3:$GR$3,0)+MATCH(BL$83,Data_Comp!$B$4:$Y$4,0)-1),"") -> -0.8545064747 | BN88: =IFERROR(OFFSET(Data_Comp!$A$4,$BK88+MATCH(BN$61,Data_Comp!$A$5:$A$300,0),MATCH($BF$61,Data_Comp!$B$3:$GR$3,0)+MATCH(BL$83,Data_Comp!$B$4:$Y$4,0)-1),"") -> 65649.67 | BO88: =IFERROR(OFFSET(Data_Comp!$A$4,$BK88+MATCH(BO$61,Data_Comp!$A$5:$A$300,0),MATCH($BF$61,Data_Comp!$B$3:$GR$3,0)+MATCH(BL$83,Data_Comp!$B$4:$Y$4,0)-1),"") -> 18.36 | BP88: =IFERROR(OFFSET(Data_Comp!$A$4,$BK88+MATCH(BP$61,Data_Comp!$A$5:$A$300,0),MATCH($BF$61,Data_Comp!$B$3:$GR$3,0)+MATCH(BL$83,Data_Comp!$B$4:$Y$4,0)-1),"") -> 1.7 | BQ88: =IFERROR(OFFSET(Data_Comp!$A$4,$BK88+MATCH(BQ$61,Data_Comp!$A$5:$A$300,0),MATCH($BF$61,Data_Comp!$B$3:$GR$3,0)+MATCH(BL$83,Data_Comp!$B$4:$Y$4,0)-1),"") -> 19.85 | BR88: =IFERROR(OFFSET(Data_Comp!$A$4,$BK88+MATCH(BR$61,Data_Comp!$A$5:$A$300,0),MATCH($BF$61,Data_Comp!$B$3:$GR$3,0)+MATCH(BL$83,Data_Comp!$B$4:$Y$4,0)-1),"") -> 505.88 | BS88: =IFERROR(OFFSET(Data_Comp!$A$4,$BK88+MATCH(BS$61,Data_Comp!$A$5:$A$300,0),MATCH($BF$61,Data_Comp!$B$3:$GR$3,0)+MATCH(BL$83,Data_Comp!$B$4:$Y$4,0)-1),"") -> 흑전(219.22000) | BT88: =IFERROR(OFFSET(Data_Comp!$A$4,$BK88+MATCH(BT$61,Data_Comp!$A$5:$A$300,0),MATCH($BF$61,Data_Comp!$B$3:$GR$3,0)+MATCH(BL$83,Data_Comp!$B$4:$Y$4,0)-1),"") -> 19.56 | BU88: =IFERROR(OFFSET(Data_Comp!$A$4,$BK88+MATCH(BU$61,Data_Comp!$A$5:$A$300,0),MATCH($BF$61,Data_Comp!$B$3:$GR$3,0)+MATCH(BL$83,Data_Comp!$B$4:$Y$4,0)-1),"") -> 6.36 | BV88: =IFERROR(OFFSET(Data_Comp!$A$4,$BK88+MATCH(BV$61,Data_Comp!$A$5:$A$300,0),MATCH($BF$61,Data_Comp!$B$3:$GR$3,0)+MATCH(BL$83,Data_Comp!$B$4:$Y$4,0)-1),"") -> 9.8 | BW88: =IFERROR(OFFSET(Data_Comp!$A$4,$BK88+MATCH(BW$61,Data_Comp!$A$5:$A$300,0),MATCH($BF$61,Data_Comp!$B$3:$GR$3,0)+MATCH(BL$83,Data_Comp!$B$4:$Y$4,0)-1),"") -> 4.41
AH89: 6 | AI89: Gas Natural SDG | AJ89: 22727.44 | AK89: -0.6664309387 | AL89: 13.71 | AM89: 1.12 | AN89: -1.11 | AO89: -8.05 | AP89: -2.28 | AQ89: 12.52 | AR89: 5.65 | AS89: 8.11 | AT89: 5.27 | BK89: 6 | BL89: =OFFSET(Data_Comp!$A$4,$BK89,MATCH($BF$61,Data_Comp!$B$3:$GR$3,0)+MATCH(BL$83,Data_Comp!$B$4:$Y$4,0)-1) -> Gas Natural SDG | BM89: =IFERROR(OFFSET(Data_Comp!$A$4,$BK89+MATCH(BM$83,Data_Comp!$A$5:$A$300,0),MATCH($BF$61,Data_Comp!$B$3:$GR$3,0)+MATCH(BL$83,Data_Comp!$B$4:$Y$4,0)-1),"") -> -0.6664309387 | BN89: =IFERROR(OFFSET(Data_Comp!$A$4,$BK89+MATCH(BN$61,Data_Comp!$A$5:$A$300,0),MATCH($BF$61,Data_Comp!$B$3:$GR$3,0)+MATCH(BL$83,Data_Comp!$B$4:$Y$4,0)-1),"") -> 22727.44 | BO89: =IFERROR(OFFSET(Data_Comp!$A$4,$BK89+MATCH(BO$61,Data_Comp!$A$5:$A$300,0),MATCH($BF$61,Data_Comp!$B$3:$GR$3,0)+MATCH(BL$83,Data_Comp!$B$4:$Y$4,0)-1),"") -> 13.71 | BP89: =IFERROR(OFFSET(Data_Comp!$A$4,$BK89+MATCH(BP$61,Data_Comp!$A$5:$A$300,0),MATCH($BF$61,Data_Comp!$B$3:$GR$3,0)+MATCH(BL$83,Data_Comp!$B$4:$Y$4,0)-1),"") -> 1.12 | BQ89: =IFERROR(OFFSET(Data_Comp!$A$4,$BK89+MATCH(BQ$61,Data_Comp!$A$5:$A$300,0),MATCH($BF$61,Data_Comp!$B$3:$GR$3,0)+MATCH(BL$83,Data_Comp!$B$4:$Y$4,0)-1),"") -> -1.11 | BR89: =IFERROR(OFFSET(Data_Comp!$A$4,$BK89+MATCH(BR$61,Data_Comp!$A$5:$A$300,0),MATCH($BF$61,Data_Comp!$B$3:$GR$3,0)+MATCH(BL$83,Data_Comp!$B$4:$Y$4,0)-1),"") -> -8.05 | BS89: =IFERROR(OFFSET(Data_Comp!$A$4,$BK89+MATCH(BS$61,Data_Comp!$A$5:$A$300,0),MATCH($BF$61,Data_Comp!$B$3:$GR$3,0)+MATCH(BL$83,Data_Comp!$B$4:$Y$4,0)-1),"") -> -2.28 | BT89: =IFERROR(OFFSET(Data_Comp!$A$4,$BK89+MATCH(BT$61,Data_Comp!$A$5:$A$300,0),MATCH($BF$61,Data_Comp!$B$3:$GR$3,0)+MATCH(BL$83,Data_Comp!$B$4:$Y$4,0)-1),"") -> 12.52 | BU89: =IFERROR(OFFSET(Data_Comp!$A$4,$BK89+MATCH(BU$61,Data_Comp!$A$5:$A$300,0),MATCH($BF$61,Data_Comp!$B$3:$GR$3,0)+MATCH(BL$83,Data_Comp!$B$4:$Y$4,0)-1),"") -> 5.65 | BV89: =IFERROR(OFFSET(Data_Comp!$A$4,$BK89+MATCH(BV$61,Data_Comp!$A$5:$A$300,0),MATCH($BF$61,Data_Comp!$B$3:$GR$3,0)+MATCH(BL$83,Data_Comp!$B$4:$Y$4,0)-1),"") -> 8.11 | BW89: =IFERROR(OFFSET(Data_Comp!$A$4,$BK89+MATCH(BW$61,Data_Comp!$A$5:$A$300,0),MATCH($BF$61,Data_Comp!$B$3:$GR$3,0)+MATCH(BL$83,Data_Comp!$B$4:$Y$4,0)-1),"") -> 5.27
AH90: 7 | AI90: Repsol | AJ90: 28206.05 | AK90: 2.073993753 | AL90: 11.18 | AM90: 0.71 | AN90: 20.27 | AO90: 90.26 | AP90: 48.45 | AQ90: 7.5 | AR90: 5.01 | AS90: 6.75 | AT90: 5.15 | BK90: 7 | BL90: =OFFSET(Data_Comp!$A$4,$BK90,MATCH($BF$61,Data_Comp!$B$3:$GR$3,0)+MATCH(BL$83,Data_Comp!$B$4:$Y$4,0)-1) -> Repsol | BM90: =IFERROR(OFFSET(Data_Comp!$A$4,$BK90+MATCH(BM$83,Data_Comp!$A$5:$A$300,0),MATCH($BF$61,Data_Comp!$B$3:$GR$3,0)+MATCH(BL$83,Data_Comp!$B$4:$Y$4,0)-1),"") -> 2.073993753 | BN90: =IFERROR(OFFSET(Data_Comp!$A$4,$BK90+MATCH(BN$61,Data_Comp!$A$5:$A$300,0),MATCH($BF$61,Data_Comp!$B$3:$GR$3,0)+MATCH(BL$83,Data_Comp!$B$4:$Y$4,0)-1),"") -> 28206.05 | BO90: =IFERROR(OFFSET(Data_Comp!$A$4,$BK90+MATCH(BO$61,Data_Comp!$A$5:$A$300,0),MATCH($BF$61,Data_Comp!$B$3:$GR$3,0)+MATCH(BL$83,Data_Comp!$B$4:$Y$4,0)-1),"") -> 11.18 | BP90: =IFERROR(OFFSET(Data_Comp!$A$4,$BK90+MATCH(BP$61,Data_Comp!$A$5:$A$300,0),MATCH($BF$61,Data_Comp!$B$3:$GR$3,0)+MATCH(BL$83,Data_Comp!$B$4:$Y$4,0)-1),"") -> 0.71 | BQ90: =IFERROR(OFFSET(Data_Comp!$A$4,$BK90+MATCH(BQ$61,Data_Comp!$A$5:$A$300,0),MATCH($BF$61,Data_Comp!$B$3:$GR$3,0)+MATCH(BL$83,Data_Comp!$B$4:$Y$4,0)-1),"") -> 20.27 | BR90: =IFERROR(OFFSET(Data_Comp!$A$4,$BK90+MATCH(BR$61,Data_Comp!$A$5:$A$300,0),MATCH($BF$61,Data_Comp!$B$3:$GR$3,0)+MATCH(BL$83,Data_Comp!$B$4:$Y$4,0)-1),"") -> 90.26 | BS90: =IFERROR(OFFSET(Data_Comp!$A$4,$BK90+MATCH(BS$61,Data_Comp!$A$5:$A$300,0),MATCH($BF$61,Data_Comp!$B$3:$GR$3,0)+MATCH(BL$83,Data_Comp!$B$4:$Y$4,0)-1),"") -> 48.45 | BT90: =IFERROR(OFFSET(Data_Comp!$A$4,$BK90+MATCH(BT$61,Data_Comp!$A$5:$A$300,0),MATCH($BF$61,Data_Comp!$B$3:$GR$3,0)+MATCH(BL$83,Data_Comp!$B$4:$Y$4,0)-1),"") -> 7.5 | BU90: =IFERROR(OFFSET(Data_Comp!$A$4,$BK90+MATCH(BU$61,Data_Comp!$A$5:$A$300,0),MATCH($BF$61,Data_Comp!$B$3:$GR$3,0)+MATCH(BL$83,Data_Comp!$B$4:$Y$4,0)-1),"") -> 5.01 | BV90: =IFERROR(OFFSET(Data_Comp!$A$4,$BK90+MATCH(BV$61,Data_Comp!$A$5:$A$300,0),MATCH($BF$61,Data_Comp!$B$3:$GR$3,0)+MATCH(BL$83,Data_Comp!$B$4:$Y$4,0)-1),"") -> 6.75 | BW90: =IFERROR(OFFSET(Data_Comp!$A$4,$BK90+MATCH(BW$61,Data_Comp!$A$5:$A$300,0),MATCH($BF$61,Data_Comp!$B$3:$GR$3,0)+MATCH(BL$83,Data_Comp!$B$4:$Y$4,0)-1),"") -> 5.15
AH91: 8 | AI91: Galp Energia, SGPS S.A. Class B | AJ91: 13720.75 | AK91: 0.7996542036 | AL91: 22.6 | AM91: 2.08 | AN91: 22.59 | AO91: 27.89 | AP91: 189.86 | AQ91: 6.12 | AR91: 3.23 | AS91: 9.55 | AT91: 3.36 | BK91: 8 | BL91: =OFFSET(Data_Comp!$A$4,$BK91,MATCH($BF$61,Data_Comp!$B$3:$GR$3,0)+MATCH(BL$83,Data_Comp!$B$4:$Y$4,0)-1) -> Galp Energia, SGPS S.A. Class B | BM91: =IFERROR(OFFSET(Data_Comp!$A$4,$BK91+MATCH(BM$83,Data_Comp!$A$5:$A$300,0),MATCH($BF$61,Data_Comp!$B$3:$GR$3,0)+MATCH(BL$83,Data_Comp!$B$4:$Y$4,0)-1),"") -> 0.7996542036 | BN91: =IFERROR(OFFSET(Data_Comp!$A$4,$BK91+MATCH(BN$61,Data_Comp!$A$5:$A$300,0),MATCH($BF$61,Data_Comp!$B$3:$GR$3,0)+MATCH(BL$83,Data_Comp!$B$4:$Y$4,0)-1),"") -> 13720.75 | BO91: =IFERROR(OFFSET(Data_Comp!$A$4,$BK91+MATCH(BO$61,Data_Comp!$A$5:$A$300,0),MATCH($BF$61,Data_Comp!$B$3:$GR$3,0)+MATCH(BL$83,Data_Comp!$B$4:$Y$4,0)-1),"") -> 22.6 | BP91: =IFERROR(OFFSET(Data_Comp!$A$4,$BK91+MATCH(BP$61,Data_Comp!$A$5:$A$300,0),MATCH($BF$61,Data_Comp!$B$3:$GR$3,0)+MATCH(BL$83,Data_Comp!$B$4:$Y$4,0)-1),"") -> 2.08 | BQ91: =IFERROR(OFFSET(Data_Comp!$A$4,$BK91+MATCH(BQ$61,Data_Comp!$A$5:$A$300,0),MATCH($BF$61,Data_Comp!$B$3:$GR$3,0)+MATCH(BL$83,Data_Comp!$B$4:$Y$4,0)-1),"") -> 22.59 | BR91: =IFERROR(OFFSET(Data_Comp!$A$4,$BK91+MATCH(BR$61,Data_Comp!$A$5:$A$300,0),MATCH($BF$61,Data_Comp!$B$3:$GR$3,0)+MATCH(BL$83,Data_Comp!$B$4:$Y$4,0)-1),"") -> 27.89 | BS91: =IFERROR(OFFSET(Data_Comp!$A$4,$BK91+MATCH(BS$61,Data_Comp!$A$5:$A$300,0),MATCH($BF$61,Data_Comp!$B$3:$GR$3,0)+MATCH(BL$83,Data_Comp!$B$4:$Y$4,0)-1),"") -> 189.86 | BT91: =IFERROR(OFFSET(Data_Comp!$A$4,$BK91+MATCH(BT$61,Data_Comp!$A$5:$A$300,0),MATCH($BF$61,Data_Comp!$B$3:$GR$3,0)+MATCH(BL$83,Data_Comp!$B$4:$Y$4,0)-1),"") -> 6.12 | BU91: =IFERROR(OFFSET(Data_Comp!$A$4,$BK91+MATCH(BU$61,Data_Comp!$A$5:$A$300,0),MATCH($BF$61,Data_Comp!$B$3:$GR$3,0)+MATCH(BL$83,Data_Comp!$B$4:$Y$4,0)-1),"") -> 3.23 | BV91: =IFERROR(OFFSET(Data_Comp!$A$4,$BK91+MATCH(BV$61,Data_Comp!$A$5:$A$300,0),MATCH($BF$61,Data_Comp!$B$3:$GR$3,0)+MATCH(BL$83,Data_Comp!$B$4:$Y$4,0)-1),"") -> 9.55 | BW91: =IFERROR(OFFSET(Data_Comp!$A$4,$BK91+MATCH(BW$61,Data_Comp!$A$5:$A$300,0),MATCH($BF$61,Data_Comp!$B$3:$GR$3,0)+MATCH(BL$83,Data_Comp!$B$4:$Y$4,0)-1),"") -> 3.36
AH92: 9 | AI92: OMV | AJ92: 19287.76 | AK92: -5.545042311 | AL92: 14.58 | AM92: 1.03 | AN92: 12.43 | AO92: 16.84 | AP92: 흑전(342.03000) | AQ92: 10.79 | AR92: 4.5 | AS92: 8.19 | AT92: 2.6 | BK92: 9 | BL92: =OFFSET(Data_Comp!$A$4,$BK92,MATCH($BF$61,Data_Comp!$B$3:$GR$3,0)+MATCH(BL$83,Data_Comp!$B$4:$Y$4,0)-1) -> OMV | BM92: =IFERROR(OFFSET(Data_Comp!$A$4,$BK92+MATCH(BM$83,Data_Comp!$A$5:$A$300,0),MATCH($BF$61,Data_Comp!$B$3:$GR$3,0)+MATCH(BL$83,Data_Comp!$B$4:$Y$4,0)-1),"") -> -5.545042311 | BN92: =IFERROR(OFFSET(Data_Comp!$A$4,$BK92+MATCH(BN$61,Data_Comp!$A$5:$A$300,0),MATCH($BF$61,Data_Comp!$B$3:$GR$3,0)+MATCH(BL$83,Data_Comp!$B$4:$Y$4,0)-1),"") -> 19287.76 | BO92: =IFERROR(OFFSET(Data_Comp!$A$4,$BK92+MATCH(BO$61,Data_Comp!$A$5:$A$300,0),MATCH($BF$61,Data_Comp!$B$3:$GR$3,0)+MATCH(BL$83,Data_Comp!$B$4:$Y$4,0)-1),"") -> 14.58 | BP92: =IFERROR(OFFSET(Data_Comp!$A$4,$BK92+MATCH(BP$61,Data_Comp!$A$5:$A$300,0),MATCH($BF$61,Data_Comp!$B$3:$GR$3,0)+MATCH(BL$83,Data_Comp!$B$4:$Y$4,0)-1),"") -> 1.03 | BQ92: =IFERROR(OFFSET(Data_Comp!$A$4,$BK92+MATCH(BQ$61,Data_Comp!$A$5:$A$300,0),MATCH($BF$61,Data_Comp!$B$3:$GR$3,0)+MATCH(BL$83,Data_Comp!$B$4:$Y$4,0)-1),"") -> 12.43 | BR92: =IFERROR(OFFSET(Data_Comp!$A$4,$BK92+MATCH(BR$61,Data_Comp!$A$5:$A$300,0),MATCH($BF$61,Data_Comp!$B$3:$GR$3,0)+MATCH(BL$83,Data_Comp!$B$4:$Y$4,0)-1),"") -> 16.84 | BS92: =IFERROR(OFFSET(Data_Comp!$A$4,$BK92+MATCH(BS$61,Data_Comp!$A$5:$A$300,0),MATCH($BF$61,Data_Comp!$B$3:$GR$3,0)+MATCH(BL$83,Data_Comp!$B$4:$Y$4,0)-1),"") -> 흑전(342.03000) | BT92: =IFERROR(OFFSET(Data_Comp!$A$4,$BK92+MATCH(BT$61,Data_Comp!$A$5:$A$300,0),MATCH($BF$61,Data_Comp!$B$3:$GR$3,0)+MATCH(BL$83,Data_Comp!$B$4:$Y$4,0)-1),"") -> 10.79 | BU92: =IFERROR(OFFSET(Data_Comp!$A$4,$BK92+MATCH(BU$61,Data_Comp!$A$5:$A$300,0),MATCH($BF$61,Data_Comp!$B$3:$GR$3,0)+MATCH(BL$83,Data_Comp!$B$4:$Y$4,0)-1),"") -> 4.5 | BV92: =IFERROR(OFFSET(Data_Comp!$A$4,$BK92+MATCH(BV$61,Data_Comp!$A$5:$A$300,0),MATCH($BF$61,Data_Comp!$B$3:$GR$3,0)+MATCH(BL$83,Data_Comp!$B$4:$Y$4,0)-1),"") -> 8.19 | BW92: =IFERROR(OFFSET(Data_Comp!$A$4,$BK92+MATCH(BW$61,Data_Comp!$A$5:$A$300,0),MATCH($BF$61,Data_Comp!$B$3:$GR$3,0)+MATCH(BL$83,Data_Comp!$B$4:$Y$4,0)-1),"") -> 2.6
AH93: 10 | AI93: Neste | AJ93: 11300.8 | AK93: 0.1620427204 | AL93: 13.85 | AM93: 2.13 | AN93: 8.33 | AO93: -28.35 | AP93: -26.04 | AQ93: 7.36 | AR93: 5.48 | AS93: 17.5 | AT93: 3.55 | BK93: 10 | BL93: =OFFSET(Data_Comp!$A$4,$BK93,MATCH($BF$61,Data_Comp!$B$3:$GR$3,0)+MATCH(BL$83,Data_Comp!$B$4:$Y$4,0)-1) -> Neste | BM93: =IFERROR(OFFSET(Data_Comp!$A$4,$BK93+MATCH(BM$83,Data_Comp!$A$5:$A$300,0),MATCH($BF$61,Data_Comp!$B$3:$GR$3,0)+MATCH(BL$83,Data_Comp!$B$4:$Y$4,0)-1),"") -> 0.1620427204 | BN93: =IFERROR(OFFSET(Data_Comp!$A$4,$BK93+MATCH(BN$61,Data_Comp!$A$5:$A$300,0),MATCH($BF$61,Data_Comp!$B$3:$GR$3,0)+MATCH(BL$83,Data_Comp!$B$4:$Y$4,0)-1),"") -> 11300.8 | BO93: =IFERROR(OFFSET(Data_Comp!$A$4,$BK93+MATCH(BO$61,Data_Comp!$A$5:$A$300,0),MATCH($BF$61,Data_Comp!$B$3:$GR$3,0)+MATCH(BL$83,Data_Comp!$B$4:$Y$4,0)-1),"") -> 13.85 | BP93: =IFERROR(OFFSET(Data_Comp!$A$4,$BK93+MATCH(BP$61,Data_Comp!$A$5:$A$300,0),MATCH($BF$61,Data_Comp!$B$3:$GR$3,0)+MATCH(BL$83,Data_Comp!$B$4:$Y$4,0)-1),"") -> 2.13 | BQ93: =IFERROR(OFFSET(Data_Comp!$A$4,$BK93+MATCH(BQ$61,Data_Comp!$A$5:$A$300,0),MATCH($BF$61,Data_Comp!$B$3:$GR$3,0)+MATCH(BL$83,Data_Comp!$B$4:$Y$4,0)-1),"") -> 8.33 | BR93: =IFERROR(OFFSET(Data_Comp!$A$4,$BK93+MATCH(BR$61,Data_Comp!$A$5:$A$300,0),MATCH($BF$61,Data_Comp!$B$3:$GR$3,0)+MATCH(BL$83,Data_Comp!$B$4:$Y$4,0)-1),"") -> -28.35 | BS93: =IFERROR(OFFSET(Data_Comp!$A$4,$BK93+MATCH(BS$61,Data_Comp!$A$5:$A$300,0),MATCH($BF$61,Data_Comp!$B$3:$GR$3,0)+MATCH(BL$83,Data_Comp!$B$4:$Y$4,0)-1),"") -> -26.04 | BT93: =IFERROR(OFFSET(Data_Comp!$A$4,$BK93+MATCH(BT$61,Data_Comp!$A$5:$A$300,0),MATCH($BF$61,Data_Comp!$B$3:$GR$3,0)+MATCH(BL$83,Data_Comp!$B$4:$Y$4,0)-1),"") -> 7.36 | BU93: =IFERROR(OFFSET(Data_Comp!$A$4,$BK93+MATCH(BU$61,Data_Comp!$A$5:$A$300,0),MATCH($BF$61,Data_Comp!$B$3:$GR$3,0)+MATCH(BL$83,Data_Comp!$B$4:$Y$4,0)-1),"") -> 5.48 | BV93: =IFERROR(OFFSET(Data_Comp!$A$4,$BK93+MATCH(BV$61,Data_Comp!$A$5:$A$300,0),MATCH($BF$61,Data_Comp!$B$3:$GR$3,0)+MATCH(BL$83,Data_Comp!$B$4:$Y$4,0)-1),"") -> 17.5 | BW93: =IFERROR(OFFSET(Data_Comp!$A$4,$BK93+MATCH(BW$61,Data_Comp!$A$5:$A$300,0),MATCH($BF$61,Data_Comp!$B$3:$GR$3,0)+MATCH(BL$83,Data_Comp!$B$4:$Y$4,0)-1),"") -> 3.55
B103: 업종별 12MF 순이익전망치 변화율 (3M) | AK103: =S105 -> 3M | AN103: FY1
R104: 업종명 | S104: 운송 | AI104: 종목명 | AJ104: 시가총액 | AK104: 12MF 순이익 변화율 | AL104: 12MF PE | AM104: 12MF PB | AN104: Sales growth | AO104: OP growth | AP104: NP growth | AQ104: OPM | AR104: NPM | AS104: ROE | AT104: Div. yield | BL104: =S104 -> 운송 | BM104: =S105 -> 3M
R105: 기간 | S105: 3M | AH105: 1 | AI105: =IFERROR(BL105,"") -> Deutsche Post | AJ105: =IF(BN105="","",BN105) -> 53946.76 | AK105: =IF(BM105="","",BM105) -> 2.904261141 | AL105: =IF(BO105="","",BO105) -> 15.51 | AM105: =IF(BP105="","",BP105) -> 3.33 | AN105: 6.2 | AO105: 18.71 | AP105: 4.65 | AQ105: 6.21 | AR105: 4.54 | AS105: 23.21 | AT105: 2.99 | BK105: 1 | BL105: =OFFSET(Data_Comp!$A$4,$BK105,MATCH($BF$61,Data_Comp!$B$3:$GR$3,0)+MATCH(BL$104,Data_Comp!$B$4:$Y$4,0)-1) -> Deutsche Post | BM105: =IFERROR(OFFSET(Data_Comp!$A$4,$BK105+MATCH(BM$104,Data_Comp!$A$5:$A$300,0),MATCH($BF$61,Data_Comp!$B$3:$GR$3,0)+MATCH(BL$104,Data_Comp!$B$4:$Y$4,0)-1),"") -> 2.904261141 | BN105: =IFERROR(OFFSET(Data_Comp!$A$4,$BK105+MATCH(BN$61,Data_Comp!$A$5:$A$300,0),MATCH($BF$61,Data_Comp!$B$3:$GR$3,0)+MATCH(BL$104,Data_Comp!$B$4:$Y$4,0)-1),"") -> 53946.76 | BO105: =IFERROR(OFFSET(Data_Comp!$A$4,$BK105+MATCH(BO$61,Data_Comp!$A$5:$A$300,0),MATCH($BF$61,Data_Comp!$B$3:$GR$3,0)+MATCH(BL$104,Data_Comp!$B$4:$Y$4,0)-1),"") -> 15.51 | BP105: =IFERROR(OFFSET(Data_Comp!$A$4,$BK105+MATCH(BP$61,Data_Comp!$A$5:$A$300,0),MATCH($BF$61,Data_Comp!$B$3:$GR$3,0)+MATCH(BL$104,Data_Comp!$B$4:$Y$4,0)-1),"") -> 3.33 | BQ105: =IFERROR(OFFSET(Data_Comp!$A$4,$BK105+MATCH(BQ$61,Data_Comp!$A$5:$A$300,0),MATCH($BF$61,Data_Comp!$B$3:$GR$3,0)+MATCH(BL$104,Data_Comp!$B$4:$Y$4,0)-1),"") -> 6.2 | BR105: =IFERROR(OFFSET(Data_Comp!$A$4,$BK105+MATCH(BR$61,Data_Comp!$A$5:$A$300,0),MATCH($BF$61,Data_Comp!$B$3:$GR$3,0)+MATCH(BL$104,Data_Comp!$B$4:$Y$4,0)-1),"") -> 18.71 | BS105: =IFERROR(OFFSET(Data_Comp!$A$4,$BK105+MATCH(BS$61,Data_Comp!$A$5:$A$300,0),MATCH($BF$61,Data_Comp!$B$3:$GR$3,0)+MATCH(BL$104,Data_Comp!$B$4:$Y$4,0)-1),"") -> 4.65 | BT105: =IFERROR(OFFSET(Data_Comp!$A$4,$BK105+MATCH(BT$61,Data_Comp!$A$5:$A$300,0),MATCH($BF$61,Data_Comp!$B$3:$GR$3,0)+MATCH(BL$104,Data_Comp!$B$4:$Y$4,0)-1),"") -> 6.21 | BU105: =IFERROR(OFFSET(Data_Comp!$A$4,$BK105+MATCH(BU$61,Data_Comp!$A$5:$A$300,0),MATCH($BF$61,Data_Comp!$B$3:$GR$3,0)+MATCH(BL$104,Data_Comp!$B$4:$Y$4,0)-1),"") -> 4.54 | BV105: =IFERROR(OFFSET(Data_Comp!$A$4,$BK105+MATCH(BV$61,Data_Comp!$A$5:$A$300,0),MATCH($BF$61,Data_Comp!$B$3:$GR$3,0)+MATCH(BL$104,Data_Comp!$B$4:$Y$4,0)-1),"") -> 23.21 | BW105: =IFERROR(OFFSET(Data_Comp!$A$4,$BK105+MATCH(BW$61,Data_Comp!$A$5:$A$300,0),MATCH($BF$61,Data_Comp!$B$3:$GR$3,0)+MATCH(BL$104,Data_Comp!$B$4:$Y$4,0)-1),"") -> 2.99
AH106: =AH105+1 -> 2 | AI106: =IFERROR(BL106,"") -> Aena | AJ106: =IF(BN106="","",BN106) -> 27816.56 | AK106: =IF(BM106="","",BM106) -> 2.328555223 | AL106: =IF(BO106="","",BO106) -> 18.69 | AM106: 3.88 | AN106: 7.96 | AO106: 15.34 | AP106: 3.47 | AQ106: 42.47 | AR106: 30.08 | AS106: 22.67 | AT106: 3.22 | BK106: =BK105+1 -> 2 | BL106: =OFFSET(Data_Comp!$A$4,$BK106,MATCH($BF$61,Data_Comp!$B$3:$GR$3,0)+MATCH(BL$104,Data_Comp!$B$4:$Y$4,0)-1) -> Aena | BM106: =IFERROR(OFFSET(Data_Comp!$A$4,$BK106+MATCH(BM$104,Data_Comp!$A$5:$A$300,0),MATCH($BF$61,Data_Comp!$B$3:$GR$3,0)+MATCH(BL$104,Data_Comp!$B$4:$Y$4,0)-1),"") -> 2.328555223 | BN106: =IFERROR(OFFSET(Data_Comp!$A$4,$BK106+MATCH(BN$61,Data_Comp!$A$5:$A$300,0),MATCH($BF$61,Data_Comp!$B$3:$GR$3,0)+MATCH(BL$104,Data_Comp!$B$4:$Y$4,0)-1),"") -> 27816.56 | BO106: =IFERROR(OFFSET(Data_Comp!$A$4,$BK106+MATCH(BO$61,Data_Comp!$A$5:$A$300,0),MATCH($BF$61,Data_Comp!$B$3:$GR$3,0)+MATCH(BL$104,Data_Comp!$B$4:$Y$4,0)-1),"") -> 18.69 | BP106: =IFERROR(OFFSET(Data_Comp!$A$4,$BK106+MATCH(BP$61,Data_Comp!$A$5:$A$300,0),MATCH($BF$61,Data_Comp!$B$3:$GR$3,0)+MATCH(BL$104,Data_Comp!$B$4:$Y$4,0)-1),"") -> 3.88 | BQ106: =IFERROR(OFFSET(Data_Comp!$A$4,$BK106+MATCH(BQ$61,Data_Comp!$A$5:$A$300,0),MATCH($BF$61,Data_Comp!$B$3:$GR$3,0)+MATCH(BL$104,Data_Comp!$B$4:$Y$4,0)-1),"") -> 7.96 | BR106: =IFERROR(OFFSET(Data_Comp!$A$4,$BK106+MATCH(BR$61,Data_Comp!$A$5:$A$300,0),MATCH($BF$61,Data_Comp!$B$3:$GR$3,0)+MATCH(BL$104,Data_Comp!$B$4:$Y$4,0)-1),"") -> 15.34 | BS106: =IFERROR(OFFSET(Data_Comp!$A$4,$BK106+MATCH(BS$61,Data_Comp!$A$5:$A$300,0),MATCH($BF$61,Data_Comp!$B$3:$GR$3,0)+MATCH(BL$104,Data_Comp!$B$4:$Y$4,0)-1),"") -> 3.47 | BT106: =IFERROR(OFFSET(Data_Comp!$A$4,$BK106+MATCH(BT$61,Data_Comp!$A$5:$A$300,0),MATCH($BF$61,Data_Comp!$B$3:$GR$3,0)+MATCH(BL$104,Data_Comp!$B$4:$Y$4,0)-1),"") -> 42.47 | BU106: =IFERROR(OFFSET(Data_Comp!$A$4,$BK106+MATCH(BU$61,Data_Comp!$A$5:$A$300,0),MATCH($BF$61,Data_Comp!$B$3:$GR$3,0)+MATCH(BL$104,Data_Comp!$B$4:$Y$4,0)-1),"") -> 30.08 | BV106: =IFERROR(OFFSET(Data_Comp!$A$4,$BK106+MATCH(BV$61,Data_Comp!$A$5:$A$300,0),MATCH($BF$61,Data_Comp!$B$3:$GR$3,0)+MATCH(BL$104,Data_Comp!$B$4:$Y$4,0)-1),"") -> 22.67 | BW106: =IFERROR(OFFSET(Data_Comp!$A$4,$BK106+MATCH(BW$61,Data_Comp!$A$5:$A$300,0),MATCH($BF$61,Data_Comp!$B$3:$GR$3,0)+MATCH(BL$104,Data_Comp!$B$4:$Y$4,0)-1),"") -> 3.22
AH107: =AH106+1 -> 3 | AI107: Atlantia S.p.A | AJ107: 26387.2 | AK107: 3.827634673 | AL107: 17.68 | AM107: 2.54 | AN107: 10.11 | AO107: 52.58 | AP107: 3.2 | AQ107: 41.45 | AR107: 19.53 | AS107: 14.77 | AT107: 4.01 | BK107: =BK106+1 -> 3 | BL107: =OFFSET(Data_Comp!$A$4,$BK107,MATCH($BF$61,Data_Comp!$B$3:$GR$3,0)+MATCH(BL$104,Data_Comp!$B$4:$Y$4,0)-1) -> Atlantia S.p.A | BM107: =IFERROR(OFFSET(Data_Comp!$A$4,$BK107+MATCH(BM$104,Data_Comp!$A$5:$A$300,0),MATCH($BF$61,Data_Comp!$B$3:$GR$3,0)+MATCH(BL$104,Data_Comp!$B$4:$Y$4,0)-1),"") -> 3.827634673 | BN107: =IFERROR(OFFSET(Data_Comp!$A$4,$BK107+MATCH(BN$61,Data_Comp!$A$5:$A$300,0),MATCH($BF$61,Data_Comp!$B$3:$GR$3,0)+MATCH(BL$104,Data_Comp!$B$4:$Y$4,0)-1),"") -> 26387.2 | BO107: =IFERROR(OFFSET(Data_Comp!$A$4,$BK107+MATCH(BO$61,Data_Comp!$A$5:$A$300,0),MATCH($BF$61,Data_Comp!$B$3:$GR$3,0)+MATCH(BL$104,Data_Comp!$B$4:$Y$4,0)-1),"") -> 17.68 | BP107: =IFERROR(OFFSET(Data_Comp!$A$4,$BK107+MATCH(BP$61,Data_Comp!$A$5:$A$300,0),MATCH($BF$61,Data_Comp!$B$3:$GR$3,0)+MATCH(BL$104,Data_Comp!$B$4:$Y$4,0)-1),"") -> 2.54 | BQ107: =IFERROR(OFFSET(Data_Comp!$A$4,$BK107+MATCH(BQ$61,Data_Comp!$A$5:$A$300,0),MATCH($BF$61,Data_Comp!$B$3:$GR$3,0)+MATCH(BL$104,Data_Comp!$B$4:$Y$4,0)-1),"") -> 10.11 | BR107: =IFERROR(OFFSET(Data_Comp!$A$4,$BK107+MATCH(BR$61,Data_Comp!$A$5:$A$300,0),MATCH($BF$61,Data_Comp!$B$3:$GR$3,0)+MATCH(BL$104,Data_Comp!$B$4:$Y$4,0)-1),"") -> 52.58 | BS107: =IFERROR(OFFSET(Data_Comp!$A$4,$BK107+MATCH(BS$61,Data_Comp!$A$5:$A$300,0),MATCH($BF$61,Data_Comp!$B$3:$GR$3,0)+MATCH(BL$104,Data_Comp!$B$4:$Y$4,0)-1),"") -> 3.2 | BT107: =IFERROR(OFFSET(Data_Comp!$A$4,$BK107+MATCH(BT$61,Data_Comp!$A$5:$A$300,0),MATCH($BF$61,Data_Comp!$B$3:$GR$3,0)+MATCH(BL$104,Data_Comp!$B$4:$Y$4,0)-1),"") -> 41.45 | BU107: =IFERROR(OFFSET(Data_Comp!$A$4,$BK107+MATCH(BU$61,Data_Comp!$A$5:$A$300,0),MATCH($BF$61,Data_Comp!$B$3:$GR$3,0)+MATCH(BL$104,Data_Comp!$B$4:$Y$4,0)-1),"") -> 19.53 | BV107: =IFERROR(OFFSET(Data_Comp!$A$4,$BK107+MATCH(BV$61,Data_Comp!$A$5:$A$300,0),MATCH($BF$61,Data_Comp!$B$3:$GR$3,0)+MATCH(BL$104,Data_Comp!$B$4:$Y$4,0)-1),"") -> 14.77 | BW107: =IFERROR(OFFSET(Data_Comp!$A$4,$BK107+MATCH(BW$61,Data_Comp!$A$5:$A$300,0),MATCH($BF$61,Data_Comp!$B$3:$GR$3,0)+MATCH(BL$104,Data_Comp!$B$4:$Y$4,0)-1),"") -> 4.01
AH108: 4 | AI108: Kuhne & Nagel International | AJ108: 22217.39 | AK108: 3.459838061 | AL108: 26.67 | AM108: 9.19 | AN108: 7.77 | AO108: 10.97 | AP108: 5.75 | AQ108: 5.46 | AR108: 4.26 | AS108: 34.32 | AT108: 3.29 | BK108: 4 | BL108: =OFFSET(Data_Comp!$A$4,$BK108,MATCH($BF$61,Data_Comp!$B$3:$GR$3,0)+MATCH(BL$104,Data_Comp!$B$4:$Y$4,0)-1) -> Kuhne & Nagel International | BM108: =IFERROR(OFFSET(Data_Comp!$A$4,$BK108+MATCH(BM$104,Data_Comp!$A$5:$A$300,0),MATCH($BF$61,Data_Comp!$B$3:$GR$3,0)+MATCH(BL$104,Data_Comp!$B$4:$Y$4,0)-1),"") -> 3.459838061 | BN108: =IFERROR(OFFSET(Data_Comp!$A$4,$BK108+MATCH(BN$61,Data_Comp!$A$5:$A$300,0),MATCH($BF$61,Data_Comp!$B$3:$GR$3,0)+MATCH(BL$104,Data_Comp!$B$4:$Y$4,0)-1),"") -> 22217.39 | BO108: =IFERROR(OFFSET(Data_Comp!$A$4,$BK108+MATCH(BO$61,Data_Comp!$A$5:$A$300,0),MATCH($BF$61,Data_Comp!$B$3:$GR$3,0)+MATCH(BL$104,Data_Comp!$B$4:$Y$4,0)-1),"") -> 26.67 | BP108: =IFERROR(OFFSET(Data_Comp!$A$4,$BK108+MATCH(BP$61,Data_Comp!$A$5:$A$300,0),MATCH($BF$61,Data_Comp!$B$3:$GR$3,0)+MATCH(BL$104,Data_Comp!$B$4:$Y$4,0)-1),"") -> 9.19 | BQ108: =IFERROR(OFFSET(Data_Comp!$A$4,$BK108+MATCH(BQ$61,Data_Comp!$A$5:$A$300,0),MATCH($BF$61,Data_Comp!$B$3:$GR$3,0)+MATCH(BL$104,Data_Comp!$B$4:$Y$4,0)-1),"") -> 7.77 | BR108: =IFERROR(OFFSET(Data_Comp!$A$4,$BK108+MATCH(BR$61,Data_Comp!$A$5:$A$300,0),MATCH($BF$61,Data_Comp!$B$3:$GR$3,0)+MATCH(BL$104,Data_Comp!$B$4:$Y$4,0)-1),"") -> 10.97 | BS108: =IFERROR(OFFSET(Data_Comp!$A$4,$BK108+MATCH(BS$61,Data_Comp!$A$5:$A$300,0),MATCH($BF$61,Data_Comp!$B$3:$GR$3,0)+MATCH(BL$104,Data_Comp!$B$4:$Y$4,0)-1),"") -> 5.75 | BT108: =IFERROR(OFFSET(Data_Comp!$A$4,$BK108+MATCH(BT$61,Data_Comp!$A$5:$A$300,0),MATCH($BF$61,Data_Comp!$B$3:$GR$3,0)+MATCH(BL$104,Data_Comp!$B$4:$Y$4,0)-1),"") -> 5.46 | BU108: =IFERROR(OFFSET(Data_Comp!$A$4,$BK108+MATCH(BU$61,Data_Comp!$A$5:$A$300,0),MATCH($BF$61,Data_Comp!$B$3:$GR$3,0)+MATCH(BL$104,Data_Comp!$B$4:$Y$4,0)-1),"") -> 4.26 | BV108: =IFERROR(OFFSET(Data_Comp!$A$4,$BK108+MATCH(BV$61,Data_Comp!$A$5:$A$300,0),MATCH($BF$61,Data_Comp!$B$3:$GR$3,0)+MATCH(BL$104,Data_Comp!$B$4:$Y$4,0)-1),"") -> 34.32 | BW108: =IFERROR(OFFSET(Data_Comp!$A$4,$BK108+MATCH(BW$61,Data_Comp!$A$5:$A$300,0),MATCH($BF$61,Data_Comp!$B$3:$GR$3,0)+MATCH(BL$104,Data_Comp!$B$4:$Y$4,0)-1),"") -> 3.29
AH109: 5 | AI109: Ryanair Holdings | AJ109: 23269.3 | AK109: 2.69949232 | AL109: 12.39 | AM109: 3.4 | AN109: 5.91 | AO109: 14.36 | AP109: 14.49 | AQ109: 24.92 | AR109: 21.4 | AS109: 31.51 | AT109: 0.58 | BK109: 5 | BL109: =OFFSET(Data_Comp!$A$4,$BK109,MATCH($BF$61,Data_Comp!$B$3:$GR$3,0)+MATCH(BL$104,Data_Comp!$B$4:$Y$4,0)-1) -> Ryanair Holdings | BM109: =IFERROR(OFFSET(Data_Comp!$A$4,$BK109+MATCH(BM$104,Data_Comp!$A$5:$A$300,0),MATCH($BF$61,Data_Comp!$B$3:$GR$3,0)+MATCH(BL$104,Data_Comp!$B$4:$Y$4,0)-1),"") -> 2.69949232 | BN109: =IFERROR(OFFSET(Data_Comp!$A$4,$BK109+MATCH(BN$61,Data_Comp!$A$5:$A$300,0),MATCH($BF$61,Data_Comp!$B$3:$GR$3,0)+MATCH(BL$104,Data_Comp!$B$4:$Y$4,0)-1),"") -> 23269.3 | BO109: =IFERROR(OFFSET(Data_Comp!$A$4,$BK109+MATCH(BO$61,Data_Comp!$A$5:$A$300,0),MATCH($BF$61,Data_Comp!$B$3:$GR$3,0)+MATCH(BL$104,Data_Comp!$B$4:$Y$4,0)-1),"") -> 12.39 | BP109: =IFERROR(OFFSET(Data_Comp!$A$4,$BK109+MATCH(BP$61,Data_Comp!$A$5:$A$300,0),MATCH($BF$61,Data_Comp!$B$3:$GR$3,0)+MATCH(BL$104,Data_Comp!$B$4:$Y$4,0)-1),"") -> 3.4 | BQ109: =IFERROR(OFFSET(Data_Comp!$A$4,$BK109+MATCH(BQ$61,Data_Comp!$A$5:$A$300,0),MATCH($BF$61,Data_Comp!$B$3:$GR$3,0)+MATCH(BL$104,Data_Comp!$B$4:$Y$4,0)-1),"") -> 5.91 | BR109: =IFERROR(OFFSET(Data_Comp!$A$4,$BK109+MATCH(BR$61,Data_Comp!$A$5:$A$300,0),MATCH($BF$61,Data_Comp!$B$3:$GR$3,0)+MATCH(BL$104,Data_Comp!$B$4:$Y$4,0)-1),"") -> 14.36 | BS109: =IFERROR(OFFSET(Data_Comp!$A$4,$BK109+MATCH(BS$61,Data_Comp!$A$5:$A$300,0),MATCH($BF$61,Data_Comp!$B$3:$GR$3,0)+MATCH(BL$104,Data_Comp!$B$4:$Y$4,0)-1),"") -> 14.49 | BT109: =IFERROR(OFFSET(Data_Comp!$A$4,$BK109+MATCH(BT$61,Data_Comp!$A$5:$A$300,0),MATCH($BF$61,Data_Comp!$B$3:$GR$3,0)+MATCH(BL$104,Data_Comp!$B$4:$Y$4,0)-1),"") -> 24.92 | BU109: =IFERROR(OFFSET(Data_Comp!$A$4,$BK109+MATCH(BU$61,Data_Comp!$A$5:$A$300,0),MATCH($BF$61,Data_Comp!$B$3:$GR$3,0)+MATCH(BL$104,Data_Comp!$B$4:$Y$4,0)-1),"") -> 21.4 | BV109: =IFERROR(OFFSET(Data_Comp!$A$4,$BK109+MATCH(BV$61,Data_Comp!$A$5:$A$300,0),MATCH($BF$61,Data_Comp!$B$3:$GR$3,0)+MATCH(BL$104,Data_Comp!$B$4:$Y$4,0)-1),"") -> 31.51 | BW109: =IFERROR(OFFSET(Data_Comp!$A$4,$BK109+MATCH(BW$61,Data_Comp!$A$5:$A$300,0),MATCH($BF$61,Data_Comp!$B$3:$GR$3,0)+MATCH(BL$104,Data_Comp!$B$4:$Y$4,0)-1),"") -> 0.58
AH110: 6 | AI110: Abertis Infraestructuras | AJ110: 20542.01 | AK110: 5.905564698 | AL110: 16.28 | AM110: 4.41 | AN110: 18.56 | AO110: 13.22 | AP110: 18.45 | AQ110: 38.99 | AR110: 16.7 | AS110: 25.92 | AT110: 4.43 | BK110: 6 | BL110: =OFFSET(Data_Comp!$A$4,$BK110,MATCH($BF$61,Data_Comp!$B$3:$GR$3,0)+MATCH(BL$104,Data_Comp!$B$4:$Y$4,0)-1) -> Abertis Infraestructuras | BM110: =IFERROR(OFFSET(Data_Comp!$A$4,$BK110+MATCH(BM$104,Data_Comp!$A$5:$A$300,0),MATCH($BF$61,Data_Comp!$B$3:$GR$3,0)+MATCH(BL$104,Data_Comp!$B$4:$Y$4,0)-1),"") -> 5.905564698 | BN110: =IFERROR(OFFSET(Data_Comp!$A$4,$BK110+MATCH(BN$61,Data_Comp!$A$5:$A$300,0),MATCH($BF$61,Data_Comp!$B$3:$GR$3,0)+MATCH(BL$104,Data_Comp!$B$4:$Y$4,0)-1),"") -> 20542.01 | BO110: =IFERROR(OFFSET(Data_Comp!$A$4,$BK110+MATCH(BO$61,Data_Comp!$A$5:$A$300,0),MATCH($BF$61,Data_Comp!$B$3:$GR$3,0)+MATCH(BL$104,Data_Comp!$B$4:$Y$4,0)-1),"") -> 16.28 | BP110: =IFERROR(OFFSET(Data_Comp!$A$4,$BK110+MATCH(BP$61,Data_Comp!$A$5:$A$300,0),MATCH($BF$61,Data_Comp!$B$3:$GR$3,0)+MATCH(BL$104,Data_Comp!$B$4:$Y$4,0)-1),"") -> 4.41 | BQ110: =IFERROR(OFFSET(Data_Comp!$A$4,$BK110+MATCH(BQ$61,Data_Comp!$A$5:$A$300,0),MATCH($BF$61,Data_Comp!$B$3:$GR$3,0)+MATCH(BL$104,Data_Comp!$B$4:$Y$4,0)-1),"") -> 18.56 | BR110: =IFERROR(OFFSET(Data_Comp!$A$4,$BK110+MATCH(BR$61,Data_Comp!$A$5:$A$300,0),MATCH($BF$61,Data_Comp!$B$3:$GR$3,0)+MATCH(BL$104,Data_Comp!$B$4:$Y$4,0)-1),"") -> 13.22 | BS110: =IFERROR(OFFSET(Data_Comp!$A$4,$BK110+MATCH(BS$61,Data_Comp!$A$5:$A$300,0),MATCH($BF$61,Data_Comp!$B$3:$GR$3,0)+MATCH(BL$104,Data_Comp!$B$4:$Y$4,0)-1),"") -> 18.45 | BT110: =IFERROR(OFFSET(Data_Comp!$A$4,$BK110+MATCH(BT$61,Data_Comp!$A$5:$A$300,0),MATCH($BF$61,Data_Comp!$B$3:$GR$3,0)+MATCH(BL$104,Data_Comp!$B$4:$Y$4,0)-1),"") -> 38.99 | BU110: =IFERROR(OFFSET(Data_Comp!$A$4,$BK110+MATCH(BU$61,Data_Comp!$A$5:$A$300,0),MATCH($BF$61,Data_Comp!$B$3:$GR$3,0)+MATCH(BL$104,Data_Comp!$B$4:$Y$4,0)-1),"") -> 16.7 | BV110: =IFERROR(OFFSET(Data_Comp!$A$4,$BK110+MATCH(BV$61,Data_Comp!$A$5:$A$300,0),MATCH($BF$61,Data_Comp!$B$3:$GR$3,0)+MATCH(BL$104,Data_Comp!$B$4:$Y$4,0)-1),"") -> 25.92 | BW110: =IFERROR(OFFSET(Data_Comp!$A$4,$BK110+MATCH(BW$61,Data_Comp!$A$5:$A$300,0),MATCH($BF$61,Data_Comp!$B$3:$GR$3,0)+MATCH(BL$104,Data_Comp!$B$4:$Y$4,0)-1),"") -> 4.43
AH111: 7 | AI111: Ferrovial | AJ111: 16341.03 | AK111: -1.402097828 | AL111: 35.26 | AM111: 2.29 | AN111: 9.96 | AO111: -3.03 | AP111: 2.75 | AQ111: 4.93 | AR111: 3.27 | AS111: 6.61 | AT111: 4.03 | BK111: 7 | BL111: =OFFSET(Data_Comp!$A$4,$BK111,MATCH($BF$61,Data_Comp!$B$3:$GR$3,0)+MATCH(BL$104,Data_Comp!$B$4:$Y$4,0)-1) -> Ferrovial | BM111: =IFERROR(OFFSET(Data_Comp!$A$4,$BK111+MATCH(BM$104,Data_Comp!$A$5:$A$300,0),MATCH($BF$61,Data_Comp!$B$3:$GR$3,0)+MATCH(BL$104,Data_Comp!$B$4:$Y$4,0)-1),"") -> -1.402097828 | BN111: =IFERROR(OFFSET(Data_Comp!$A$4,$BK111+MATCH(BN$61,Data_Comp!$A$5:$A$300,0),MATCH($BF$61,Data_Comp!$B$3:$GR$3,0)+MATCH(BL$104,Data_Comp!$B$4:$Y$4,0)-1),"") -> 16341.03 | BO111: =IFERROR(OFFSET(Data_Comp!$A$4,$BK111+MATCH(BO$61,Data_Comp!$A$5:$A$300,0),MATCH($BF$61,Data_Comp!$B$3:$GR$3,0)+MATCH(BL$104,Data_Comp!$B$4:$Y$4,0)-1),"") -> 35.26 | BP111: =IFERROR(OFFSET(Data_Comp!$A$4,$BK111+MATCH(BP$61,Data_Comp!$A$5:$A$300,0),MATCH($BF$61,Data_Comp!$B$3:$GR$3,0)+MATCH(BL$104,Data_Comp!$B$4:$Y$4,0)-1),"") -> 2.29 | BQ111: =IFERROR(OFFSET(Data_Comp!$A$4,$BK111+MATCH(BQ$61,Data_Comp!$A$5:$A$300,0),MATCH($BF$61,Data_Comp!$B$3:$GR$3,0)+MATCH(BL$104,Data_Comp!$B$4:$Y$4,0)-1),"") -> 9.96 | BR111: =IFERROR(OFFSET(Data_Comp!$A$4,$BK111+MATCH(BR$61,Data_Comp!$A$5:$A$300,0),MATCH($BF$61,Data_Comp!$B$3:$GR$3,0)+MATCH(BL$104,Data_Comp!$B$4:$Y$4,0)-1),"") -> -3.03 | BS111: =IFERROR(OFFSET(Data_Comp!$A$4,$BK111+MATCH(BS$61,Data_Comp!$A$5:$A$300,0),MATCH($BF$61,Data_Comp!$B$3:$GR$3,0)+MATCH(BL$104,Data_Comp!$B$4:$Y$4,0)-1),"") -> 2.75 | BT111: =IFERROR(OFFSET(Data_Comp!$A$4,$BK111+MATCH(BT$61,Data_Comp!$A$5:$A$300,0),MATCH($BF$61,Data_Comp!$B$3:$GR$3,0)+MATCH(BL$104,Data_Comp!$B$4:$Y$4,0)-1),"") -> 4.93 | BU111: =IFERROR(OFFSET(Data_Comp!$A$4,$BK111+MATCH(BU$61,Data_Comp!$A$5:$A$300,0),MATCH($BF$61,Data_Comp!$B$3:$GR$3,0)+MATCH(BL$104,Data_Comp!$B$4:$Y$4,0)-1),"") -> 3.27 | BV111: =IFERROR(OFFSET(Data_Comp!$A$4,$BK111+MATCH(BV$61,Data_Comp!$A$5:$A$300,0),MATCH($BF$61,Data_Comp!$B$3:$GR$3,0)+MATCH(BL$104,Data_Comp!$B$4:$Y$4,0)-1),"") -> 6.61 | BW111: =IFERROR(OFFSET(Data_Comp!$A$4,$BK111+MATCH(BW$61,Data_Comp!$A$5:$A$300,0),MATCH($BF$61,Data_Comp!$B$3:$GR$3,0)+MATCH(BL$104,Data_Comp!$B$4:$Y$4,0)-1),"") -> 4.03
AH112: 8 | AI112: A.P. Moller - Maersk A/S Class B | AJ112: 19537.96 | AK112: 3.527671269 | AL112: 18.28 | AM112: 1.17 | AN112: -5.07 | AO112: 10.76 | AP112: 흑전(172.24000) | AQ112: 7.1 | AR112: 4.16 | AS112: 4.45 | AT112: 1.78 | BK112: 8 | BL112: =OFFSET(Data_Comp!$A$4,$BK112,MATCH($BF$61,Data_Comp!$B$3:$GR$3,0)+MATCH(BL$104,Data_Comp!$B$4:$Y$4,0)-1) -> A.P. Moller - Maersk A/S Class B | BM112: =IFERROR(OFFSET(Data_Comp!$A$4,$BK112+MATCH(BM$104,Data_Comp!$A$5:$A$300,0),MATCH($BF$61,Data_Comp!$B$3:$GR$3,0)+MATCH(BL$104,Data_Comp!$B$4:$Y$4,0)-1),"") -> 3.527671269 | BN112: =IFERROR(OFFSET(Data_Comp!$A$4,$BK112+MATCH(BN$61,Data_Comp!$A$5:$A$300,0),MATCH($BF$61,Data_Comp!$B$3:$GR$3,0)+MATCH(BL$104,Data_Comp!$B$4:$Y$4,0)-1),"") -> 19537.96 | BO112: =IFERROR(OFFSET(Data_Comp!$A$4,$BK112+MATCH(BO$61,Data_Comp!$A$5:$A$300,0),MATCH($BF$61,Data_Comp!$B$3:$GR$3,0)+MATCH(BL$104,Data_Comp!$B$4:$Y$4,0)-1),"") -> 18.28 | BP112: =IFERROR(OFFSET(Data_Comp!$A$4,$BK112+MATCH(BP$61,Data_Comp!$A$5:$A$300,0),MATCH($BF$61,Data_Comp!$B$3:$GR$3,0)+MATCH(BL$104,Data_Comp!$B$4:$Y$4,0)-1),"") -> 1.17 | BQ112: =IFERROR(OFFSET(Data_Comp!$A$4,$BK112+MATCH(BQ$61,Data_Comp!$A$5:$A$300,0),MATCH($BF$61,Data_Comp!$B$3:$GR$3,0)+MATCH(BL$104,Data_Comp!$B$4:$Y$4,0)-1),"") -> -5.07 | BR112: =IFERROR(OFFSET(Data_Comp!$A$4,$BK112+MATCH(BR$61,Data_Comp!$A$5:$A$300,0),MATCH($BF$61,Data_Comp!$B$3:$GR$3,0)+MATCH(BL$104,Data_Comp!$B$4:$Y$4,0)-1),"") -> 10.76 | BS112: =IFERROR(OFFSET(Data_Comp!$A$4,$BK112+MATCH(BS$61,Data_Comp!$A$5:$A$300,0),MATCH($BF$61,Data_Comp!$B$3:$GR$3,0)+MATCH(BL$104,Data_Comp!$B$4:$Y$4,0)-1),"") -> 흑전(172.24000) | BT112: =IFERROR(OFFSET(Data_Comp!$A$4,$BK112+MATCH(BT$61,Data_Comp!$A$5:$A$300,0),MATCH($BF$61,Data_Comp!$B$3:$GR$3,0)+MATCH(BL$104,Data_Comp!$B$4:$Y$4,0)-1),"") -> 7.1 | BU112: =IFERROR(OFFSET(Data_Comp!$A$4,$BK112+MATCH(BU$61,Data_Comp!$A$5:$A$300,0),MATCH($BF$61,Data_Comp!$B$3:$GR$3,0)+MATCH(BL$104,Data_Comp!$B$4:$Y$4,0)-1),"") -> 4.16 | BV112: =IFERROR(OFFSET(Data_Comp!$A$4,$BK112+MATCH(BV$61,Data_Comp!$A$5:$A$300,0),MATCH($BF$61,Data_Comp!$B$3:$GR$3,0)+MATCH(BL$104,Data_Comp!$B$4:$Y$4,0)-1),"") -> 4.45 | BW112: =IFERROR(OFFSET(Data_Comp!$A$4,$BK112+MATCH(BW$61,Data_Comp!$A$5:$A$300,0),MATCH($BF$61,Data_Comp!$B$3:$GR$3,0)+MATCH(BL$104,Data_Comp!$B$4:$Y$4,0)-1),"") -> 1.78
AH113: 9 | AI113: International Consolidated Airlines Group | AJ113: 16504.04 | AK113: 10.232674 | AL113: 6.13 | AM113: 1.77 | AN113: 10.67 | AO113: 20.52 | AP113: 15.99 | AQ113: 12.77 | AR113: 8.97 | AS113: 35.69 | AT113: 4.11 | BK113: 9 | BL113: =OFFSET(Data_Comp!$A$4,$BK113,MATCH($BF$61,Data_Comp!$B$3:$GR$3,0)+MATCH(BL$104,Data_Comp!$B$4:$Y$4,0)-1) -> International Consolidated Airlines Group | BM113: =IFERROR(OFFSET(Data_Comp!$A$4,$BK113+MATCH(BM$104,Data_Comp!$A$5:$A$300,0),MATCH($BF$61,Data_Comp!$B$3:$GR$3,0)+MATCH(BL$104,Data_Comp!$B$4:$Y$4,0)-1),"") -> 10.232674 | BN113: =IFERROR(OFFSET(Data_Comp!$A$4,$BK113+MATCH(BN$61,Data_Comp!$A$5:$A$300,0),MATCH($BF$61,Data_Comp!$B$3:$GR$3,0)+MATCH(BL$104,Data_Comp!$B$4:$Y$4,0)-1),"") -> 16504.04 | BO113: =IFERROR(OFFSET(Data_Comp!$A$4,$BK113+MATCH(BO$61,Data_Comp!$A$5:$A$300,0),MATCH($BF$61,Data_Comp!$B$3:$GR$3,0)+MATCH(BL$104,Data_Comp!$B$4:$Y$4,0)-1),"") -> 6.13 | BP113: =IFERROR(OFFSET(Data_Comp!$A$4,$BK113+MATCH(BP$61,Data_Comp!$A$5:$A$300,0),MATCH($BF$61,Data_Comp!$B$3:$GR$3,0)+MATCH(BL$104,Data_Comp!$B$4:$Y$4,0)-1),"") -> 1.77 | BQ113: =IFERROR(OFFSET(Data_Comp!$A$4,$BK113+MATCH(BQ$61,Data_Comp!$A$5:$A$300,0),MATCH($BF$61,Data_Comp!$B$3:$GR$3,0)+MATCH(BL$104,Data_Comp!$B$4:$Y$4,0)-1),"") -> 10.67 | BR113: =IFERROR(OFFSET(Data_Comp!$A$4,$BK113+MATCH(BR$61,Data_Comp!$A$5:$A$300,0),MATCH($BF$61,Data_Comp!$B$3:$GR$3,0)+MATCH(BL$104,Data_Comp!$B$4:$Y$4,0)-1),"") -> 20.52 | BS113: =IFERROR(OFFSET(Data_Comp!$A$4,$BK113+MATCH(BS$61,Data_Comp!$A$5:$A$300,0),MATCH($BF$61,Data_Comp!$B$3:$GR$3,0)+MATCH(BL$104,Data_Comp!$B$4:$Y$4,0)-1),"") -> 15.99 | BT113: =IFERROR(OFFSET(Data_Comp!$A$4,$BK113+MATCH(BT$61,Data_Comp!$A$5:$A$300,0),MATCH($BF$61,Data_Comp!$B$3:$GR$3,0)+MATCH(BL$104,Data_Comp!$B$4:$Y$4,0)-1),"") -> 12.77 | BU113: =IFERROR(OFFSET(Data_Comp!$A$4,$BK113+MATCH(BU$61,Data_Comp!$A$5:$A$300,0),MATCH($BF$61,Data_Comp!$B$3:$GR$3,0)+MATCH(BL$104,Data_Comp!$B$4:$Y$4,0)-1),"") -> 8.97 | BV113: =IFERROR(OFFSET(Data_Comp!$A$4,$BK113+MATCH(BV$61,Data_Comp!$A$5:$A$300,0),MATCH($BF$61,Data_Comp!$B$3:$GR$3,0)+MATCH(BL$104,Data_Comp!$B$4:$Y$4,0)-1),"") -> 35.69 | BW113: =IFERROR(OFFSET(Data_Comp!$A$4,$BK113+MATCH(BW$61,Data_Comp!$A$5:$A$300,0),MATCH($BF$61,Data_Comp!$B$3:$GR$3,0)+MATCH(BL$104,Data_Comp!$B$4:$Y$4,0)-1),"") -> 4.11
AH114: 10 | AI114: Aeroports de Paris | AJ114: 16206.86 | AK114: 3.733424495 | AL114: 28.11 | AM114: 2.91 | AN114: 4.19 | AO114: 14.71 | AP114: 6.54 | AQ114: 26.75 | AR114: 15.1 | AS114: 10.56 | AT114: 2.07 | BK114: 10 | BL114: =OFFSET(Data_Comp!$A$4,$BK114,MATCH($BF$61,Data_Comp!$B$3:$GR$3,0)+MATCH(BL$104,Data_Comp!$B$4:$Y$4,0)-1) -> Aeroports de Paris | BM114: =IFERROR(OFFSET(Data_Comp!$A$4,$BK114+MATCH(BM$104,Data_Comp!$A$5:$A$300,0),MATCH($BF$61,Data_Comp!$B$3:$GR$3,0)+MATCH(BL$104,Data_Comp!$B$4:$Y$4,0)-1),"") -> 3.733424495 | BN114: =IFERROR(OFFSET(Data_Comp!$A$4,$BK114+MATCH(BN$61,Data_Comp!$A$5:$A$300,0),MATCH($BF$61,Data_Comp!$B$3:$GR$3,0)+MATCH(BL$104,Data_Comp!$B$4:$Y$4,0)-1),"") -> 16206.86 | BO114: =IFERROR(OFFSET(Data_Comp!$A$4,$BK114+MATCH(BO$61,Data_Comp!$A$5:$A$300,0),MATCH($BF$61,Data_Comp!$B$3:$GR$3,0)+MATCH(BL$104,Data_Comp!$B$4:$Y$4,0)-1),"") -> 28.11 | BP114: =IFERROR(OFFSET(Data_Comp!$A$4,$BK114+MATCH(BP$61,Data_Comp!$A$5:$A$300,0),MATCH($BF$61,Data_Comp!$B$3:$GR$3,0)+MATCH(BL$104,Data_Comp!$B$4:$Y$4,0)-1),"") -> 2.91 | BQ114: =IFERROR(OFFSET(Data_Comp!$A$4,$BK114+MATCH(BQ$61,Data_Comp!$A$5:$A$300,0),MATCH($BF$61,Data_Comp!$B$3:$GR$3,0)+MATCH(BL$104,Data_Comp!$B$4:$Y$4,0)-1),"") -> 4.19 | BR114: =IFERROR(OFFSET(Data_Comp!$A$4,$BK114+MATCH(BR$61,Data_Comp!$A$5:$A$300,0),MATCH($BF$61,Data_Comp!$B$3:$GR$3,0)+MATCH(BL$104,Data_Comp!$B$4:$Y$4,0)-1),"") -> 14.71 | BS114: =IFERROR(OFFSET(Data_Comp!$A$4,$BK114+MATCH(BS$61,Data_Comp!$A$5:$A$300,0),MATCH($BF$61,Data_Comp!$B$3:$GR$3,0)+MATCH(BL$104,Data_Comp!$B$4:$Y$4,0)-1),"") -> 6.54 | BT114: =IFERROR(OFFSET(Data_Comp!$A$4,$BK114+MATCH(BT$61,Data_Comp!$A$5:$A$300,0),MATCH($BF$61,Data_Comp!$B$3:$GR$3,0)+MATCH(BL$104,Data_Comp!$B$4:$Y$4,0)-1),"") -> 26.75 | BU114: =IFERROR(OFFSET(Data_Comp!$A$4,$BK114+MATCH(BU$61,Data_Comp!$A$5:$A$300,0),MATCH($BF$61,Data_Comp!$B$3:$GR$3,0)+MATCH(BL$104,Data_Comp!$B$4:$Y$4,0)-1),"") -> 15.1 | BV114: =IFERROR(OFFSET(Data_Comp!$A$4,$BK114+MATCH(BV$61,Data_Comp!$A$5:$A$300,0),MATCH($BF$61,Data_Comp!$B$3:$GR$3,0)+MATCH(BL$104,Data_Comp!$B$4:$Y$4,0)-1),"") -> 10.56 | BW114: =IFERROR(OFFSET(Data_Comp!$A$4,$BK114+MATCH(BW$61,Data_Comp!$A$5:$A$300,0),MATCH($BF$61,Data_Comp!$B$3:$GR$3,0)+MATCH(BL$104,Data_Comp!$B$4:$Y$4,0)-1),"") -> 2.07

Sheet Japan
B3: 일본 업종별 이익동향
B5: 업종별 12MF 순이익전망치 추이 (컨센서스 기준) (USD bn)
AI36: =Data_Sector_Japan!D14 -> 505
B59: 업종별 12MF 순이익전망치 변화율 (1W) | R59: 종목별 12MF 순이익전망치 변화율
AK60: =S62 -> 1W | AN60: FY1
R61: 업종명 | S61: 화학 | AI61: 종목명 | AJ61: 시가총액 | AK61: 12MF 순이익 변화율 | AL61: 12MF PE | AM61: 12MF PB | AN61: Sales growth | AO61: OP growth | AP61: NP growth | AQ61: OPM | AR61: NPM | AS61: ROE | AT61: Div. yield | AY61: FY1 순이익 | BF61: Japan | BL61: =S61 -> 화학 | BM61: =S62 -> 1W | BN61: 시가총액 | BO61: P/E(Fwd.12M) | BP61: P/B(Fwd.12M) | BQ61: 매출액증가율(YoY) | BR61: 영업이익증가율(YoY) | BS61: 순이익증가율(YoY, 지배) | BT61: 영업이익률 | BU61: 순이익률 | BV61: ROE(지배) | BW61: 현금배당수익률
R62: 기간 | S62: 1W | AH62: 1 | AI62: =IFERROR(BL62,"") -> Shin-Etsu Chemical Co | AJ62: =IF(BN62="","",BN62) -> 38805.67 | AK62: =IF(BM62="","",BM62) -> 0.1545759013 | AL62: =IF(BO62="","",BO62) -> 19.57 | AM62: =IF(BP62="","",BP62) -> 1.84 | AN62: 10.1 | AO62: 24.41 | AP62: 19.7 | AQ62: 21.79 | AR62: 15.46 | AS62: 9.53 | AT62: 1.33 | BA62: Chg. | BK62: 1 | BL62: =OFFSET(Data_Comp!$A$4,$BK62,MATCH($BF$61,Data_Comp!$B$3:$GR$3,0)+MATCH(BL$61,Data_Comp!$B$4:$Y$4,0)-1) -> Shin-Etsu Chemical Co | BM62: =IFERROR(OFFSET(Data_Comp!$A$4,$BK62+MATCH(BM$61,Data_Comp!$A$5:$A$300,0),MATCH($BF$61,Data_Comp!$B$3:$GR$3,0)+MATCH(BL$61,Data_Comp!$B$4:$Y$4,0)-1),"") -> 0.1545759013 | BN62: =IFERROR(OFFSET(Data_Comp!$A$4,$BK62+MATCH(BN$61,Data_Comp!$A$5:$A$300,0),MATCH($BF$61,Data_Comp!$B$3:$GR$3,0)+MATCH(BL$61,Data_Comp!$B$4:$Y$4,0)-1),"") -> 38805.67 | BO62: =IFERROR(OFFSET(Data_Comp!$A$4,$BK62+MATCH(BO$61,Data_Comp!$A$5:$A$300,0),MATCH($BF$61,Data_Comp!$B$3:$GR$3,0)+MATCH(BL$61,Data_Comp!$B$4:$Y$4,0)-1),"") -> 19.57 | BP62: =IFERROR(OFFSET(Data_Comp!$A$4,$BK62+MATCH(BP$61,Data_Comp!$A$5:$A$300,0),MATCH($BF$61,Data_Comp!$B$3:$GR$3,0)+MATCH(BL$61,Data_Comp!$B$4:$Y$4,0)-1),"") -> 1.84 | BQ62: =IFERROR(OFFSET(Data_Comp!$A$4,$BK62+MATCH(BQ$61,Data_Comp!$A$5:$A$300,0),MATCH($BF$61,Data_Comp!$B$3:$GR$3,0)+MATCH(BL$61,Data_Comp!$B$4:$Y$4,0)-1),"") -> 10.1 | BR62: =IFERROR(OFFSET(Data_Comp!$A$4,$BK62+MATCH(BR$61,Data_Comp!$A$5:$A$300,0),MATCH($BF$61,Data_Comp!$B$3:$GR$3,0)+MATCH(BL$61,Data_Comp!$B$4:$Y$4,0)-1),"") -> 24.41 | BS62: =IFERROR(OFFSET(Data_Comp!$A$4,$BK62+MATCH(BS$61,Data_Comp!$A$5:$A$300,0),MATCH($BF$61,Data_Comp!$B$3:$GR$3,0)+MATCH(BL$61,Data_Comp!$B$4:$Y$4,0)-1),"") -> 19.7 | BT62: =IFERROR(OFFSET(Data_Comp!$A$4,$BK62+MATCH(BT$61,Data_Comp!$A$5:$A$300,0),MATCH($BF$61,Data_Comp!$B$3:$GR$3,0)+MATCH(BL$61,Data_Comp!$B$4:$Y$4,0)-1),"") -> 21.79 | BU62: =IFERROR(OFFSET(Data_Comp!$A$4,$BK62+MATCH(BU$61,Data_Comp!$A$5:$A$300,0),MATCH($BF$61,Data_Comp!$B$3:$GR$3,0)+MATCH(BL$61,Data_Comp!$B$4:$Y$4,0)-1),"") -> 15.46 | BV62: =IFERROR(OFFSET(Data_Comp!$A$4,$BK62+MATCH(BV$61,Data_Comp!$A$5:$A$300,0),MATCH($BF$61,Data_Comp!$B$3:$GR$3,0)+MATCH(BL$61,Data_Comp!$B$4:$Y$4,0)-1),"") -> 9.53 | BW62: =IFERROR(OFFSET(Data_Comp!$A$4,$BK62+MATCH(BW$61,Data_Comp!$A$5:$A$300,0),MATCH($BF$61,Data_Comp!$B$3:$GR$3,0)+MATCH(BL$61,Data_Comp!$B$4:$Y$4,0)-1),"") -> 1.33
AH63: =AH62+1 -> 2 | AI63: =IFERROR(BL63,"") -> Toray Industries | AJ63: =IF(BN63="","",BN63) -> 15427.74 | AK63: =IF(BM63="","",BM63) -> 1.370439058 | AL63: =IF(BO63="","",BO63) -> 16.41 | AM63: 1.53 | AN63: 7.43 | AO63: 11.49 | AP63: 0.84 | AQ63: 7.52 | AR63: 4.61 | AS63: 9.45 | AT63: 1.36 | AY63: 변화율(1W) | BA63: 변화율(1M) | BC63: 변화율(3M) | BF63: 에너지 | BG63: 1W | BH63: -1 | BK63: =BK62+1 -> 2 | BL63: =OFFSET(Data_Comp!$A$4,$BK63,MATCH($BF$61,Data_Comp!$B$3:$GR$3,0)+MATCH(BL$61,Data_Comp!$B$4:$Y$4,0)-1) -> Toray Industries | BM63: =IFERROR(OFFSET(Data_Comp!$A$4,$BK63+MATCH(BM$61,Data_Comp!$A$5:$A$300,0),MATCH($BF$61,Data_Comp!$B$3:$GR$3,0)+MATCH(BL$61,Data_Comp!$B$4:$Y$4,0)-1),"") -> 1.370439058 | BN63: =IFERROR(OFFSET(Data_Comp!$A$4,$BK63+MATCH(BN$61,Data_Comp!$A$5:$A$300,0),MATCH($BF$61,Data_Comp!$B$3:$GR$3,0)+MATCH(BL$61,Data_Comp!$B$4:$Y$4,0)-1),"") -> 15427.74 | BO63: =IFERROR(OFFSET(Data_Comp!$A$4,$BK63+MATCH(BO$61,Data_Comp!$A$5:$A$300,0),MATCH($BF$61,Data_Comp!$B$3:$GR$3,0)+MATCH(BL$61,Data_Comp!$B$4:$Y$4,0)-1),"") -> 16.41 | BP63: =IFERROR(OFFSET(Data_Comp!$A$4,$BK63+MATCH(BP$61,Data_Comp!$A$5:$A$300,0),MATCH($BF$61,Data_Comp!$B$3:$GR$3,0)+MATCH(BL$61,Data_Comp!$B$4:$Y$4,0)-1),"") -> 1.53 | BQ63: =IFERROR(OFFSET(Data_Comp!$A$4,$BK63+MATCH(BQ$61,Data_Comp!$A$5:$A$300,0),MATCH($BF$61,Data_Comp!$B$3:$GR$3,0)+MATCH(BL$61,Data_Comp!$B$4:$Y$4,0)-1),"") -> 7.43 | BR63: =IFERROR(OFFSET(Data_Comp!$A$4,$BK63+MATCH(BR$61,Data_Comp!$A$5:$A$300,0),MATCH($BF$61,Data_Comp!$B$3:$GR$3,0)+MATCH(BL$61,Data_Comp!$B$4:$Y$4,0)-1),"") -> 11.49 | BS63: =IFERROR(OFFSET(Data_Comp!$A$4,$BK63+MATCH(BS$61,Data_Comp!$A$5:$A$300,0),MATCH($BF$61,Data_Comp!$B$3:$GR$3,0)+MATCH(BL$61,Data_Comp!$B$4:$Y$4,0)-1),"") -> 0.84 | BT63: =IFERROR(OFFSET(Data_Comp!$A$4,$BK63+MATCH(BT$61,Data_Comp!$A$5:$A$300,0),MATCH($BF$61,Data_Comp!$B$3:$GR$3,0)+MATCH(BL$61,Data_Comp!$B$4:$Y$4,0)-1),"") -> 7.52 | BU63: =IFERROR(OFFSET(Data_Comp!$A$4,$BK63+MATCH(BU$61,Data_Comp!$A$5:$A$300,0),MATCH($BF$61,Data_Comp!$B$3:$GR$3,0)+MATCH(BL$61,Data_Comp!$B$4:$Y$4,0)-1),"") -> 4.61 | BV63: =IFERROR(OFFSET(Data_Comp!$A$4,$BK63+MATCH(BV$61,Data_Comp!$A$5:$A$300,0),MATCH($BF$61,Data_Comp!$B$3:$GR$3,0)+MATCH(BL$61,Data_Comp!$B$4:$Y$4,0)-1),"") -> 9.45 | BW63: =IFERROR(OFFSET(Data_Comp!$A$4,$BK63+MATCH(BW$61,Data_Comp!$A$5:$A$300,0),MATCH($BF$61,Data_Comp!$B$3:$GR$3,0)+MATCH(BL$61,Data_Comp!$B$4:$Y$4,0)-1),"") -> 1.36
AH64: =AH63+1 -> 3 | AI64: Nitto Denko | AJ64: 14646.61 | AK64: 2.209995057 | AL64: 18.64 | AM64: 2.21 | AN64: 7.54 | AO64: 20.93 | AP64: 34.06 | AQ64: 14.61 | AR64: 10.3 | AS64: 12.45 | AT64: 1.69 | AY64: 전체 | AZ64: =Data_Sector_Japan!$D$7 -> -0.01217724288 | BA64: 전체 | BB64: =Data_Sector_Japan!$D$8 -> 0.7932715086 | BC64: 전체 | BD64: =Data_Sector_Japan!$D$9 -> 4.890696349 | BF64: 화학 | BG64: 1M | BH64: -4 | BK64: =BK63+1 -> 3 | BL64: =OFFSET(Data_Comp!$A$4,$BK64,MATCH($BF$61,Data_Comp!$B$3:$GR$3,0)+MATCH(BL$61,Data_Comp!$B$4:$Y$4,0)-1) -> Nitto Denko | BM64: =IFERROR(OFFSET(Data_Comp!$A$4,$BK64+MATCH(BM$61,Data_Comp!$A$5:$A$300,0),MATCH($BF$61,Data_Comp!$B$3:$GR$3,0)+MATCH(BL$61,Data_Comp!$B$4:$Y$4,0)-1),"") -> 2.209995057 | BN64: =IFERROR(OFFSET(Data_Comp!$A$4,$BK64+MATCH(BN$61,Data_Comp!$A$5:$A$300,0),MATCH($BF$61,Data_Comp!$B$3:$GR$3,0)+MATCH(BL$61,Data_Comp!$B$4:$Y$4,0)-1),"") -> 14646.61 | BO64: =IFERROR(OFFSET(Data_Comp!$A$4,$BK64+MATCH(BO$61,Data_Comp!$A$5:$A$300,0),MATCH($BF$61,Data_Comp!$B$3:$GR$3,0)+MATCH(BL$61,Data_Comp!$B$4:$Y$4,0)-1),"") -> 18.64 | BP64: =IFERROR(OFFSET(Data_Comp!$A$4,$BK64+MATCH(BP$61,Data_Comp!$A$5:$A$300,0),MATCH($BF$61,Data_Comp!$B$3:$GR$3,0)+MATCH(BL$61,Data_Comp!$B$4:$Y$4,0)-1),"") -> 2.21 | BQ64: =IFERROR(OFFSET(Data_Comp!$A$4,$BK64+MATCH(BQ$61,Data_Comp!$A$5:$A$300,0),MATCH($BF$61,Data_Comp!$B$3:$GR$3,0)+MATCH(BL$61,Data_Comp!$B$4:$Y$4,0)-1),"") -> 7.54 | BR64: =IFERROR(OFFSET(Data_Comp!$A$4,$BK64+MATCH(BR$61,Data_Comp!$A$5:$A$300,0),MATCH($BF$61,Data_Comp!$B$3:$GR$3,0)+MATCH(BL$61,Data_Comp!$B$4:$Y$4,0)-1),"") -> 20.93 | BS64: =IFERROR(OFFSET(Data_Comp!$A$4,$BK64+MATCH(BS$61,Data_Comp!$A$5:$A$300,0),MATCH($BF$61,Data_Comp!$B$3:$GR$3,0)+MATCH(BL$61,Data_Comp!$B$4:$Y$4,0)-1),"") -> 34.06 | BT64: =IFERROR(OFFSET(Data_Comp!$A$4,$BK64+MATCH(BT$61,Data_Comp!$A$5:$A$300,0),MATCH($BF$61,Data_Comp!$B$3:$GR$3,0)+MATCH(BL$61,Data_Comp!$B$4:$Y$4,0)-1),"") -> 14.61 | BU64: =IFERROR(OFFSET(Data_Comp!$A$4,$BK64+MATCH(BU$61,Data_Comp!$A$5:$A$300,0),MATCH($BF$61,Data_Comp!$B$3:$GR$3,0)+MATCH(BL$61,Data_Comp!$B$4:$Y$4,0)-1),"") -> 10.3 | BV64: =IFERROR(OFFSET(Data_Comp!$A$4,$BK64+MATCH(BV$61,Data_Comp!$A$5:$A$300,0),MATCH($BF$61,Data_Comp!$B$3:$GR$3,0)+MATCH(BL$61,Data_Comp!$B$4:$Y$4,0)-1),"") -> 12.45 | BW64: =IFERROR(OFFSET(Data_Comp!$A$4,$BK64+MATCH(BW$61,Data_Comp!$A$5:$A$300,0),MATCH($BF$61,Data_Comp!$B$3:$GR$3,0)+MATCH(BL$61,Data_Comp!$B$4:$Y$4,0)-1),"") -> 1.69
AH65: 4 | AI65: Asahi Kasei | AJ65: 17167.14 | AK65: 0 | AL65: 15.36 | AM65: 1.49 | AN65: 4.92 | AO65: 9.82 | AP65: 7.19 | AQ65: 8.85 | AR65: 6.24 | AS65: 10.27 | AT65: 1.81 | AX65: 1 | AY65: =OFFSET(Data_Sector_Japan!$C$13,,MATCH($AX65,Data_Sector_Japan!$D$10:$AB$10,0)) -> 비철,목재등 | AZ65: =OFFSET(Data_Sector_Japan!$C$7,,MATCH($AX65,Data_Sector_Japan!$D$10:$AB$10,0)) -> 0.6535196702 | BA65: =OFFSET(Data_Sector_Japan!$C$13,,MATCH($AX65,Data_Sector_Japan!$D$11:$AB$11,0)) -> 철강 | BB65: =OFFSET(Data_Sector_Japan!$C$8,,MATCH($AX65,Data_Sector_Japan!$D$11:$AB$11,0)) -> 7.176277018 | BC65: =OFFSET(Data_Sector_Japan!$C$13,,MATCH($AX65,Data_Sector_Japan!$D$12:$AB$12,0)) -> IT하드웨어 | BD65: =OFFSET(Data_Sector_Japan!$C$9,,MATCH($AX65,Data_Sector_Japan!$D$12:$AB$12,0)) -> 20.85855888 | BF65: 철강 | BG65: 3M | BH65: -12 | BK65: 4 | BL65: =OFFSET(Data_Comp!$A$4,$BK65,MATCH($BF$61,Data_Comp!$B$3:$GR$3,0)+MATCH(BL$61,Data_Comp!$B$4:$Y$4,0)-1) -> Asahi Kasei | BM65: =IFERROR(OFFSET(Data_Comp!$A$4,$BK65+MATCH(BM$61,Data_Comp!$A$5:$A$300,0),MATCH($BF$61,Data_Comp!$B$3:$GR$3,0)+MATCH(BL$61,Data_Comp!$B$4:$Y$4,0)-1),"") -> 0 | BN65: =IFERROR(OFFSET(Data_Comp!$A$4,$BK65+MATCH(BN$61,Data_Comp!$A$5:$A$300,0),MATCH($BF$61,Data_Comp!$B$3:$GR$3,0)+MATCH(BL$61,Data_Comp!$B$4:$Y$4,0)-1),"") -> 17167.14 | BO65: =IFERROR(OFFSET(Data_Comp!$A$4,$BK65+MATCH(BO$61,Data_Comp!$A$5:$A$300,0),MATCH($BF$61,Data_Comp!$B$3:$GR$3,0)+MATCH(BL$61,Data_Comp!$B$4:$Y$4,0)-1),"") -> 15.36 | BP65: =IFERROR(OFFSET(Data_Comp!$A$4,$BK65+MATCH(BP$61,Data_Comp!$A$5:$A$300,0),MATCH($BF$61,Data_Comp!$B$3:$GR$3,0)+MATCH(BL$61,Data_Comp!$B$4:$Y$4,0)-1),"") -> 1.49 | BQ65: =IFERROR(OFFSET(Data_Comp!$A$4,$BK65+MATCH(BQ$61,Data_Comp!$A$5:$A$300,0),MATCH($BF$61,Data_Comp!$B$3:$GR$3,0)+MATCH(BL$61,Data_Comp!$B$4:$Y$4,0)-1),"") -> 4.92 | BR65: =IFERROR(OFFSET(Data_Comp!$A$4,$BK65+MATCH(BR$61,Data_Comp!$A$5:$A$300,0),MATCH($BF$61,Data_Comp!$B$3:$GR$3,0)+MATCH(BL$61,Data_Comp!$B$4:$Y$4,0)-1),"") -> 9.82 | BS65: =IFERROR(OFFSET(Data_Comp!$A$4,$BK65+MATCH(BS$61,Data_Comp!$A$5:$A$300,0),MATCH($BF$61,Data_Comp!$B$3:$GR$3,0)+MATCH(BL$61,Data_Comp!$B$4:$Y$4,0)-1),"") -> 7.19 | BT65: =IFERROR(OFFSET(Data_Comp!$A$4,$BK65+MATCH(BT$61,Data_Comp!$A$5:$A$300,0),MATCH($BF$61,Data_Comp!$B$3:$GR$3,0)+MATCH(BL$61,Data_Comp!$B$4:$Y$4,0)-1),"") -> 8.85 | BU65: =IFERROR(OFFSET(Data_Comp!$A$4,$BK65+MATCH(BU$61,Data_Comp!$A$5:$A$300,0),MATCH($BF$61,Data_Comp!$B$3:$GR$3,0)+MATCH(BL$61,Data_Comp!$B$4:$Y$4,0)-1),"") -> 6.24 | BV65: =IFERROR(OFFSET(Data_Comp!$A$4,$BK65+MATCH(BV$61,Data_Comp!$A$5:$A$300,0),MATCH($BF$61,Data_Comp!$B$3:$GR$3,0)+MATCH(BL$61,Data_Comp!$B$4:$Y$4,0)-1),"") -> 10.27 | BW65: =IFERROR(OFFSET(Data_Comp!$A$4,$BK65+MATCH(BW$61,Data_Comp!$A$5:$A$300,0),MATCH($BF$61,Data_Comp!$B$3:$GR$3,0)+MATCH(BL$61,Data_Comp!$B$4:$Y$4,0)-1),"") -> 1.81
AH66: 5 | AI66: Mitsubishi Chemical Holdings | AJ66: 14063.07 | AK66: 0 | AL66: 9.59 | AM66: 1.11 | AN66: 8.81 | AO66: 17.34 | AP66: 7.12 | AQ66: 9.2 | AR66: 4.48 | AS66: 13.46 | AT66: 2.52 | AX66: 2 | AY66: =OFFSET(Data_Sector_Japan!$C$13,,MATCH($AX66,Data_Sector_Japan!$D$10:$AB$10,0)) -> 반도체 | AZ66: =OFFSET(Data_Sector_Japan!$C$7,,MATCH($AX66,Data_Sector_Japan!$D$10:$AB$10,0)) -> 0.3992262419 | BA66: =OFFSET(Data_Sector_Japan!$C$13,,MATCH($AX66,Data_Sector_Japan!$D$11:$AB$11,0)) -> 반도체 | BB66: =OFFSET(Data_Sector_Japan!$C$8,,MATCH($AX66,Data_Sector_Japan!$D$11:$AB$11,0)) -> 5.557558886 | BC66: =OFFSET(Data_Sector_Japan!$C$13,,MATCH($AX66,Data_Sector_Japan!$D$12:$AB$12,0)) -> 반도체 | BD66: =OFFSET(Data_Sector_Japan!$C$9,,MATCH($AX66,Data_Sector_Japan!$D$12:$AB$12,0)) -> 20.0492126 | BF66: 비철,목재등 | BK66: 5 | BL66: =OFFSET(Data_Comp!$A$4,$BK66,MATCH($BF$61,Data_Comp!$B$3:$GR$3,0)+MATCH(BL$61,Data_Comp!$B$4:$Y$4,0)-1) -> Mitsubishi Chemical Holdings | BM66: =IFERROR(OFFSET(Data_Comp!$A$4,$BK66+MATCH(BM$61,Data_Comp!$A$5:$A$300,0),MATCH($BF$61,Data_Comp!$B$3:$GR$3,0)+MATCH(BL$61,Data_Comp!$B$4:$Y$4,0)-1),"") -> 0 | BN66: =IFERROR(OFFSET(Data_Comp!$A$4,$BK66+MATCH(BN$61,Data_Comp!$A$5:$A$300,0),MATCH($BF$61,Data_Comp!$B$3:$GR$3,0)+MATCH(BL$61,Data_Comp!$B$4:$Y$4,0)-1),"") -> 14063.07 | BO66: =IFERROR(OFFSET(Data_Comp!$A$4,$BK66+MATCH(BO$61,Data_Comp!$A$5:$A$300,0),MATCH($BF$61,Data_Comp!$B$3:$GR$3,0)+MATCH(BL$61,Data_Comp!$B$4:$Y$4,0)-1),"") -> 9.59 | BP66: =IFERROR(OFFSET(Data_Comp!$A$4,$BK66+MATCH(BP$61,Data_Comp!$A$5:$A$300,0),MATCH($BF$61,Data_Comp!$B$3:$GR$3,0)+MATCH(BL$61,Data_Comp!$B$4:$Y$4,0)-1),"") -> 1.11 | BQ66: =IFERROR(OFFSET(Data_Comp!$A$4,$BK66+MATCH(BQ$61,Data_Comp!$A$5:$A$300,0),MATCH($BF$61,Data_Comp!$B$3:$GR$3,0)+MATCH(BL$61,Data_Comp!$B$4:$Y$4,0)-1),"") -> 8.81 | BR66: =IFERROR(OFFSET(Data_Comp!$A$4,$BK66+MATCH(BR$61,Data_Comp!$A$5:$A$300,0),MATCH($BF$61,Data_Comp!$B$3:$GR$3,0)+MATCH(BL$61,Data_Comp!$B$4:$Y$4,0)-1),"") -> 17.34 | BS66: =IFERROR(OFFSET(Data_Comp!$A$4,$BK66+MATCH(BS$61,Data_Comp!$A$5:$A$300,0),MATCH($BF$61,Data_Comp!$B$3:$GR$3,0)+MATCH(BL$61,Data_Comp!$B$4:$Y$4,0)-1),"") -> 7.12 | BT66: =IFERROR(OFFSET(Data_Comp!$A$4,$BK66+MATCH(BT$61,Data_Comp!$A$5:$A$300,0),MATCH($BF$61,Data_Comp!$B$3:$GR$3,0)+MATCH(BL$61,Data_Comp!$B$4:$Y$4,0)-1),"") -> 9.2 | BU66: =IFERROR(OFFSET(Data_Comp!$A$4,$BK66+MATCH(BU$61,Data_Comp!$A$5:$A$300,0),MATCH($BF$61,Data_Comp!$B$3:$GR$3,0)+MATCH(BL$61,Data_Comp!$B$4:$Y$4,0)-1),"") -> 4.48 | BV66: =IFERROR(OFFSET(Data_Comp!$A$4,$BK66+MATCH(BV$61,Data_Comp!$A$5:$A$300,0),MATCH($BF$61,Data_Comp!$B$3:$GR$3,0)+MATCH(BL$61,Data_Comp!$B$4:$Y$4,0)-1),"") -> 13.46 | BW66: =IFERROR(OFFSET(Data_Comp!$A$4,$BK66+MATCH(BW$61,Data_Comp!$A$5:$A$300,0),MATCH($BF$61,Data_Comp!$B$3:$GR$3,0)+MATCH(BL$61,Data_Comp!$B$4:$Y$4,0)-1),"") -> 2.52
AH67: 6 | AI67: Sumitomo Chemical | AJ67: 10289.05 | AK67: 0 | AL67: 10.21 | AM67: 1.16 | AN67: 11.08 | AO67: 26.09 | AP67: 27.52 | AQ67: 7.8 | AR67: 5.02 | AS67: 12.33 | AT67: 2.15 | AX67: 3 | AY67: =OFFSET(Data_Sector_Japan!$C$13,,MATCH($AX67,Data_Sector_Japan!$D$10:$AB$10,0)) -> 기계 | AZ67: =OFFSET(Data_Sector_Japan!$C$7,,MATCH($AX67,Data_Sector_Japan!$D$10:$AB$10,0)) -> 0.3974085708 | BA67: =OFFSET(Data_Sector_Japan!$C$13,,MATCH($AX67,Data_Sector_Japan!$D$11:$AB$11,0)) -> 화학 | BB67: =OFFSET(Data_Sector_Japan!$C$8,,MATCH($AX67,Data_Sector_Japan!$D$11:$AB$11,0)) -> 3.314890127 | BC67: =OFFSET(Data_Sector_Japan!$C$13,,MATCH($AX67,Data_Sector_Japan!$D$12:$AB$12,0)) -> 철강 | BD67: =OFFSET(Data_Sector_Japan!$C$9,,MATCH($AX67,Data_Sector_Japan!$D$12:$AB$12,0)) -> 15.78505506 | BF67: 건설,건축관련 | BK67: 6 | BL67: =OFFSET(Data_Comp!$A$4,$BK67,MATCH($BF$61,Data_Comp!$B$3:$GR$3,0)+MATCH(BL$61,Data_Comp!$B$4:$Y$4,0)-1) -> Sumitomo Chemical | BM67: =IFERROR(OFFSET(Data_Comp!$A$4,$BK67+MATCH(BM$61,Data_Comp!$A$5:$A$300,0),MATCH($BF$61,Data_Comp!$B$3:$GR$3,0)+MATCH(BL$61,Data_Comp!$B$4:$Y$4,0)-1),"") -> 0 | BN67: =IFERROR(OFFSET(Data_Comp!$A$4,$BK67+MATCH(BN$61,Data_Comp!$A$5:$A$300,0),MATCH($BF$61,Data_Comp!$B$3:$GR$3,0)+MATCH(BL$61,Data_Comp!$B$4:$Y$4,0)-1),"") -> 10289.05 | BO67: =IFERROR(OFFSET(Data_Comp!$A$4,$BK67+MATCH(BO$61,Data_Comp!$A$5:$A$300,0),MATCH($BF$61,Data_Comp!$B$3:$GR$3,0)+MATCH(BL$61,Data_Comp!$B$4:$Y$4,0)-1),"") -> 10.21 | BP67: =IFERROR(OFFSET(Data_Comp!$A$4,$BK67+MATCH(BP$61,Data_Comp!$A$5:$A$300,0),MATCH($BF$61,Data_Comp!$B$3:$GR$3,0)+MATCH(BL$61,Data_Comp!$B$4:$Y$4,0)-1),"") -> 1.16 | BQ67: =IFERROR(OFFSET(Data_Comp!$A$4,$BK67+MATCH(BQ$61,Data_Comp!$A$5:$A$300,0),MATCH($BF$61,Data_Comp!$B$3:$GR$3,0)+MATCH(BL$61,Data_Comp!$B$4:$Y$4,0)-1),"") -> 11.08 | BR67: =IFERROR(OFFSET(Data_Comp!$A$4,$BK67+MATCH(BR$61,Data_Comp!$A$5:$A$300,0),MATCH($BF$61,Data_Comp!$B$3:$GR$3,0)+MATCH(BL$61,Data_Comp!$B$4:$Y$4,0)-1),"") -> 26.09 | BS67: =IFERROR(OFFSET(Data_Comp!$A$4,$BK67+MATCH(BS$61,Data_Comp!$A$5:$A$300,0),MATCH($BF$61,Data_Comp!$B$3:$GR$3,0)+MATCH(BL$61,Data_Comp!$B$4:$Y$4,0)-1),"") -> 27.52 | BT67: =IFERROR(OFFSET(Data_Comp!$A$4,$BK67+MATCH(BT$61,Data_Comp!$A$5:$A$300,0),MATCH($BF$61,Data_Comp!$B$3:$GR$3,0)+MATCH(BL$61,Data_Comp!$B$4:$Y$4,0)-1),"") -> 7.8 | BU67: =IFERROR(OFFSET(Data_Comp!$A$4,$BK67+MATCH(BU$61,Data_Comp!$A$5:$A$300,0),MATCH($BF$61,Data_Comp!$B$3:$GR$3,0)+MATCH(BL$61,Data_Comp!$B$4:$Y$4,0)-1),"") -> 5.02 | BV67: =IFERROR(OFFSET(Data_Comp!$A$4,$BK67+MATCH(BV$61,Data_Comp!$A$5:$A$300,0),MATCH($BF$61,Data_Comp!$B$3:$GR$3,0)+MATCH(BL$61,Data_Comp!$B$4:$Y$4,0)-1),"") -> 12.33 | BW67: =IFERROR(OFFSET(Data_Comp!$A$4,$BK67+MATCH(BW$61,Data_Comp!$A$5:$A$300,0),MATCH($BF$61,Data_Comp!$B$3:$GR$3,0)+MATCH(BL$61,Data_Comp!$B$4:$Y$4,0)-1),"") -> 2.15
AH68: 7 | AI68: Sekisui Chemical | AJ68: 9586.03 | AK68: 0.2203074513 | AL68: 15.61 | AM68: 1.77 | AN68: 3.35 | AO68: 7.14 | AP68: 9.54 | AQ68: 9.38 | AR68: 6.05 | AS68: 11.7 | AT68: 1.81 | AX68: 4 | AY68: =OFFSET(Data_Sector_Japan!$C$13,,MATCH($AX68,Data_Sector_Japan!$D$10:$AB$10,0)) -> 화학 | AZ68: =OFFSET(Data_Sector_Japan!$C$7,,MATCH($AX68,Data_Sector_Japan!$D$10:$AB$10,0)) -> 0.387423439 | BA68: =OFFSET(Data_Sector_Japan!$C$13,,MATCH($AX68,Data_Sector_Japan!$D$11:$AB$11,0)) -> 소매(유통) | BB68: =OFFSET(Data_Sector_Japan!$C$8,,MATCH($AX68,Data_Sector_Japan!$D$11:$AB$11,0)) -> 3.19959613 | BC68: =OFFSET(Data_Sector_Japan!$C$13,,MATCH($AX68,Data_Sector_Japan!$D$12:$AB$12,0)) -> 에너지 | BD68: =OFFSET(Data_Sector_Japan!$C$9,,MATCH($AX68,Data_Sector_Japan!$D$12:$AB$12,0)) -> 8.675962218 | BF68: 기계 | BK68: 7 | BL68: =OFFSET(Data_Comp!$A$4,$BK68,MATCH($BF$61,Data_Comp!$B$3:$GR$3,0)+MATCH(BL$61,Data_Comp!$B$4:$Y$4,0)-1) -> Sekisui Chemical | BM68: =IFERROR(OFFSET(Data_Comp!$A$4,$BK68+MATCH(BM$61,Data_Comp!$A$5:$A$300,0),MATCH($BF$61,Data_Comp!$B$3:$GR$3,0)+MATCH(BL$61,Data_Comp!$B$4:$Y$4,0)-1),"") -> 0.2203074513 | BN68: =IFERROR(OFFSET(Data_Comp!$A$4,$BK68+MATCH(BN$61,Data_Comp!$A$5:$A$300,0),MATCH($BF$61,Data_Comp!$B$3:$GR$3,0)+MATCH(BL$61,Data_Comp!$B$4:$Y$4,0)-1),"") -> 9586.03 | BO68: =IFERROR(OFFSET(Data_Comp!$A$4,$BK68+MATCH(BO$61,Data_Comp!$A$5:$A$300,0),MATCH($BF$61,Data_Comp!$B$3:$GR$3,0)+MATCH(BL$61,Data_Comp!$B$4:$Y$4,0)-1),"") -> 15.61 | BP68: =IFERROR(OFFSET(Data_Comp!$A$4,$BK68+MATCH(BP$61,Data_Comp!$A$5:$A$300,0),MATCH($BF$61,Data_Comp!$B$3:$GR$3,0)+MATCH(BL$61,Data_Comp!$B$4:$Y$4,0)-1),"") -> 1.77 | BQ68: =IFERROR(OFFSET(Data_Comp!$A$4,$BK68+MATCH(BQ$61,Data_Comp!$A$5:$A$300,0),MATCH($BF$61,Data_Comp!$B$3:$GR$3,0)+MATCH(BL$61,Data_Comp!$B$4:$Y$4,0)-1),"") -> 3.35 | BR68: =IFERROR(OFFSET(Data_Comp!$A$4,$BK68+MATCH(BR$61,Data_Comp!$A$5:$A$300,0),MATCH($BF$61,Data_Comp!$B$3:$GR$3,0)+MATCH(BL$61,Data_Comp!$B$4:$Y$4,0)-1),"") -> 7.14 | BS68: =IFERROR(OFFSET(Data_Comp!$A$4,$BK68+MATCH(BS$61,Data_Comp!$A$5:$A$300,0),MATCH($BF$61,Data_Comp!$B$3:$GR$3,0)+MATCH(BL$61,Data_Comp!$B$4:$Y$4,0)-1),"") -> 9.54 | BT68: =IFERROR(OFFSET(Data_Comp!$A$4,$BK68+MATCH(BT$61,Data_Comp!$A$5:$A$300,0),MATCH($BF$61,Data_Comp!$B$3:$GR$3,0)+MATCH(BL$61,Data_Comp!$B$4:$Y$4,0)-1),"") -> 9.38 | BU68: =IFERROR(OFFSET(Data_Comp!$A$4,$BK68+MATCH(BU$61,Data_Comp!$A$5:$A$300,0),MATCH($BF$61,Data_Comp!$B$3:$GR$3,0)+MATCH(BL$61,Data_Comp!$B$4:$Y$4,0)-1),"") -> 6.05 | BV68: =IFERROR(OFFSET(Data_Comp!$A$4,$BK68+MATCH(BV$61,Data_Comp!$A$5:$A$300,0),MATCH($BF$61,Data_Comp!$B$3:$GR$3,0)+MATCH(BL$61,Data_Comp!$B$4:$Y$4,0)-1),"") -> 11.7 | BW68: =IFERROR(OFFSET(Data_Comp!$A$4,$BK68+MATCH(BW$61,Data_Comp!$A$5:$A$300,0),MATCH($BF$61,Data_Comp!$B$3:$GR$3,0)+MATCH(BL$61,Data_Comp!$B$4:$Y$4,0)-1),"") -> 1.81
AH69: 8 | AI69: Asahi Glass | AJ69: 8834.99 | AK69: -0.2443933295 | AL69: 14.15 | AM69: 0.84 | AN69: 10.53 | AO69: 20.9 | AP69: 38.43 | AQ69: 8.06 | AR69: 4.63 | AS69: 5.86 | AT69: 2.35 | AX69: 5 | AY69: =OFFSET(Data_Sector_Japan!$C$13,,MATCH($AX69,Data_Sector_Japan!$D$10:$AB$10,0)) -> 은행 | AZ69: =OFFSET(Data_Sector_Japan!$C$7,,MATCH($AX69,Data_Sector_Japan!$D$10:$AB$10,0)) -> 0.1935403272 | BA69: =OFFSET(Data_Sector_Japan!$C$13,,MATCH($AX69,Data_Sector_Japan!$D$11:$AB$11,0)) -> 비철,목재등 | BB69: =OFFSET(Data_Sector_Japan!$C$8,,MATCH($AX69,Data_Sector_Japan!$D$11:$AB$11,0)) -> 2.947383885 | BC69: =OFFSET(Data_Sector_Japan!$C$13,,MATCH($AX69,Data_Sector_Japan!$D$12:$AB$12,0)) -> 화학 | BD69: =OFFSET(Data_Sector_Japan!$C$9,,MATCH($AX69,Data_Sector_Japan!$D$12:$AB$12,0)) -> 7.942067829 | BF69: 조선 | BK69: 8 | BL69: =OFFSET(Data_Comp!$A$4,$BK69,MATCH($BF$61,Data_Comp!$B$3:$GR$3,0)+MATCH(BL$61,Data_Comp!$B$4:$Y$4,0)-1) -> Asahi Glass | BM69: =IFERROR(OFFSET(Data_Comp!$A$4,$BK69+MATCH(BM$61,Data_Comp!$A$5:$A$300,0),MATCH($BF$61,Data_Comp!$B$3:$GR$3,0)+MATCH(BL$61,Data_Comp!$B$4:$Y$4,0)-1),"") -> -0.2443933295 | BN69: =IFERROR(OFFSET(Data_Comp!$A$4,$BK69+MATCH(BN$61,Data_Comp!$A$5:$A$300,0),MATCH($BF$61,Data_Comp!$B$3:$GR$3,0)+MATCH(BL$61,Data_Comp!$B$4:$Y$4,0)-1),"") -> 8834.99 | BO69: =IFERROR(OFFSET(Data_Comp!$A$4,$BK69+MATCH(BO$61,Data_Comp!$A$5:$A$300,0),MATCH($BF$61,Data_Comp!$B$3:$GR$3,0)+MATCH(BL$61,Data_Comp!$B$4:$Y$4,0)-1),"") -> 14.15 | BP69: =IFERROR(OFFSET(Data_Comp!$A$4,$BK69+MATCH(BP$61,Data_Comp!$A$5:$A$300,0),MATCH($BF$61,Data_Comp!$B$3:$GR$3,0)+MATCH(BL$61,Data_Comp!$B$4:$Y$4,0)-1),"") -> 0.84 | BQ69: =IFERROR(OFFSET(Data_Comp!$A$4,$BK69+MATCH(BQ$61,Data_Comp!$A$5:$A$300,0),MATCH($BF$61,Data_Comp!$B$3:$GR$3,0)+MATCH(BL$61,Data_Comp!$B$4:$Y$4,0)-1),"") -> 10.53 | BR69: =IFERROR(OFFSET(Data_Comp!$A$4,$BK69+MATCH(BR$61,Data_Comp!$A$5:$A$300,0),MATCH($BF$61,Data_Comp!$B$3:$GR$3,0)+MATCH(BL$61,Data_Comp!$B$4:$Y$4,0)-1),"") -> 20.9 | BS69: =IFERROR(OFFSET(Data_Comp!$A$4,$BK69+MATCH(BS$61,Data_Comp!$A$5:$A$300,0),MATCH($BF$61,Data_Comp!$B$3:$GR$3,0)+MATCH(BL$61,Data_Comp!$B$4:$Y$4,0)-1),"") -> 38.43 | BT69: =IFERROR(OFFSET(Data_Comp!$A$4,$BK69+MATCH(BT$61,Data_Comp!$A$5:$A$300,0),MATCH($BF$61,Data_Comp!$B$3:$GR$3,0)+MATCH(BL$61,Data_Comp!$B$4:$Y$4,0)-1),"") -> 8.06 | BU69: =IFERROR(OFFSET(Data_Comp!$A$4,$BK69+MATCH(BU$61,Data_Comp!$A$5:$A$300,0),MATCH($BF$61,Data_Comp!$B$3:$GR$3,0)+MATCH(BL$61,Data_Comp!$B$4:$Y$4,0)-1),"") -> 4.63 | BV69: =IFERROR(OFFSET(Data_Comp!$A$4,$BK69+MATCH(BV$61,Data_Comp!$A$5:$A$300,0),MATCH($BF$61,Data_Comp!$B$3:$GR$3,0)+MATCH(BL$61,Data_Comp!$B$4:$Y$4,0)-1),"") -> 5.86 | BW69: =IFERROR(OFFSET(Data_Comp!$A$4,$BK69+MATCH(BW$61,Data_Comp!$A$5:$A$300,0),MATCH($BF$61,Data_Comp!$B$3:$GR$3,0)+MATCH(BL$61,Data_Comp!$B$4:$Y$4,0)-1),"") -> 2.35
AH70: 9 | AI70: Kansai Paint | AJ70: 6569.24 | AK70: 0 | AL70: 23.96 | AM70: 2.64 | AN70: 21.56 | AO70: 19.95 | AP70: 21.31 | AQ70: 10.55 | AR70: 7.3 | AS70: 11.01 | AT70: 1 | AX70: 6 | AY70: =OFFSET(Data_Sector_Japan!$C$13,,MATCH($AX70,Data_Sector_Japan!$D$10:$AB$10,0)) -> 화장품,의류,완구 | AZ70: =OFFSET(Data_Sector_Japan!$C$7,,MATCH($AX70,Data_Sector_Japan!$D$10:$AB$10,0)) -> 0.1753274262 | BA70: =OFFSET(Data_Sector_Japan!$C$13,,MATCH($AX70,Data_Sector_Japan!$D$11:$AB$11,0)) -> 기계 | BB70: =OFFSET(Data_Sector_Japan!$C$8,,MATCH($AX70,Data_Sector_Japan!$D$11:$AB$11,0)) -> 2.636199533 | BC70: =OFFSET(Data_Sector_Japan!$C$13,,MATCH($AX70,Data_Sector_Japan!$D$12:$AB$12,0)) -> 상사,자본재 | BD70: =OFFSET(Data_Sector_Japan!$C$9,,MATCH($AX70,Data_Sector_Japan!$D$12:$AB$12,0)) -> 7.335958738 | BF70: 상사,자본재 | BK70: 9 | BL70: =OFFSET(Data_Comp!$A$4,$BK70,MATCH($BF$61,Data_Comp!$B$3:$GR$3,0)+MATCH(BL$61,Data_Comp!$B$4:$Y$4,0)-1) -> Kansai Paint | BM70: =IFERROR(OFFSET(Data_Comp!$A$4,$BK70+MATCH(BM$61,Data_Comp!$A$5:$A$300,0),MATCH($BF$61,Data_Comp!$B$3:$GR$3,0)+MATCH(BL$61,Data_Comp!$B$4:$Y$4,0)-1),"") -> 0 | BN70: =IFERROR(OFFSET(Data_Comp!$A$4,$BK70+MATCH(BN$61,Data_Comp!$A$5:$A$300,0),MATCH($BF$61,Data_Comp!$B$3:$GR$3,0)+MATCH(BL$61,Data_Comp!$B$4:$Y$4,0)-1),"") -> 6569.24 | BO70: =IFERROR(OFFSET(Data_Comp!$A$4,$BK70+MATCH(BO$61,Data_Comp!$A$5:$A$300,0),MATCH($BF$61,Data_Comp!$B$3:$GR$3,0)+MATCH(BL$61,Data_Comp!$B$4:$Y$4,0)-1),"") -> 23.96 | BP70: =IFERROR(OFFSET(Data_Comp!$A$4,$BK70+MATCH(BP$61,Data_Comp!$A$5:$A$300,0),MATCH($BF$61,Data_Comp!$B$3:$GR$3,0)+MATCH(BL$61,Data_Comp!$B$4:$Y$4,0)-1),"") -> 2.64 | BQ70: =IFERROR(OFFSET(Data_Comp!$A$4,$BK70+MATCH(BQ$61,Data_Comp!$A$5:$A$300,0),MATCH($BF$61,Data_Comp!$B$3:$GR$3,0)+MATCH(BL$61,Data_Comp!$B$4:$Y$4,0)-1),"") -> 21.56 | BR70: =IFERROR(OFFSET(Data_Comp!$A$4,$BK70+MATCH(BR$61,Data_Comp!$A$5:$A$300,0),MATCH($BF$61,Data_Comp!$B$3:$GR$3,0)+MATCH(BL$61,Data_Comp!$B$4:$Y$4,0)-1),"") -> 19.95 | BS70: =IFERROR(OFFSET(Data_Comp!$A$4,$BK70+MATCH(BS$61,Data_Comp!$A$5:$A$300,0),MATCH($BF$61,Data_Comp!$B$3:$GR$3,0)+MATCH(BL$61,Data_Comp!$B$4:$Y$4,0)-1),"") -> 21.31 | BT70: =IFERROR(OFFSET(Data_Comp!$A$4,$BK70+MATCH(BT$61,Data_Comp!$A$5:$A$300,0),MATCH($BF$61,Data_Comp!$B$3:$GR$3,0)+MATCH(BL$61,Data_Comp!$B$4:$Y$4,0)-1),"") -> 10.55 | BU70: =IFERROR(OFFSET(Data_Comp!$A$4,$BK70+MATCH(BU$61,Data_Comp!$A$5:$A$300,0),MATCH($BF$61,Data_Comp!$B$3:$GR$3,0)+MATCH(BL$61,Data_Comp!$B$4:$Y$4,0)-1),"") -> 7.3 | BV70: =IFERROR(OFFSET(Data_Comp!$A$4,$BK70+MATCH(BV$61,Data_Comp!$A$5:$A$300,0),MATCH($BF$61,Data_Comp!$B$3:$GR$3,0)+MATCH(BL$61,Data_Comp!$B$4:$Y$4,0)-1),"") -> 11.01 | BW70: =IFERROR(OFFSET(Data_Comp!$A$4,$BK70+MATCH(BW$61,Data_Comp!$A$5:$A$300,0),MATCH($BF$61,Data_Comp!$B$3:$GR$3,0)+MATCH(BL$61,Data_Comp!$B$4:$Y$4,0)-1),"") -> 1
AH71: 10 | AI71: Nissan Chemical Industries | AJ71: 5383.99 | AK71: 0 | AL71: 21.97 | AM71: 3.54 | AN71: 5.5 | AO71: 9.26 | AP71: 10.62 | AQ71: 18.06 | AR71: 13.97 | AS71: 16.13 | AT71: 1.61 | AX71: 7 | AY71: =OFFSET(Data_Sector_Japan!$C$13,,MATCH($AX71,Data_Sector_Japan!$D$10:$AB$10,0)) -> 운송 | AZ71: =OFFSET(Data_Sector_Japan!$C$7,,MATCH($AX71,Data_Sector_Japan!$D$10:$AB$10,0)) -> 0.1475294527 | BA71: =OFFSET(Data_Sector_Japan!$C$13,,MATCH($AX71,Data_Sector_Japan!$D$11:$AB$11,0)) -> 화장품,의류,완구 | BB71: =OFFSET(Data_Sector_Japan!$C$8,,MATCH($AX71,Data_Sector_Japan!$D$11:$AB$11,0)) -> 2.584896374 | BC71: =OFFSET(Data_Sector_Japan!$C$13,,MATCH($AX71,Data_Sector_Japan!$D$12:$AB$12,0)) -> 기계 | BD71: =OFFSET(Data_Sector_Japan!$C$9,,MATCH($AX71,Data_Sector_Japan!$D$12:$AB$12,0)) -> 7.164240049 | BF71: 운송 | BK71: 10 | BL71: =OFFSET(Data_Comp!$A$4,$BK71,MATCH($BF$61,Data_Comp!$B$3:$GR$3,0)+MATCH(BL$61,Data_Comp!$B$4:$Y$4,0)-1) -> Nissan Chemical Industries | BM71: =IFERROR(OFFSET(Data_Comp!$A$4,$BK71+MATCH(BM$61,Data_Comp!$A$5:$A$300,0),MATCH($BF$61,Data_Comp!$B$3:$GR$3,0)+MATCH(BL$61,Data_Comp!$B$4:$Y$4,0)-1),"") -> 0 | BN71: =IFERROR(OFFSET(Data_Comp!$A$4,$BK71+MATCH(BN$61,Data_Comp!$A$5:$A$300,0),MATCH($BF$61,Data_Comp!$B$3:$GR$3,0)+MATCH(BL$61,Data_Comp!$B$4:$Y$4,0)-1),"") -> 5383.99 | BO71: =IFERROR(OFFSET(Data_Comp!$A$4,$BK71+MATCH(BO$61,Data_Comp!$A$5:$A$300,0),MATCH($BF$61,Data_Comp!$B$3:$GR$3,0)+MATCH(BL$61,Data_Comp!$B$4:$Y$4,0)-1),"") -> 21.97 | BP71: =IFERROR(OFFSET(Data_Comp!$A$4,$BK71+MATCH(BP$61,Data_Comp!$A$5:$A$300,0),MATCH($BF$61,Data_Comp!$B$3:$GR$3,0)+MATCH(BL$61,Data_Comp!$B$4:$Y$4,0)-1),"") -> 3.54 | BQ71: =IFERROR(OFFSET(Data_Comp!$A$4,$BK71+MATCH(BQ$61,Data_Comp!$A$5:$A$300,0),MATCH($BF$61,Data_Comp!$B$3:$GR$3,0)+MATCH(BL$61,Data_Comp!$B$4:$Y$4,0)-1),"") -> 5.5 | BR71: =IFERROR(OFFSET(Data_Comp!$A$4,$BK71+MATCH(BR$61,Data_Comp!$A$5:$A$300,0),MATCH($BF$61,Data_Comp!$B$3:$GR$3,0)+MATCH(BL$61,Data_Comp!$B$4:$Y$4,0)-1),"") -> 9.26 | BS71: =IFERROR(OFFSET(Data_Comp!$A$4,$BK71+MATCH(BS$61,Data_Comp!$A$5:$A$300,0),MATCH($BF$61,Data_Comp!$B$3:$GR$3,0)+MATCH(BL$61,Data_Comp!$B$4:$Y$4,0)-1),"") -> 10.62 | BT71: =IFERROR(OFFSET(Data_Comp!$A$4,$BK71+MATCH(BT$61,Data_Comp!$A$5:$A$300,0),MATCH($BF$61,Data_Comp!$B$3:$GR$3,0)+MATCH(BL$61,Data_Comp!$B$4:$Y$4,0)-1),"") -> 18.06 | BU71: =IFERROR(OFFSET(Data_Comp!$A$4,$BK71+MATCH(BU$61,Data_Comp!$A$5:$A$300,0),MATCH($BF$61,Data_Comp!$B$3:$GR$3,0)+MATCH(BL$61,Data_Comp!$B$4:$Y$4,0)-1),"") -> 13.97 | BV71: =IFERROR(OFFSET(Data_Comp!$A$4,$BK71+MATCH(BV$61,Data_Comp!$A$5:$A$300,0),MATCH($BF$61,Data_Comp!$B$3:$GR$3,0)+MATCH(BL$61,Data_Comp!$B$4:$Y$4,0)-1),"") -> 16.13 | BW71: =IFERROR(OFFSET(Data_Comp!$A$4,$BK71+MATCH(BW$61,Data_Comp!$A$5:$A$300,0),MATCH($BF$61,Data_Comp!$B$3:$GR$3,0)+MATCH(BL$61,Data_Comp!$B$4:$Y$4,0)-1),"") -> 1.61
AX72: 8 | AY72: =OFFSET(Data_Sector_Japan!$C$13,,MATCH($AX72,Data_Sector_Japan!$D$10:$AB$10,0)) -> 미디어,교육 | AZ72: =OFFSET(Data_Sector_Japan!$C$7,,MATCH($AX72,Data_Sector_Japan!$D$10:$AB$10,0)) -> 0.06887214504 | BA72: =OFFSET(Data_Sector_Japan!$C$13,,MATCH($AX72,Data_Sector_Japan!$D$11:$AB$11,0)) -> 상사,자본재 | BB72: =OFFSET(Data_Sector_Japan!$C$8,,MATCH($AX72,Data_Sector_Japan!$D$11:$AB$11,0)) -> 2.485299786 | BC72: =OFFSET(Data_Sector_Japan!$C$13,,MATCH($AX72,Data_Sector_Japan!$D$12:$AB$12,0)) -> 화장품,의류,완구 | BD72: =OFFSET(Data_Sector_Japan!$C$9,,MATCH($AX72,Data_Sector_Japan!$D$12:$AB$12,0)) -> 6.811120832 | BF72: 자동차
AX73: 9 | AY73: =OFFSET(Data_Sector_Japan!$C$13,,MATCH($AX73,Data_Sector_Japan!$D$10:$AB$10,0)) -> 건설,건축관련 | AZ73: =OFFSET(Data_Sector_Japan!$C$7,,MATCH($AX73,Data_Sector_Japan!$D$10:$AB$10,0)) -> 0.05268384715 | BA73: =OFFSET(Data_Sector_Japan!$C$13,,MATCH($AX73,Data_Sector_Japan!$D$11:$AB$11,0)) -> 에너지 | BB73: =OFFSET(Data_Sector_Japan!$C$8,,MATCH($AX73,Data_Sector_Japan!$D$11:$AB$11,0)) -> 1.466208806 | BC73: =OFFSET(Data_Sector_Japan!$C$13,,MATCH($AX73,Data_Sector_Japan!$D$12:$AB$12,0)) -> 비철,목재등 | BD73: =OFFSET(Data_Sector_Japan!$C$9,,MATCH($AX73,Data_Sector_Japan!$D$12:$AB$12,0)) -> 6.119832416 | BF73: 화장품,의류,완구
AX74: 10 | AY74: =OFFSET(Data_Sector_Japan!$C$13,,MATCH($AX74,Data_Sector_Japan!$D$10:$AB$10,0)) -> 소매(유통) | AZ74: =OFFSET(Data_Sector_Japan!$C$7,,MATCH($AX74,Data_Sector_Japan!$D$10:$AB$10,0)) -> 0.01217598534 | BA74: =OFFSET(Data_Sector_Japan!$C$13,,MATCH($AX74,Data_Sector_Japan!$D$11:$AB$11,0)) -> 운송 | BB74: =OFFSET(Data_Sector_Japan!$C$8,,MATCH($AX74,Data_Sector_Japan!$D$11:$AB$11,0)) -> 1.423009211 | BC74: =OFFSET(Data_Sector_Japan!$C$13,,MATCH($AX74,Data_Sector_Japan!$D$12:$AB$12,0)) -> 소매(유통) | BD74: =OFFSET(Data_Sector_Japan!$C$9,,MATCH($AX74,Data_Sector_Japan!$D$12:$AB$12,0)) -> 5.33487593 | BF74: 호텔,레저서비스
AX75: 11 | AY75: =OFFSET(Data_Sector_Japan!$C$13,,MATCH($AX75,Data_Sector_Japan!$D$10:$AB$10,0)) -> 철강 | AZ75: =OFFSET(Data_Sector_Japan!$C$7,,MATCH($AX75,Data_Sector_Japan!$D$10:$AB$10,0)) -> 0 | BA75: =OFFSET(Data_Sector_Japan!$C$13,,MATCH($AX75,Data_Sector_Japan!$D$11:$AB$11,0)) -> 자동차 | BB75: =OFFSET(Data_Sector_Japan!$C$8,,MATCH($AX75,Data_Sector_Japan!$D$11:$AB$11,0)) -> 1.411862941 | BC75: =OFFSET(Data_Sector_Japan!$C$13,,MATCH($AX75,Data_Sector_Japan!$D$12:$AB$12,0)) -> 자동차 | BD75: =OFFSET(Data_Sector_Japan!$C$9,,MATCH($AX75,Data_Sector_Japan!$D$12:$AB$12,0)) -> 4.789580695 | BF75: 미디어,교육
AX76: 12 | AY76: =OFFSET(Data_Sector_Japan!$C$13,,MATCH($AX76,Data_Sector_Japan!$D$10:$AB$10,0)) -> 상사,자본재 | AZ76: =OFFSET(Data_Sector_Japan!$C$7,,MATCH($AX76,Data_Sector_Japan!$D$10:$AB$10,0)) -> 0 | BA76: =OFFSET(Data_Sector_Japan!$C$13,,MATCH($AX76,Data_Sector_Japan!$D$11:$AB$11,0)) -> 필수소비재 | BB76: =OFFSET(Data_Sector_Japan!$C$8,,MATCH($AX76,Data_Sector_Japan!$D$11:$AB$11,0)) -> 0.956222758 | BC76: =OFFSET(Data_Sector_Japan!$C$13,,MATCH($AX76,Data_Sector_Japan!$D$12:$AB$12,0)) -> 운송 | BD76: =OFFSET(Data_Sector_Japan!$C$9,,MATCH($AX76,Data_Sector_Japan!$D$12:$AB$12,0)) -> 4.51834589 | BF76: 소매(유통)
AX77: 13 | AY77: =OFFSET(Data_Sector_Japan!$C$13,,MATCH($AX77,Data_Sector_Japan!$D$10:$AB$10,0)) -> 통신서비스 | AZ77: =OFFSET(Data_Sector_Japan!$C$7,,MATCH($AX77,Data_Sector_Japan!$D$10:$AB$10,0)) -> 0 | BA77: =OFFSET(Data_Sector_Japan!$C$13,,MATCH($AX77,Data_Sector_Japan!$D$11:$AB$11,0)) -> 호텔,레저서비스 | BB77: =OFFSET(Data_Sector_Japan!$C$8,,MATCH($AX77,Data_Sector_Japan!$D$11:$AB$11,0)) -> 0.8513595381 | BC77: =OFFSET(Data_Sector_Japan!$C$13,,MATCH($AX77,Data_Sector_Japan!$D$12:$AB$12,0)) -> 필수소비재 | BD77: =OFFSET(Data_Sector_Japan!$C$9,,MATCH($AX77,Data_Sector_Japan!$D$12:$AB$12,0)) -> 2.95015233 | BF77: 필수소비재
AX78: 14 | AY78: =OFFSET(Data_Sector_Japan!$C$13,,MATCH($AX78,Data_Sector_Japan!$D$10:$AB$10,0)) -> 유틸리티 | AZ78: =OFFSET(Data_Sector_Japan!$C$7,,MATCH($AX78,Data_Sector_Japan!$D$10:$AB$10,0)) -> 0 | BA78: =OFFSET(Data_Sector_Japan!$C$13,,MATCH($AX78,Data_Sector_Japan!$D$11:$AB$11,0)) -> 건설,건축관련 | BB78: =OFFSET(Data_Sector_Japan!$C$8,,MATCH($AX78,Data_Sector_Japan!$D$11:$AB$11,0)) -> 0.6104930395 | BC78: =OFFSET(Data_Sector_Japan!$C$13,,MATCH($AX78,Data_Sector_Japan!$D$12:$AB$12,0)) -> 호텔,레저서비스 | BD78: =OFFSET(Data_Sector_Japan!$C$9,,MATCH($AX78,Data_Sector_Japan!$D$12:$AB$12,0)) -> 2.580841601 | BF78: 건강관리
AX79: 15 | AY79: =OFFSET(Data_Sector_Japan!$C$13,,MATCH($AX79,Data_Sector_Japan!$D$10:$AB$10,0)) -> 필수소비재 | AZ79: =OFFSET(Data_Sector_Japan!$C$7,,MATCH($AX79,Data_Sector_Japan!$D$10:$AB$10,0)) -> -0.008373495683 | BA79: =OFFSET(Data_Sector_Japan!$C$13,,MATCH($AX79,Data_Sector_Japan!$D$11:$AB$11,0)) -> 미디어,교육 | BB79: =OFFSET(Data_Sector_Japan!$C$8,,MATCH($AX79,Data_Sector_Japan!$D$11:$AB$11,0)) -> 0.5254023305 | BC79: =OFFSET(Data_Sector_Japan!$C$13,,MATCH($AX79,Data_Sector_Japan!$D$12:$AB$12,0)) -> 증권 | BD79: =OFFSET(Data_Sector_Japan!$C$9,,MATCH($AX79,Data_Sector_Japan!$D$12:$AB$12,0)) -> 2.432069589 | BF79: 은행
AX80: 16 | AY80: =OFFSET(Data_Sector_Japan!$C$13,,MATCH($AX80,Data_Sector_Japan!$D$10:$AB$10,0)) -> 자동차 | AZ80: =OFFSET(Data_Sector_Japan!$C$7,,MATCH($AX80,Data_Sector_Japan!$D$10:$AB$10,0)) -> -0.008972866379 | BA80: =OFFSET(Data_Sector_Japan!$C$13,,MATCH($AX80,Data_Sector_Japan!$D$11:$AB$11,0)) -> 은행 | BB80: =OFFSET(Data_Sector_Japan!$C$8,,MATCH($AX80,Data_Sector_Japan!$D$11:$AB$11,0)) -> 0.2516370589 | BC80: =OFFSET(Data_Sector_Japan!$C$13,,MATCH($AX80,Data_Sector_Japan!$D$12:$AB$12,0)) -> 건설,건축관련 | BD80: =OFFSET(Data_Sector_Japan!$C$9,,MATCH($AX80,Data_Sector_Japan!$D$12:$AB$12,0)) -> 2.19874449 | BF80: 증권
B81: 업종별 12MF 순이익전망치 변화율 (1M) | AX81: 17 | AY81: =OFFSET(Data_Sector_Japan!$C$13,,MATCH($AX81,Data_Sector_Japan!$D$10:$AB$10,0)) -> 건강관리 | AZ81: =OFFSET(Data_Sector_Japan!$C$7,,MATCH($AX81,Data_Sector_Japan!$D$10:$AB$10,0)) -> -0.02608018876 | BA81: =OFFSET(Data_Sector_Japan!$C$13,,MATCH($AX81,Data_Sector_Japan!$D$11:$AB$11,0)) -> 통신서비스 | BB81: =OFFSET(Data_Sector_Japan!$C$8,,MATCH($AX81,Data_Sector_Japan!$D$11:$AB$11,0)) -> 0.2358365601 | BC81: =OFFSET(Data_Sector_Japan!$C$13,,MATCH($AX81,Data_Sector_Japan!$D$12:$AB$12,0)) -> 건강관리 | BD81: =OFFSET(Data_Sector_Japan!$C$9,,MATCH($AX81,Data_Sector_Japan!$D$12:$AB$12,0)) -> 1.991630268 | BF81: 보험
AK82: =S84 -> 1M | AN82: FY1 | AX82: 18 | AY82: =OFFSET(Data_Sector_Japan!$C$13,,MATCH($AX82,Data_Sector_Japan!$D$10:$AB$10,0)) -> IT하드웨어 | AZ82: =OFFSET(Data_Sector_Japan!$C$7,,MATCH($AX82,Data_Sector_Japan!$D$10:$AB$10,0)) -> -0.1167955274 | BA82: =OFFSET(Data_Sector_Japan!$C$13,,MATCH($AX82,Data_Sector_Japan!$D$11:$AB$11,0)) -> 건강관리 | BB82: =OFFSET(Data_Sector_Japan!$C$8,,MATCH($AX82,Data_Sector_Japan!$D$11:$AB$11,0)) -> 0.19219448 | BC82: =OFFSET(Data_Sector_Japan!$C$13,,MATCH($AX82,Data_Sector_Japan!$D$12:$AB$12,0)) -> 미디어,교육 | BD82: =OFFSET(Data_Sector_Japan!$C$9,,MATCH($AX82,Data_Sector_Japan!$D$12:$AB$12,0)) -> 1.533481256 | BF82: 소프트웨어
R83: 업종명 | S83: 보험 | AI83: 종목명 | AJ83: 시가총액 | AK83: 12MF 순이익 변화율 | AL83: 12MF PE | AM83: 12MF PB | AN83: Sales growth | AO83: OP growth | AP83: NP growth | AQ83: OPM | AR83: NPM | AS83: ROE | AT83: Div. yield | AX83: 19 | AY83: =OFFSET(Data_Sector_Japan!$C$13,,MATCH($AX83,Data_Sector_Japan!$D$10:$AB$10,0)) -> 호텔,레저서비스 | AZ83: =OFFSET(Data_Sector_Japan!$C$7,,MATCH($AX83,Data_Sector_Japan!$D$10:$AB$10,0)) -> -0.138677168 | BA83: =OFFSET(Data_Sector_Japan!$C$13,,MATCH($AX83,Data_Sector_Japan!$D$11:$AB$11,0)) -> 보험 | BB83: =OFFSET(Data_Sector_Japan!$C$8,,MATCH($AX83,Data_Sector_Japan!$D$11:$AB$11,0)) -> -0.4970658552 | BC83: =OFFSET(Data_Sector_Japan!$C$13,,MATCH($AX83,Data_Sector_Japan!$D$12:$AB$12,0)) -> 통신서비스 | BD83: =OFFSET(Data_Sector_Japan!$C$9,,MATCH($AX83,Data_Sector_Japan!$D$12:$AB$12,0)) -> 1.406583959 | BF83: IT하드웨어 | BL83: =S83 -> 보험 | BM83: =S84 -> 1M
R84: 기간 | S84: 1M | AH84: 1 | AI84: =IFERROR(BL84,"") -> Japan Post Holdings | AJ84: =IF(BN84="","",BN84) -> 54536.99 | AK84: =IF(BM84="","",BM84) -> -0.8702269431 | AL84: =IF(BO84="","",BO84) -> 14.59 | AM84: =IF(BP84="","",BP84) -> 0.39 | AN84: -5.26 | AO84: 30.02 | AP84: 흑전(1588.58000) | AQ84: 6.62 | AR84: 3.42 | AS84: 2.8 | AT84: 3.69 | AX84: 20 | AY84: =OFFSET(Data_Sector_Japan!$C$13,,MATCH($AX84,Data_Sector_Japan!$D$10:$AB$10,0)) -> 보험 | AZ84: =OFFSET(Data_Sector_Japan!$C$7,,MATCH($AX84,Data_Sector_Japan!$D$10:$AB$10,0)) -> -0.2119364467 | BA84: =OFFSET(Data_Sector_Japan!$C$13,,MATCH($AX84,Data_Sector_Japan!$D$11:$AB$11,0)) -> 유틸리티 | BB84: =OFFSET(Data_Sector_Japan!$C$8,,MATCH($AX84,Data_Sector_Japan!$D$11:$AB$11,0)) -> -0.5715404886 | BC84: =OFFSET(Data_Sector_Japan!$C$13,,MATCH($AX84,Data_Sector_Japan!$D$12:$AB$12,0)) -> 보험 | BD84: =OFFSET(Data_Sector_Japan!$C$9,,MATCH($AX84,Data_Sector_Japan!$D$12:$AB$12,0)) -> 1.089548636 | BF84: 반도체 | BK84: 1 | BL84: =OFFSET(Data_Comp!$A$4,$BK84,MATCH($BF$61,Data_Comp!$B$3:$GR$3,0)+MATCH(BL$83,Data_Comp!$B$4:$Y$4,0)-1) -> Japan Post Holdings | BM84: =IFERROR(OFFSET(Data_Comp!$A$4,$BK84+MATCH(BM$83,Data_Comp!$A$5:$A$300,0),MATCH($BF$61,Data_Comp!$B$3:$GR$3,0)+MATCH(BL$83,Data_Comp!$B$4:$Y$4,0)-1),"") -> -0.8702269431 | BN84: =IFERROR(OFFSET(Data_Comp!$A$4,$BK84+MATCH(BN$61,Data_Comp!$A$5:$A$300,0),MATCH($BF$61,Data_Comp!$B$3:$GR$3,0)+MATCH(BL$83,Data_Comp!$B$4:$Y$4,0)-1),"") -> 54536.99 | BO84: =IFERROR(OFFSET(Data_Comp!$A$4,$BK84+MATCH(BO$61,Data_Comp!$A$5:$A$300,0),MATCH($BF$61,Data_Comp!$B$3:$GR$3,0)+MATCH(BL$83,Data_Comp!$B$4:$Y$4,0)-1),"") -> 14.59 | BP84: =IFERROR(OFFSET(Data_Comp!$A$4,$BK84+MATCH(BP$61,Data_Comp!$A$5:$A$300,0),MATCH($BF$61,Data_Comp!$B$3:$GR$3,0)+MATCH(BL$83,Data_Comp!$B$4:$Y$4,0)-1),"") -> 0.39 | BQ84: =IFERROR(OFFSET(Data_Comp!$A$4,$BK84+MATCH(BQ$61,Data_Comp!$A$5:$A$300,0),MATCH($BF$61,Data_Comp!$B$3:$GR$3,0)+MATCH(BL$83,Data_Comp!$B$4:$Y$4,0)-1),"") -> -5.26 | BR84: =IFERROR(OFFSET(Data_Comp!$A$4,$BK84+MATCH(BR$61,Data_Comp!$A$5:$A$300,0),MATCH($BF$61,Data_Comp!$B$3:$GR$3,0)+MATCH(BL$83,Data_Comp!$B$4:$Y$4,0)-1),"") -> 30.02 | BS84: =IFERROR(OFFSET(Data_Comp!$A$4,$BK84+MATCH(BS$61,Data_Comp!$A$5:$A$300,0),MATCH($BF$61,Data_Comp!$B$3:$GR$3,0)+MATCH(BL$83,Data_Comp!$B$4:$Y$4,0)-1),"") -> 흑전(1588.58000) | BT84: =IFERROR(OFFSET(Data_Comp!$A$4,$BK84+MATCH(BT$61,Data_Comp!$A$5:$A$300,0),MATCH($BF$61,Data_Comp!$B$3:$GR$3,0)+MATCH(BL$83,Data_Comp!$B$4:$Y$4,0)-1),"") -> 6.62 | BU84: =IFERROR(OFFSET(Data_Comp!$A$4,$BK84+MATCH(BU$61,Data_Comp!$A$5:$A$300,0),MATCH($BF$61,Data_Comp!$B$3:$GR$3,0)+MATCH(BL$83,Data_Comp!$B$4:$Y$4,0)-1),"") -> 3.42 | BV84: =IFERROR(OFFSET(Data_Comp!$A$4,$BK84+MATCH(BV$61,Data_Comp!$A$5:$A$300,0),MATCH($BF$61,Data_Comp!$B$3:$GR$3,0)+MATCH(BL$83,Data_Comp!$B$4:$Y$4,0)-1),"") -> 2.8 | BW84: =IFERROR(OFFSET(Data_Comp!$A$4,$BK84+MATCH(BW$61,Data_Comp!$A$5:$A$300,0),MATCH($BF$61,Data_Comp!$B$3:$GR$3,0)+MATCH(BL$83,Data_Comp!$B$4:$Y$4,0)-1),"") -> 3.69
